Workbook

Sheet Start
B2: Das moderne Gewichtscoaching: XLS - von XL bis S
B5: x.....xsund
B6: l......liecht
B7: s.....schlank
E22: Das moderne Gewichtscoaching: XLS - von XL bis S
E23: Software (XLS) zur Motivation und als Begleiter Ihrer Gewichtsreduktion
E27: V1.19 - 26.1.2009
E28: © by Sevisana AG 2006 - Alle Rechte vorbehalten
B32: Dr. med. Dr. scient. med. Jürg Eichhorn
B33: Allgemeine Innere Medizin FMH - Praxis für Allgemeine und Komplementärmedizin
B34: CH-9100 Herisau
B35: drje49@gmail.com
B36: www.ever.ch

Sheet XLS Start
B2: Das moderne Gewichtscoaching: XLS - von XL bis S
B3: Ernährung - Bewegung - Schlaf - Psyche - Motivation (XLS Software) - Unterstützung (Nahrungsergänzung) | L3: Das moderne Gewichtscoaching:
B6: EINE VISION - EIN ZIEL - EIN WEG → ICH KANN UND WILL DIESEN WEG GEHEN | L6: XLS - von XL bis S
L8: Ernährung und Bewegung
B9: Ernährung | C9: Folgen Sie der "Hauptstrasse der Ernährung", aber vergessen Sie dabei nicht die Nebenstrassen (kleine Sünden).
C10: Frühstück: Das volle Leben wird aus dem Frühstück geboren (Chinesisches Sprichwort).
C11: Dinner cancelling 2x pro Woche: Verzicht auf Abendessen bringt Hormone in Trab! | L11: Psyche und Schlaf
C12: (Hauptstrasse der Ernährung: www.ever.ch)
B14: Bewegung | C14: Bewegung bringt Regung! | L14: Motivation: XLS Software
C15: Wenn wir unseren Körper vernachlässigen, wo sollen wir dann wohnen?
C16: In der Bewegung erstickt der Stoffwechsel und die Schlacken stauen sich. (Maimonides, Jüdischer Arzt)
C17: Ein Büroangestellter, 70 kg schwer, setzt täglich ca. 1500 kcal um. | L17: Unterstützung
C18: Unsere Vorfahren, die Jäger und Sammler, setzten dagegen täglich ca. 3500 kcal.
C19: An die neue Lebensweise sind wir Menschen evolutionär noch nicht angepasst. | L19: Granuvital "Fit&Schlank" SevisanaLine
B21: Schlaf | C21: Wer oft zu wenig schläft, riskiert Übergewicht.
C22: Im Schlaf nimmt man ab - Der Schlaf vor Mitternacht ist der gesündeste (Alte Volksweisheiten). | L22: X-Form und X-Form Plus SevisanaLine
C23: Studie: Männer, die nachts nicht mehr als vier Stunden schliefen, zeigten niedrigere Leptinwerte.
C24: Das Proteohormon Leptin bewirkt ein Sättigungssignal und wirkt appetithemmend.
C25: Obwohl die Testpersonen sich gesund ernährten, waren ihre Leptinwerte vergleichbar mit denen von Menschen | L25: Reine Flohsamenschalen SevisanaLine
C26: von Menschen, die drei Tage lang 1000 Kalorien weniger zu sich nahmen. In einer Studie zeigte sich, dass
C27: Personen bei Schlafentzug besonderes Verlangen nach Süssigkeiten, stärkehaltiger Nahrung und Salzigem hatten.
L28: Basenpulver nach Dr. Eichhorn
B29: Psyche | C29: Essen ist schön! Nicht-Essen kann auch schön sein!
C30: Ich freue mich auf die "leichte" Nacht, auf das Erwachen des Tages, auf die Lebendigkeit des Frühstücks.
C31: Überlisten Sie die Langeweile! Er ist ein gefährlicher Hungermacher. | L31: Produkteinfo | N31: www.sevisana.ch
C32: Bei Übergewicht gilt: Wer verliert - der gewinnt!
C33: Achten Sie auf Ihr Sättigungsgefühl und schenken Sie die Resten dem Teller!
C34: "Nie ist zu wenig, was genügt" (Seneca, römischer Philosoph) | L34: Bestellung | N34: www.sevisana.ch
C35: FdH = Autodiät! Fahr die Hälfte! Das Benzin ist häufig (indirekt) mitschuldig am Übergewicht.
C36: Schlank macht nur, was man nicht isst!
C37: Dinner cancelling ist der billigste, sicherste aber auch schwierigste Schlankheitsmacher! | L37: Direktbestellung | N37: http://shop.sevisana.ch
B39: Motivation XLS Software | C39: Berechnung des Gesamtenergiebedarfs unter Berücksichtigung der Lebensweise,
C40: der sportlichen Aktivität (PAL) und des Verdauungsverlustes | L40: Medizinwissen | N40: www.ever.ch
C41: Prozentuale Berechnung der Kohlenhydrat-, Fett- und Eiweissverteilung. Individuelle Eingaben
C42: Berechnung des Grundumsatzes nach 5 verschiedenen Modellen
C43: Berechnung der Risikoprofile Metabolisches Syndrom, Insulinresistenz, Gefässrisiko, Arterioskleroserisiko
C44: Berechnung und Bewertung von BMI, Bauchumfang, Bauchumfang zu Hüftumfang
C45: Gewichtttabelle (tägliche Eingabe möglich), graphische Darstellung des Gewichtsverlaufs
C46: Blutdruck-Pulstabelle (tägliche Eingabe möglich), Blutdruckkurve
C47: Jahreszusammenfassung, Jahresziele, Monatsziele
C48: Fettmessung
C49: Eingabe Ihrer Trainingszeiten mit graphischer Darstellung
B51: Unterstützung | C51: Granuvital "Fit&Schlank" SevisanaLine
C52: Enthält neben einer ausgewogenen Mikronährstoffmischung auch Guar und Garcinia Cambogia.
C53: Die Wirkstoffe in Garcinia Cambogia hemmen den Appetit, vermitteln ein Sättigungsgefühl und verlangsamen bei
C54: überschüssiger Kalorienzufuhr die Fettsäurebiosynthese.
C55: X-Form SevisanaLine
C56: Enthält Fructose, Inulin, Guar, Weizenfasern, Papayapulver, Citronensäure,
C57: Brombeer-, Himbeer-, Erdbeer Fruchtpulver, Acerolafruchtpulver, Chitosan, L-Carnitin, Aroma, Selenhefe,
C58: Vitamin C, Vitamin E, Provitamin A, Beta-Carotin.
C59: X-Form Plus SevisanaLine
C60: Enthält zusätzlich Mate (das koffeinhaltige Volksgetränk der Südamerikaner) und Camu-Camu.
C61: Camu-Camu ist ein in Südamerika heimischer Strauch und nach heutigem Wissensstand die Vitamin C reichste
C62: Pflanze der Welt. Die Beeren enthalten 50% reines Vitamin C und sind reich an Eisen, das zur Resorption von
C63: Vitamin C benötigt wird.
C65: Chitosan bindet Fett und Alkohol und scheidet diese aus. Damit wird die Fett- und Alkoholaufnahme aus dem Darm verringert.
C66: L-Carnitin ist eine natürlich vorkommende Aminosäure, welche die Fettverbrennung des menschlichen Organismus verbessert.
C67: Inulin regt den Fettstoffwechsel an und stärkt die Darmflora.
C68: Guarkernmehl gilt als Quellmittel oder "Magenfüller" und erzeugt ein Sättigungsgefühl.
C69: Es bindet Cholesterin und verzögert die Kohlenhydrataufnahme durch die Darmschleimhaut.
C70: Guarkernmehl wirkt einem Insulinanstieg entgegen.
C72: Die Philosopie | E72: Nicht anstelle von Mahlzeiten, sondern mit den Mahlzeiten!
E73: Verstärkung des Sättigungsgefühls
E74: Verzögerte Kohlenhydrataufnahme aus dem Darm
E75: Verminderte Fettaufnahme aus dem Darm
C77: Basenpulver n. Dr. Eichhorn
C78: Basenpulver wirkt positiv bei Zuständen, die mit erhöhter Säureproduktion einhergehen, wie z. B.
C79: Stresssituationen, Fasten, chronische Erkrankungen, chronische entzündliche Prozesse, Leistungssport.
C80: Heisshungerattacken und Süssgelüste werden in der Regel bereits nach wenigen Minuten gemildert.
C81: Schwächezustände und Beinschmerzen im Rahmen einer Gewichtsreduktion werden verhindert.
C83: Reine Flohsamenschalen
C84: Flohsamenschalen zeichnen sich durch eine hohe Quellwirkung aus. Sie reizen den Darm nicht.
C85: In Wasser quellen Flohsamenschalen bis auf das 40-fache Volumen auf (ganze Flohsamen nur auf das 15-fache).
C86: Flohsamenschalen wirken leicht cholesterinsenkend und verzögern die Kohlenhydrataufnahme.
C87: Seine Quellwirkung bewirkt ein rasch einsetzendes Sättigungsgefühl.
B90: Ergänzung | C90: Müdigkeit, Erschöpfung, Leistungsschwäche
C92: Bei Müdigkeit, Erschöpfung und Leistungsschwäche ist der Griff nach Süssem schnell getan.
C93: Die Dreierkombination bestehend aus Aminosäuren, Coenzym Q10 und Mikronährstoffen vermittelt eine spürbare Besserung
C94: meist schon nach wenigen Tagen:
C95: Amino Drink SevisanaLine ist ein Eiweisskonzentrat mit hoher biologischer Wertigkeit und enthält die für den Aufbau
C96: von Körpereiweiss notwendigen Aminosäuren.
C97: Coenzym Q10 NT SevisanaLine ist eine körpereigene Substanz, die für den Menschen lebensnotwendig und in allen Zellen
C98: des menschlichen Organismus vorhanden ist.
C99: Für die Energieversorgung des Körpers und den Zellschutz spielt Coenzym Q10 eine bedeutende Rolle.
C100: Granuvital "Fit" Kapseln SevisanaLine beinhalten Mikronährstoffe und Bioflavonoide in einer ausgewogenen Mischung.
C101: Die Mikronährstoffe sind eingearbeitet in Guar, das als Quellmittel zu einem besseren Sättigunggefühl führt.
B104: Info | C104: Produkteinformation | E104: www.sevisana.ch
C106: Bestellung | E106: www.sevisana.ch
C108: Direktbestellung | E108: http://shop.sevisana.ch
C110: Medizinwissen | E110: www.ever.ch

Sheet Ziel erreicht
B2: Ich habe es geschafft !
B3: Mit Disziplin, aber auch mit kleinen Sünden - 5 Tage mit Mass und 2 Tage mit Genuss! | L3: Das moderne Gewichtscoaching:
B6: Und so sieht mein Tages- und Wochenplan aus: | L6: XLS - von XL bis S
L8: Ernährung und Bewegung
B9: Frühstück fast immer gleich | C9: Ein Ei, weich oder hart, je nach Lust. Ein paar Löffel Hüttenkäse mit ca. 2 TL Rapsöl und fein geschnittenen
C10: Cocktailtomaten. Nur höchst selten Brot.
L11: Psyche und Schlaf
B12: Mittagessen | C12: Zum Beispiel Gemüse mit Feta überbacken, Gemüse mit Lachsfilet oder Dorschfilet im Ofen in etwas Olivenöl gebacken.
C13: Hartweizenteigwaren mit viel Gemüse oder Champignons gemischt. Salat mit Mozarella, hartem Ei und etwas magerem
C14: Putenfleisch oder Thon aus dem eigenen Saft. | L14: Motivation: XLS Software
B16: Nachmittag | C16: Ein Apfel
L17: Unterstützung
B18: Abends | C18: Abends so oft wie möglich Dinner Cancelling und wenn der Magen doch mal knurrt, ein paar Löffel Hüttenkäse oder
C19: ein paar Bissen Käse. | L19: Granuvital "Fit&Schlank" SevisanaLine
C20: Dinner Cancelling fällt praktisch nur aus, wenn ich eingeladen bin, dann geniesse ich aber auch mal ein Abendessen
C21: mit gutem Gewissen.
L22: X-Form und X-Form Plus SevisanaLine
B23: Samstag | C23: Am Samstagmittag als weiteren Ansporn und zur Belohnung fürs Durchhalten ein Essen in einem chinesischen Restaurant,
C24: ohne auf die Kalorien zu achten. Das Abendessen fällt weg.
L25: Reine Flohsamenschalen SevisanaLine
B26: Sonntag | C26: Am Sonntagmorgen meistens Brunch: 2 weiche Eier, Käse, mageren Putenaufschnitt, Fisch, Vollkornbrot,
C27: rohes Gemüse wie Cocktailtomaten, Radieschen usw.
C28: Dann nur noch Nachmittags 1 - 2 Äpfel und wieder Dinner Cancelling. | L28: Basenpulver nach Dr. Eichhorn
B30: Bewegung | C30: 1 - 2 mal Nordic Walking
C31: 1 - 2 mal die Woche zügig spazieren gehen, mind. 3 - 4 Stunden | L31: Produkteinfo | N31: www.sevisana.ch
C32: 1 - 2 mal die Woche Stadtbummel, aber ohne Stadtcafé und Schwarzwäldertorte!
C33: Täglich Übungen auf einem Muskeltrainer, ca. 15 Minuten | L33: Bestellung | N33: www.sevisana.ch
B35: Nahrungsergänzung | C35: Morgens nach dem Aufstehen erst einmal "Reine Flohsamenschalen" SevisanaLine in einem grossen Glas Wasser. | L35: Direktbestellung | N35: http://shop.sevisana.ch
C36: Mittags ca. 1 TL X-Form plus und 1/2 TL Granuvital "Fit&Schlank" in einem grossen Glas Wasser 1/2 Std. vor dem Essen.
C37: Gegen Abend 1-2 TL X-Form plus und 1 TL Granuvital "Fit&Schlank" in einem grossen Glas Wasser. | L37: Medizinwissen | N37: www.ever.ch
B43: Wo ein Wille ist,
B44: ist auch ein Weg!
C68: Beginn am 01.09.2005: 110kg
D74: Nach 407 Tagen:
C76: Sonntag, 8.10.2006 um 10 Uhr: 55 Kilo weg!

Sheet GU-GEB
B2: Gesamtenergiebedarf (GEB) | L2: Das moderne Gewichtscoaching:
B3: Grundumsatz (GU) * Körperliche Aktivität (PAL) + Sportlich aktiv + Verdauungsverlust | L3: XLS - von XL bis S
G5: Grüne Felder: Eingabe erforderlich | L5: Ernährung und Bewegung
B6: Name: | G6: Datum: | L6: Psyche und Schlaf
B8: Geschlecht | C8: Frau | D8: Körperoberfläche (m2): | G8: =(C10^0.725)*(C9^0.425)*0.007184 -> 0 | J8: =IF(C8="Mann",94,80) -> 80 | L8: Motivation: XLS Software
B9: Körpergewicht | D9: BMI | G9: =IF(C9=0,"",IF(C10=0,"",C9/((C10/100)^2))) ->  | L9: Unterstützung
B10: Grösse | L10: Granuvital "Fit&Schlank" SevisanaLine
B11: Alter | L11: X-Form und X-Form Plus SevisanaLine
L12: Reine Flohsamenschalen SevisanaLine
B14: PAL Wert (1=GU) | D14: =VLOOKUP(C14,B27:C40,2) ->  | L14: Produkteinformation | N14: www.sevisana.ch
B16: Sportliche Betätigung | C16: =IF(G16="JA",C14+0.3,C14) -> 0 | D16: Sportlich aktiv ? Ja= PAL +0.3 | L16: Bestellung | N16: www.sevisana.ch
B17: ="GU "&C$8&" (kcal)" -> GU Frau (kcal) | C17: =IF(C9="","",IF(C10="","",IF(C11="","",IF(C8="Mann",E83,E82)))) ->  | D17: GU + PAL: | E17: =IF(C10="","",IF(C10="","",IF(C11="","",C16*C17))) ->  | F17: Plus Verlust durch Verdauung: | G17: 0 | H17: ="GEB "&C$8&" (kcal)" -> GEB Frau (kcal) | I17: =IF(C9="","",IF(C10="","",IF(C11="","",E17/100*G17+E17))) ->  | L17: Direktbestellung | N17: http://shop.sevisana.ch
B18: ="GU "&C$8&" (kj)" -> GU Frau (kj) | C18: =IF(C9="","",IF(C10="","",IF(C11="","",C17*4.2))) ->  | E18: =IF(C9="","",IF(C10="","",IF(C11="","",E17*4.2))) ->  | H18: ="GEB "&C$8&" (kj)" -> GEB Frau (kj) | I18: =IF(C9="","",IF(C10="","",IF(C11="","",I17*4.2))) ->  | L18: Medizinwissen | N18: www.ever.ch
B19: Grundumsatz (GU) - Berechnungsgrundlage: "Genaue Formel Mann oder Frau"
B21: PAL = (physical activity level), durchschnittlicher täglicher Energiebedarf für körperliche Aktivität als Mehrfaches des Grundumsatzes
B22: Für sportliche Betätigungen oder für anstrengende Freizeitaktivitäten (30-60 Minuten, 4-5mal je Woche) können zusätzlich pro Tag 0.3 PAL-Einheiten zugelegt werden.
B23: Quelle: DGE: D-A-CH-Referenzwerte für die Nährstoffzufuhr, 1. Auflage, Frankfurt/M. 2000.
B24: Der Verdauungsverlust:
B25: Auch Verdauung ist Arbeit für den Körper, deshalb werden durchschnittlich 10 (6-15)% der Nahrungskalorien als Verdaungsverlust zur Energiebilanz hinzugerechnet.
B26: PAL = (physical activity level), durchschnittlicher täglicher Energiebedarf für körperliche Aktivität als Mehrfaches des Grundumsatzes
B27: 1 | C27: Grundumsatz
B28: 1.2 | C28: Ausschliesslich sitzende oder liegende Lebensweise, alte, gebrechliche Menschen
B29: 1.3 | C29: Wenig Training/Bewegung an 1-3 Tagen/Woche
B30: 1.4 | C30: Ausschliesslich sitzende Tätigkeit mit wenig oder keiner anstrengenden Freizeitaktivität, Büroangestellte, Feinmechaniker
B31: 1.5 | C31: Ausschliesslich sitzende Tätigkeit mit wenig oder keiner anstrengenden Freizeitaktivität, Büroangestellte, Feinmechaniker
B32: 1.6 | C32: Sitzende Tätigkeit, zeitweilig auch zusätzlicher Energieaufwand für gehende und stehende Tätigkeiten, Laboranten, Kraftfahrer, Studierende, Fliessbandarbeiter
B33: 1.7 | C33: Sitzende Tätigkeit, zeitweilig auch zusätzlicher Energieaufwand für gehende und stehende Tätigkeiten, Laboranten, Kraftfahrer, Studierende, Fliessbandarbeiter
B34: 1.8 | C34: Überwiegend gehende und stehende Arbeit, Hausfrauen, Verkäufer, Kellner, Mechaniker, Handwerker
B35: 1.9 | C35: Überwiegend gehende und stehende Arbeit, Hausfrauen, Verkäufer, Kellner, Mechaniker, Handwerker
B36: 2 | C36: Körperlich anstrengende berufliche Arbeit, Bauarbeiter, Landwirte, Waldarbeiter, Bergarbeiter, Leistungssportler
B37: 2.1 | C37: Körperlich anstrengende berufliche Arbeit, Bauarbeiter, Landwirte, Waldarbeiter, Bergarbeiter, Leistungssportler
B38: 2.2 | C38: Körperlich anstrengende berufliche Arbeit, Bauarbeiter, Landwirte, Waldarbeiter, Bergarbeiter, Leistungssportler
B39: 2.3 | C39: Körperlich anstrengende berufliche Arbeit, Bauarbeiter, Landwirte, Waldarbeiter, Bergarbeiter, Leistungssportler
B40: 2.4 | C40: Körperlich anstrengende berufliche Arbeit, Bauarbeiter, Landwirte, Waldarbeiter, Bergarbeiter, Leistungssportler
B42: 0
B43: 6
B44: 7
B45: 8
B46: 9
B47: 10
B48: 11
B49: 12
B50: 13
B51: 14
B52: 15
B54: Mann
B55: Frau
B57: JA
B58: NEIN
B60: Grundumsatzberechnungen
B61: Grundumsatzberechnung: Formel nach Harris-Benedict (Werte wahrscheinlich eher zu hoch!)
B62: Eine der bekanntesten Formeln zur Berechnung des Grundumsatzes ist die Harris-Benedict-Formel (Ergebnis kcal bzw. kj):
B63: Männer: | C63: GU = 66 + (13.7 x Gewicht in kg) + (5 x Grösse in cm) - (6.8 x Alter in Jahren)
B64: Frauen: | C64: GU = 655 + (9.6 x Gewicht in kg) + (1.8 x Grösse in cm) - (4.7 x Alter in Jahren)
B66: Grundumsatzberechnung: Genaue Formeln Mann/Frau
B67: Frau: | C67: 10-18 Jahre: | D67: kg x 0,056 + 2,898
C68: 19-30 Jahre: | D68: kg x 0,062 + 2,036
C69: 31-60 Jahre: | D69: kg x 0,034 + 3,538
C70: über 60 Jahre: | D70: kg x 0,038 + 2,755
B72: Mann: | C72: 10-18 Jahre: | D72: kg x 0,074 + 2,754
C73: 19-30 Jahre: | D73: kg x 0,063 + 2,896
C74: 31-60 Jahre: | D74: kg x 0,048 + 3,653
C75: über 60 Jahre: | D75: kg x 0,049 + 2,459 | F75: Werte in MJ/d ( x 239 = kcal/d)*
B77: *1 Megajoule = 106 J = 1.000 Kilojoule. Zum Vergleich: 2,3 MJ = Physiologischer Brennwert von 100 g Schokolade
B78: Grundumsatzberechnung - Ergebnis: Vergleich mit verschiedenen Berechnungsarten
D79: kj | E79: kcal
B80: Einfache Formel Frau: | D80: =IF(C9="","",IF(C10="","",IF(C11="","",E80*4.2))) ->  | E80: =IF(C9="","",IF(C10="","",IF(C11="","",((7*C9)+700)))) ->  | F80: Frau: 700 + 7 x kg Körpergewicht
B81: Einfache Formel Mann | D81: =IF(C9="","",IF(C10="","",IF(C11="","",E81*4.2))) ->  | E81: =IF(C9="","",IF(C10="","",IF(C11="","",((10*C9)+900)))) ->  | F81: Mann: 900 + 10 x kg Körpergewicht
B82: Genaue Formel Frau | D82: =IF(C9="","",IF(C10="","",IF(C11="","",E82*4.2))) ->  | E82: =IF(C9="","",IF(C10="","",IF(C11="","",IF(AND(C11>=10,C11<=18),C9*0.056+2.898,IF(AND(C11>=19,C11<=30),C9*0.062+2.036,IF(AND(C11>=31,C11<=60),C9*0.034+3.538,IF(AND(C11>60),C9*0.038+2.755,""))))*239))) -> 
B83: Genaue Formel Mann | D83: =IF(C9="","",IF(C10="","",IF(C11="","",E83*4.2))) ->  | E83: =IF(C9="","",IF(C10="","",IF(C11="","",IF(AND(C11>=10,C11<=18),C9*0.074+2.754,IF(AND(C11>=19,C11<=30),C9*0.063+2.896,IF(AND(C11>=31,C11<=60),C9*0.048+3.653,IF(AND(C11>60),C9*0.049+2.459,""))))*239))) -> 
B84: Aus Körperoberfläche | D84: =IF(C9="","",IF(C10="","",IF(C11="","",E84*4.2))) ->  | E84: =IF(C9="","",IF(C10="","",IF(C11="","",G8*40*24))) ->  | F84: Körperoberfläche (m2) x 40 (kcal) x 24 (Std.)
B85: Nach Harris Benedict | C85: =C8 -> Frau | D85: =IF(C9="","",IF(C10="","",IF(C11="","",E85*4.2))) ->  | E85: =IF(C9="","",IF(C10="","",IF(C11="","",IF(C8="Mann",66+(13.7*C$9)+(5*C$10)-(6.8*C$11),655+(9.6*C$9)+(1.8*C$10)-(4.7*C$11))*C14))) -> 
B86: Aus Körpermagergewicht | D86: =IF(C9="","",IF(C10="","",IF(C11="","",E86*4.2))) ->  | E86: =IF(C9="","",IF(C10="","",IF(C11="","",C86*24))) ->  | F86: 1 kcal pro Stunde pro kg Körpermagergewicht
B88: Prozentuale Verteilung der Kohlenhydrate, Eiweisse, Fette
B89: Empfohlene tägl. Zufuhr: | C89: Berechnung nach prozentualer Verteilung | F89: Berechnung nach g/kgKG
C90: ausgehend vom Gesamtenergiebedarf (GEB) | F90: ausgehend vom Körpergewicht
D91: Ergebnis 1 | H91: Ergebnis 2
C92: % | D92: kcal | E92: Gramm | G92: Eingabe | H92: kcal | I92: Gramm
B93: Kohlenhydrate 55-60% | C93: 55 | D93: =IF(C9="","",IF(C10="","",IF(C11="","",C93*(I17/100)))) ->  | E93: =IF(C9="","",IF(C10="","",IF(C11="","",D93/4))) ->  | F93: 4.0 – 5.0 | G93: 4 | H93: =IF(C9="","",IF(C10="","",IF(C11="","",4*I93))) ->  | I93: =IF(C9="","",IF(C10="","",IF(C11="","",C9*G93))) -> 
B94: Eiweiss 15% | C94: 15 | D94: =IF(C9="","",IF(C10="","",IF(C11="","",C94*(I17/100)))) ->  | E94: =IF(C9="","",IF(C10="","",IF(C11="","",D94/4))) ->  | F94: 0.5-0.8-1.2 | G94: 0.8 | H94: =IF(C9="","",IF(C10="","",IF(C11="","",4*I94))) ->  | I94: =IF(C9="","",IF(C10="","",IF(C11="","",C9*G94))) -> 
B95: Fett 25-30% | C95: 30 | D95: =IF(C9="","",IF(C10="","",IF(C11="","",C95*(I17/100)))) ->  | E95: =IF(C9="","",IF(C10="","",IF(C11="","",D95/9))) ->  | F95: 1.0 – 1.2 | G95: 1 | H95: =IF(C9="","",IF(C10="","",IF(C11="","",9*I95))) ->  | I95: =IF(C9="","",IF(C10="","",IF(C11="","",C9*G95))) -> 
B96: Summe | C96: =SUM(C93:C95) -> 100 | D96: =IF(C9="","",IF(C10="","",IF(C11="","",SUM(D93:D95)))) ->  | E96: =IF(C9="","",IF(C10="","",IF(C11="","",SUM(E93:E95)))) ->  | H96: =IF(C9="","",IF(C10="","",IF(C11="","",SUM(H93:H95)))) ->  | I96: =IF(C9="","",IF(C10="","",IF(C11="","",SUM(I93:I95)))) -> 
B98: Eiweiss Entsprechungen gemäss Berechnungsart GEB (1) beziehungsweise Körpergewicht (2)
B99: Eiweiss Ergebnis 1: | C99: =E94 ->  | D99: entsprechen etwa | F99: =IF(C9="","",IF(C10="","",IF(C11="","",ROUNDUP((C99*5),0)))) ->  | H99: Fleisch oder Fisch
F100: =IF(C9="","",IF(C10="","",IF(C11="","",(100/12.9*C99/65)))) ->  | H100: grossen Eiern (65g)
F101: =IF(C9="","",IF(C10="","",IF(C11="","",(100/12.9*C99/50)))) ->  | H101: mittleren Eiern (50g)
F102: =IF(C9="","",IF(C10="","",IF(C11="","",(100/12.9*C99/40)))) ->  | H102: kleinen Eiern (40g)
B104: Eiweiss Ergebnis 2: | C104: =I94 ->  | D104: entsprechen etwa | F104: =IF(C9="","",IF(C10="","",IF(C11="","",C104*5))) ->  | H104: Fleisch oder Fisch
F105: =IF(C9="","",IF(C10="","",IF(C11="","",(100/12.9*C104/65)))) ->  | H105: grossen Eiern (65g)
F106: =IF(C9="","",IF(C10="","",IF(C11="","",(100/12.9*C104/50)))) ->  | H106: mittleren Eiern (50g)
F107: =IF(C9="","",IF(C10="","",IF(C11="","",(100/12.9*C104/40)))) ->  | H107: kleinen Eiern (40g)
B111: BMI=Beziehung Körpermasse zu Körpergrösse
B113: Nicht nur auf den BMI, auch auf die Fettverteilung kommt es an.
B114: Entscheidend ist auch, wo die überflüssigen Pfunde sitzen (B/H: Bauchumfang/Hüftumfang Verhältnis).
B115: Falsche hohe Werte bei stark muskulösem Körperbau!
B117: BMI | C117: < 20 | E117: Untergewicht
B118: BMI | C118: 20 - 24 | E118: Normalgewicht
B119: BMI | C119: 25 - 29 | E119: Leichtes bis mässiges Übergewicht
B120: BMI | C120: 30 - 39 | E120: Deutliches Übergewicht
B121: BMI | C121: ab 40 | E121: Sehr starkes Übergewicht
B123: BMI = Körpermasse [kg] / Körperhöhe2 [m2]: Setzt Gewicht und Grösse in Beziehung
B124: Vorteile: Gut normiert, standardisiert, messbar. Korreliert mit einigen Gesundheitsindikatoren
B125: Nachteile: Validität, z.B. auch sehr muskulöse Menschen haben hohen BMI. Alters- und geschlechtsabhängig.
B128: Bauchumfang (Taille) - (Klassifikation gemäss WHO)
C130: normal | E130: Risiko erhöht | F130: Risiko stark erhöht
B131: Frauen | C131: <80 | E131: 80-88 | F131: 88
B132: Männer | C132: <94 | E132: 94-102 | F132: 102
B134: Fett ist nicht gleich Fett!
B135: Viszerale Fettzellen (Bauchfettzellen) sind stoffwechselaktiver als subkutane Fettzellen (Unterhautfettzellen).
B136: Sie produzieren mehr freie Fettsäuren und Adipozytokinine (Gewebehormone), welche Insulinresistenz sowie
B137: entzündungsfördernde und atherogene (arteriosklerosefördernde) Störungen auslösen.
B140: Verhältnis Bauchumfang (Taille) / Hüftumfang
C142: ungünstig | D142: ( erhöhtes Gesundheitsrisiko)
B143: Frauen | C143: >0.85
B144: Männer | C144: >1.0
B146: Die androide Fettverteilung (eher männliche Fettverteilung = dicker Bauch) bringt ein höheres Herz-Kreislauf-Erkrankungs und
B147: Sterblichkeitsrisiko mit sich (Fettzellen im Bauchbereich sind stoffwechselaktiver).
B150: Messorte: Bauchumfang (B) - Hüftumfang (H)
B152: Gemessen wird mit einem Messband, stehend, die Arme leicht abgespreizt.
B153: Der Taillenumfang wird in der Mitte zwischen Becken- Oberkante und unterster Rippe gemessen,
B154: der Hüftumfang auf der Höhe der grössten Breite.
B169: Bildquelle: | C169: www-x.nzz.ch/nzz-bin/showbmi | G169: Bildquelle:www-x.nzz.ch/nzz-bin/showbmi

Sheet GU-GEB bei BMI 22
B2: Gesamtenergiebedarf (GEB) | L2: Das moderne Gewichtscoaching:
B3: Grundumsatz (GU) * Körperliche Aktivität (PAL) + Sportlich aktiv + Verdauungsverlust | L3: XLS - von XL bis S
G5: Grüne Felder: Eingabe erforderlich | L5: Ernährung und Bewegung
C6: Berechnungsgrundlage: BMI Zielwert (individuelle Eingabe) | L6: Psyche und Schlaf
B8: Geschlecht | C8: ='GU-GEB'!C8 -> Frau | D8: Körperoberfläche (m2): | G8: =IF(C10="","",(C11^0.725)*(C9^0.425)*0.007184) ->  | J8: =IF(C8="Mann",94,80) -> 80 | L8: Motivation: XLS Software
B9: Körpergewicht IST | C9: =IF(C10="","",'GU-GEB'!C9) ->  | D9: BMI IST | G9: =IF(C10="","",IF(C9=0,"",IF(C11=0,"",C9/((C11/100)^2)))) ->  | L9: Unterstützung
B10: Körpergewicht SOLL | C10: =IF('GU-GEB'!C10=0,"",G10*(('GU-GEB'!C10/100)^2)) ->  | D10: BMI SOLL | G10: 25 | L10: Granuvital "Fit&Schlank" SevisanaLine
B11: Grösse | C11: =IF(C10="","",'GU-GEB'!C10) ->  | L11: X-Form und X-Form Plus SevisanaLine
B12: Alter | C12: =IF(C10="","",'GU-GEB'!C11) ->  | L12: Reine Flohsamenschalen SevisanaLine
B14: PAL Wert (1=GU) | C14: ='GU-GEB'!C14 -> 0 | D14: ='GU-GEB'!D14:I14 ->  | L14: Produkteinformation | N14: www.sevisana.ch
B16: Sportliche Betätigung | C16: ='GU-GEB'!C16 -> 0 | D16: Sportlich aktiv ? Ja= PAL +0.3 | G16: ='GU-GEB'!G16 -> 0 | L16: Bestellung | N16: www.sevisana.ch
B17: ="GU "&C$8&" (kcal)" -> GU Frau (kcal) | C17: =IF(C10="","",IF(C11="","",IF(C12="","",IF(C8="Mann",E49,E48)))) ->  | D17: GU + PAL: | E17: =IF(C10="","",IF(C11="","",IF(C12="","",C16*C17))) ->  | F17: Plus Verlust durch Vedauung: | G17: ='GU-GEB'!G17 -> 0 | H17: ="GEB "&C$8&" (kcal)" -> GEB Frau (kcal) | I17: =IF(C10="","",IF(C11="","",IF(C12="","",E17/100*G17+E17))) ->  | L17: Direktbestellung | N17: http://shop.sevisana.ch
B18: ="GU "&C$8&" (kj)" -> GU Frau (kj) | C18: =IF(C10="","",IF(C11="","",IF(C12="","",C17*4.2))) ->  | E18: =IF(C10="","",IF(C11="","",IF(C12="","",E17*4.2))) ->  | H18: ="GEB "&C$8&" (kj)" -> GEB Frau (kj) | I18: =IF(C10="","",IF(C11="","",IF(C12="","",I17*4.2))) ->  | L18: Medizinwissen | N18: www.ever.ch
B19: Grundumsatz (GU) - Berechnungsgrundlage: "Genaue Formel Mann oder Frau"
B21: PAL = (physical activity level), durchschnittlicher täglicher Energiebedarf für körperliche Aktivität als Mehrfaches des Grundumsatzes
B22: Für sportliche Betätigungen oder für anstrengende Freizeitaktivitäten (30-60 Minuten, 4-5mal je Woche) können zusätzlich pro Tag 0.3 PAL-Einheiten zugelegt werden.
B23: Quelle: DGE: D-A-CH-Referenzwerte für die Nährstoffzufuhr, 1. Auflage, Frankfurt/M. 2000.
B24: Der Verdauungsverlust:
B25: Auch Verdauung ist Arbeit für den Körper, deshalb werden durchschnittlich 10 (6-15)% der Nahrungskalorien als Verdaungsverlust zur Energiebilanz hinzugerechnet.
B26: PAL = (physical activity level), durchschnittlicher täglicher Energiebedarf für körperliche Aktivität als Mehrfaches des Grundumsatzes
B27: 1 | C27: Grundumsatz
B28: 1.2 | C28: Ausschliesslich sitzende oder liegende Lebensweise, alte, gebrechliche Menschen
B29: 1.3 | C29: Wenig Training/Bewegung an 1-3 Tagen/Woche
B30: 1.4 | C30: Ausschliesslich sitzende Tätigkeit mit wenig oder keiner anstrengenden Freizeitaktivität, Büroangestellte, Feinmechaniker
B31: 1.5 | C31: Ausschliesslich sitzende Tätigkeit mit wenig oder keiner anstrengenden Freizeitaktivität, Büroangestellte, Feinmechaniker
B32: 1.6 | C32: Sitzende Tätigkeit, zeitweilig auch zusätzlicher Energieaufwand für gehende und stehende Tätigkeiten, Laboranten, Kraftfahrer, Studierende, Fliessbandarbeiter
B33: 1.7 | C33: Sitzende Tätigkeit, zeitweilig auch zusätzlicher Energieaufwand für gehende und stehende Tätigkeiten, Laboranten, Kraftfahrer, Studierende, Fliessbandarbeiter
B34: 1.8 | C34: Überwiegend gehende und stehende Arbeit, Hausfrauen, Verkäufer, Kellner, Mechaniker, Handwerker
B35: 1.9 | C35: Überwiegend gehende und stehende Arbeit, Hausfrauen, Verkäufer, Kellner, Mechaniker, Handwerker
B36: 2 | C36: Körperlich anstrengende berufliche Arbeit, Bauarbeiter, Landwirte, Waldarbeiter, Bergarbeiter, Leistungssportler
B37: 2.1 | C37: Körperlich anstrengende berufliche Arbeit, Bauarbeiter, Landwirte, Waldarbeiter, Bergarbeiter, Leistungssportler
B38: 2.2 | C38: Körperlich anstrengende berufliche Arbeit, Bauarbeiter, Landwirte, Waldarbeiter, Bergarbeiter, Leistungssportler
B39: 2.3 | C39: Körperlich anstrengende berufliche Arbeit, Bauarbeiter, Landwirte, Waldarbeiter, Bergarbeiter, Leistungssportler
B40: 2.4 | C40: Körperlich anstrengende berufliche Arbeit, Bauarbeiter, Landwirte, Waldarbeiter, Bergarbeiter, Leistungssportler
B44: Grundumsatzberechnung - Ergebnis: Vergleich mit verschiedenen Berechnungsarten beim eingegebenen BMI Zielwert
D45: kj | E45: kcal
B46: Einfache Formel Frau: | D46: =IF(C10="","",IF(C11="","",IF(C12="","",E46*4.2))) ->  | E46: =IF(C10="","",IF(C11="","",IF(C12="","",((7*C10)+700)))) ->  | F46: Frau: 700 + 7 x kg Körpergewicht
B47: Einfache Formel Mann | D47: =IF(C10="","",IF(C11="","",IF(C12="","",E47*4.2))) ->  | E47: =IF(C10="","",IF(C11="","",IF(C12="","",((10*C10)+900)))) ->  | F47: Mann: 900 + 10 x kg Körpergewicht
B48: Genaue Formel Frau | D48: =IF(C10="","",IF(C11="","",IF(C12="","",E48*4.2))) ->  | E48: =IF(C10="","",IF(C11="","",IF(C12="","",IF(AND(C12>=10,C12<=18),C10*0.056+2.898,IF(AND(C12>=19,C12<=30),C10*0.062+2.036,IF(AND(C12>=31,C12<=60),C10*0.034+3.538,IF(AND(C12>60),C10*0.038+2.755,""))))*239))) -> 
B49: Genaue Formel Mann | D49: =IF(C10="","",IF(C11="","",IF(C12="","",E49*4.2))) ->  | E49: =IF(C10="","",IF(C11="","",IF(C12="","",IF(AND(C12>=10,C12<=18),C10*0.074+2.754,IF(AND(C12>=19,C12<=30),C10*0.063+2.896,IF(AND(C12>=31,C12<=60),C10*0.048+3.653,IF(AND(C12>60),C10*0.049+2.459,""))))*239))) -> 
B50: Aus Körperoberfläche | D50: =IF(C10="","",IF(C11="","",IF(C12="","",E50*4.2))) ->  | E50: =IF(C10="","",IF(C11="","",IF(C12="","",G8*40*24))) ->  | F50: Körperoberfläche (m2) x 40 (kcal) x 24 (Std.)
B51: Nach Harris Benedict | C51: =C8 -> Frau | D51: =IF(C10="","",IF(C11="","",IF(C12="","",E51*4.2))) ->  | E51: =IF(C10="","",IF(C11="","",IF(C12="","",IF(C8="Mann",66+(13.7*C$10)+(5*C$11)-(6.8*C$12),655+(9.6*C$10)+(1.8*C$11)-(4.7*C$12))*C14))) -> 
B52: Aus Körpermagergewicht | D52: =IF(C10="","",IF(C11="","",IF(C12="","",E52*4.2))) ->  | E52: =IF(C10="","",IF(C11="","",IF(C12="","",C52*24))) ->  | F52: 1 kcal pro Stunde pro kg Körpermagergewicht
B54: Prozentuale Verteilung der Kohlenhydrate, Eiweisse, Fette beim eingegebenen BMI Zielwert
B55: Empfohlene tägl. Zufuhr: | C55: Berechnung nach prozentualer Verteilung | F55: Berechnung nach g/kgKG
C56: ausgehend vom Gesamtenergiebedarf (GEB) | F56: ausgehend vom Körpergewicht
D57: Ergebnis 1 | H57: Ergebnis 2
C58: % | D58: kcal | E58: Gramm | G58: Eingabe | H58: kcal | I58: Gramm
B59: Kohlenhydrate 55-60% | C59: 55 | D59: =IF(C10="","",IF(C11="","",IF(C12="","",C59*(I17/100)))) ->  | E59: =IF(C10="","",IF(C11="","",IF(C12="","",D59/4))) ->  | F59: 4.0 – 5.0 | G59: 4 | H59: =IF(C10="","",IF(C11="","",IF(C12="","",4*I59))) ->  | I59: =IF(C10="","",IF(C11="","",IF(C12="","",C10*G59))) -> 
B60: Eiweiss 15% | C60: 15 | D60: =IF(C10="","",IF(C11="","",IF(C12="","",C60*(I17/100)))) ->  | E60: =IF(C10="","",IF(C11="","",IF(C12="","",D60/4))) ->  | F60: 0.5-0.8-1.2 | G60: 0.8 | H60: =IF(C10="","",IF(C11="","",IF(C12="","",4*I60))) ->  | I60: =IF(C10="","",IF(C11="","",IF(C12="","",C10*G60))) -> 
B61: Fett 25-30% | C61: 30 | D61: =IF(C10="","",IF(C11="","",IF(C12="","",C61*(I17/100)))) ->  | E61: =IF(C10="","",IF(C11="","",IF(C12="","",D61/9))) ->  | F61: 1.0 – 1.2 | G61: 1 | H61: =IF(C10="","",IF(C11="","",IF(C12="","",9*I61))) ->  | I61: =IF(C10="","",IF(C11="","",IF(C12="","",C10*G61))) -> 
B62: Summe | C62: =SUM(C59:C61) -> 100 | D62: =IF(C10="","",IF(C11="","",IF(C12="","",SUM(D59:D61)))) ->  | E62: =IF(C10="","",IF(C11="","",IF(C12="","",SUM(E59:E61)))) ->  | H62: =IF(C10="","",IF(C11="","",IF(C12="","",SUM(H59:H61)))) ->  | I62: =IF(C10="","",IF(C11="","",IF(C12="","",SUM(I59:I61)))) -> 
B64: Eiweiss Entsprechungen gemäss Berechnungsart GEB (1), total: | F64: =E60 -> 
B65: Anteil tierisch 50% | C65: =IF(C10="","",E60/2) ->  | D65: entsprechen etwa | F65: =IF(C10="","",IF(C11="","",IF(C12="","",ROUNDUP((C65*5),0)))) ->  | H65: Fleisch oder Fisch
F66: =IF(C10="","",IF(C11="","",IF(C12="","",(100/12.9*C65/65)))) ->  | H66: grossen Eiern (65g)
F67: =IF(C10="","",IF(C11="","",IF(C12="","",(100/12.9*C65/50)))) ->  | H67: mittleren Eiern (50g)
F68: =IF(C10="","",IF(C11="","",IF(C12="","",(100/12.9*C65/40)))) ->  | H68: kleinen Eiern (40g)
B70: Anteil pflanzlich 50% | C70: =IF(C10="","",E60/2) ->  | D70: entsprechen etwa | F70: =IF(C10="","",IF(C11="","",IF(C12="","",ROUNDUP((100/8.1*C70),0)))) ->  | H70: Tofu
F71: =IF(C10="","",IF(C11="","",IF(C12="","",ROUNDUP((100/20.2*C70),0)))) ->  | H71: Gartenbohne, grün,getrocknet
F72: =IF(C10="","",IF(C11="","",IF(C12="","",ROUNDUP((100/24.4*C70),0)))) ->  | H72: Kürbiskerne
F73: =IF(C10="","",IF(C11="","",IF(C12="","",ROUNDUP((100/5.5*C70),0)))) ->  | H73: Sojasprossen
B75: Eiweiss Entsprechungen gemäss Berechnungsart g/kgKG (2), total: | F75: =I60 -> 
B76: Anteil tierisch 50% | C76: =IF(C10="","",I60/2) ->  | D76: entsprechen etwa | F76: =IF(C10="","",IF(C11="","",IF(C12="","",ROUNDUP((C76*5),0)))) ->  | H76: Fleisch oder Fisch
F77: =IF(C10="","",IF(C11="","",IF(C12="","",(100/12.9*C76/65)))) ->  | H77: grossen Eiern (65g)
F78: =IF(C10="","",IF(C11="","",IF(C12="","",(100/12.9*C76/50)))) ->  | H78: mittleren Eiern (50g)
F79: =IF(C10="","",IF(C11="","",IF(C12="","",(100/12.9*C76/40)))) ->  | H79: kleinen Eiern (40g)
B81: Anteil pflanzlich 50% | C81: =IF(C10="","",I60/2) ->  | D81: entsprechen etwa | F81: =IF(C10="","",IF(C11="","",IF(C12="","",ROUNDUP((100/8.1*C81),0)))) ->  | H81: Tofu
F82: =IF(C10="","",IF(C11="","",IF(C12="","",ROUNDUP((100/20.2*C81),0)))) ->  | H82: Gartenbohne, grün,getrocknet
F83: =IF(C10="","",IF(C11="","",IF(C12="","",ROUNDUP((100/24.4*C81),0)))) ->  | H83: Kürbiskerne
F84: =IF(C10="","",IF(C11="","",IF(C12="","",ROUNDUP((100/5.5*C81),0)))) ->  | H84: Sojasprossen

Sheet Eiweiss
D2: Eiweisstagesbedarf
E4: Rot = Nahrungsmittel in g, enthaltend 50% ihres Eiweisstagesbedarfs
E5: Eiweiss 1= Berechnung nach prozentualer Verteilung ausgehend vom Gesamtenergiebedarf (GEB)
E6: Eiweiss 2 = Berechnung nach g/kgKG ausgehend vom Körpergewicht (empfohlen)
E7: Proteingehalt = Absteigende Sortierung innerhalb der entsprechenden Nahrungsmittelgruppe (NM Gruppen)
D9: .NM Nr | E9: .NM Gruppen Nr | F9: NM Gruppen | G9: Nahrungsmittel | H9: Protein | I9: Eiweiss 1 | J9: Eiweiss 2 | K9: Energie kcal | L9: Energie kj
A10: 388 | D10: =(A10+3000) -> 3388 | E10: 1 | F10: Backwaren. Fertigteige | G10: Hefeteig süss | H10: 8 | I10: =IF(H10=0,"0",ROUNDUP((100/H10*M10),0)/2) ->  | J10: =IF(H10=0,"0",ROUNDUP((100/H10*N10),0)/2) ->  | K10: 294 | L10: 1231 | M10: ='GU-GEB bei BMI 22'!E60 ->  | N10: ='GU-GEB bei BMI 22'!I60 -> 
A11: 391 | D11: 3391 | E11: 1 | F11: Backwaren. Fertigteige | G11: Pizzateig mit pflanzlichem Fett | H11: 6.3 | K11: 237 | L11: 994 | M11: =$M$10 ->  | N11: =$N$10 -> 
A12: 389 | D12: 3389 | E12: 1 | F12: Backwaren. Fertigteige | G12: Kuchenteig mit pflanzlichem Fett | H12: 5.5 | K12: 357 | L12: 1493
A13: 390 | D13: 3390 | E13: 1 | F13: Backwaren. Fertigteige | G13: Mürbeteig süss mit pflanzlichem Fett | H13: 5.3 | K13: 431 | L13: 1802
A14: 386 | D14: 3386 | E14: 1 | F14: Backwaren. Fertigteige | G14: Blätterteig. Butter- | H14: 4.9 | K14: 391 | L14: 1636
A15: 387 | D15: 3387 | E15: 1 | F15: Backwaren. Fertigteige | G15: Blätterteig mit pflanzlichem Fett | H15: 4.7 | K15: 384 | L15: 1606
A16: 393 | D16: 3393 | E16: 2 | F16: Backwaren. Hefe. Backpulver | G16: Bierhefe getrocknet | H16: 47.9 | K16: 335 | L16: 1403
A17: 392 | D17: 3392 | E17: 2 | F17: Backwaren. Hefe. Backpulver | G17: Bäckerhefe gepresst | H17: 16.7 | K17: 82 | L17: 343
A18: 347 | D18: 3347 | E18: 3 | F18: Backwaren. Kuchen. Kekse | G18: Erdnuss-Flips | H18: 13.2 | K18: 497 | L18: 2080
A19: 352 | D19: 3352 | E19: 3 | F19: Backwaren. Kuchen. Kekse | G19: Löffelbiscuits | H19: 12.2 | K19: 410 | L19: 1715
A20: 350 | D20: 3350 | E20: 3 | F20: Backwaren. Kuchen. Kekse | G20: Laugengebäck (Bretzel. Sticks). trocken | H20: 12 | K20: 412 | L20: 1724
A21: 366 | D21: 3366 | E21: 3 | F21: Backwaren. Kuchen. Kekse | G21: Knäckebrot Vollkorn mit Leinsamen | H21: 11.8 | K21: 338 | L21: 1415
A22: 376 | D22: 3376 | E22: 3 | F22: Backwaren. Kuchen. Kekse | G22: Vollkorngebäck (Vollkornguetzli) mit Ölsamen. gesüsst | H22: 11.7 | K22: 461 | L22: 1930
A23: 365 | D23: 3365 | E23: 3 | F23: Backwaren. Kuchen. Kekse | G23: Knäckebrot Vollkorn mit Sesam | H23: 11.3 | K23: 357 | L23: 1494
A24: 349 | D24: 3349 | E24: 3 | F24: Backwaren. Kuchen. Kekse | G24: Blätterteigstängel | H24: 11 | K24: 502 | L24: 2101
A25: 364 | D25: 3364 | E25: 3 | F25: Backwaren. Kuchen. Kekse | G25: Knäckebrot Vollkorn | H25: 10.4 | K25: 334 | L25: 1396
A26: 377 | D26: 3377 | E26: 3 | F26: Backwaren. Kuchen. Kekse | G26: Vollkorngebäck (Vollkornguetzli) mit Nüssen. gesüsst | H26: 10.3 | K26: 488 | L26: 2040
A27: 375 | D27: 3375 | E27: 3 | F27: Backwaren. Kuchen. Kekse | G27: Vollkorngebäck (Vollkornguetzli). gesüsst | H27: 10.2 | K27: 462 | L27: 1933
A28: 361 | D28: 3361 | E28: 3 | F28: Backwaren. Kuchen. Kekse | G28: Mandelgebäck (Amaretti) | H28: 10 | K28: 424 | L28: 1775
A29: 355 | D29: 3355 | E29: 3 | F29: Backwaren. Kuchen. Kekse | G29: Nuss-Stengeli | H29: 9.5 | K29: 473 | L29: 1978
A30: 384 | D30: 3384 | E30: 3 | F30: Backwaren. Kuchen. Kekse | G30: Haselnussbiscuit mit Schokolade | H30: 9.2 | K30: 516 | L30: 2158
A31: 351 | D31: 3351 | E31: 3 | F31: Backwaren. Kuchen. Kekse | G31: Cracker Salzgebäck Apérogebäck | H31: 9.2 | K31: 471 | L31: 1971
A32: 359 | D32: 3359 | E32: 3 | F32: Backwaren. Kuchen. Kekse | G32: Zimtstern | H32: 9 | K32: 473 | L32: 1977
A33: 357 | D33: 3357 | E33: 3 | F33: Backwaren. Kuchen. Kekse | G33: Petit beurre. Vollkorn | H33: 9 | K33: 450 | L33: 1883
A34: 332 | D34: 3332 | E34: 3 | F34: Backwaren. Kuchen. Kekse | G34: Tirolercake | H34: 8.6 | K34: 456 | L34: 1908
A35: 326 | D35: 3326 | E35: 3 | F35: Backwaren. Kuchen. Kekse | G35: Berliner | H35: 8.4 | K35: 321 | L35: 1343
A36: 358 | D36: 3358 | E36: 3 | F36: Backwaren. Kuchen. Kekse | G36: Vollkornreiswaffel | H36: 8.2 | K36: 384 | L36: 1607
A37: 327 | D37: 3327 | E37: 3 | F37: Backwaren. Kuchen. Kekse | G37: Biber | H37: 8.1 | K37: 365 | L37: 1527
A38: 383 | D38: 3383 | E38: 3 | F38: Backwaren. Kuchen. Kekse | G38: Haselnussmakrone | H38: 8 | K38: 454 | L38: 1898
A39: 348 | D39: 3348 | E39: 3 | F39: Backwaren. Kuchen. Kekse | G39: Mais-Chips (Apérogebäck auf Maisbasis) | H39: 7.8 | K39: 500 | L39: 2092
A40: 370 | D40: 3370 | E40: 3 | F40: Backwaren. Kuchen. Kekse | G40: Brunsli | H40: 7.7 | K40: 456 | L40: 1910
A41: 333 | D41: 3333 | E41: 3 | F41: Backwaren. Kuchen. Kekse | G41: Linzertorte | H41: 7.5 | K41: 417 | L41: 1745
A42: 385 | D42: 3385 | E42: 3 | F42: Backwaren. Kuchen. Kekse | G42: Petit Beurre mit Schokolade | H42: 7.3 | K42: 488 | L42: 2042
A43: 371 | D43: 3371 | E43: 3 | F43: Backwaren. Kuchen. Kekse | G43: Chräbeli | H43: 7.3 | K43: 379 | L43: 1584
A44: 354 | D44: 3354 | E44: 3 | F44: Backwaren. Kuchen. Kekse | G44: Mailänderli | H44: 7.3 | K44: 500 | L44: 2092
A45: 353 | D45: 3353 | E45: 3 | F45: Backwaren. Kuchen. Kekse | G45: Madeleine | H45: 7.3 | K45: 413 | L45: 1726
A46: 328 | D46: 3328 | E46: 3 | F46: Backwaren. Kuchen. Kekse | G46: Cake Financier | H46: 7.2 | K46: 445 | L46: 1860
A47: 362 | D47: 3362 | E47: 3 | F47: Backwaren. Kuchen. Kekse | G47: Sable | H47: 7.1 | K47: 495 | L47: 2071
A48: 356 | D48: 3356 | E48: 3 | F48: Backwaren. Kuchen. Kekse | G48: Petit Beurre | H48: 7.1 | K48: 440 | L48: 1842
A49: 337 | D49: 3337 | E49: 3 | F49: Backwaren. Kuchen. Kekse | G49: Nussschnecke aus Hefeteig | H49: 7.1 | K49: 368 | L49: 1540
A50: 331 | D50: 3331 | E50: 3 | F50: Backwaren. Kuchen. Kekse | G50: Nussgipfel aus Hefeteig | H50: 7.1 | K50: 368 | L50: 1540
A51: 343 | D51: 3343 | E51: 3 | F51: Backwaren. Kuchen. Kekse | G51: Butterkuchen Rührteig | H51: 6.9 | K51: 436 | L51: 1826
A52: 373 | D52: 3373 | E52: 3 | F52: Backwaren. Kuchen. Kekse | G52: Lebkuchen mit Schokoladeüberzug | H52: 6.8 | K52: 439 | L52: 1837
A53: 382 | D53: 3382 | E53: 3 | F53: Backwaren. Kuchen. Kekse | G53: Schaumkekse mit Schokolade. Schümliguetzli mit Schokolade | H53: 6.7 | K53: 482 | L53: 2015
A54: 345 | D54: 3345 | E54: 3 | F54: Backwaren. Kuchen. Kekse | G54: Haselnusskekse (Haselnussguetzli) | H54: 6.7 | K54: 465 | L54: 1945
A55: 346 | D55: 3346 | E55: 3 | F55: Backwaren. Kuchen. Kekse | G55: Gebäck mit Fruchtfüllung und Haselnüssen. Vogelnestli | H55: 6.6 | K55: 444 | L55: 1857
A56: 339 | D56: 3339 | E56: 3 | F56: Backwaren. Kuchen. Kekse | G56: Schokoladenkuchen | H56: 6.6 | K56: 407 | L56: 1704
A57: 372 | D57: 3372 | E57: 3 | F57: Backwaren. Kuchen. Kekse | G57: Lebkuchen | H57: 6.5 | K57: 396 | L57: 1656
A58: 360 | D58: 3360 | E58: 3 | F58: Backwaren. Kuchen. Kekse | G58: Basler Leckerli | H58: 6.5 | K58: 380 | L58: 1592
A59: 334 | D59: 3334 | E59: 3 | F59: Backwaren. Kuchen. Kekse | G59: Engadiner Nusstorte | H59: 6.5 | K59: 465 | L59: 1947
A60: 330 | D60: 3330 | E60: 3 | F60: Backwaren. Kuchen. Kekse | G60: Nussgipfel aus Blätterteig | H60: 6.5 | K60: 442 | L60: 1849
A61: 342 | D61: 3342 | E61: 3 | F61: Backwaren. Kuchen. Kekse | G61: Panettone | H61: 6.4 | K61: 337 | L61: 1409
A62: 381 | D62: 3381 | E62: 3 | F62: Backwaren. Kuchen. Kekse | G62: Schaumkekse Schümliguetzli | H62: 6.1 | K62: 424 | L62: 1774
A63: 344 | D63: 3344 | E63: 3 | F63: Backwaren. Kuchen. Kekse | G63: Kokosmakronen | H63: 6.1 | K63: 445 | L63: 1862
A64: 329 | D64: 3329 | E64: 3 | F64: Backwaren. Kuchen. Kekse | G64: Marmorkuchen (Marmorcake) | H64: 6.1 | K64: 389 | L64: 1627
A65: 380 | D65: 3380 | E65: 3 | F65: Backwaren. Kuchen. Kekse | G65: Willisauer Ringli | H65: 6 | K65: 381 | L65: 1595
A66: 379 | D66: 3379 | E66: 3 | F66: Backwaren. Kuchen. Kekse | G66: Waffelguetzli mit Schokoladeüberzug | H66: 6 | K66: 532 | L66: 2225
A67: 338 | D67: 3338 | E67: 3 | F67: Backwaren. Kuchen. Kekse | G67: Rüeblitorte (Rüeblikuchen. Karottenkuchen) | H67: 6 | K67: 346 | L67: 1447
A68: 369 | D68: 3369 | E68: 3 | F68: Backwaren. Kuchen. Kekse | G68: Blätterteigpastetli. Butter- | H68: 5.8 | K68: 560 | L68: 2343
A69: 374 | D69: 3374 | E69: 3 | F69: Backwaren. Kuchen. Kekse | G69: Prussien | H69: 5.4 | K69: 521 | L69: 2182
A70: 363 | D70: 3363 | E70: 3 | F70: Backwaren. Kuchen. Kekse | G70: Süsses Mürbeteiggebäck mit Konfitüre (Spitzbuben) | H70: 5.1 | K70: 427 | L70: 1786
A71: 378 | D71: 3378 | E71: 3 | F71: Backwaren. Kuchen. Kekse | G71: Waffelguetzli | H71: 4.9 | K71: 533 | L71: 2231
A72: 340 | D72: 3340 | E72: 3 | F72: Backwaren. Kuchen. Kekse | G72: Zuger Kirschtorte | H72: 4.8 | K72: 332 | L72: 1390
A73: 335 | D73: 3335 | E73: 3 | F73: Backwaren. Kuchen. Kekse | G73: Birnenweggen | H73: 4.5 | K73: 304 | L73: 1271
A74: 341 | D74: =(A74+3000) -> 3341 | E74: 3 | F74: Backwaren. Kuchen. Kekse | G74: Schwarzwälder Kirschtorte | H74: 3.9 | I74: =IF(H74=0,"0",ROUNDUP((100/H74*M74),0)/2) ->  | J74: =IF(H74=0,"0",ROUNDUP((100/H74*N74),0)/2) ->  | K74: 247 | L74: 1033 | M74: =$M$10 ->  | N74: =$N$10 -> 
A75: 336 | D75: 3336 | E75: 3 | F75: Backwaren. Kuchen. Kekse | G75: Cremeschnitte | H75: 2.6 | K75: 280 | L75: 1170
A76: 527 | D76: 3527 | E76: 5 | F76: Beeren. Trauben | G76: Rosine getrocknet. Weinbeere / Sultanine | H76: 2.5 | K76: 287 | L76: 1199
A77: 427 | D77: 3427 | E77: 5 | F77: Beeren. Trauben | G77: Holunderbeere schwarz frisch | H77: 2.5 | K77: 44 | L77: 185
A78: 425 | D78: 3425 | E78: 5 | F78: Beeren. Trauben | G78: Johannisbeere schwarz frisch | H78: 1.3 | K78: 44 | L78: 184
A79: 421 | D79: 3421 | E79: 5 | F79: Beeren. Trauben | G79: Himbeere frisch | H79: 1.2 | K79: 38 | L79: 160
A80: 422 | D80: 3422 | E80: 5 | F80: Beeren. Trauben | G80: Johannisbeere rot frisch | H80: 1.1 | K80: 29 | L80: 121
A81: 418 | D81: 3418 | E81: 5 | F81: Beeren. Trauben | G81: Brombeere frisch | H81: 1 | K81: 32 | L81: 136
A82: 424 | D82: 3424 | E82: 5 | F82: Beeren. Trauben | G82: Traube. Weintraube. frisch | H82: 0.7 | K82: 66 | L82: 276
A83: 419 | D83: 3419 | E83: 5 | F83: Beeren. Trauben | G83: Erdbeere. frisch | H83: 0.7 | K83: 35 | L83: 148
A84: 423 | D84: 3423 | E84: 5 | F84: Beeren. Trauben | G84: Stachelbeere frisch | H84: 0.6 | K84: 28 | L84: 118
A85: 420 | D85: 3420 | E85: 5 | F85: Beeren. Trauben | G85: Heidelbeere frisch | H85: 0.6 | K85: 52 | L85: 218
A86: 426 | D86: 3426 | E86: 5 | F86: Beeren. Trauben | G86: Preiselbeere frisch | H86: 0.3 | K86: 34 | L86: 142
A87: 1118 | D87: 4118 | E87: 6 | F87: Brotwaren | G87: Microc Knusperbrot mit Calcium Migros | H87: 11 | K87: 383 | L87: 1601
A88: 1116 | D88: 4116 | E88: 6 | F88: Brotwaren | G88: Maisanobrot Coop | H88: 11 | K88: 315 | L88: 1317
A89: 320 | D89: 3320 | E89: 6 | F89: Brotwaren | G89: Vollkorntoastbrot | H89: 10.3 | K89: 272 | L89: 1137
A90: 324 | D90: 3324 | E90: 6 | F90: Brotwaren | G90: Gipfeli Vollkorn | H90: 10.2 | K90: 381 | L90: 1594
A91: 322 | D91: 3322 | E91: 6 | F91: Brotwaren | G91: Toastbrot mit Butter | H91: 9.2 | K91: 277 | L91: 1161
A92: 321 | D92: 3321 | E92: 6 | F92: Brotwaren | G92: Toastbrot mit Pflanzenölen | H92: 9.2 | K92: 278 | L92: 1163
A93: 307 | D93: 3307 | E93: 6 | F93: Brotwaren | G93: Grahambrot. Weizenvollkornbrot | H93: 9.2 | K93: 227 | L93: 951
A94: 318 | D94: 3318 | E94: 6 | F94: Brotwaren | G94: Semmeli. Mutschli | H94: 9.1 | K94: 255 | L94: 1067
A95: 317 | D95: 3317 | E95: 6 | F95: Brotwaren | G95: Pariserbrot. Baguette | H95: 9.1 | K95: 255 | L95: 1067
A96: 304 | D96: 3304 | E96: 6 | F96: Brotwaren | G96: Weissbrot | H96: 9.1 | K96: 255 | L96: 1067
A97: 315 | D97: 3315 | E97: 6 | F97: Brotwaren | G97: Laugenbrötli | H97: 8.8 | K97: 276 | L97: 1153
A98: 325 | D98: 3325 | E98: 6 | F98: Brotwaren | G98: Gipfeli Laugen. Silser | H98: 8.7 | K98: 422 | L98: 1767
A99: 312 | D99: 3312 | E99: 6 | F99: Brotwaren | G99: Butterzopf | H99: 8.7 | K99: 300 | L99: 1257
A100: 311 | D100: 3311 | E100: 6 | F100: Brotwaren | G100: Weggli | H100: 8.7 | K100: 296 | L100: 1240
A101: 313 | D101: 3313 | E101: 6 | F101: Brotwaren | G101: Bürlik. Ruchmehl | H101: 8.6 | K101: 224 | L101: 939
A102: 306 | D102: 3306 | E102: 6 | F102: Brotwaren | G102: Ruchbrot | H102: 8.6 | K102: 224 | L102: 939
A103: 314 | D103: 3314 | E103: 6 | F103: Brotwaren | G103: Bürli. Halbweissmehl | H103: 8.4 | K103: 229 | L103: 959
A104: 305 | D104: 3305 | E104: 6 | F104: Brotwaren | G104: Halbweissbrot | H104: 8.4 | K104: 229 | L104: 959
A105: 323 | D105: 3323 | E105: 6 | F105: Brotwaren | G105: GIpfeli | H105: 8.2 | K105: 355 | L105: 1484
A106: 316 | D106: 3316 | E106: 6 | F106: Brotwaren | G106: Nussbrot | H106: 7.6 | K106: 255 | L106: 1066
A107: 319 | D107: 3319 | E107: 6 | F107: Brotwaren | G107: Tessinerbrot | H107: 7.5 | K107: 262 | L107: 1096
A108: 309 | D108: 3309 | E108: 6 | F108: Brotwaren | G108: Roggenbrot | H108: 7.5 | K108: 234 | L108: 979
A109: 308 | D109: 3308 | E109: 6 | F109: Brotwaren | G109: Walliser Roggenbrot | H109: 6.5 | K109: 207 | L109: 866
A110: 310 | D110: 3310 | E110: 6 | F110: Brotwaren | G110: Roggenschrotbrot | H110: 6.3 | K110: 193 | L110: 808
A111: 1117 | D111: 4117 | E111: 7 | F111: Brotwaren. Zwieback | G111: Zwieback plus. Hug AG | H111: 20 | K111: 388 | L111: 1623
A112: 1123 | D112: 4123 | E112: 7 | F112: Brotwaren. Zwieback | G112: Zwieback Vollkorn. Roland Murten AG | H112: 15.6 | K112: 361 | L112: 1510
A113: 368 | D113: 3368 | E113: 7 | F113: Brotwaren. Zwieback | G113: Zwieback. Vollkorn | H113: 15.4 | K113: 396 | L113: 1655
A114: 1122 | D114: 4122 | E114: 7 | F114: Brotwaren. Zwieback | G114: Zwieback ohne Zucker. Roland Murten AG | H114: 15.1 | K114: 377 | L114: 1577
A115: 367 | D115: 3367 | E115: 7 | F115: Brotwaren. Zwieback | G115: Zwieback | H115: 12.5 | K115: 415 | L115: 1735
A116: 1127 | D116: 4127 | E116: 7 | F116: Brotwaren. Zwieback | G116: Zwieback. Migros | H116: 12 | K116: 426 | L116: 1781
A117: 1121 | D117: 4121 | E117: 7 | F117: Brotwaren. Zwieback | G117: Zwieback classic. Roland Murten AG | H117: 12 | K117: 380 | L117: 1589
A118: 1120 | D118: 4120 | E118: 7 | F118: Brotwaren. Zwieback | G118: Zwieback. für Kinder. Roland Murten AG | H118: 11.3 | K118: 384 | L118: 1606
A119: 406 | D119: 3406 | E119: 8 | F119: Eier | G119: Hühnereigelb roh. Eidotter | H119: 16.5 | K119: 350 | L119: 1466
A120: 405 | D120: 3405 | E120: 8 | F120: Eier | G120: Hühnerei ganz roh; Ei gross 65g;mittel:50g; klein:45g | H120: 12.5 | K120: 146 | L120: 610
A121: 407 | D121: 3407 | E121: 8 | F121: Eier | G121: Hühnereiweiss roh. Eiklar | H121: 10.5 | K121: 44 | L121: 185
A122: 581 | D122: 3581 | E122: 9 | F122: Eis. Eiswaren | G122: Glace. Rahm-. Schokolade | H122: 5.6 | K122: 237 | L122: 990
A123: 598 | D123: 3598 | E123: 9 | F123: Eis. Eiswaren | G123: Glace. Magermilch-. Kaffee/Mokka. fettreduziert. energievermindert | H123: 5 | K123: 109 | L123: 454
A124: 593 | D124: 3593 | E124: 9 | F124: Eis. Eiswaren | G124: Glace. Vanille. mit Schokoladenüberzug mit Mandeln oder Nüssen | H124: 4.9 | K124: 337 | L124: 1408
A125: 582 | D125: 3582 | E125: 9 | F125: Eis. Eiswaren | G125: Glace Doppelrahm-. Vanille | H125: 4.8 | K125: 229 | L125: 957
A126: 577 | D126: 3577 | E126: 9 | F126: Eis. Eiswaren | G126: Glace. Cornet. Schokolade | H126: 4.7 | K126: 294 | L126: 1230
A127: 597 | D127: 3597 | E127: 9 | F127: Eis. Eiswaren | G127: Glace. Magermilch-. Schokolade. fettreduziert. energievermindert | H127: 4.6 | K127: 104 | L127: 433
A128: 596 | D128: 3596 | E128: 9 | F128: Eis. Eiswaren | G128: Glace. Magermilch. Vanille. fettreduziert. energievermindert | H128: 4.6 | K128: 93 | L128: 391
A129: 578 | D129: 3578 | E129: 9 | F129: Eis. Eiswaren | G129: Glace. Cornet. Vanille | H129: 4.6 | K129: 284 | L129: 1188
A130: 592 | D130: 3592 | E130: 9 | F130: Eis. Eiswaren | G130: Glace. Schokolade. mit Pralinenstängel und Schokoladenüberzug mit Haselnüssen | H130: 4.5 | K130: 400 | L130: 1674
A131: 591 | D131: 3591 | E131: 9 | F131: Eis. Eiswaren | G131: Glace. Schokolade. mit Schokoladenüberzug | H131: 4.5 | K131: 298 | L131: 1245
A132: 583 | D132: 3583 | E132: 9 | F132: Eis. Eiswaren | G132: Glace. Doppelrahm- Schokolade | H132: 4.5 | K132: 249 | L132: 1040
A133: 588 | D133: 3588 | E133: 9 | F133: Eis. Eiswaren | G133: Glace. Schokolade | H133: 4.3 | K133: 182 | L133: 763
A134: 579 | D134: 3579 | E134: 9 | F134: Eis. Eiswaren | G134: Glace. Cornet. Erdbeer. Frucht | H134: 4.1 | K134: 263 | L134: 1099
A135: 595 | D135: 3595 | E135: 9 | F135: Eis. Eiswaren | G135: Glace. Magermilch-. Frucht. fettreduziert. energievermindert | H135: 4 | K135: 105 | L135: 438
A136: 587 | D136: 3587 | E136: 9 | F136: Eis. Eiswaren | G136: Glace. Vanille | H136: 4 | K136: 173 | L136: 725
A137: 590 | D137: 3590 | E137: 9 | F137: Eis. Eiswaren | G137: Glace. Vanille. mit Schokoladenüberzug | H137: 3.9 | K137: 289 | L137: 1209
A138: 594 | D138: =(A138+3000) -> 3594 | E138: 9 | F138: Eis. Eiswaren | G138: Glace. Vanille. mit Schokoladenüberzug weiss Glace | H138: 3.6 | I138: =IF(H138=0,"0",ROUNDUP((100/H138*M138),0)/2) ->  | J138: =IF(H138=0,"0",ROUNDUP((100/H138*N138),0)/2) ->  | K138: 285 | L138: 1191 | M138: =$M$10 ->  | N138: =$N$10 -> 
A139: 586 | D139: 3586 | E139: 9 | F139: Eis. Eiswaren | G139: Glace Frucht | H139: 3.5 | K139: 185 | L139: 773
A140: 580 | D140: 3580 | E140: 9 | F140: Eis. Eiswaren | G140: Glace. Rahm-. Vanille | H140: 3.3 | K140: 171 | L140: 716
A141: 589 | D141: 3589 | E141: 9 | F141: Eis. Eiswaren | G141: Glace. Vanille. mit Fruchtüberzug Exotic | H141: 2 | K141: 151 | L141: 631
A142: 584 | D142: 3584 | E142: 9 | F142: Eis. Eiswaren | G142: Glace. Sorbet. Frucht | H142: 0.2 | K142: 136 | L142: 569
A143: 585 | D143: 3585 | E143: 9 | F143: Eis. Eiswaren | G143: Glace. Wassereis | H143: 0 | I143: 0 | J143: 0 | K143: 88 | L143: 369
A144: 171 | D144: 3171 | E144: 11 | F144: Fische. Meer | G144: Thunfisch. roh | H144: 23.4 | K144: 149 | L144: 625
A145: 162 | D145: 3162 | E145: 11 | F145: Fische. Meer | G145: Lachs. geräuchert | H145: 22.5 | K145: 171 | L145: 716
A146: 168 | D146: 3168 | E146: 11 | F146: Fische. Meer | G146: Heilbutt. roh | H146: 20.6 | K146: 118 | L146: 492
A147: 166 | D147: 3166 | E147: 11 | F147: Fische. Meer | G147: Sardine. roh | H147: 20.4 | K147: 163 | L147: 680
A148: 161 | D148: 3161 | E148: 11 | F148: Fische. Meer | G148: Lachs. Zucht. roh | H148: 19.9 | K148: 200 | L148: 838
A149: 165 | D149: 3165 | E149: 11 | F149: Fische. Meer | G149: Seelachs. Köhler. roh | H149: 19.3 | K149: 80 | L149: 334
A150: 169 | D150: 3169 | E150: 11 | F150: Fische. Meer | G150: Seezunge. roh | H150: 18.7 | K150: 85 | L150: 354
A151: 163 | D151: 3163 | E151: 11 | F151: Fische. Meer | G151: Dorsch. roh | H151: 18.1 | K151: 79 | L151: 329
A152: 170 | D152: 3170 | E152: 11 | F152: Fische. Meer | G152: Scholle. roh | H152: 17.1 | K152: 86 | L152: 358
A153: 164 | D153: 3164 | E153: 11 | F153: Fische. Meer | G153: Seehecht. roh | H153: 17 | K153: 71 | L153: 296
A154: 167 | D154: 3167 | E154: 11 | F154: Fische. Meer | G154: Flunder. roh | H154: 16.5 | K154: 72 | L154: 303
A155: 158 | D155: 3158 | E155: 12 | F155: Fische. Süsswasser | G155: Forelle. roh | H155: 19.5 | K155: 108 | L155: 451
A156: 159 | D156: 3159 | E156: 12 | F156: Fische. Süsswasser | G156: Hecht. roh | H156: 18.4 | K156: 81 | L156: 340
A157: 160 | D157: 3160 | E157: 12 | F157: Fische. Süsswasser | G157: Egli. Flussbarsch. roh | H157: 18 | K157: 79 | L157: 329
A158: 231 | D158: 3231 | E158: 13 | F158: Fischerzeugnisse | G158: Thon im Öl. abgetropft | H158: 27.6 | K158: 186 | L158: 778
A159: 230 | D159: 3230 | E159: 13 | F159: Fischerzeugnisse | G159: Thon im Wasser. abgetropft | H159: 25.6 | K159: 117 | L159: 489
A160: 228 | D160: 3228 | E160: 13 | F160: Fischerzeugnisse | G160: Sardine im Öl. abgetropft | H160: 23 | K160: 215 | L160: 901
A161: 229 | D161: 3229 | E161: 13 | F161: Fischerzeugnisse | G161: Sardelle im Öl. abgetropft | H161: 21.7 | K161: 160 | L161: 669
A162: 232 | D162: 3232 | E162: 13 | F162: Fischerzeugnisse | G162: Fischstäbchen. paniert. roh | H162: 16.4 | K162: 172 | L162: 720
A163: 227 | D163: 3227 | E163: 13 | F163: Fischerzeugnisse | G163: Surimi | H163: 12.6 | K163: 81 | L163: 339
A164: 233 | D164: 3233 | E164: 13 | F164: Fischerzeugnisse | G164: Rollmops. Hering. sauer | H164: 12 | K164: 270 | L164: 1128
A165: 152 | D165: 3152 | E165: 14 | F165: Fleisch. Geflügel | G165: Fleisch. Truthahn. Brust. Schnitzel. Geschnetzeltes. roh | H165: 24 | K165: 108 | L165: 452
A166: 148 | D166: 3148 | E166: 14 | F166: Fleisch. Geflügel | G166: Poulet. Brust. Schnitzel. Geschnetzeltes. roh | H166: 23.1 | K166: 105 | L166: 440
A167: 149 | D167: 3149 | E167: 14 | F167: Fleisch. Geflügel | G167: Poulet. Brust. mit Haut. roh | H167: 20.9 | K167: 137 | L167: 573
A168: 151 | D168: 3151 | E168: 14 | F168: Fleisch. Geflügel | G168: Poulet. ganz. mit Haut. roh | H168: 18.8 | K168: 168 | L168: 702
A169: 150 | D169: 3150 | E169: 14 | F169: Fleisch. Geflügel | G169: Poulet. Schenkel. mit Haut. roh | H169: 17.6 | K169: 184 | L169: 769
A170: 121 | D170: 3121 | E170: 16 | F170: Fleisch. Kalb | G170: Kalb. Eckstück. Plätzli. roh | H170: 22.2 | K170: 103 | L170: 429
A171: 115 | D171: 3115 | E171: 16 | F171: Fleisch. Kalb | G171: Kalb. Filet. roh | H171: 21.2 | K171: 119 | L171: 499
A172: 117 | D172: 3117 | E172: 16 | F172: Fleisch. Kalb | G172: Kalb. Haxe. roh | H172: 20.7 | K172: 122 | L172: 511
A173: 120 | D173: 3120 | E173: 16 | F173: Fleisch. Kalb | G173: Kalb. Nierstück. Steak. roh | H173: 20.2 | K173: 104 | L173: 436
A174: 114 | D174: 3114 | E174: 16 | F174: Fleisch. Kalb | G174: Kalb. Schulter. Braten. roh | H174: 20.2 | K174: 124 | L174: 518
A175: 119 | D175: 3119 | E175: 16 | F175: Fleisch. Kalb | G175: Kalb. Leber. roh | H175: 20.1 | K175: 138 | L175: 578
A176: 118 | D176: 3118 | E176: 16 | F176: Fleisch. Kalb | G176: Kalb. Kotelett. roh | H176: 19.1 | K176: 147 | L176: 613
A177: 116 | D177: 3116 | E177: 16 | F177: Fleisch. Kalb | G177: Kalb. Brust. roh | H177: 18.6 | K177: 131 | L177: 549
A178: 124 | D178: 3124 | E178: 16 | F178: Fleisch. Kalb | G178: Kalb. Zunge. roh | H178: 17.2 | K178: 181 | L178: 756
A179: 123 | D179: 3123 | E179: 16 | F179: Fleisch. Kalb | G179: Kalb. Milken. Bries. roh | H179: 17.2 | K179: 99 | L179: 416
A180: 122 | D180: 3122 | E180: 16 | F180: Fleisch. Kalb | G180: Kalb. Niere. roh | H180: 15.8 | K180: 112 | L180: 469
A181: 134 | D181: 3134 | E181: 17 | F181: Fleisch. Lamm | G181: Lamm. Schaf. Filet. roh | H181: 20.4 | K181: 112 | L181: 469
A182: 135 | D182: 3135 | E182: 17 | F182: Fleisch. Lamm | G182: Lamm. Schaf. Gigot Keule. roh | H182: 19.6 | K182: 173 | L182: 724
A183: 136 | D183: 3136 | E183: 17 | F183: Fleisch. Lamm | G183: Lamm. Schaf. Kotelett. roh | H183: 18.3 | K183: 213 | L183: 891
A184: 147 | D184: 3147 | E184: 18 | F184: Fleisch. Pferd | G184: Fleisch. Pferd. Filet. roh | H184: 21.4 | K184: 102 | L184: 429
A185: 129 | D185: 3129 | E185: 19 | F185: Fleisch. Rind | G185: Rind. Eckstück. Plätzli. roh | H185: 22.6 | K185: 111 | L185: 464
A186: 130 | D186: 3130 | E186: 19 | F186: Fleisch. Rind | G186: Rind. Entrecote. roh | H186: 22.3 | K186: 138 | L186: 576
A187: 126 | D187: 3126 | E187: 19 | F187: Fleisch. Rind | G187: Rind. Filet. roh | H187: 21.9 | K187: 105 | L187: 440
A188: 125 | D188: 3125 | E188: 19 | F188: Fleisch. Rind | G188: Rind. Schulter. Braten. roh | H188: 21.6 | K188: 117 | L188: 491
A189: 132 | D189: 3132 | E189: 19 | F189: Fleisch. Rind | G189: Rind. Leber. roh | H189: 20.4 | K189: 138 | L189: 576
A190: 177 | D190: 3177 | E190: 19 | F190: Fleisch. Rind | G190: Rind. Hackfleisch. roh | H190: 19.7 | K190: 169 | L190: 707
A191: 128 | D191: 3128 | E191: 19 | F191: Fleisch. Rind | G191: Rind. Siedfleisch. roh | H191: 19.6 | K191: 141 | L191: 592
A192: 127 | D192: 3127 | E192: 19 | F192: Fleisch. Rind | G192: Rind. Hals. Voressen. Gulasch. roh | H192: 19.3 | K192: 150 | L192: 626
A193: 133 | D193: 3133 | E193: 19 | F193: Fleisch. Rind | G193: Rind. Brust. roh | H193: 18.9 | K193: 188 | L193: 787
A194: 131 | D194: 3131 | E194: 19 | F194: Fleisch. Rind | G194: Rind. Zunge. roh | H194: 16 | K194: 196 | L194: 819
A195: 140 | D195: 3140 | E195: 21 | F195: Fleisch. Schwein | G195: Schwein. Haxe. roh | H195: 25.6 | K195: 173 | L195: 724
A196: 138 | D196: 3138 | E196: 21 | F196: Fleisch. Schwein | G196: Schwein. Schulter. Braten. roh | H196: 24.6 | K196: 181 | L196: 757
A197: 142 | D197: 3142 | E197: 21 | F197: Fleisch. Schwein | G197: Schwein. Eckstück. Plätzli. roh | H197: 22.6 | K197: 115 | L197: 497
A198: 144 | D198: 3144 | E198: 21 | F198: Fleisch. Schwein | G198: Schwein. Nierstück. Steak. roh | H198: 22.3 | K198: 128 | L198: 537
A199: 139 | D199: 3139 | E199: 21 | F199: Fleisch. Schwein | G199: Schwein. Filet. roh | H199: 22.2 | K199: 121 | L199: 506
A200: 145 | D200: 3145 | E200: 21 | F200: Fleisch. Schwein | G200: Schwein. Leber. roh | H200: 20.7 | K200: 131 | L200: 547
A201: 141 | D201: 3141 | E201: 21 | F201: Fleisch. Schwein | G201: Schwein. Kotelett. roh | H201: 20.6 | K201: 180 | L201: 755
A202: 143 | D202: =(A202+3000) -> 3143 | E202: 21 | F202: Fleisch. Schwein | G202: Schwein. Voressen. roh | H202: 20.4 | I202: =IF(H202=0,"0",ROUNDUP((100/H202*M202),0)/2) ->  | J202: =IF(H202=0,"0",ROUNDUP((100/H202*N202),0)/2) ->  | K202: 143 | L202: 599 | M202: =$M$10 ->  | N202: =$N$10 -> 
A203: 178 | D203: 3178 | E203: 21 | F203: Fleisch. Schwein | G203: Schwein. Hackfleisch. roh | H203: 19.2 | K203: 178 | L203: 744
... 667 more rows

Sheet Jahr
B2: Jahresbilanz
O3: Grüne Felder: Eingabe erforderlich
H4: Jahresziel: | J4: 82 | X4: Das moderne Gewichtscoaching:
B6: Gewicht: | D6: Erste Messung im Jahr: | J6: =IF(E42=0,"",INDEX(D40:D51,E42,1)) ->  | O6: Entfernung vom Jahresziel: | U6: =IF(J6="","",IF(J6-J4=0,"0kg",J6-J4)) ->  | X6: XLS - von XL bis S
H7: Letzte Messung im Jahr: | J7: =IF(G50=0,"",INDEX(F40:F51,G50,1)) ->  | O7: Entfernung vom Jahresziel: | U7: =IF(J7="","",IF(J7-J4=0,"0kg",J7-J4)) ->  | V7: =D72 -> 0
H9: Abgenommen: | J9: =IF(J7="","",IF(J6="","",IF(J7=J6,"0kg",IF(J6=0,"",IF(J7=0,"",IF(J6<J7,"",J7-J6)))))) ->  | X9: Ernährung und Bewegung
H10: Zugenommen: | J10: =IF(J7="","",IF(J6="","",IF(J7=J6,"0kg",IF(J6=0,"",IF(J7=0,"",IF(J6>J7,"",J7-J6)))))) ->  | V10: =IF(V7=0,"",IF(V7=U4,"0",V7-U4)) -> 
B12: Body Mass Index - BMI: | D12: Erste Messung im Jahr: | J12: =IF(T42=0,"",INDEX(S40:S51,T42,1)) ->  | O12: Entfernung vom BMI Idealwert 22: | U12: =IF(J12="","",J12-22) ->  | X12: Psyche und Schlaf
D13: Letzte Messung im Jahr: | J13: =IF(V50=0,"",INDEX(U40:U51,V50,1)) ->  | O13: Entfernung vom BMI Idealwert 22: | U13: =IF(J13="","",J13-22) -> 
B15: Bauchumfang: | D15: Erste Messung im Jahr: | J15: =IF(K42=0,"",INDEX(J40:J51,K42,1)) ->  | X15: Motivation: XLS Software
H16: Letzte Messung im Jahr: | J16: =IF(N50=0,"",INDEX(L40:L51,N50,1)) -> 
B20: Bauch-/Hüftumfang - B/H: | D20: Erste Messung im Jahr: | J20: =IF(P42=0,"",INDEX(O40:O51,P42,1)) ->  | O20: Entfernung vom B/H Ziel: | U20: =IF(J20=L22,"0",IF(J20="","",IF(J21=0,"",J20-L22))) ->  | X20: Unterstützung
B21: Letzte Messung im Jahr: | J21: =IF(R50=0,"",INDEX(Q40:Q51,R50,1)) ->  | O21: Entfernung vom B/H Ziel: | U21: =IF(J21=L22,"0",IF(J20="","",IF(J21=0,"",J21-L22))) -> 
H22: B/H Ziel gleich/kleiner als: | J22: ='GU-GEB'!C8 -> Frau | L22: =IF(J22="Frau",0.85,1) -> 0.85
B24: Tendenzen: | H24: Letzte Messung im Jahr: | L24: Gewicht: | O24: =IF(J7="","",IF(J6="","",IF(J7<J6,"Gewicht fällt. Bravo!",IF(J7=J6,"Gewicht gleichbleibend",IF(J7>J6,"Achtung! Gewicht steigt. Risiko!"))))) ->  | X24: Granuvital "Fit&Schlank" SevisanaLine
L25: BMI: | O25: =IF(J12="","",IF(J13="","",IF(J13<J12,"BMI fällt. Bravo!",IF(J13=J12,"BMI gleichbleibend",IF(J13>J12,"BMI steigt. Ihre Gesundheit ist gefährdet!",))))) ->  | X25: X-Form und X-Form Plus SevisanaLine
L26: Bauchumfang: | O26: =IF(J15="","",IF(J16="","",IF(J16<J15,"Bauchumfang ist kleiner. Bravo!",IF(J16=J15,"Bauchumfang gleichbleibend",IF(J16>J15,"Achtung! Bauchumfang nimmt zu! Risiko!"))))) ->  | X26: Reine Flohsamenschalen SevisanaLine
L27: B/H: | O27: =IF(J20="","",IF(J21="","",IF(J21<J20,"B/H Verhältnis ist kleiner. Bravo!",IF(J21=J20,"B/H Verhältnis gleichbleibend",IF(J21>J20,"Achtung! B/H Verhältnis nimmt zu! Risiko!"))))) ->  | X27: Basenpulver nach Dr. Eichhorn
B29: Gesundheitsrisiko: | H29: Erste Messung im Jahr: | L29: BMI: | O29: =IF(J12="","",IF(J12>=40,"Grad III: Schwere Adipositas",IF(J12>=30,"Grad II: Adipositas",IF(J12>=25,"Grad I: Übergewichtt",IF(J12>=20,"Normalgewicht",IF(J12<20,"Untergewicht",)))))) -> 
L30: Bauchumfang: | N30: =IF('GU-GEB'!C8="Mann",94,80) -> 80 | O30: =IF(J15="","",IF(J15>=N31,"Gesundheitsrisiko hoch",IF(J15>=N30,"Gesundheitsrisiko erhöht",IF(J15<N30,"Kein Gesundheitsrisiko")))) ->  | X30: Produkteinformation | Z30: www.sevisana.ch
L31: B/H: | N31: =IF('GU-GEB'!C8="Mann",102,88) -> 88 | O31: =IF(J20="","",IF(J20>L22,"Gesundheitsrisiko erhöht",IF(J20=L22,"Grenzwert zu Gesundheitsrisiko erhöht",IF(J20<L22,"Kein Gesundheitsrisiko")))) ->  | X31: Bestellung | Z31: www.sevisana.ch
B33: Gesundheitsrisiko: | H33: Letzte Messung im Jahr: | L33: BMI: | O33: =IF(J13="","",IF(J13>=40,"Grad III: Schwere Adipositas",IF(J13>=30,"Grad II: Adipositas",IF(J13>=25,"Grad I: Übergewicht",IF(J13>=20,"Normalgewicht",IF(J13<20,"Untergewicht",)))))) ->  | X33: Direktbestellung | Z33: http://shop.sevisana.ch
L34: Bauchumfang: | O34: =IF(J16="","",IF(J16>=N31,"Gesundheitsrisiko hoch",IF(J16>=N30,"Gesundheitsrisiko erhöht",IF(J16<N30,"Kein Gesundheitsrisiko")))) ->  | X34: Medizinwissen | Z34: www.ever.ch
L35: B/H: | O35: =IF(J21="","",IF(J21>L22,"Gesundheitsrisiko erhöht",IF(J21=L22,"Grenzwert zu Gesundheitsrisiko erhöht",IF(J21<L22,"Kein Gesundheitsrisiko")))) -> 
B38: Monat | D38: Gewicht | F38: Gewicht | H38: Gewicht | J38: BU | L38: BU | O38: B/H 1 | Q38: B/H 2 | S38: BMI | U38: BMI
D39: 1 | F39: 2 | H39: O | J39: 1 | L39: 2 | O39: 1 | Q39: 2 | S39: 1 | U39: 2
B40: Januar | D40: =Januar!K21 ->  | E40: =IF(D40="",IF(D41="",IF(D42="",IF(D43="",IF(D44="",IF(D45="",IF(D46="",0,7),6),5),4),3),2),1) -> 0 | F40: =Januar!K22 ->  | G40: =IF(F40="",IF(F41="",IF(F42="",IF(F43="",IF(F44="",IF(F45="",IF(F46="",0,7),6),5),4),3),2),1) -> 0 | H40: =Januar!K14 ->  | J40: =Januar!K27 ->  | K40: =IF(J40="",IF(J41="",IF(J42="",IF(J43="",IF(J44="",IF(J45="",IF(J46="",0,7),6),5),4),3),2),1) -> 0 | L40: =Januar!K28 ->  | N40: =IF(L40="",IF(L41="",IF(L42="",IF(L43="",IF(L44="",IF(L45="",IF(L46="",0,7),6),5),4),3),2),1) -> 0 | O40: =Januar!K33 ->  | P40: =IF(O40="",IF(O41="",IF(O42="",IF(O43="",IF(O44="",IF(O45="",IF(O46="",0,7),6),5),4),3),2),1) -> 0 | Q40: =Januar!K34 ->  | R40: =IF(Q40="",IF(Q41="",IF(Q42="",IF(Q43="",IF(Q44="",IF(Q45="",IF(Q46="",0,7),6),5),4),3),2),1) -> 0 | S40: =Januar!K24 ->  | T40: =IF(S40="",IF(S41="",IF(S42="",IF(S43="",IF(S44="",IF(S45="",IF(S46="",0,7),6),5),4),3),2),1) -> 0 | U40: =Januar!K25 ->  | V40: =IF(U40="",IF(U41="",IF(U42="",IF(U43="",IF(U44="",IF(U45="",IF(U46="",0,7),6),5),4),3),2),1) -> 0
B41: Februar | D41: =Februar!K21 ->  | E41: =IF(D47="",IF(D48="",IF(D49="",IF(D50="",IF(D51="",0,12),11),10),9),8) -> 0 | F41: =Februar!K22 ->  | G41: =IF(F47="",IF(F48="",IF(F49="",IF(F50="",IF(F51="",0,12),11),10),9),8) -> 0 | H41: =Februar!K14 ->  | J41: =Februar!K27 ->  | K41: =IF(J47="",IF(J48="",IF(J49="",IF(J50="",IF(J51="",0,12),11),10),9),8) -> 0 | L41: =Februar!K28 ->  | N41: =IF(L47="",IF(L48="",IF(L49="",IF(L50="",IF(L51="",0,12),11),10),9),8) -> 0 | O41: =Februar!K33 ->  | P41: =IF(O47="",IF(O48="",IF(O49="",IF(O50="",IF(O51="",0,12),11),10),9),8) -> 0 | Q41: =Februar!K34 ->  | R41: =IF(Q47="",IF(Q48="",IF(Q49="",IF(Q50="",IF(Q51="",0,12),11),10),9),8) -> 0 | S41: =Februar!K24 ->  | T41: =IF(S47="",IF(S48="",IF(S49="",IF(S50="",IF(S51="",0,12),11),10),9),8) -> 0 | U41: =Februar!K25 ->  | V41: =IF(U47="",IF(U48="",IF(U49="",IF(U50="",IF(U51="",0,12),11),10),9),8) -> 0
B42: März | D42: =März!K21 ->  | E42: =IF(E40=0,IF(E41=0,0,E41),E40) -> 0 | F42: =März!K22 ->  | G42: =IF(G40=0,IF(G41=0,0,G41),G40) -> 0 | H42: =März!K14 ->  | J42: =März!K27 ->  | K42: =IF(K40=0,IF(K41=0,0,K41),K40) -> 0 | L42: =März!K28 ->  | N42: =IF(N40=0,IF(N41=0,0,N41),N40) -> 0 | O42: =März!K33 ->  | P42: =IF(P40=0,IF(P41=0,0,P41),P40) -> 0 | Q42: =März!K34 ->  | R42: =IF(R40=0,IF(R41=0,0,R41),R40) -> 0 | S42: =März!K24 ->  | T42: =IF(T40=0,IF(T41=0,0,T41),T40) -> 0 | U42: =März!K25 ->  | V42: =IF(V40=0,IF(V41=0,0,V41),V40) -> 0
B43: April | D43: =April!K21 ->  | F43: =April!K22 ->  | H43: =April!K14 ->  | J43: =April!K27 ->  | L43: =April!K28 ->  | O43: =April!K33 ->  | Q43: =April!K34 ->  | S43: =April!K24 ->  | U43: =April!K25 -> 
B44: Mai | D44: =Mai!K21 ->  | F44: =Mai!K22 ->  | H44: =Mai!K14 ->  | J44: =Mai!K27 ->  | L44: =Mai!K28 ->  | O44: =Mai!K33 ->  | Q44: =Mai!K34 ->  | S44: =Mai!K24 ->  | U44: =Mai!K25 -> 
B45: Juni | D45: =Juni!K21 ->  | F45: =Juni!K22 ->  | H45: =Juni!K14 ->  | J45: =Juni!K27 ->  | L45: =Juni!K28 ->  | O45: =Juni!K33 ->  | Q45: =Juni!K34 ->  | S45: =Juni!K24 ->  | U45: =Juni!K25 -> 
B46: Juli | D46: =Juli!K21 ->  | F46: =Juli!K22 ->  | H46: =Juli!K14 ->  | J46: =Juli!K27 ->  | L46: =Juli!K28 ->  | O46: =Juli!K33 ->  | Q46: =Juli!K34 ->  | S46: =Juli!K24 ->  | U46: =Juli!K25 -> 
B47: August | D47: =August!K21 ->  | F47: =August!K22 ->  | H47: =August!K14 ->  | J47: =August!K27 ->  | L47: =August!K28 ->  | O47: =August!K33 ->  | Q47: =August!K34 ->  | S47: =August!K24 ->  | U47: =August!K25 -> 
B48: September | D48: =September!K21 ->  | E48: =IF(D51="",IF(D50="",IF(D49="",IF(D48="",IF(D47="",IF(D46="",IF(D45="",0,6),7),8),9),10),11),12) -> 0 | F48: =September!K22 ->  | G48: =IF(F51="",IF(F50="",IF(F49="",IF(F48="",IF(F47="",IF(F46="",IF(F45="",0,6),7),8),9),10),11),12) -> 0 | H48: =September!K14 ->  | J48: =September!K27 ->  | K48: =IF(J51="",IF(J50="",IF(J49="",IF(J48="",IF(J47="",IF(J46="",IF(J45="",0,6),7),8),9),10),11),12) -> 0 | L48: =September!K28 ->  | N48: =IF(L51="",IF(L50="",IF(L49="",IF(L48="",IF(L47="",IF(L46="",IF(L45="",0,6),7),8),9),10),11),12) -> 0 | O48: =September!K33 ->  | P48: =IF(O51="",IF(O50="",IF(O49="",IF(O48="",IF(O47="",IF(O46="",IF(O45="",0,6),7),8),9),10),11),12) -> 0 | Q48: =September!K34 ->  | R48: =IF(Q51="",IF(Q50="",IF(Q49="",IF(Q48="",IF(Q47="",IF(Q46="",IF(Q45="",0,6),7),8),9),10),11),12) -> 0 | S48: =September!K24 ->  | T48: =IF(S51="",IF(S50="",IF(S49="",IF(S48="",IF(S47="",IF(S46="",IF(S45="",0,6),7),8),9),10),11),12) -> 0 | U48: =September!K25 ->  | V48: =IF(U51="",IF(U50="",IF(U49="",IF(U48="",IF(U47="",IF(U46="",IF(U45="",0,6),7),8),9),10),11),12) -> 0
B49: Oktober | D49: =Oktober!K21 ->  | E49: =IF(D44="",IF(D43="",IF(D42="",IF(D41="",IF(D40="",0,1),2),3),4),5) -> 0 | F49: =Oktober!K22 ->  | G49: =IF(F44="",IF(F43="",IF(F42="",IF(F41="",IF(F40="",0,1),2),3),4),5) -> 0 | H49: =Oktober!K14 ->  | J49: =Oktober!K27 ->  | K49: =IF(J44="",IF(J43="",IF(J42="",IF(J41="",IF(J40="",0,1),2),3),4),5) -> 0 | L49: =Oktober!K28 ->  | N49: =IF(L44="",IF(L43="",IF(L42="",IF(L41="",IF(L40="",0,1),2),3),4),5) -> 0 | O49: =Oktober!K33 ->  | P49: =IF(O44="",IF(O43="",IF(O42="",IF(O41="",IF(O40="",0,1),2),3),4),5) -> 0 | Q49: =Oktober!K34 ->  | R49: =IF(Q44="",IF(Q43="",IF(Q42="",IF(Q41="",IF(Q40="",0,1),2),3),4),5) -> 0 | S49: =Oktober!K24 ->  | T49: =IF(S44="",IF(S43="",IF(S42="",IF(S41="",IF(S40="",0,1),2),3),4),5) -> 0 | U49: =Oktober!K25 ->  | V49: =IF(U44="",IF(U43="",IF(U42="",IF(U41="",IF(U40="",0,1),2),3),4),5) -> 0
B50: November | D50: =November!K21 ->  | E50: =IF(E48=0,IF(E49=0,0,E49),E48) -> 0 | F50: =November!K22 ->  | G50: =IF(G48=0,IF(G49=0,0,G49),G48) -> 0 | H50: =November!K14 ->  | J50: =November!K27 ->  | K50: =IF(K48=0,IF(K49=0,0,K49),K48) -> 0 | L50: =November!K28 ->  | N50: =IF(N48=0,IF(N49=0,0,N49),N48) -> 0 | O50: =November!K33 ->  | P50: =IF(P48=0,IF(P49=0,0,P49),P48) -> 0 | Q50: =November!K34 ->  | R50: =IF(R48=0,IF(R49=0,0,R49),R48) -> 0 | S50: =November!K24 ->  | T50: =IF(T48=0,IF(T49=0,0,T49),T48) -> 0 | U50: =November!K25 ->  | V50: =IF(V48=0,IF(V49=0,0,V49),V48) -> 0
B51: Dezember | D51: =Dezember!K21 ->  | F51: =Dezember!K22 ->  | H51: =Dezember!K14 ->  | J51: =Dezember!K27 ->  | L51: =Dezember!K28 ->  | O51: =Dezember!K33 ->  | Q51: =Dezember!K34 ->  | S51: =Dezember!K24 ->  | U51: =Dezember!K25 -> 
B52: Mittelwert | D52: =AVERAGE(D40:D51) ->  | F52: =AVERAGE(F40:F51) ->  | H52: =AVERAGE(H40:H51) ->  | J52: 1= Erste Messung im Monat | Q52: 2= Zweite Messung im Monat
B84: Monat | D84: C-Peptid | F84: Blutzucker | H84: Cholest. | J84: HDL-Chol. | L84: LDL-Chol. | O84: Triglyc. | Q84: CRP | S84: Micro-Alb.
B86: Januar | D86: =Januar!E206 -> 0 | F86: =Januar!E207 -> 0 | G86: =IF(F86="",IF(F87="",IF(F88="",IF(F89="",IF(F90="",IF(F91="",IF(F92="",0,7),6),5),4),3),2),1) -> 1 | H86: =Januar!E208 -> 0 | J86: =Januar!E210 -> 0 | K86: =IF(L86="",IF(L87="",IF(L88="",IF(L89="",IF(L90="",IF(L91="",IF(L92="",0,7),6),5),4),3),2),1) -> 1 | L86: =Januar!E209 -> 0 | O86: =Januar!E211 -> 0 | Q86: =Januar!E212 -> 0 | S86: =Januar!E213 -> 0 | V86: =IF(U86="",IF(U87="",IF(U88="",IF(U89="",IF(U90="",IF(U91="",IF(U92="",0,7),6),5),4),3),2),1) -> 0
B87: Februar | D87: =Februar!E206 -> 0 | F87: =Februar!E207 -> 0 | G87: =IF(F93="",IF(F94="",IF(F95="",IF(F96="",IF(F97="",0,12),11),10),9),8) -> 8 | H87: =Februar!E208 -> 0 | J87: =Februar!E210 -> 0 | K87: =IF(L93="",IF(L94="",IF(L95="",IF(L96="",IF(L97="",0,12),11),10),9),8) -> 8 | L87: =Februar!E209 -> 0 | O87: =Februar!E211 -> 0 | Q87: =Februar!E212 -> 0 | S87: =Februar!E213 -> 0 | V87: =IF(U93="",IF(U94="",IF(U95="",IF(U96="",IF(U97="",0,12),11),10),9),8) -> 0
B88: März | D88: =März!E206 -> 0 | F88: =März!E207 -> 0 | G88: =IF(G86=0,IF(G87=0,0,G87),G86) -> 1 | H88: =März!E208 -> 0 | J88: =März!E210 -> 0 | K88: =IF(K86=0,IF(K87=0,0,K87),K86) -> 1 | L88: =März!E209 -> 0 | O88: =März!E211 -> 0 | Q88: =März!E212 -> 0 | S88: =März!E213 -> 0 | V88: =IF(V86=0,IF(V87=0,0,V87),V86) -> 0
B89: April | D89: =April!E206 -> 0 | F89: =April!E207 -> 0 | H89: =April!E208 -> 0 | J89: =April!E210 -> 0 | L89: =April!E209 -> 0 | O89: =April!E211 -> 0 | Q89: =April!E212 -> 0 | S89: =April!E213 -> 0
B90: Mai | D90: =Mai!E206 -> 0 | F90: =Mai!E207 -> 0 | H90: =Mai!E208 -> 0 | J90: =Mai!E210 -> 0 | L90: =Mai!E209 -> 0 | O90: =Mai!E211 -> 0 | Q90: =Mai!E212 -> 0 | S90: =Mai!E213 -> 0
B91: Juni | D91: =Juni!E206 -> 0 | F91: =Juni!E207 -> 0 | H91: =Juni!E208 -> 0 | J91: =Juni!E210 -> 0 | L91: =Juni!E209 -> 0 | O91: =Juni!E211 -> 0 | Q91: =Juni!E212 -> 0 | S91: =Juni!E213 -> 0
B92: Juli | D92: =Juli!E206 -> 0 | F92: =Juli!E207 -> 0 | H92: =Juli!E208 -> 0 | J92: =Juli!E210 -> 0 | L92: =Juli!E209 -> 0 | O92: =Juli!E211 -> 0 | Q92: =Juli!E212 -> 0 | S92: =Juli!E213 -> 0
B93: August | D93: =August!E206 -> 0 | F93: =August!E207 -> 0 | H93: =August!E208 -> 0 | J93: =August!E210 -> 0 | L93: =August!E209 -> 0 | O93: =August!E211 -> 0 | Q93: =August!E212 -> 0 | S93: =August!E213 -> 0
B94: September | D94: =September!E206 -> 0 | F94: =September!E207 -> 0 | G94: =IF(F97="",IF(F96="",IF(F95="",IF(F94="",IF(F93="",IF(F92="",IF(F91="",0,6),7),8),9),10),11),12) -> 12 | H94: =September!E208 -> 0 | J94: =September!E210 -> 0 | K94: =IF(L97="",IF(L96="",IF(L95="",IF(L94="",IF(L93="",IF(L92="",IF(L91="",0,6),7),8),9),10),11),12) -> 12 | L94: =September!E209 -> 0 | O94: =September!E211 -> 0 | Q94: =September!E212 -> 0 | S94: =September!E213 -> 0 | V94: =IF(U97="",IF(U96="",IF(U95="",IF(U94="",IF(U93="",IF(U92="",IF(U91="",0,6),7),8),9),10),11),12) -> 0
B95: Oktober | D95: =Oktober!E206 -> 0 | F95: =Oktober!E207 -> 0 | G95: =IF(F90="",IF(F89="",IF(F88="",IF(F87="",IF(F86="",0,1),2),3),4),5) -> 5 | H95: =Oktober!E208 -> 0 | J95: =Oktober!E210 -> 0 | K95: =IF(L90="",IF(L89="",IF(L88="",IF(L87="",IF(L86="",0,1),2),3),4),5) -> 5 | L95: =Oktober!E209 -> 0 | O95: =Oktober!E211 -> 0 | Q95: =Oktober!E212 -> 0 | S95: =Oktober!E213 -> 0 | V95: =IF(U90="",IF(U89="",IF(U88="",IF(U87="",IF(U86="",0,1),2),3),4),5) -> 0
B96: November | D96: =November!E206 -> 0 | F96: =November!E207 -> 0 | G96: =IF(G94=0,IF(G95=0,0,G95),G94) -> 12 | H96: =November!E208 -> 0 | J96: =November!E210 -> 0 | K96: =IF(K94=0,IF(K95=0,0,K95),K94) -> 12 | L96: =November!E209 -> 0 | O96: =November!E211 -> 0 | Q96: =November!E212 -> 0 | S96: =November!E213 -> 0 | V96: =IF(V94=0,IF(V95=0,0,V95),V94) -> 0
B97: Dezember | D97: =Dezember!E206 -> 0 | F97: =Dezember!E207 -> 0 | H97: =Dezember!E208 -> 0 | J97: =Dezember!E210 -> 0 | L97: =Dezember!E209 -> 0 | O97: =Dezember!E211 -> 0 | Q97: =Dezember!E212 -> 0 | S97: =Dezember!E213 -> 0

Sheet Januar
B2: Monat: Januar
I3: Grüne Felder: Eingabe erforderlich
C4: Jahresziel: | E4: =IF(Jahr!J4=0,"",Jahr!J4) -> 82 | G4: Monatsziel: | I4: 86 | N4: Das moderne Gewichtscoaching:
E6: Kommentar | I6: Veränderung | K6: Ergebnis | N6: XLS - von XL bis S
B8: =IF(D88=0,"",IF(K21=0,"",IF(K22=0,"",IF(K22=K21,"Gewicht gleichbleibend",IF(K22<K21,"Sie haben abgenommen! Bravo!",IF(K22>K21,"")))))) ->  | G8: Abgenommen: | K8: =IF(D88=0,"",IF(K22=0,"",IF(K22-K21=0,"0kg",IF(K22>K21,"",K21-K22)))) ->  | N8: Ernährung und Bewegung
B9: =IF(D88=0,"",IF(K21=0,"",IF(K22=0,"",IF(K22=K21,"Gewicht gleichbleibend",IF(K22>K21,"Sie haben zugenommen. Arbeiten Sie an sich!",IF(K22<K21,"")))))) ->  | G9: Zugenommen: | K9: =IF(D88=0,"",IF(K22=0,"",IF(K22-K21=0,"0kg",IF(K22<K21,"",K22-K21)))) -> 
B11: =IF(D88=0,"",IF(K21=0,"",IF(K22=0,"",IF(K22>I4,"Monatsziel noch nicht erreicht!",IF(K22=I4,"Monatsziel erreicht. Bravo!",IF(K22<I4,"Monatsziel sogar unterschritten!")))))) ->  | G11: Vom Monatsziel entfernt um + / -: | K11: =IF(D88=0,"",IF(K22=0,"",IF(K22=I4,"0",K22-I4))) ->  | N11: Psyche und Schlaf
B12: =IF(D88=0,"",IF(K21=0,"",IF(K22=0,"",IF(K22=E4,"Jahresziel erreicht! Gratuliere!",IF(K22>E4,"Jahresziel noch nicht erreicht! Bleiben Sie dran!",IF(K22<E4,"Jahrsziel sogar unterschritten!")))))) ->  | G12: Vom Jahresziel entfernt um + / -: | K12: =IF(D88=0,"",IF(K22=0,"",IF(K22=E4,"0",K22-E4))) -> 
G14: Gewicht - Monatsdurchschnitt: | K14: =IF(SUM(C82:C112)=0,"",AVERAGEA(C82:C112)) ->  | N14: Motivation: XLS Software
I19: Erste - Letzte Messung im Monat | K19: Monatsprofil | N19: Unterstützung
B21: Ihr Gewicht bei BMI-Ideal 22: | E21: =IF('GU-GEB'!C10=0,"",22*(('GU-GEB'!C10/100)^2)) ->  | G21: Gewicht - Erste Messung im Monat: | K21: =IF(D88=0,"",INDEX(C82:C112,D88,1)) ->  | N21: Granuvital "Fit&Schlank" SevisanaLine
B22: Ihr Gewicht bei BMI-Ideal 25: | E22: =IF('GU-GEB'!C10=0,"",25*(('GU-GEB'!C10/100)^2)) ->  | G22: Gewicht - Letzte Messung im Monat: | K22: =IF(D99=0,"",INDEX(C82:C112,D99,1)) -> 
B24: Vom BMI Ideal 22 entfernt: | E24: =IF(L88=0,"",IF(K24=0,"",IF(K24-22=0,"0",K24-22))) ->  | G24: BMI - Erste Messung im Monat: | K24: =IF(L88=0,"",INDEX(K82:K112,L88,1)) ->  | N24: X-Form und X-Form Plus SevisanaLine
B25: Vom BMI Ideal 22 entfernt: | E25: =IF(L99=0,"",IF(K25=0,"",IF(K25-22=0,"0",K25-22))) ->  | G25: BMI - Letzte Messung im Monat: | K25: =IF(L99=0,"",INDEX(K82:K112,L99,1)) -> 
B27: Vom Idealwert entfernt: | E27: =IF(F88=0,"",IF(K27=0,"",IF(K28=0,"",IF(K27-J27=0,"0cm",K27-J27)))) ->  | G27: Bauchumfang - Erste Messung im Monat: | J27: =IF('GU-GEB'!C8="Mann",94,80) -> 80 | K27: =IF(F88=0,"",INDEX(E82:E112,F88,1)) ->  | N27: Reine Flohsamenschalen SevisanaLine
B28: Vom Idealwert entfernt: | E28: =IF(F99=0,"",IF(K27=0,"",IF(K28=0,"",IF(K28-J27=0,"0cm",K28-J27)))) ->  | G28: Bauchumfang - Letzte Messung im Monat: | J28: =IF('GU-GEB'!C8="Mann",102,88) -> 88 | K28: =IF(F99=0,"",INDEX(E82:E112,F99,1)) -> 
G30: Hüftumfang - Erste Messung im Monat: | K30: =IF(H88=0,"",INDEX(G82:G112,H88,1)) ->  | N30: Basenpulver nach Dr. Eichhorn
G31: Hüftumfang - Letzte Messung im Monat: | K31: =IF(H99=0,"",INDEX(G82:G112,H99,1)) -> 
B33: Vom B/H Idealwert entfernt: | E33: =IF(J88=0,"",IF(K33=0,"",IF(K33-G36=0,"0",K33-G36))) ->  | G33: B/H - Erste Messung im Monat: | K33: =IF(J88=0,"",INDEX(I82:I112,J88,1)) ->  | N33: Produkteinformation | P33: www.sevisana.ch
B34: Vom B/H Idealwert entfernt: | E34: =IF(J99=0,"",IF(K34=0,"",IF(K34-G36=0,"0",K34-G36))) ->  | G34: B/H - Letzte Messung im Monat: | K34: =IF(J99=0,"",INDEX(I82:I112,J99,1)) -> 
B36: B/H Ziel gleich/kleiner als: | E36: ='GU-GEB'!C8 -> Frau | G36: =IF(E36="Frau",0.85,1) -> 0.85
G40: Blutdruck systolisch - Erste Messung | K40: =IF(F147=0,"",INDEX(E141:E171,F147,1)) ->  | N40: Bestellung | P40: www.sevisana.ch
G41: Blutdruck diastolisch - Erste Messung | K41: =IF(H147=0,"",INDEX(G141:G171,H147,1)) -> 
G43: Blutdruck systolisch - Letzte Messung | K43: =IF(F158=0,"",INDEX(E141:IE171,F158,1)) -> 
G44: Blutdruck diastolisch - Letzte Messung | K44: =IF(H158=0,"",INDEX(G141:IG171,H158,1)) ->  | N44: Direktbestellung | P44: http://shop.sevisana.ch
G47: Puls - Erste Messung | K47: =IF(D147=0,"",INDEX(C141:C171,D147,1)) -> 
G48: Puls - Letzte Messung | K48: =IF(D158=0,"",INDEX(C141:C171,D158,1)) ->  | N48: Medizinwissen | P48: www.ever.ch
C53: Tendenzen | G53: Verlauf in diesem Monat
B55: Tendenzen Ende Monat: | E55: Gewicht: | G55: =IF(D88=0,"",IF(K21=0,"",IF(K22=0,"",IF(K22<K21,"Gewicht fällt. Bravo!",IF(K22=K21,"Gewicht gleichbleibend",IF(K22>K21,"Achtung! Gewicht steigt. Risiko!")))))) -> 
E56: BMI: | G56: =IF(D88=0,"",IF(K24=0,"",IF(K25=0,"",IF(K25<K24,"BMI fällt. Bravo!",IF(K25=K24,"BMI gleichbleibend",IF(K25>K24,"BMI steigt. Ihre Gesundheit ist gefährdet!")))))) -> 
E57: Bauchumfang: | G57: =IF(F88=0,"",IF(K27=0,"",IF(K28=0,"",IF(K28<K27,"Bauchumfang wird kleiner. Bravo!",IF(K28=K27,"Bauchumfang gleichbleibend",IF(K28>K27,"Achtung! Bauchumfang nimmt zu",IF(K28<=J27,"Normalwert"))))))) -> 
E58: B/H: | G58: =IF(J88=0,"",IF(K33=0,"",IF(K34=0,"",IF(K34<K33,"B/H Verältnis wird kleiner. Bravo!",IF(K34=K33,"B/H Verältnis gleichbleibend",IF(K34>K33,"Achtung! B/H Verhältnis nimmt zu")))))) -> 
C60: Risiko Anfang Monat: | E60: BMI: | G60: =IF(D88=0,"",IF(K24=0,"",IF(K24>=40,"Grad III: Schwere Adipositas",IF(K24>=30,"Grad II: Adipositas",IF(K24>=25,"Grad I: Übergewichtt",IF(K24>=20,"Normalgewicht",IF(K24<20,"Untergewicht",))))))) -> 
E61: Bauchumfang: | G61: =IF(F88=0,"",IF(K27=0,"",IF(K27>=J28,"Gesundheitsrisiko hoch",IF(K27>=J27,"Gesundheitsrisiko erhöht",IF(K27<J27,"Kein Gesundheitsrisiko"))))) -> 
E62: B/H: | G62: =IF(J88=0,"",IF(K33=0,"",IF(K33>G36,"Gesundheitsrisiko erhöht",IF(K33=G36,"Grenzwert zu Gesundheitsrisiko erhöht",IF(K33<G36,"Kein Gesundheitsrisiko"))))) -> 
C64: Risiko Ende Monat: | E64: BMI: | G64: =IF(D88=0,"",IF(K25=0,"",IF(K25>=40,"Grad III: Schwere Adipositas",IF(K25>=30,"Grad II: Adipositas",IF(K25>=25,"Grad I: Übergewicht",IF(K25>=20,"Normalgewicht",IF(K25<20,"Untergewicht",))))))) -> 
E65: Bauchumfang: | G65: =IF(F88=0,"",IF(K28=0,"",IF(K28>=J28,"Gesundheitsrisiko hoch",IF(K28>=J27,"Gesundheitsrisiko erhöht",IF(K28<J27,"Kein Gesundheitsrisiko"))))) -> 
E66: B/H: | G66: =IF(J88=0,"",IF(K34=0,"",IF(K34>G36,"Gesundheitsrisiko erhöht",IF(K34=G36,"Grenzwert zu Gesundheitsrisiko erhöht",IF(K34<G36,"Kein Gesundheitsrisiko"))))) -> 
B71: Risiko | E71: Ihr persönliches Risikoprofil
B73: Metabolisches Syndrom | E73: =IF(F147=0,"",B232) -> 
B74: Insulinresistenz | E74: =IF(E206=0,"",IF(E207=0,"",E250)) -> 
B75: Arterioskleroserisiko | E75: =IF(E208=0,"",IF(E210=0,"",B261)) -> 
B76: Gefässrisiko | E76: =IF(K291<11,"",IF(K291>=11,IF(K291<=17,"Gefässrisiko im unteren Bereich",IF(K291>=18,IF(K291<=24,"Gefässrisiko im mittleren Bereich",IF(K291>=25,"Gefässrisiko im hohen Bereich")))))) -> 
B81: Tag | C81: Gewicht | E81: Bauchumfang | G81: Hüftumfang | I81: B/H Verhältnis | K81: BMI
B82: 1 | D82: =IF(C82="",IF(C83="",IF(C84="",IF(C85="",IF(C86="",IF(C87="",IF(C88="",0,7),6),5),4),3),2),1) -> 0 | F82: =IF(E82="",IF(E83="",IF(E84="",IF(E85="",IF(E86="",IF(E87="",IF(E88="",0,7),6),5),4),3),2),1) -> 0 | H82: =IF(G82="",IF(G83="",IF(G84="",IF(G85="",IF(G86="",IF(G87="",IF(G88="",0,7),6),5),4),3),2),1) -> 0 | I82: =IF(E82=0,"",IF(G82=0,"",E82/G82)) ->  | J82: =IF(I82="",IF(I83="",IF(I84="",IF(I85="",IF(I86="",IF(I87="",IF(I88="",0,7),6),5),4),3),2),1) -> 0 | K82: =IF(C82=0,"",C82/(('GU-GEB'!C10/100)^2)) ->  | L82: =IF(K82="",IF(K83="",IF(K84="",IF(K85="",IF(K86="",IF(K87="",IF(K88="",0,7),6),5),4),3),2),1) -> 0
B83: 2 | D83: =IF(C89="",IF(C90="",IF(C91="",IF(C92="",IF(C93="",IF(C94="",IF(C95="",0,14),13),12),11),10),9),8) -> 0 | F83: =IF(E89="",IF(E90="",IF(E91="",IF(E92="",IF(E93="",IF(E94="",IF(E95="",0,14),13),12),11),10),9),8) -> 0 | H83: =IF(G89="",IF(G90="",IF(G91="",IF(G92="",IF(G93="",IF(G94="",IF(G95="",0,14),13),12),11),10),9),8) -> 0 | I83: =IF(E83=0,"",IF(G83=0,"",E83/G83)) ->  | J83: =IF(I89="",IF(I90="",IF(I91="",IF(I92="",IF(I93="",IF(I94="",IF(I95="",0,14),13),12),11),10),9),8) -> 0 | K83: =IF(C83=0,"",C83/(('GU-GEB'!C10/100)^2)) ->  | L83: =IF(K89="",IF(K90="",IF(K91="",IF(K92="",IF(K93="",IF(K94="",IF(K95="",0,14),13),12),11),10),9),8) -> 0
B84: 3 | D84: =IF(C96="",IF(C97="",IF(C98="",IF(C99="",IF(C100="",IF(C101="",IF(C102="",0,21),20),19),18),17),16),15) -> 0 | F84: =IF(E96="",IF(E97="",IF(E98="",IF(E99="",IF(E100="",IF(E101="",IF(E102="",0,21),20),19),18),17),16),15) -> 0 | H84: =IF(G96="",IF(G97="",IF(G98="",IF(G99="",IF(G100="",IF(G101="",IF(G102="",0,21),20),19),18),17),16),15) -> 0 | J84: =IF(I96="",IF(I97="",IF(I98="",IF(I99="",IF(I100="",IF(I101="",IF(I102="",0,21),20),19),18),17),16),15) -> 0 | K84: =IF(C84=0,"",C84/(('GU-GEB'!C10/100)^2)) ->  | L84: =IF(K96="",IF(K97="",IF(K98="",IF(K99="",IF(K100="",IF(K101="",IF(K102="",0,21),20),19),18),17),16),15) -> 0
B85: 4 | D85: =IF(C103="",IF(C104="",IF(C105="",IF(C106="",IF(C107="",IF(C108="",IF(C109="",0,28),27),26),25),24),23),22) -> 0 | F85: =IF(E103="",IF(E104="",IF(E105="",IF(E106="",IF(E107="",IF(E108="",IF(E109="",0,28),27),26),25),24),23),22) -> 0 | H85: =IF(G103="",IF(G104="",IF(G105="",IF(G106="",IF(G107="",IF(G108="",IF(G109="",0,28),27),26),25),24),23),22) -> 0 | J85: =IF(I103="",IF(I104="",IF(I105="",IF(I106="",IF(I107="",IF(I108="",IF(I109="",0,28),27),26),25),24),23),22) -> 0 | K85: =IF(C85=0,"",C85/(('GU-GEB'!C10/100)^2)) ->  | L85: =IF(K103="",IF(K104="",IF(K105="",IF(K106="",IF(K107="",IF(K108="",IF(K109="",0,28),27),26),25),24),23),22) -> 0
B86: 5 | D86: =IF(C110="",IF(C111="",IF(C112="",0,31),30),29) -> 0 | F86: =IF(E110="",IF(E111="",IF(E112="",0,31),30),29) -> 0 | H86: =IF(G110="",IF(G111="",IF(G112="",0,31),30),29) -> 0 | J86: =IF(I110="",IF(I111="",IF(I112="",0,31),30),29) -> 0 | K86: =IF(C86=0,"",C86/(('GU-GEB'!C10/100)^2)) ->  | L86: =IF(K110="",IF(K111="",IF(K112="",0,31),30),29) -> 0
B87: 6 | K87: =IF(C87=0,"",C87/(('GU-GEB'!C10/100)^2)) -> 
B88: 7 | D88: =IF(D82=0,IF(D83=0,IF(D84=0,IF(D85=0,IF(D86=0,0,D86),D85),D84),D83),D82) -> 0 | F88: =IF(F82=0,IF(F83=0,IF(F84=0,IF(F85=0,IF(F86=0,0,F86),F85),F84),F83),F82) -> 0 | H88: =IF(H82=0,IF(H83=0,IF(H84=0,IF(H85=0,IF(H86=0,0,H86),H85),H84),H83),H82) -> 0 | J88: =IF(J82=0,IF(J83=0,IF(J84=0,IF(J85=0,IF(J86=0,0,J86),J85),J84),J83),J82) -> 0 | K88: =IF(C88=0,"",C88/(('GU-GEB'!C10/100)^2)) ->  | L88: =IF(L82=0,IF(L83=0,IF(L84=0,IF(L85=0,IF(L86=0,0,L86),L85),L84),L83),L82) -> 0
B89: 8 | K89: =IF(C89=0,"",C89/(('GU-GEB'!C10/100)^2)) -> 
B90: 9 | K90: =IF(C90=0,"",C90/(('GU-GEB'!C10/100)^2)) -> 
B91: 10 | K91: =IF(C91=0,"",C91/(('GU-GEB'!C10/100)^2)) -> 
B92: 11 | K92: =IF(C92=0,"",C92/(('GU-GEB'!C10/100)^2)) -> 
B93: 12 | D93: =IF(C112="",IF(C111="",IF(C110="",IF(C109="",IF(C108="",IF(C107="",IF(C106="",0,25),26),27),28),29),30),31) -> 0 | F93: =IF(E112="",IF(E111="",IF(E110="",IF(E109="",IF(E108="",IF(E107="",IF(E106="",0,25),26),27),28),29),30),31) -> 0 | H93: =IF(G112="",IF(G111="",IF(G110="",IF(G109="",IF(G108="",IF(G107="",IF(G106="",0,25),26),27),28),29),30),31) -> 0 | J93: =IF(I112="",IF(I111="",IF(I110="",IF(I109="",IF(I108="",IF(I107="",IF(I106="",0,25),26),27),28),29),30),31) -> 0 | K93: =IF(C93=0,"",C93/(('GU-GEB'!C10/100)^2)) ->  | L93: =IF(K112="",IF(K111="",IF(K110="",IF(K109="",IF(K108="",IF(K107="",IF(K106="",0,25),26),27),28),29),30),31) -> 0
B94: 13 | D94: =IF(C105="",IF(C104="",IF(C103="",IF(C102="",IF(C101="",IF(C100="",IF(C99="",0,18),19),20),21),22),23),24) -> 0 | F94: =IF(E105="",IF(E104="",IF(E103="",IF(E102="",IF(E101="",IF(E100="",IF(E99="",0,18),19),20),21),22),23),24) -> 0 | H94: =IF(G105="",IF(G104="",IF(G103="",IF(G102="",IF(G101="",IF(G100="",IF(G99="",0,18),19),20),21),22),23),24) -> 0 | J94: =IF(I105="",IF(I104="",IF(I103="",IF(I102="",IF(I101="",IF(I100="",IF(I99="",0,18),19),20),21),22),23),24) -> 0 | K94: =IF(C94=0,"",C94/(('GU-GEB'!C10/100)^2)) ->  | L94: =IF(K105="",IF(K104="",IF(K103="",IF(K102="",IF(K101="",IF(K100="",IF(K99="",0,18),19),20),21),22),23),24) -> 0
B95: 14 | D95: =IF(C98="",IF(C97="",IF(C96="",IF(C95="",IF(C94="",IF(C93="",IF(C92="",0,11),12),13),14),15),16),17) -> 0 | F95: =IF(E98="",IF(E97="",IF(E96="",IF(E95="",IF(E94="",IF(E93="",IF(E92="",0,11),12),13),14),15),16),17) -> 0 | H95: =IF(G98="",IF(G97="",IF(G96="",IF(G95="",IF(G94="",IF(G93="",IF(G92="",0,11),12),13),14),15),16),17) -> 0 | J95: =IF(I98="",IF(I97="",IF(I96="",IF(I95="",IF(I94="",IF(I93="",IF(I92="",0,11),12),13),14),15),16),17) -> 0 | K95: =IF(C95=0,"",C95/(('GU-GEB'!C10/100)^2)) ->  | L95: =IF(K98="",IF(K97="",IF(K96="",IF(K95="",IF(K94="",IF(K93="",IF(K92="",0,11),12),13),14),15),16),17) -> 0
B96: 15 | D96: =IF(C91="",IF(C90="",IF(C89="",IF(C88="",IF(C87="",IF(C86="",IF(C85="",0,4),5),6),7),8),9),10) -> 0 | F96: =IF(E91="",IF(E90="",IF(E89="",IF(E88="",IF(E87="",IF(E86="",IF(E85="",0,4),5),6),7),8),9),10) -> 0 | H96: =IF(G91="",IF(G90="",IF(G89="",IF(G88="",IF(G87="",IF(G86="",IF(G85="",0,4),5),6),7),8),9),10) -> 0 | J96: =IF(I91="",IF(I90="",IF(I89="",IF(I88="",IF(I87="",IF(I86="",IF(I85="",0,4),5),6),7),8),9),10) -> 0 | K96: =IF(C96=0,"",C96/(('GU-GEB'!C10/100)^2)) ->  | L96: =IF(K91="",IF(K90="",IF(K89="",IF(K88="",IF(K87="",IF(K86="",IF(K85="",0,4),5),6),7),8),9),10) -> 0
B97: 16 | D97: =IF(C84="",IF(C83="",IF(C82="",0,1),2),3) -> 0 | F97: =IF(E84="",IF(E83="",IF(E82="",0,1),2),3) -> 0 | H97: =IF(G84="",IF(G83="",IF(G82="",0,1),2),3) -> 0 | J97: =IF(I84="",IF(I83="",IF(I82="",0,1),2),3) -> 0 | K97: =IF(C97=0,"",C97/(('GU-GEB'!C10/100)^2)) ->  | L97: =IF(K84="",IF(K83="",IF(K82="",0,1),2),3) -> 0
B98: 17 | K98: =IF(C98=0,"",C98/(('GU-GEB'!C10/100)^2)) -> 
B99: 18 | D99: =IF(D93=0,IF(D94=0,IF(D95=0,IF(D96=0,IF(D97=0,0,D97),D96),D95),D94),D93) -> 0 | F99: =IF(F93=0,IF(F94=0,IF(F95=0,IF(F96=0,IF(F97=0,0,F97),F96),F95),F94),F93) -> 0 | H99: =IF(H93=0,IF(H94=0,IF(H95=0,IF(H96=0,IF(H97=0,0,H97),H96),H95),H94),H93) -> 0 | J99: =IF(J93=0,IF(J94=0,IF(J95=0,IF(J96=0,IF(J97=0,0,J97),J96),J95),J94),J93) -> 0 | K99: =IF(C99=0,"",C99/(('GU-GEB'!C10/100)^2)) ->  | L99: =IF(L93=0,IF(L94=0,IF(L95=0,IF(L96=0,IF(L97=0,0,L97),L96),L95),L94),L93) -> 0
B100: 19 | K100: =IF(C100=0,"",C100/(('GU-GEB'!C10/100)^2)) -> 
B101: 20 | K101: =IF(C101=0,"",C101/(('GU-GEB'!C10/100)^2)) -> 
B102: 21 | K102: =IF(C102=0,"",C102/(('GU-GEB'!C10/100)^2)) -> 
B103: 22 | K103: =IF(C103=0,"",C103/(('GU-GEB'!C10/100)^2)) -> 
B104: 23 | K104: =IF(C104=0,"",C104/(('GU-GEB'!C10/100)^2)) -> 
B105: 24 | K105: =IF(C105=0,"",C105/(('GU-GEB'!C10/100)^2)) -> 
B106: 25 | K106: =IF(C106=0,"",C106/(('GU-GEB'!C10/100)^2)) -> 
B107: 26 | K107: =IF(C107=0,"",C107/(('GU-GEB'!C10/100)^2)) -> 
B108: 27 | K108: =IF(C108=0,"",C108/(('GU-GEB'!C10/100)^2)) -> 
B109: 28 | K109: =IF(C109=0,"",C109/(('GU-GEB'!C10/100)^2)) -> 
B110: 29 | K110: =IF(C110=0,"",C110/(('GU-GEB'!C10/100)^2)) -> 
B111: 30 | K111: =IF(C111=0,"",C111/(('GU-GEB'!C10/100)^2)) -> 
B112: 31 | K112: =IF(C112=0,"",C112/(('GU-GEB'!C10/100)^2)) -> 
B140: Tag | C140: Puls | E140: BD systolisch | G140: BD diastolisch | I140: BD Mittelwert
B141: 1 | D141: =IF(C141="",IF(C142="",IF(C143="",IF(C144="",IF(C145="",IF(C146="",IF(C147="",0,7),6),5),4),3),2),1) -> 0 | F141: =IF(E141="",IF(E142="",IF(E143="",IF(E144="",IF(E145="",IF(E146="",IF(E147="",0,7),6),5),4),3),2),1) -> 0 | H141: =IF(G141="",IF(G142="",IF(G143="",IF(G144="",IF(G145="",IF(G146="",IF(G147="",0,7),6),5),4),3),2),1) -> 0 | I141: =IF(E141=0,"",IF(G141=0,"",AVERAGEA(E141,G141))) -> 
B142: 2 | D142: =IF(C148="",IF(C149="",IF(C150="",IF(C151="",IF(C152="",IF(C153="",IF(C154="",0,14),13),12),11),10),9),8) -> 0 | F142: =IF(E148="",IF(E149="",IF(E150="",IF(E151="",IF(E152="",IF(E153="",IF(E154="",0,14),13),12),11),10),9),8) -> 0 | H142: =IF(G148="",IF(G149="",IF(G150="",IF(G151="",IF(G152="",IF(G153="",IF(G154="",0,14),13),12),11),10),9),8) -> 0 | I142: =IF(E142=0,"",IF(G142=0,"",AVERAGEA(E142,G142))) -> 
B143: 3 | D143: =IF(C155="",IF(C156="",IF(C157="",IF(C158="",IF(C159="",IF(C160="",IF(C161="",0,21),20),19),18),17),16),15) -> 0 | F143: =IF(E155="",IF(E156="",IF(E157="",IF(E158="",IF(E159="",IF(E160="",IF(E161="",0,21),20),19),18),17),16),15) -> 0 | H143: =IF(G155="",IF(G156="",IF(G157="",IF(G158="",IF(G159="",IF(G160="",IF(G161="",0,21),20),19),18),17),16),15) -> 0 | I143: =IF(E143=0,"",IF(G143=0,"",AVERAGEA(E143,G143))) -> 
B144: 4 | D144: =IF(C162="",IF(C163="",IF(C164="",IF(C165="",IF(C166="",IF(C167="",IF(C168="",0,28),27),26),25),24),23),22) -> 0 | F144: =IF(E162="",IF(E163="",IF(E164="",IF(E165="",IF(E166="",IF(E167="",IF(E168="",0,28),27),26),25),24),23),22) -> 0 | H144: =IF(G162="",IF(G163="",IF(G164="",IF(G165="",IF(G166="",IF(G167="",IF(G168="",0,28),27),26),25),24),23),22) -> 0
B145: 5 | D145: =IF(C169="",IF(C170="",IF(C171="",0,31),30),29) -> 0 | F145: =IF(E169="",IF(E170="",IF(E171="",0,31),30),29) -> 0 | H145: =IF(G169="",IF(G170="",IF(G171="",0,31),30),29) -> 0
B146: 6
B147: 7 | D147: =IF(D141=0,IF(D142=0,IF(D143=0,IF(D144=0,IF(D145=0,0,D145),D144),D143),D142),D141) -> 0 | F147: =IF(F141=0,IF(F142=0,IF(F143=0,IF(F144=0,IF(F145=0,0,F145),F144),F143),F142),F141) -> 0 | H147: =IF(H141=0,IF(H142=0,IF(H143=0,IF(H144=0,IF(H145=0,0,H145),H144),H143),H142),H141) -> 0
B148: 8
B149: 9
B150: 10
B151: 11
B152: 12 | D152: =IF(C171="",IF(C170="",IF(C169="",IF(C168="",IF(C167="",IF(C166="",IF(C165="",0,25),26),27),28),29),30),31) -> 0 | F152: =IF(E171="",IF(E170="",IF(E169="",IF(E168="",IF(E167="",IF(E166="",IF(E165="",0,25),26),27),28),29),30),31) -> 0 | H152: =IF(G171="",IF(G170="",IF(G169="",IF(G168="",IF(G167="",IF(G166="",IF(G165="",0,25),26),27),28),29),30),31) -> 0
B153: 13 | D153: =IF(C164="",IF(C163="",IF(C162="",IF(C161="",IF(C160="",IF(C159="",IF(C158="",0,18),19),20),21),22),23),24) -> 0 | F153: =IF(E164="",IF(E163="",IF(E162="",IF(E161="",IF(E160="",IF(E159="",IF(E158="",0,18),19),20),21),22),23),24) -> 0 | H153: =IF(G164="",IF(G163="",IF(G162="",IF(G161="",IF(G160="",IF(G159="",IF(G158="",0,18),19),20),21),22),23),24) -> 0
B154: 14 | D154: =IF(C157="",IF(C156="",IF(C155="",IF(C154="",IF(C153="",IF(C152="",IF(C151="",0,11),12),13),14),15),16),17) -> 0 | F154: =IF(E157="",IF(E156="",IF(E155="",IF(E154="",IF(E153="",IF(E152="",IF(E151="",0,11),12),13),14),15),16),17) -> 0 | H154: =IF(G157="",IF(G156="",IF(G155="",IF(G154="",IF(G153="",IF(G152="",IF(G151="",0,11),12),13),14),15),16),17) -> 0
B155: 15 | D155: =IF(C150="",IF(C149="",IF(C148="",IF(C147="",IF(C146="",IF(C145="",IF(C144="",0,4),5),6),7),8),9),10) -> 0 | F155: =IF(E150="",IF(E149="",IF(E148="",IF(E147="",IF(E146="",IF(E145="",IF(E144="",0,4),5),6),7),8),9),10) -> 0 | H155: =IF(G150="",IF(G149="",IF(G148="",IF(G147="",IF(G146="",IF(G145="",IF(G144="",0,4),5),6),7),8),9),10) -> 0
B156: 16 | D156: =IF(C143="",IF(C142="",IF(C141="",0,1),2),3) -> 0 | F156: =IF(E143="",IF(E142="",IF(E141="",0,1),2),3) -> 0 | H156: =IF(G143="",IF(G142="",IF(G141="",0,1),2),3) -> 0
B157: 17
B158: 18 | D158: =IF(D152=0,IF(D153=0,IF(D154=0,IF(D155=0,IF(D156=0,0,D156),D155),D154),D153),D152) -> 0 | F158: =IF(F152=0,IF(F153=0,IF(F154=0,IF(F155=0,IF(F156=0,0,F156),F155),F154),F153),F152) -> 0 | H158: =IF(H152=0,IF(H153=0,IF(H154=0,IF(H155=0,IF(H156=0,0,H156),H155),H154),H153),H152) -> 0
B159: 19
B160: 20
B161: 21
B162: 22
B163: 23
B164: 24
B165: 25
B166: 26
B167: 27
B168: 28
B169: 29
B170: 30
B171: 31
B173: O | C173: =IF(SUM(C141:C171)=0,"",AVERAGEA(C141:C171)) ->  | E173: =IF(SUM(E141:E171)=0,"",AVERAGEA(E141:E171)) ->  | G173: =IF(SUM(G141:G171)=0,"",AVERAGEA(G141:G171)) ->  | I173: =IF(SUM(I141:I171)=0,"",AVERAGE(I141:I171)) -> 
B202: Grüne Felder: Eingabe erforderlich | G202: Laborwerte (morgendliche Nüchternwerte) / Rauchen / Bewegung
C204: Labor | E204: Werte | G204: Grenzwerte | I204: Gewohnheiten | K204: Ergebnis
C206: C-Peptid (nmol/l) | I206: Anzahl Zigaretten/Tag
B207: Blutzucker (Glukose) (mmol/l) | G207: >/= 6.1 | I207: Bewegung (Std./Wo)
B208: Gesamt-Cholesterin (mmol/l)
B209: LDL-Cholesterin (mmol/l)
B210: HDL-Cholesterin (mmol/l) | G210: =IF(E210="Frau","<1.29","<1.04") -> <1.04
B211: Triglyzeride (mmol/l) | G211: >/= 1.69
B212: CRP sensitiv (mg/l) | G212: >/= 3
B213: Mikroalbuminurie (mg/l) | G213: >/= 5
B216: Umrechnung C-Peptid: nmol/l = pmol/l / 1000
G219: Kriterien für das Vorliegen eines Metabolischen Syndroms
C221: Merkmal | E221: Geschlecht | G221: Grenzwerte | I221: Meine Werte | K221: Kriterien erfüllt
C223: Bauchumfang | E223: ='GU-GEB'!C8 -> Frau | G223: =IF(E223="Frau",">88",">102") -> >88 | I223: =K27 ->  | K223: =IF(F88=0,"",IF(I223=0,"",IF(I223>J28,"Ja","Nein"))) ->  | M223: =IF(K223="",0,IF(K223="Nein","0","1")) -> 0
C224: HDL-Cholesterin | E224: ='GU-GEB'!C8 -> Frau | G224: =IF(E224="Frau","<1.29","<1.04") -> <1.29 | H224: =IF('GU-GEB'!C8="Mann",1.04,1.29) -> 1.29 | I224: =IF(E210=0,"",E210) ->  | K224: =IF(E210=0,"",IF(I224<H224,"Ja","Nein")) ->  | M224: =IF(K224="",0,IF(K224="Nein","0","1")) -> 0
C225: Triglyceride | G225: >/= 1.69 | I225: =IF(E211=0,"",E211) ->  | K225: =IF(E211=0,"",IF(I225>=1.69,"Ja","Nein")) ->  | M225: =IF(K225="",0,IF(K225="Nein","0","1")) -> 0
C226: Nüchternzucker | G226: >/= 6.1 | I226: =IF(E207=0,"",E207) ->  | K226: =IF(E207=0,"",IF(I226>=6.1,"Ja","Nein")) ->  | M226: =IF(K226="",0,IF(K226="Nein","0","1")) -> 0
B227: BD systolisch | G227: >/= 130 | I227: =K40 -> 
B228: BD diastolisch | G228: >/= 85 | I228: =K41 -> 
B229: BD Mittelwert | G229: >/= 107.5 | I229: =IF(F147=0,"",IF(H147=0,"",AVERAGE(I227:I228))) ->  | K229: =IF(F147=0,"",IF(H147=0,"",IF(I229=0,"",IF(I229>=108,"Ja","Nein")))) ->  | M229: =IF(K229="",0,IF(K229="Nein","0","1")) -> 0
M231: =SUM(M223+M224+M225+M226+M229) -> 0
B232: =IF(F147=0,"",IF(H147=0,"",IF(M231>=3,"Mindestens 3 Kriterien sind erfüllt. Damit liegt bei Ihnen wahrscheinlich ein Metabolisches Syndrom vor","Die Kriterien für ein Metabolisches Syndrom sind nicht erfüllt"))) -> 
G236: Kriterien für das Vorliegen einer Insulinresistenz - HOMA Index
E238: Merkmal | G238: Einheit | I238: Persönlicher Wert | K238: HOMA Index
E240: Nüchternglucose | G240: mmol/l | I240: =IF(E207=0,"",E207) -> 
E241: C-Peptid | G241: nmol/l | I241: =IF(E206=0,"",E206) ->  | K241: =IF(E206=0,"",IF(E207=0,"",(I240*I241)/2.6)) -> 
E244: HOMA Index | G244: Kriterien
E245: ≤1 | G245: normal
E246: ≥2 | G246: Hinweis auf eine Insulinresistenz
E247: ≥2.5 | G247: Insulinresistenz sehr wahrscheinlich
E248: ≥5 | G248: Durchschnittswert bei Typ 2-Diabetikern
C249: =AND(K241<=1,K241>0) -> FALSE | E249: =AND(K241>1,K241<2) -> FALSE | G249: =AND(K241>=2,K241<2.5) -> FALSE | I249: =AND(K241>=2.5,K241<5) -> FALSE | K249: =K241>=5 -> TRUE
E250: =IF(K241="","",IF(C249,"Kein Hinweis auf eine Insulinresistenz",IF(E249,"Verdacht auf beginnende Insulinresistenz",IF(G249,"Hinweis auf eine Insulinresistenz",IF(I249,"Isulinresistenz sehr wahrscheinlich",IF(K249,"Insulinresistenz sehr hoch wie bei Typ2 Diabetiker","")))))) -> 
E253: Kriterien für das Vorliegen eines Arterioskleroserisikos - Quotient Cholesterin/HDL
C255: Merkmal | E255: Meine Werte | G255: Quotient Chol/HDL | I255: Kriterien | K255: Arterioskleroserisiko
B257: Gesamt-Cholesterin (mmol/l) | E257: =IF(E208=0,"",E208) ->  | G257: =IF(E208=0,"",IF(E210=0,"",E208/E210)) ->  | I257: Quotient unter 5: | K257: gering
B258: HDL-Cholesterin (mmol/l) | E258: =IF(E210=0,"",E210) ->  | I258: Quotient über 5: | K258: erhöht
B261: =IF(E208=0,"",IF(E210=0,"",IF(G257=5,"Ihr Arterioskleroserisiko ist grenzwertig",IF(G257<5,"Ihr Arterioskleroserisiko ist nicht erhöht", IF(G257>5,"Ihr Arterioskleroserisiko ist erhöht"))))) -> 
B263: Man darf sich grundsätzlich nicht allein auf einen günstigen "Gesamtcholesterin zu HDL"-Quotienten verlassen. Hohe HDL-Werte kommen
B264: manchmal dadurch zustande, dass der HDL-vermittelte physiologische Rücktransport oxidierten LDLs aus den Gefässwänden in die Leber
B265: blockiert ist. Das Serum-HDL akkumuliert und kreist in grosser Menge im Blut, ohne seine arteriosklerosepräventive Funktion erfüllen
B266: zu können.
G270: Kriterien für das Vorliegen eines Gefässrisikos
K271: T=Treffer
B272: Merkmal | E272: Meine Werte | G272: Kriterien | H272: T | I272: Kriterien | J272: T | K272: Kriterien | L272: T
B274: Rauchen (Zigaretten/Tag) | E274: =IF(K206="","",IF(K206=0,"0",K206)) ->  | G274: 0 | H274: =IF(K206="","",IF(K206=0,1,)) ->  | I274: 1 bis 6 | J274: =IF(K206="","",IF(E274=0,0,IF(E274>=1,IF(E274<=6,1,0)))) ->  | K274: ab 7 | L274: =IF(K206="","",IF(K206=0,0,IF(K206<7,0,IF(K206>=7,1)))) -> 
B275: Bewegung (Std./Woche) | E275: =IF(K207=0,"",K207) ->  | G275: ab 3 | H275: =IF(K207="","",IF(K207<3,0,IF(K207>=3,1))) ->  | I275: 1 bis 2 | J275: =IF(K207="","",IF(K207=0,0,IF(K207>=1,IF(K207<=2,1,0)))) ->  | K275: 0 | L275: =IF(K207="","",IF(K207=0,1,0)) -> 
B276: =IF(E36="Frau","BMI Frau","") -> BMI Frau | C276: =IF(A36="Mann","Mann bis 24","Frau bis 22") -> Frau bis 22 | E276: =IF(E36="Frau",K24,"") ->  | G276: =IF(B276="","",IF(E36="Frau","Frau bis 22")) -> Frau bis 22 | H276: =IF(E276="","",IF(E276<=22,1,0)) ->  | I276: =IF(B276="","",IF(E36="Frau","Frau 22 bis 28")) -> Frau 22 bis 28 | J276: =IF(E276="","",IF(E276<=22,0,IF(E276>=28,0,IF(E276>22,IF(E276<28,1))))) ->  | K276: =IF(B276="","",IF(E36="Mann","Mann u. Frau ab 28","Mann u. Frau ab 28")) -> Mann u. Frau ab 28 | L276: =IF(E276="","",IF(E276>=28,1,0)) -> 
B277: =IF(E36="Mann","BMI Mann","") ->  | C277: =IF(A37="Mann","Mann bis 24","Frau bis 22") -> Frau bis 22 | E277: =IF(E36="Mann",K24,"") ->  | G277: =IF(B277="","",IF(E36="Mann","Mann bis 24")) ->  | H277: =IF(E277="","",IF(E277<=24,1,0)) ->  | I277: =IF(B277="","",IF(E36="Mann","Mann 24 bis 28")) ->  | J277: =IF(E277="","",IF(E277<=24,0,IF(E277>=28,0,IF(E277>=24,IF(E277<28,1,0))))) ->  | K277: =IF(B277="","",IF(E36="Mann","Mann u. Frau ab 28","Mann u. Frau ab 28")) ->  | L277: =IF(E277="","",IF(E277>=28,1,0)) -> 
B278: Blutdruck (RR) systolisch | E278: =K40 ->  | G278: bis 140 | H278: =IF(K40="","",IF(E278<=140,1,IF(E278>=141,0,))) ->  | I278: 141 - 179 | J278: =IF(K40="","",IF(E278<=140,0,IF(E278>=141,IF(E278<=179,1,0)))) ->  | K278: ab 180 | L278: =IF(K40="","",IF(E278>=180,1,0)) -> 
B279: Blutdruck (RR) diastolisch | E279: =K41 ->  | G279: bis 90 | H279: =IF(K41="","",IF(E279<=90,1,IF(E279>=91,0,))) ->  | I279: 91 - 109 | J279: =IF(K41="","",IF(E279<=90,0,IF(E279>=91,IF(E279<=109,1,0)))) ->  | K279: ab 110 | L279: =IF(K41="","",IF(E279>=110,1,0)) -> 
B280: Blutzucker (Glukose) (mmol/l) | E280: =IF(E207=0,"",E207) ->  | G280: bis 5.5 | H280: =IF(E207="","",IF(E280<=5.5,1,IF(E280>=5.6,0))) ->  | I280: 5.6 - 6.8 | J280: =IF(E207="","",IF(E280<=5.5,0,IF(E280>=5.6,IF(E280<=6.8,1,0)))) ->  | K280: ab 6.9 | L280: =IF(E207="","",IF(E280>=6.9,1,0)) -> 
B281: Gesamt-Cholesterin (mmol/l) | E281: =IF(E208=0,"",E208) ->  | G281: bis 5.18 | H281: =IF(E208="","",IF(E281<=5.18,1,IF(E281>=5.19,0))) ->  | I281: 5.19 - 6.19 | J281: =IF(E208="","",IF(E281<=5.18,0,IF(E281>=5.19,IF(E281<=6.19,1,0)))) ->  | K281: ab 6.20 | L281: =IF(E208="","",IF(E281>=6.2,1,0)) -> 
B282: LDL-Cholesterin (mmol/l) | E282: =IF(E209=0,"",E209) ->  | G282: bis 3.38 | H282: =IF(E209=0,"",IF(E282<=3.38,1,IF(E282>=3.39,0))) ->  | I282: 3.39 - 4.12 | J282: =IF(E209=0,"",IF(E282<=3.38,0,IF(E282>=3.39,IF(E282<=4.12,1,0)))) ->  | K282: ab 4.13 | L282: =IF(E209=0,"",IF(E282>=4.13,1,0)) -> 
B283: HDL-Cholesterin (mmol/l) | G283: ab 1.04 | H283: =IF(E210=0,"",IF(E283>=1.04,1,IF(E283<1.04,0))) ->  | I283: 0.79 - 1.03 | J283: =IF(E210=0,"",IF(E283<0.79,0,IF(E283>=1.04,0,IF(E283>=0.79,IF(E283<=1.03,1,0))))) ->  | K283: bis 0.78 | L283: =IF(E210=0,"",IF(E283<=0.78,1,0)) -> 
B284: Triglyzeride (mmol/l) | G284: bis 1.71 | H284: =IF(E211=0,"",IF(E284<=1.71,1,IF(E284>=1.72,0))) ->  | I284: 1.72 - 2.95 | J284: =IF(E211=0,"",IF(E284<=1.71,0,IF(E284>=1.72,IF(E284<=2.95,1,0)))) ->  | K284: ab 2.96 | L284: =IF(E211=0,"",IF(E284>=2.96,1,0)) -> 
B285: CRP sensitiv (mg/l) | G285: 0 bis 3 | H285: =IF(E212="","",IF(E212=0,1,IF(E212>=0,IF(E212<=3,1,0)))) ->  | I285: 4 bis 9 | J285: =IF(E212="","",IF(E212=0,0,IF(E285<=3,0,IF(E285>=4,IF(E285<=9,1,0))))) ->  | K285: ab 10 | L285: =IF(E212="","",IF(E212=0,0,IF(E285>=10,1,0))) -> 
G287: Treffer gelb | H287: =SUM(H274:H285) -> 0 | I287: Treffer x 1= | K287: =H287*1 -> 0
G288: Treffer blau | H288: =SUM(J274:J285) -> 0 | I288: Treffer x 2= | K288: =H288*2 -> 0
G289: Treffer rot | H289: =SUM(L274:L285) -> 0 | I289: Treffer x 3= | K289: =H289*3 -> 0
G291: Gesamtpunkte | I291: = | K291: =SUM(K287:K289) -> 0
C294: Risiko | E294: Gesamtpunkte | G294: Ihr persönliches Risikoprofil
C296: sehr gering | E296: 11 | G296: =IF(K291<11,"",IF(K291<=E296,"Kein Risiko für Gefässerkrankung","")) -> 
E297: 12 | G297: =IF(K291<11,"",IF(K291=E297,"Ihr Resultat: Risiko für Gefässerkrankung sehr gering","")) -> 
E298: 13 | G298: =IF(K291<11,"",IF(K291=E298,"Risiko für Gefässerkrankung sehr gering","")) -> 
E299: 14 | G299: =IF(K291<11,"",IF(K291=E299,"Risiko für Gefässerkrankung sehr gering","")) -> 
E300: 15 | G300: =IF(K291<11,"",IF(K291=E300,"Risiko für Gefässerkrankung gering","")) -> 
E301: 16 | G301: =IF(K291<11,"",IF(K291=E301,"Risiko für Gefässerkrankung gering","")) -> 
E302: 17 | G302: =IF(K291<11,"",IF(K291=E302,"Risiko für Gefässerkrankung gering","")) -> 
E303: 18 | G303: =IF(K291=E303,"Risiko mittel","") -> 
E304: 19 | G304: =IF(K291=E304,"Risiko für Gefässerkrankung mittel","") -> 
E305: 20 | G305: =IF(K291=E305,"Risiko für eine Gefässerkrankung mittel","") -> 
C306: mittel | E306: 21 | G306: =IF(K291=E306,"Risiko für Gefässerkrankung mittel","") -> 
E307: 22 | G307: =IF(K291=E307,"Risiko für Gefässerkrankung mittel","") -> 
E308: 23 | G308: =IF(K291=E308,"Risiko für Gefässerkrankung mittel","") -> 
E309: 24 | G309: =IF(K291=E309,"Risiko für Gefässerkrankung mittel","") -> 
E310: 25 | G310: =IF(K291=E310,"Ihr Resultat: Risiko für Gefässerkrankung hoch","") -> 
E311: 26 | G311: =IF(K291=E311,"Risiko für Gefässerkrankung hoch","") -> 
E312: 27 | G312: =IF(K291=E312,"Risiko für Gefässerkrankung hoch","") -> 
E313: 28 | G313: =IF(K291=E313,"Risiko für Gefässerkrankung hoch","") -> 
E314: 29 | G314: =IF(K291=E314,"Risiko für Gefässerkrankung hoch","") -> 
E315: 30 | G315: =IF(K291=E315,"Risiko für Gefässerkrankung sehr hoch","") -> 
E316: 31 | G316: =IF(K291=E316,"Risiko für Gefässerkrankung sehr hoch","") -> 
E317: 32 | G317: =IF(K291=E317,"Risiko für Gefässerkrankung sehr hoch","") -> 
C318: hoch | E318: 33 | G318: =IF(K291=E318,"Risiko für Gefässerkrankung extrem hoch","") -> 

Sheet Februar
B2: Monat: Februar
I3: Grüne Felder: Eingabe erforderlich
C4: Jahresziel: | E4: =IF(Jahr!J4=0,"",Jahr!J4) -> 82 | G4: Monatsziel: | I4: 86 | N4: Das moderne Gewichtscoaching:
E6: Kommentar | I6: Veränderung | K6: Ergebnis | N6: XLS - von XL bis S
B8: =IF(D88=0,"",IF(K21=0,"",IF(K22=0,"",IF(K22=K21,"Gewicht gleichbleibend",IF(K22<K21,"Sie haben abgenommen! Bravo!",IF(K22>K21,"")))))) ->  | G8: Abgenommen: | K8: =IF(D88=0,"",IF(K22=0,"",IF(K22-K21=0,"0kg",IF(K22>K21,"",K21-K22)))) ->  | N8: Ernährung und Bewegung
B9: =IF(D88=0,"",IF(K21=0,"",IF(K22=0,"",IF(K22=K21,"Gewicht gleichbleibend",IF(K22>K21,"Sie haben zugenommen. Arbeiten Sie an sich!",IF(K22<K21,"")))))) ->  | G9: Zugenommen: | K9: =IF(D88=0,"",IF(K22=0,"",IF(K22-K21=0,"0kg",IF(K22<K21,"",K22-K21)))) -> 
B11: =IF(D88=0,"",IF(K21=0,"",IF(K22=0,"",IF(K22>I4,"Monatsziel noch nicht erreicht!",IF(K22=I4,"Monatsziel erreicht. Bravo!",IF(K22<I4,"Monatsziel sogar unterschritten!")))))) ->  | G11: Vom Monatsziel entfernt um + / -: | K11: =IF(D88=0,"",IF(K22=0,"",IF(K22=I4,"0",K22-I4))) ->  | N11: Psyche und Schlaf
B12: =IF(D88=0,"",IF(K21=0,"",IF(K22=0,"",IF(K22=E4,"Jahresziel erreicht! Gratuliere!",IF(K22>E4,"Jahresziel noch nicht erreicht! Bleiben Sie dran!",IF(K22<E4,"Jahrsziel sogar unterschritten!")))))) ->  | G12: Vom Jahresziel entfernt um + / -: | K12: =IF(D88=0,"",IF(K22=0,"",IF(K22=E4,"0",K22-E4))) -> 
G14: Gewicht - Monatsdurchschnitt: | K14: =IF(SUM(C82:C112)=0,"",AVERAGEA(C82:C112)) ->  | N14: Motivation: XLS Software
I19: Erste - Letzte Messung im Monat | K19: Monatsprofil | N19: Unterstützung
B21: Ihr Gewicht bei BMI-Ideal 22: | E21: =IF('GU-GEB'!C10=0,"",22*(('GU-GEB'!C10/100)^2)) ->  | G21: Gewicht - Erste Messung im Monat: | K21: =IF(D88=0,"",INDEX(C82:C112,D88,1)) ->  | N21: Granuvital "Fit&Schlank" SevisanaLine
B22: Ihr Gewicht bei BMI-Ideal 25: | E22: =IF('GU-GEB'!C10=0,"",25*(('GU-GEB'!C10/100)^2)) ->  | G22: Gewicht - Letzte Messung im Monat: | K22: =IF(D99=0,"",INDEX(C82:C112,D99,1)) -> 
B24: Vom BMI Ideal 22 entfernt: | E24: =IF(L88=0,"",IF(K24=0,"",IF(K24-22=0,"0",K24-22))) ->  | G24: BMI - Erste Messung im Monat: | K24: =IF(L88=0,"",INDEX(K82:K112,L88,1)) ->  | N24: X-Form und X-Form Plus SevisanaLine
B25: Vom BMI Ideal 22 entfernt: | E25: =IF(L99=0,"",IF(K25=0,"",IF(K25-22=0,"0",K25-22))) ->  | G25: BMI - Letzte Messung im Monat: | K25: =IF(L99=0,"",INDEX(K82:K112,L99,1)) -> 
B27: Vom Idealwert entfernt: | E27: =IF(F88=0,"",IF(K27=0,"",IF(K28=0,"",IF(K27-J27=0,"0cm",K27-J27)))) ->  | G27: Bauchumfang - Erste Messung im Monat: | J27: =IF('GU-GEB'!C8="Mann",94,80) -> 80 | K27: =IF(F88=0,"",INDEX(E82:E112,F88,1)) ->  | N27: Reine Flohsamenschalen SevisanaLine
B28: Vom Idealwert entfernt: | E28: =IF(F99=0,"",IF(K27=0,"",IF(K28=0,"",IF(K28-J27=0,"0cm",K28-J27)))) ->  | G28: Bauchumfang - Letzte Messung im Monat: | J28: =IF('GU-GEB'!C8="Mann",102,88) -> 88 | K28: =IF(F99=0,"",INDEX(E82:E112,F99,1)) -> 
G30: Hüftumfang - Erste Messung im Monat: | K30: =IF(H88=0,"",INDEX(G82:G112,H88,1)) ->  | N30: Basenpulver nach Dr. Eichhorn
G31: Hüftumfang - Letzte Messung im Monat: | K31: =IF(H99=0,"",INDEX(G82:G112,H99,1)) -> 
B33: Vom B/H Idealwert entfernt: | E33: =IF(J88=0,"",IF(K33=0,"",IF(K33-G36=0,"0",K33-G36))) ->  | G33: B/H - Erste Messung im Monat: | K33: =IF(J88=0,"",INDEX(I82:I112,J88,1)) ->  | N33: Produkteinformation | P33: www.sevisana.ch
B34: Vom B/H Idealwert entfernt: | E34: =IF(J99=0,"",IF(K34=0,"",IF(K34-G36=0,"0",K34-G36))) ->  | G34: B/H - Letzte Messung im Monat: | K34: =IF(J99=0,"",INDEX(I82:I112,J99,1)) -> 
B36: B/H Ziel gleich/kleiner als: | E36: ='GU-GEB'!C8 -> Frau | G36: =IF(E36="Frau",0.85,1) -> 0.85
G40: Blutdruck systolisch - Erste Messung | K40: =IF(F147=0,"",INDEX(E141:E171,F147,1)) ->  | N40: Bestellung | P40: www.sevisana.ch
G41: Blutdruck diastolisch - Erste Messung | K41: =IF(H147=0,"",INDEX(G141:G171,H147,1)) -> 
G43: Blutdruck systolisch - Letzte Messung | K43: =IF(F158=0,"",INDEX(E141:IE171,F158,1)) -> 
G44: Blutdruck diastolisch - Letzte Messung | K44: =IF(H158=0,"",INDEX(G141:IG171,H158,1)) ->  | N44: Direktbestellung | P44: http://shop.sevisana.ch
G47: Puls - Erste Messung | K47: =IF(D147=0,"",INDEX(C141:C171,D147,1)) -> 
G48: Puls - Letzte Messung | K48: =IF(D158=0,"",INDEX(C141:C171,D158,1)) ->  | N48: Medizinwissen | P48: www.ever.ch
C53: Tendenzen | G53: Verlauf in diesem Monat
B55: Tendenzen Ende Monat: | E55: Gewicht: | G55: =IF(D88=0,"",IF(K21=0,"",IF(K22=0,"",IF(K22<K21,"Gewicht fällt. Bravo!",IF(K22=K21,"Gewicht gleichbleibend",IF(K22>K21,"Achtung! Gewicht steigt. Risiko!")))))) -> 
E56: BMI: | G56: =IF(D88=0,"",IF(K24=0,"",IF(K25=0,"",IF(K25<K24,"BMI fällt. Bravo!",IF(K25=K24,"BMI gleichbleibend",IF(K25>K24,"BMI steigt. Ihre Gesundheit ist gefährdet!")))))) -> 
E57: Bauchumfang: | G57: =IF(F88=0,"",IF(K27=0,"",IF(K28=0,"",IF(K28<K27,"Bauchumfang wird kleiner. Bravo!",IF(K28=K27,"Bauchumfang gleichbleibend",IF(K28>K27,"Achtung! Bauchumfang nimmt zu",IF(K28<=J27,"Normalwert"))))))) -> 
E58: B/H: | G58: =IF(J88=0,"",IF(K33=0,"",IF(K34=0,"",IF(K34<K33,"B/H Verältnis wird kleiner. Bravo!",IF(K34=K33,"B/H Verältnis gleichbleibend",IF(K34>K33,"Achtung! B/H Verhältnis nimmt zu")))))) -> 
C60: Risiko Anfang Monat: | E60: BMI: | G60: =IF(D88=0,"",IF(K24=0,"",IF(K24>=40,"Grad III: Schwere Adipositas",IF(K24>=30,"Grad II: Adipositas",IF(K24>=25,"Grad I: Übergewichtt",IF(K24>=20,"Normalgewicht",IF(K24<20,"Untergewicht",))))))) -> 
E61: Bauchumfang: | G61: =IF(F88=0,"",IF(K27=0,"",IF(K27>=J28,"Gesundheitsrisiko hoch",IF(K27>=J27,"Gesundheitsrisiko erhöht",IF(K27<J27,"Kein Gesundheitsrisiko"))))) -> 
E62: B/H: | G62: =IF(J88=0,"",IF(K33=0,"",IF(K33>G36,"Gesundheitsrisiko erhöht",IF(K33=G36,"Grenzwert zu Gesundheitsrisiko erhöht",IF(K33<G36,"Kein Gesundheitsrisiko"))))) -> 
C64: Risiko Ende Monat: | E64: BMI: | G64: =IF(D88=0,"",IF(K25=0,"",IF(K25>=40,"Grad III: Schwere Adipositas",IF(K25>=30,"Grad II: Adipositas",IF(K25>=25,"Grad I: Übergewicht",IF(K25>=20,"Normalgewicht",IF(K25<20,"Untergewicht",))))))) -> 
E65: Bauchumfang: | G65: =IF(F88=0,"",IF(K28=0,"",IF(K28>=J28,"Gesundheitsrisiko hoch",IF(K28>=J27,"Gesundheitsrisiko erhöht",IF(K28<J27,"Kein Gesundheitsrisiko"))))) -> 
E66: B/H: | G66: =IF(J88=0,"",IF(K34=0,"",IF(K34>G36,"Gesundheitsrisiko erhöht",IF(K34=G36,"Grenzwert zu Gesundheitsrisiko erhöht",IF(K34<G36,"Kein Gesundheitsrisiko"))))) -> 
B71: Risiko | E71: Ihr persönliches Risikoprofil
B73: Metabolisches Syndrom | E73: =IF(F147=0,"",B232) -> 
B74: Insulinresistenz | E74: =IF(E206=0,"",IF(E207=0,"",E250)) -> 
B75: Arterioskleroserisiko | E75: =IF(E208=0,"",IF(E210=0,"",B261)) -> 
B76: Gefässrisiko | E76: =IF(K291<11,"",IF(K291="","",IF(K291>=11,IF(K291<=17,"Gefässrisiko im unteren Bereich",IF(K291>=18,IF(K291<=24,"Gefässrisiko im mittleren Bereich",IF(K291>=25,"Gefässrisiko im hohen Bereich"))))))) -> 
B81: Tag | C81: Gewicht | E81: Bauchumfang | G81: Hüftumfang | I81: B/H Verhältnis | K81: BMI
B82: 1 | D82: =IF(C82="",IF(C83="",IF(C84="",IF(C85="",IF(C86="",IF(C87="",IF(C88="",0,7),6),5),4),3),2),1) -> 0 | F82: =IF(E82="",IF(E83="",IF(E84="",IF(E85="",IF(E86="",IF(E87="",IF(E88="",0,7),6),5),4),3),2),1) -> 0 | H82: =IF(G82="",IF(G83="",IF(G84="",IF(G85="",IF(G86="",IF(G87="",IF(G88="",0,7),6),5),4),3),2),1) -> 0 | I82: =IF(E82=0,"",IF(G82=0,"",E82/G82)) ->  | J82: =IF(I82="",IF(I83="",IF(I84="",IF(I85="",IF(I86="",IF(I87="",IF(I88="",0,7),6),5),4),3),2),1) -> 0 | K82: =IF(C82=0,"",C82/(('GU-GEB'!C10/100)^2)) ->  | L82: =IF(K82="",IF(K83="",IF(K84="",IF(K85="",IF(K86="",IF(K87="",IF(K88="",0,7),6),5),4),3),2),1) -> 0
B83: 2 | D83: =IF(C89="",IF(C90="",IF(C91="",IF(C92="",IF(C93="",IF(C94="",IF(C95="",0,14),13),12),11),10),9),8) -> 0 | F83: =IF(E89="",IF(E90="",IF(E91="",IF(E92="",IF(E93="",IF(E94="",IF(E95="",0,14),13),12),11),10),9),8) -> 0 | H83: =IF(G89="",IF(G90="",IF(G91="",IF(G92="",IF(G93="",IF(G94="",IF(G95="",0,14),13),12),11),10),9),8) -> 0 | J83: =IF(I89="",IF(I90="",IF(I91="",IF(I92="",IF(I93="",IF(I94="",IF(I95="",0,14),13),12),11),10),9),8) -> 0 | K83: =IF(C83=0,"",C83/(('GU-GEB'!C10/100)^2)) ->  | L83: =IF(K89="",IF(K90="",IF(K91="",IF(K92="",IF(K93="",IF(K94="",IF(K95="",0,14),13),12),11),10),9),8) -> 0
B84: 3 | D84: =IF(C96="",IF(C97="",IF(C98="",IF(C99="",IF(C100="",IF(C101="",IF(C102="",0,21),20),19),18),17),16),15) -> 0 | F84: =IF(E96="",IF(E97="",IF(E98="",IF(E99="",IF(E100="",IF(E101="",IF(E102="",0,21),20),19),18),17),16),15) -> 0 | H84: =IF(G96="",IF(G97="",IF(G98="",IF(G99="",IF(G100="",IF(G101="",IF(G102="",0,21),20),19),18),17),16),15) -> 0 | J84: =IF(I96="",IF(I97="",IF(I98="",IF(I99="",IF(I100="",IF(I101="",IF(I102="",0,21),20),19),18),17),16),15) -> 0 | K84: =IF(C84=0,"",C84/(('GU-GEB'!C10/100)^2)) ->  | L84: =IF(K96="",IF(K97="",IF(K98="",IF(K99="",IF(K100="",IF(K101="",IF(K102="",0,21),20),19),18),17),16),15) -> 0
B85: 4 | D85: =IF(C103="",IF(C104="",IF(C105="",IF(C106="",IF(C107="",IF(C108="",IF(C109="",0,28),27),26),25),24),23),22) -> 0 | F85: =IF(E103="",IF(E104="",IF(E105="",IF(E106="",IF(E107="",IF(E108="",IF(E109="",0,28),27),26),25),24),23),22) -> 0 | H85: =IF(G103="",IF(G104="",IF(G105="",IF(G106="",IF(G107="",IF(G108="",IF(G109="",0,28),27),26),25),24),23),22) -> 0 | J85: =IF(I103="",IF(I104="",IF(I105="",IF(I106="",IF(I107="",IF(I108="",IF(I109="",0,28),27),26),25),24),23),22) -> 0 | K85: =IF(C85=0,"",C85/(('GU-GEB'!C10/100)^2)) ->  | L85: =IF(K103="",IF(K104="",IF(K105="",IF(K106="",IF(K107="",IF(K108="",IF(K109="",0,28),27),26),25),24),23),22) -> 0
B86: 5 | D86: =IF(C110="",IF(C111="",IF(C112="",0,31),30),29) -> 0 | F86: =IF(E110="",IF(E111="",IF(E112="",0,31),30),29) -> 0 | H86: =IF(G110="",IF(G111="",IF(G112="",0,31),30),29) -> 0 | J86: =IF(I110="",IF(I111="",IF(I112="",0,31),30),29) -> 0 | K86: =IF(C86=0,"",C86/(('GU-GEB'!C10/100)^2)) ->  | L86: =IF(K110="",IF(K111="",IF(K112="",0,31),30),29) -> 0
B87: 6 | K87: =IF(C87=0,"",C87/(('GU-GEB'!C10/100)^2)) -> 
B88: 7 | D88: =IF(D82=0,IF(D83=0,IF(D84=0,IF(D85=0,IF(D86=0,0,D86),D85),D84),D83),D82) -> 0 | F88: =IF(F82=0,IF(F83=0,IF(F84=0,IF(F85=0,IF(F86=0,0,F86),F85),F84),F83),F82) -> 0 | H88: =IF(H82=0,IF(H83=0,IF(H84=0,IF(H85=0,IF(H86=0,0,H86),H85),H84),H83),H82) -> 0 | J88: =IF(J82=0,IF(J83=0,IF(J84=0,IF(J85=0,IF(J86=0,0,J86),J85),J84),J83),J82) -> 0 | K88: =IF(C88=0,"",C88/(('GU-GEB'!C10/100)^2)) ->  | L88: =IF(L82=0,IF(L83=0,IF(L84=0,IF(L85=0,IF(L86=0,0,L86),L85),L84),L83),L82) -> 0
B89: 8 | K89: =IF(C89=0,"",C89/(('GU-GEB'!C10/100)^2)) -> 
B90: 9 | K90: =IF(C90=0,"",C90/(('GU-GEB'!C10/100)^2)) -> 
B91: 10 | K91: =IF(C91=0,"",C91/(('GU-GEB'!C10/100)^2)) -> 
B92: 11 | K92: =IF(C92=0,"",C92/(('GU-GEB'!C10/100)^2)) -> 
B93: 12 | D93: =IF(C112="",IF(C111="",IF(C110="",IF(C109="",IF(C108="",IF(C107="",IF(C106="",0,25),26),27),28),29),30),31) -> 0 | F93: =IF(E112="",IF(E111="",IF(E110="",IF(E109="",IF(E108="",IF(E107="",IF(E106="",0,25),26),27),28),29),30),31) -> 0 | H93: =IF(G112="",IF(G111="",IF(G110="",IF(G109="",IF(G108="",IF(G107="",IF(G106="",0,25),26),27),28),29),30),31) -> 0 | J93: =IF(I112="",IF(I111="",IF(I110="",IF(I109="",IF(I108="",IF(I107="",IF(I106="",0,25),26),27),28),29),30),31) -> 0 | K93: =IF(C93=0,"",C93/(('GU-GEB'!C10/100)^2)) ->  | L93: =IF(K112="",IF(K111="",IF(K110="",IF(K109="",IF(K108="",IF(K107="",IF(K106="",0,25),26),27),28),29),30),31) -> 0
B94: 13 | D94: =IF(C105="",IF(C104="",IF(C103="",IF(C102="",IF(C101="",IF(C100="",IF(C99="",0,18),19),20),21),22),23),24) -> 0 | F94: =IF(E105="",IF(E104="",IF(E103="",IF(E102="",IF(E101="",IF(E100="",IF(E99="",0,18),19),20),21),22),23),24) -> 0 | H94: =IF(G105="",IF(G104="",IF(G103="",IF(G102="",IF(G101="",IF(G100="",IF(G99="",0,18),19),20),21),22),23),24) -> 0 | J94: =IF(I105="",IF(I104="",IF(I103="",IF(I102="",IF(I101="",IF(I100="",IF(I99="",0,18),19),20),21),22),23),24) -> 0 | K94: =IF(C94=0,"",C94/(('GU-GEB'!C10/100)^2)) ->  | L94: =IF(K105="",IF(K104="",IF(K103="",IF(K102="",IF(K101="",IF(K100="",IF(K99="",0,18),19),20),21),22),23),24) -> 0
B95: 14 | D95: =IF(C98="",IF(C97="",IF(C96="",IF(C95="",IF(C94="",IF(C93="",IF(C92="",0,11),12),13),14),15),16),17) -> 0 | F95: =IF(E98="",IF(E97="",IF(E96="",IF(E95="",IF(E94="",IF(E93="",IF(E92="",0,11),12),13),14),15),16),17) -> 0 | H95: =IF(G98="",IF(G97="",IF(G96="",IF(G95="",IF(G94="",IF(G93="",IF(G92="",0,11),12),13),14),15),16),17) -> 0 | J95: =IF(I98="",IF(I97="",IF(I96="",IF(I95="",IF(I94="",IF(I93="",IF(I92="",0,11),12),13),14),15),16),17) -> 0 | K95: =IF(C95=0,"",C95/(('GU-GEB'!C10/100)^2)) ->  | L95: =IF(K98="",IF(K97="",IF(K96="",IF(K95="",IF(K94="",IF(K93="",IF(K92="",0,11),12),13),14),15),16),17) -> 0
B96: 15 | D96: =IF(C91="",IF(C90="",IF(C89="",IF(C88="",IF(C87="",IF(C86="",IF(C85="",0,4),5),6),7),8),9),10) -> 0 | F96: =IF(E91="",IF(E90="",IF(E89="",IF(E88="",IF(E87="",IF(E86="",IF(E85="",0,4),5),6),7),8),9),10) -> 0 | H96: =IF(G91="",IF(G90="",IF(G89="",IF(G88="",IF(G87="",IF(G86="",IF(G85="",0,4),5),6),7),8),9),10) -> 0 | J96: =IF(I91="",IF(I90="",IF(I89="",IF(I88="",IF(I87="",IF(I86="",IF(I85="",0,4),5),6),7),8),9),10) -> 0 | K96: =IF(C96=0,"",C96/(('GU-GEB'!C10/100)^2)) ->  | L96: =IF(K91="",IF(K90="",IF(K89="",IF(K88="",IF(K87="",IF(K86="",IF(K85="",0,4),5),6),7),8),9),10) -> 0
B97: 16 | D97: =IF(C84="",IF(C83="",IF(C82="",0,1),2),3) -> 0 | F97: =IF(E84="",IF(E83="",IF(E82="",0,1),2),3) -> 0 | H97: =IF(G84="",IF(G83="",IF(G82="",0,1),2),3) -> 0 | J97: =IF(I84="",IF(I83="",IF(I82="",0,1),2),3) -> 0 | K97: =IF(C97=0,"",C97/(('GU-GEB'!C10/100)^2)) ->  | L97: =IF(K84="",IF(K83="",IF(K82="",0,1),2),3) -> 0
B98: 17 | K98: =IF(C98=0,"",C98/(('GU-GEB'!C10/100)^2)) -> 
B99: 18 | D99: =IF(D93=0,IF(D94=0,IF(D95=0,IF(D96=0,IF(D97=0,0,D97),D96),D95),D94),D93) -> 0 | F99: =IF(F93=0,IF(F94=0,IF(F95=0,IF(F96=0,IF(F97=0,0,F97),F96),F95),F94),F93) -> 0 | H99: =IF(H93=0,IF(H94=0,IF(H95=0,IF(H96=0,IF(H97=0,0,H97),H96),H95),H94),H93) -> 0 | J99: =IF(J93=0,IF(J94=0,IF(J95=0,IF(J96=0,IF(J97=0,0,J97),J96),J95),J94),J93) -> 0 | K99: =IF(C99=0,"",C99/(('GU-GEB'!C10/100)^2)) ->  | L99: =IF(L93=0,IF(L94=0,IF(L95=0,IF(L96=0,IF(L97=0,0,L97),L96),L95),L94),L93) -> 0
B100: 19 | K100: =IF(C100=0,"",C100/(('GU-GEB'!C10/100)^2)) -> 
B101: 20 | K101: =IF(C101=0,"",C101/(('GU-GEB'!C10/100)^2)) -> 
B102: 21 | K102: =IF(C102=0,"",C102/(('GU-GEB'!C10/100)^2)) -> 
B103: 22 | K103: =IF(C103=0,"",C103/(('GU-GEB'!C10/100)^2)) -> 
B104: 23 | K104: =IF(C104=0,"",C104/(('GU-GEB'!C10/100)^2)) -> 
B105: 24 | K105: =IF(C105=0,"",C105/(('GU-GEB'!C10/100)^2)) -> 
B106: 25 | K106: =IF(C106=0,"",C106/(('GU-GEB'!C10/100)^2)) -> 
B107: 26 | K107: =IF(C107=0,"",C107/(('GU-GEB'!C10/100)^2)) -> 
B108: 27 | K108: =IF(C108=0,"",C108/(('GU-GEB'!C10/100)^2)) -> 
B109: 28 | K109: =IF(C109=0,"",C109/(('GU-GEB'!C10/100)^2)) -> 
B110: 29 | K110: =IF(C110=0,"",C110/(('GU-GEB'!C10/100)^2)) -> 
B111: 30 | K111: =IF(C111=0,"",C111/(('GU-GEB'!C10/100)^2)) -> 
B112: 31 | K112: =IF(C112=0,"",C112/(('GU-GEB'!C10/100)^2)) -> 
B140: Tag | C140: Puls | E140: BD systolisch | G140: BD diastolisch | I140: BD Mittelwert
B141: 1 | D141: =IF(C141="",IF(C142="",IF(C143="",IF(C144="",IF(C145="",IF(C146="",IF(C147="",0,7),6),5),4),3),2),1) -> 0 | F141: =IF(E141="",IF(E142="",IF(E143="",IF(E144="",IF(E145="",IF(E146="",IF(E147="",0,7),6),5),4),3),2),1) -> 0 | H141: =IF(G141="",IF(G142="",IF(G143="",IF(G144="",IF(G145="",IF(G146="",IF(G147="",0,7),6),5),4),3),2),1) -> 0 | I141: =IF(E141=0,"",IF(G141=0,"",AVERAGEA(E141,G141))) -> 
B142: 2 | D142: =IF(C148="",IF(C149="",IF(C150="",IF(C151="",IF(C152="",IF(C153="",IF(C154="",0,14),13),12),11),10),9),8) -> 0 | F142: =IF(E148="",IF(E149="",IF(E150="",IF(E151="",IF(E152="",IF(E153="",IF(E154="",0,14),13),12),11),10),9),8) -> 0 | H142: =IF(G148="",IF(G149="",IF(G150="",IF(G151="",IF(G152="",IF(G153="",IF(G154="",0,14),13),12),11),10),9),8) -> 0
B143: 3 | D143: =IF(C155="",IF(C156="",IF(C157="",IF(C158="",IF(C159="",IF(C160="",IF(C161="",0,21),20),19),18),17),16),15) -> 0 | F143: =IF(E155="",IF(E156="",IF(E157="",IF(E158="",IF(E159="",IF(E160="",IF(E161="",0,21),20),19),18),17),16),15) -> 0 | H143: =IF(G155="",IF(G156="",IF(G157="",IF(G158="",IF(G159="",IF(G160="",IF(G161="",0,21),20),19),18),17),16),15) -> 0
B144: 4 | D144: =IF(C162="",IF(C163="",IF(C164="",IF(C165="",IF(C166="",IF(C167="",IF(C168="",0,28),27),26),25),24),23),22) -> 0 | F144: =IF(E162="",IF(E163="",IF(E164="",IF(E165="",IF(E166="",IF(E167="",IF(E168="",0,28),27),26),25),24),23),22) -> 0 | H144: =IF(G162="",IF(G163="",IF(G164="",IF(G165="",IF(G166="",IF(G167="",IF(G168="",0,28),27),26),25),24),23),22) -> 0
B145: 5 | D145: =IF(C169="",IF(C170="",IF(C171="",0,31),30),29) -> 0 | F145: =IF(E169="",IF(E170="",IF(E171="",0,31),30),29) -> 0 | H145: =IF(G169="",IF(G170="",IF(G171="",0,31),30),29) -> 0
B146: 6
B147: 7 | D147: =IF(D141=0,IF(D142=0,IF(D143=0,IF(D144=0,IF(D145=0,0,D145),D144),D143),D142),D141) -> 0 | F147: =IF(F141=0,IF(F142=0,IF(F143=0,IF(F144=0,IF(F145=0,0,F145),F144),F143),F142),F141) -> 0 | H147: =IF(H141=0,IF(H142=0,IF(H143=0,IF(H144=0,IF(H145=0,0,H145),H144),H143),H142),H141) -> 0
B148: 8
B149: 9
B150: 10
B151: 11
B152: 12 | D152: =IF(C171="",IF(C170="",IF(C169="",IF(C168="",IF(C167="",IF(C166="",IF(C165="",0,25),26),27),28),29),30),31) -> 0 | F152: =IF(E171="",IF(E170="",IF(E169="",IF(E168="",IF(E167="",IF(E166="",IF(E165="",0,25),26),27),28),29),30),31) -> 0 | H152: =IF(G171="",IF(G170="",IF(G169="",IF(G168="",IF(G167="",IF(G166="",IF(G165="",0,25),26),27),28),29),30),31) -> 0
B153: 13 | D153: =IF(C164="",IF(C163="",IF(C162="",IF(C161="",IF(C160="",IF(C159="",IF(C158="",0,18),19),20),21),22),23),24) -> 0 | F153: =IF(E164="",IF(E163="",IF(E162="",IF(E161="",IF(E160="",IF(E159="",IF(E158="",0,18),19),20),21),22),23),24) -> 0 | H153: =IF(G164="",IF(G163="",IF(G162="",IF(G161="",IF(G160="",IF(G159="",IF(G158="",0,18),19),20),21),22),23),24) -> 0
B154: 14 | D154: =IF(C157="",IF(C156="",IF(C155="",IF(C154="",IF(C153="",IF(C152="",IF(C151="",0,11),12),13),14),15),16),17) -> 0 | F154: =IF(E157="",IF(E156="",IF(E155="",IF(E154="",IF(E153="",IF(E152="",IF(E151="",0,11),12),13),14),15),16),17) -> 0 | H154: =IF(G157="",IF(G156="",IF(G155="",IF(G154="",IF(G153="",IF(G152="",IF(G151="",0,11),12),13),14),15),16),17) -> 0
B155: 15 | D155: =IF(C150="",IF(C149="",IF(C148="",IF(C147="",IF(C146="",IF(C145="",IF(C144="",0,4),5),6),7),8),9),10) -> 0 | F155: =IF(E150="",IF(E149="",IF(E148="",IF(E147="",IF(E146="",IF(E145="",IF(E144="",0,4),5),6),7),8),9),10) -> 0 | H155: =IF(G150="",IF(G149="",IF(G148="",IF(G147="",IF(G146="",IF(G145="",IF(G144="",0,4),5),6),7),8),9),10) -> 0
B156: 16 | D156: =IF(C143="",IF(C142="",IF(C141="",0,1),2),3) -> 0 | F156: =IF(E143="",IF(E142="",IF(E141="",0,1),2),3) -> 0 | H156: =IF(G143="",IF(G142="",IF(G141="",0,1),2),3) -> 0
B157: 17
B158: 18 | D158: =IF(D152=0,IF(D153=0,IF(D154=0,IF(D155=0,IF(D156=0,0,D156),D155),D154),D153),D152) -> 0 | F158: =IF(F152=0,IF(F153=0,IF(F154=0,IF(F155=0,IF(F156=0,0,F156),F155),F154),F153),F152) -> 0 | H158: =IF(H152=0,IF(H153=0,IF(H154=0,IF(H155=0,IF(H156=0,0,H156),H155),H154),H153),H152) -> 0
B159: 19
B160: 20
B161: 21
B162: 22
B163: 23
B164: 24
B165: 25
B166: 26
B167: 27
B168: 28
B169: 29
B170: 30
B171: 31
B173: O | C173: =IF(SUM(C141:C171)=0,"",AVERAGEA(C141:C171)) ->  | E173: =IF(SUM(E141:E171)=0,"",AVERAGEA(E141:E171)) ->  | G173: =IF(SUM(G141:G171)=0,"",AVERAGEA(G141:G171)) ->  | I173: =IF(SUM(I141:I171)=0,"",AVERAGE(I141:I171)) -> 
B202: Grüne Felder: Eingabe erforderlich | G202: Laborwerte (morgendliche Nüchternwerte) / Rauchen / Bewegung
C204: Labor | E204: Werte | G204: Grenzwerte | I204: Gewohnheiten | K204: Ergebnis
C206: C-Peptid (nmol/l) | I206: Anzahl Zigaretten/Tag
B207: Blutzucker (Glukose) (mmol/l) | G207: >/= 6.1 | I207: Bewegung (Std./Wo)
B208: Gesamt-Cholesterin (mmol/l)
B209: LDL-Cholesterin (mmol/l)
B210: HDL-Cholesterin (mmol/l) | G210: =IF(E210="Frau","<1.29","<1.04") -> <1.04
B211: Triglyzeride (mmol/l) | G211: >/= 1.69
B212: CRP sensitiv (mg/l) | G212: >/= 3
B213: Mikroalbuminurie (mg/l) | G213: >/= 5
B216: Umrechnung C-Peptid: nmol/l = pmol/l / 1000
G219: Kriterien für das Vorliegen eines Metabolischen Syndroms
C221: Merkmal | E221: Geschlecht | G221: Grenzwerte | I221: Meine Werte | K221: Kriterien erfüllt
C223: Bauchumfang | E223: ='GU-GEB'!C8 -> Frau | G223: =IF(E223="Frau",">88",">102") -> >88 | I223: =K27 ->  | K223: =IF(F88=0,"",IF(I223=0,"",IF(I223>J28,"Ja","Nein"))) ->  | M223: =IF(K223="",0,IF(K223="Nein","0","1")) -> 0
C224: HDL-Cholesterin | E224: ='GU-GEB'!C8 -> Frau | G224: =IF(E224="Frau","<1.29","<1.04") -> <1.29 | H224: =IF('GU-GEB'!C8="Mann",1.04,1.29) -> 1.29 | I224: =IF(E210=0,"",E210) ->  | K224: =IF(E210=0,"",IF(I224<H224,"Ja","Nein")) ->  | M224: =IF(K224="",0,IF(K224="Nein","0","1")) -> 0
C225: Triglyceride | G225: >/= 1.69 | I225: =IF(E211=0,"",E211) ->  | K225: =IF(E211=0,"",IF(I225>=1.69,"Ja","Nein")) ->  | M225: =IF(K225="",0,IF(K225="Nein","0","1")) -> 0
C226: Nüchternzucker | G226: >/= 6.1 | I226: =IF(E207=0,"",E207) ->  | K226: =IF(E207=0,"",IF(I226>=6.1,"Ja","Nein")) ->  | M226: =IF(K226="",0,IF(K226="Nein","0","1")) -> 0
B227: BD systolisch | G227: >/= 130 | I227: =K40 -> 
B228: BD diastolisch | G228: >/= 85 | I228: =K41 -> 
B229: BD Mittelwert | G229: >/= 107.5 | I229: =IF(F147=0,"",IF(H147=0,"",AVERAGE(I227:I228))) ->  | K229: =IF(F147=0,"",IF(H147=0,"",IF(I229=0,"",IF(I229>=108,"Ja","Nein")))) ->  | M229: =IF(K229="",0,IF(K229="Nein","0","1")) -> 0
M231: =SUM(M223+M224+M225+M226+M229) -> 0
B232: =IF(F147=0,"",IF(H147=0,"",IF(M231>=3,"Mindestens 3 Kriterien sind erfüllt. Damit liegt bei Ihnen wahrscheinlich ein Metabolisches Syndrom vor","Die Kriterien für ein Metabolisches Syndrom sind nicht erfüllt"))) -> 
G236: Kriterien für das Vorliegen einer Insulinresistenz - HOMA Index
E238: Merkmal | G238: Einheit | I238: Persönlicher Wert | K238: HOMA Index
E240: Nüchternglucose | G240: mmol/l | I240: =IF(E207=0,"",E207) -> 
E241: C-Peptid | G241: nmol/l | I241: =IF(E206=0,"",E206) ->  | K241: =IF(E206=0,"",IF(E207=0,"",(I240*I241)/2.6)) -> 
E244: HOMA Index | G244: Kriterien
E245: ≤1 | G245: normal
E246: ≥2 | G246: Hinweis auf eine Insulinresistenz
E247: ≥2.5 | G247: Insulinresistenz sehr wahrscheinlich
E248: ≥5 | G248: Durchschnittswert bei Typ 2-Diabetikern
C249: =AND(K241<=1,K241>0) -> FALSE | E249: =AND(K241>1,K241<2) -> FALSE | G249: =AND(K241>=2,K241<2.5) -> FALSE | I249: =AND(K241>=2.5,K241<5) -> FALSE | K249: =K241>=5 -> TRUE
E250: =IF(K241="","",IF(C249,"Kein Hinweis auf eine Insulinresistenz",IF(E249,"Verdacht auf beginnende Insulinresistenz",IF(G249,"Hinweis auf eine Insulinresistenz",IF(I249,"Isulinresistenz sehr wahrscheinlich",IF(K249,"Insulinresistenz sehr hoch wie bei Typ2 Diabetiker","")))))) -> 
E253: Kriterien für das Vorliegen eines Arterioskleroserisikos - Quotient Cholesterin/HDL
C255: Merkmal | E255: Meine Werte | G255: Quotient Chol/HDL | I255: Kriterien | K255: Arterioskleroserisiko
B257: Gesamt-Cholesterin (mmol/l) | E257: =IF(E208=0,"",E208) ->  | G257: =IF(E208=0,"",IF(E210=0,"",E208/E210)) ->  | I257: Quotient unter 5: | K257: gering
B258: HDL-Cholesterin (mmol/l) | E258: =IF(E210=0,"",E210) ->  | I258: Quotient über 5: | K258: erhöht
B261: =IF(E208=0,"",IF(E210=0,"",IF(G257=5,"Ihr Arterioskleroserisiko ist grenzwertig",IF(G257<5,"Ihr Arterioskleroserisiko ist nicht erhöht", IF(G257>5,"Ihr Arterioskleroserisiko ist erhöht"))))) -> 
B263: Man darf sich grundsätzlich nicht allein auf einen günstigen "Gesamtcholesterin zu HDL"-Quotienten verlassen. Hohe HDL-Werte kommen
B264: manchmal dadurch zustande, dass der HDL-vermittelte physiologische Rücktransport oxidierten LDLs aus den Gefässwänden in die Leber
B265: blockiert ist. Das Serum-HDL akkumuliert und kreist in grosser Menge im Blut, ohne seine arteriosklerosepräventive Funktion erfüllen
B266: zu können.
G270: Kriterien für das Vorliegen eines Gefässrisikos
K271: T=Treffer
B272: Merkmal | E272: Meine Werte | G272: Kriterien | H272: T | I272: Kriterien | J272: T | K272: Kriterien | L272: T
B274: Rauchen (Zigaretten/Tag) | E274: =IF(K206="","",IF(K206=0,"0",K206)) ->  | G274: 0 | H274: =IF(K206="","",IF(K206=0,1,)) ->  | I274: 1 bis 6 | J274: =IF(K206="","",IF(E274=0,0,IF(E274>=1,IF(E274<=6,1,0)))) ->  | K274: ab 7 | L274: =IF(K206="","",IF(K206=0,0,IF(K206<7,0,IF(K206>=7,1)))) -> 
B275: Bewegung (Std./Woche) | E275: =IF(K207=0,"",K207) ->  | G275: ab 3 | H275: =IF(K207="","",IF(K207<3,0,IF(K207>=3,1))) ->  | I275: 1 bis 2 | J275: =IF(K207="","",IF(K207=0,0,IF(K207>=1,IF(K207<=2,1,0)))) ->  | K275: 0 | L275: =IF(K207="","",IF(K207=0,1,0)) -> 
B276: =IF(E36="Frau","BMI Frau","") -> BMI Frau | C276: =IF(A36="Mann","Mann bis 24","Frau bis 22") -> Frau bis 22 | E276: =IF(E36="Frau",K24,"") ->  | G276: =IF(B276="","",IF(E36="Frau","Frau bis 22")) -> Frau bis 22 | H276: =IF(E276="","",IF(E276<=22,1,0)) ->  | I276: =IF(B276="","",IF(E36="Frau","Frau 22 bis 28")) -> Frau 22 bis 28 | J276: =IF(E276="","",IF(E276<=22,0,IF(E276>=28,0,IF(E276>22,IF(E276<28,1))))) ->  | K276: =IF(B276="","",IF(E36="Mann","Mann u. Frau ab 28","Mann u. Frau ab 28")) -> Mann u. Frau ab 28 | L276: =IF(E276="","",IF(E276>=28,1,0)) -> 
B277: =IF(E36="Mann","BMI Mann","") ->  | C277: =IF(A37="Mann","Mann bis 24","Frau bis 22") -> Frau bis 22 | E277: =IF(E36="Mann",K24,"") ->  | G277: =IF(B277="","",IF(E36="Mann","Mann bis 24")) ->  | H277: =IF(E277="","",IF(E277<=24,1,0)) ->  | I277: =IF(B277="","",IF(E36="Mann","Mann 24 bis 28")) ->  | J277: =IF(E277="","",IF(E277<=24,0,IF(E277>=28,0,IF(E277>=24,IF(E277<28,1,0))))) ->  | K277: =IF(B277="","",IF(E36="Mann","Mann u. Frau ab 28","Mann u. Frau ab 28")) ->  | L277: =IF(E277="","",IF(E277>=28,1,0)) -> 
B278: Blutdruck (RR) systolisch | E278: =K40 ->  | G278: bis 140 | H278: =IF(K40="","",IF(E278<=140,1,IF(E278>=141,0,))) ->  | I278: 141 - 179 | J278: =IF(K40="","",IF(E278<=140,0,IF(E278>=141,IF(E278<=179,1,0)))) ->  | K278: ab 180 | L278: =IF(K40="","",IF(E278>=180,1,0)) -> 
B279: Blutdruck (RR) diastolisch | E279: =K41 ->  | G279: bis 90 | H279: =IF(K41="","",IF(E279<=90,1,IF(E279>=91,0,))) ->  | I279: 91 - 109 | J279: =IF(K41="","",IF(E279<=90,0,IF(E279>=91,IF(E279<=109,1,0)))) ->  | K279: ab 110 | L279: =IF(K41="","",IF(E279>=110,1,0)) -> 
B280: Blutzucker (Glukose) (mmol/l) | E280: =IF(E207=0,"",E207) ->  | G280: bis 5.5 | H280: =IF(E207="","",IF(E280<=5.5,1,IF(E280>=5.6,0))) ->  | I280: 5.6 - 6.8 | J280: =IF(E207="","",IF(E280<=5.5,0,IF(E280>=5.6,IF(E280<=6.8,1,0)))) ->  | K280: ab 6.9 | L280: =IF(E207="","",IF(E280>=6.9,1,0)) -> 
B281: Gesamt-Cholesterin (mmol/l) | G281: bis 5.18 | H281: =IF(E208="","",IF(E281<=5.18,1,IF(E281>=5.19,0))) ->  | I281: 5.19 - 6.19 | J281: =IF(E208="","",IF(E281<=5.18,0,IF(E281>=5.19,IF(E281<=6.19,1,0)))) ->  | K281: ab 6.20 | L281: =IF(E208="","",IF(E281>=6.2,1,0)) -> 
B282: LDL-Cholesterin (mmol/l) | G282: bis 3.38 | H282: =IF(E209=0,"",IF(E282<=3.38,1,IF(E282>=3.39,0))) ->  | I282: 3.39 - 4.12 | J282: =IF(E209=0,"",IF(E282<=3.38,0,IF(E282>=3.39,IF(E282<=4.12,1,0)))) ->  | K282: ab 4.13 | L282: =IF(E209=0,"",IF(E282>=4.13,1,0)) -> 
B283: HDL-Cholesterin (mmol/l) | G283: ab 1.04 | H283: =IF(E210=0,"",IF(E283>=1.04,1,IF(E283<1.04,0))) ->  | I283: 0.79 - 1.03 | J283: =IF(E210=0,"",IF(E283<0.79,0,IF(E283>=1.04,0,IF(E283>=0.79,IF(E283<=1.03,1,0))))) ->  | K283: bis 0.78 | L283: =IF(E210=0,"",IF(E283<=0.78,1,0)) -> 
B284: Triglyzeride (mmol/l) | G284: bis 1.71 | H284: =IF(E211=0,"",IF(E284<=1.71,1,IF(E284>=1.72,0))) ->  | I284: 1.72 - 2.95 | J284: =IF(E211=0,"",IF(E284<=1.71,0,IF(E284>=1.72,IF(E284<=2.95,1,0)))) ->  | K284: ab 2.96 | L284: =IF(E211=0,"",IF(E284>=2.96,1,0)) -> 
B285: CRP sensitiv (mg/l) | G285: 0 bis 3 | H285: =IF(E212="","",IF(E212=0,1,IF(E212>=0,IF(E212<=3,1,0)))) ->  | I285: 4 bis 9 | J285: =IF(E212="","",IF(E212=0,0,IF(E285<=3,0,IF(E285>=4,IF(E285<=9,1,0))))) ->  | K285: ab 10 | L285: =IF(E212="","",IF(E212=0,0,IF(E285>=10,1,0))) -> 
G287: Treffer gelb | H287: =SUM(H274:H285) -> 0 | I287: Treffer x 1= | K287: =H287*1 -> 0
G288: Treffer blau | H288: =SUM(J274:J285) -> 0 | I288: Treffer x 2= | K288: =H288*2 -> 0
G289: Treffer rot | H289: =SUM(L274:L285) -> 0 | I289: Treffer x 3= | K289: =H289*3 -> 0
G291: Gesamtpunkte | I291: = | K291: =SUM(K287:K289) -> 0
C294: Risiko | E294: Gesamtpunkte | G294: Ihr persönliches Risikoprofil
C296: sehr gering | E296: 11 | G296: =IF(K291<11,"",IF(K291=E296,"Kein Risiko für Gefässerkrankung","")) -> 
E297: 12 | G297: =IF(K291<11,"",IF(K291=E297,"Ihr Resultat: Risiko für Gefässerkrankung sehr gering","")) -> 
E298: 13 | G298: =IF(K291<11,"",IF(K291=E298,"Risiko für Gefässerkrankung sehr gering","")) -> 
E299: 14 | G299: =IF(K291<11,"",IF(K291=E299,"Risiko für Gefässerkrankung sehr gering","")) -> 
E300: 15 | G300: =IF(K291<11,"",IF(K291=E300,"Risiko für Gefässerkrankung gering","")) -> 
E301: 16 | G301: =IF(K291<11,"",IF(K291=E301,"Risiko für Gefässerkrankung gering","")) -> 
E302: 17 | G302: =IF(K291<11,"",IF(K291=E302,"Risiko für Gefässerkrankung gering","")) -> 
E303: 18 | G303: =IF(K291=E303,"Risiko mittel","") -> 
E304: 19 | G304: =IF(K291=E304,"Risiko für Gefässerkrankung mittel","") -> 
E305: 20 | G305: =IF(K291=E305,"Risiko für eine Gefässerkrankung mittel","") -> 
C306: mittel | E306: 21 | G306: =IF(K291=E306,"Risiko für Gefässerkrankung mittel","") -> 
E307: 22 | G307: =IF(K291=E307,"Risiko für Gefässerkrankung mittel","") -> 
E308: 23 | G308: =IF(K291=E308,"Risiko für Gefässerkrankung mittel","") -> 
E309: 24 | G309: =IF(K291=E309,"Risiko für Gefässerkrankung mittel","") -> 
E310: 25 | G310: =IF(K291=E310,"Ihr Resultat: Risiko für Gefässerkrankung hoch","") -> 
E311: 26 | G311: =IF(K291=E311,"Risiko für Gefässerkrankung hoch","") -> 
E312: 27 | G312: =IF(K291=E312,"Risiko für Gefässerkrankung hoch","") -> 
E313: 28 | G313: =IF(K291=E313,"Risiko für Gefässerkrankung hoch","") -> 
E314: 29 | G314: =IF(K291=E314,"Risiko für Gefässerkrankung hoch","") -> 
E315: 30 | G315: =IF(K291=E315,"Risiko für Gefässerkrankung sehr hoch","") -> 
E316: 31 | G316: =IF(K291=E316,"Risiko für Gefässerkrankung sehr hoch","") -> 
E317: 32 | G317: =IF(K291=E317,"Risiko für Gefässerkrankung sehr hoch","") -> 
C318: hoch | E318: 33 | G318: =IF(K291=E318,"Risiko für Gefässerkrankung extrem hoch","") -> 

Sheet März
B2: Monat: März
I3: Grüne Felder: Eingabe erforderlich
C4: Jahresziel: | E4: =IF(Jahr!J4=0,"",Jahr!J4) -> 82 | G4: Monatsziel: | N4: Das moderne Gewichtscoaching:
E6: Kommentar | I6: Veränderung | K6: Ergebnis | N6: XLS - von XL bis S
B8: =IF(D88=0,"",IF(K21=0,"",IF(K22=0,"",IF(K22=K21,"Gewicht gleichbleibend",IF(K22<K21,"Sie haben abgenommen! Bravo!",IF(K22>K21,"")))))) ->  | G8: Abgenommen: | K8: =IF(D88=0,"",IF(K22=0,"",IF(K22-K21=0,"0kg",IF(K22>K21,"",K21-K22)))) ->  | N8: Ernährung und Bewegung
B9: =IF(D88=0,"",IF(K21=0,"",IF(K22=0,"",IF(K22=K21,"Gewicht gleichbleibend",IF(K22>K21,"Sie haben zugenommen. Arbeiten Sie an sich!",IF(K22<K21,"")))))) ->  | G9: Zugenommen: | K9: =IF(D88=0,"",IF(K22=0,"",IF(K22-K21=0,"0kg",IF(K22<K21,"",K22-K21)))) -> 
B11: =IF(D88=0,"",IF(K21=0,"",IF(K22=0,"",IF(K22>I4,"Monatsziel noch nicht erreicht!",IF(K22=I4,"Monatsziel erreicht. Bravo!",IF(K22<I4,"Monatsziel sogar unterschritten!")))))) ->  | G11: Vom Monatsziel entfernt um + / -: | K11: =IF(D88=0,"",IF(K22=0,"",IF(K22=I4,"0",K22-I4))) ->  | N11: Psyche und Schlaf
B12: =IF(D88=0,"",IF(K21=0,"",IF(K22=0,"",IF(K22=E4,"Jahresziel erreicht! Gratuliere!",IF(K22>E4,"Jahresziel noch nicht erreicht! Bleiben Sie dran!",IF(K22<E4,"Jahrsziel sogar unterschritten!")))))) ->  | G12: Vom Jahresziel entfernt um + / -: | K12: =IF(D88=0,"",IF(K22=0,"",IF(K22=E4,"0",K22-E4))) -> 
G14: Gewicht - Monatsdurchschnitt: | K14: =IF(SUM(C82:C112)=0,"",AVERAGEA(C82:C112)) ->  | N14: Motivation: XLS Software
I19: Erste - Letzte Messung im Monat | K19: Monatsprofil | N19: Unterstützung
B21: Ihr Gewicht bei BMI-Ideal 22: | E21: =IF('GU-GEB'!C10=0,"",22*(('GU-GEB'!C10/100)^2)) ->  | G21: Gewicht - Erste Messung im Monat: | K21: =IF(D88=0,"",INDEX(C82:C112,D88,1)) ->  | N21: Granuvital "Fit&Schlank" SevisanaLine
B22: Ihr Gewicht bei BMI-Ideal 25: | E22: =IF('GU-GEB'!C10=0,"",25*(('GU-GEB'!C10/100)^2)) ->  | G22: Gewicht - Letzte Messung im Monat: | K22: =IF(D99=0,"",INDEX(C82:C112,D99,1)) -> 
B24: Vom BMI Ideal 22 entfernt: | E24: =IF(L88=0,"",IF(K24=0,"",IF(K24-22=0,"0",K24-22))) ->  | G24: BMI - Erste Messung im Monat: | K24: =IF(L88=0,"",INDEX(K82:K112,L88,1)) ->  | N24: X-Form und X-Form Plus SevisanaLine
B25: Vom BMI Ideal 22 entfernt: | E25: =IF(L99=0,"",IF(K25=0,"",IF(K25-22=0,"0",K25-22))) ->  | G25: BMI - Letzte Messung im Monat: | K25: =IF(L99=0,"",INDEX(K82:K112,L99,1)) -> 
B27: Vom Idealwert entfernt: | E27: =IF(F88=0,"",IF(K27=0,"",IF(K28=0,"",IF(K27-J27=0,"0cm",K27-J27)))) ->  | G27: Bauchumfang - Erste Messung im Monat: | J27: =IF('GU-GEB'!C8="Mann",94,80) -> 80 | K27: =IF(F88=0,"",INDEX(E82:E112,F88,1)) ->  | N27: Reine Flohsamenschalen SevisanaLine
B28: Vom Idealwert entfernt: | E28: =IF(F99=0,"",IF(K27=0,"",IF(K28=0,"",IF(K28-J27=0,"0cm",K28-J27)))) ->  | G28: Bauchumfang - Letzte Messung im Monat: | J28: =IF('GU-GEB'!C8="Mann",102,88) -> 88 | K28: =IF(F99=0,"",INDEX(E82:E112,F99,1)) -> 
G30: Hüftumfang - Erste Messung im Monat: | K30: =IF(H88=0,"",INDEX(G82:G112,H88,1)) ->  | N30: Basenpulver nach Dr. Eichhorn
G31: Hüftumfang - Letzte Messung im Monat: | K31: =IF(H99=0,"",INDEX(G82:G112,H99,1)) -> 
B33: Vom B/H Idealwert entfernt: | E33: =IF(J88=0,"",IF(K33=0,"",IF(K33-G36=0,"0",K33-G36))) ->  | G33: B/H - Erste Messung im Monat: | K33: =IF(J88=0,"",INDEX(I82:I112,J88,1)) ->  | N33: Produkteinformation | P33: www.sevisana.ch
B34: Vom B/H Idealwert entfernt: | E34: =IF(J99=0,"",IF(K34=0,"",IF(K34-G36=0,"0",K34-G36))) ->  | G34: B/H - Letzte Messung im Monat: | K34: =IF(J99=0,"",INDEX(I82:I112,J99,1)) -> 
B36: B/H Ziel gleich/kleiner als: | E36: ='GU-GEB'!C8 -> Frau | G36: =IF(E36="Frau",0.85,1) -> 0.85
G40: Blutdruck systolisch - Erste Messung | K40: =IF(F147=0,"",INDEX(E141:E171,F147,1)) ->  | N40: Bestellung | P40: www.sevisana.ch
G41: Blutdruck diastolisch - Erste Messung | K41: =IF(H147=0,"",INDEX(G141:G171,H147,1)) -> 
G43: Blutdruck systolisch - Letzte Messung | K43: =IF(F158=0,"",INDEX(E141:IE171,F158,1)) -> 
G44: Blutdruck diastolisch - Letzte Messung | K44: =IF(H158=0,"",INDEX(G141:IG171,H158,1)) ->  | N44: Direktbestellung | P44: http://shop.sevisana.ch
G47: Puls - Erste Messung | K47: =IF(D147=0,"",INDEX(C141:C171,D147,1)) -> 
G48: Puls - Letzte Messung | K48: =IF(D158=0,"",INDEX(C141:C171,D158,1)) ->  | N48: Medizinwissen | P48: www.ever.ch
C53: Tendenzen | G53: Verlauf in diesem Monat
B55: Tendenzen Ende Monat: | E55: Gewicht: | G55: =IF(D88=0,"",IF(K21=0,"",IF(K22=0,"",IF(K22<K21,"Gewicht fällt. Bravo!",IF(K22=K21,"Gewicht gleichbleibend",IF(K22>K21,"Achtung! Gewicht steigt. Risiko!")))))) -> 
E56: BMI: | G56: =IF(D88=0,"",IF(K24=0,"",IF(K25=0,"",IF(K25<K24,"BMI fällt. Bravo!",IF(K25=K24,"BMI gleichbleibend",IF(K25>K24,"BMI steigt. Ihre Gesundheit ist gefährdet!")))))) -> 
E57: Bauchumfang: | G57: =IF(F88=0,"",IF(K27=0,"",IF(K28=0,"",IF(K28<K27,"Bauchumfang wird kleiner. Bravo!",IF(K28=K27,"Bauchumfang gleichbleibend",IF(K28>K27,"Achtung! Bauchumfang nimmt zu",IF(K28<=J27,"Normalwert"))))))) -> 
E58: B/H: | G58: =IF(J88=0,"",IF(K33=0,"",IF(K34=0,"",IF(K34<K33,"B/H Verältnis wird kleiner. Bravo!",IF(K34=K33,"B/H Verältnis gleichbleibend",IF(K34>K33,"Achtung! B/H Verhältnis nimmt zu")))))) -> 
C60: Risiko Anfang Monat: | E60: BMI: | G60: =IF(D88=0,"",IF(K24=0,"",IF(K24>=40,"Grad III: Schwere Adipositas",IF(K24>=30,"Grad II: Adipositas",IF(K24>=25,"Grad I: Übergewicht",IF(K24>=20,"Normalgewicht",IF(K24<20,"Untergewicht",))))))) -> 
E61: Bauchumfang: | G61: =IF(F88=0,"",IF(K27=0,"",IF(K27>=J28,"Gesundheitsrisiko hoch",IF(K27>=J27,"Gesundheitsrisiko erhöht",IF(K27<J27,"Kein Gesundheitsrisiko"))))) -> 
E62: B/H: | G62: =IF(J88=0,"",IF(K33=0,"",IF(K33>G36,"Gesundheitsrisiko erhöht",IF(K33=G36,"Grenzwert zu Gesundheitsrisiko erhöht",IF(K33<G36,"Kein Gesundheitsrisiko"))))) -> 
C64: Risiko Ende Monat: | E64: BMI: | G64: =IF(D88=0,"",IF(K25=0,"",IF(K25>=40,"Grad III: Schwere Adipositas",IF(K25>=30,"Grad II: Adipositas",IF(K25>=25,"Grad I: Übergewicht",IF(K25>=20,"Normalgewicht",IF(K25<20,"Untergewicht",))))))) -> 
E65: Bauchumfang: | G65: =IF(F88=0,"",IF(K28=0,"",IF(K28>=J28,"Gesundheitsrisiko hoch",IF(K28>=J27,"Gesundheitsrisiko erhöht",IF(K28<J27,"Kein Gesundheitsrisiko"))))) -> 
E66: B/H: | G66: =IF(J88=0,"",IF(K34=0,"",IF(K34>G36,"Gesundheitsrisiko erhöht",IF(K34=G36,"Grenzwert zu Gesundheitsrisiko erhöht",IF(K34<G36,"Kein Gesundheitsrisiko"))))) -> 
B71: Risiko | E71: Ihr persönliches Risikoprofil
B73: Metabolisches Syndrom | E73: =IF(F147=0,"",B232) -> 
B74: Insulinresistenz | E74: =IF(E206=0,"",IF(E207=0,"",E250)) -> 
B75: Arterioskleroserisiko | E75: =IF(E208=0,"",IF(E210=0,"",B261)) -> 
B76: Gefässrisiko | E76: =IF(K291<11,"",IF(K291=0,"",IF(K291>=11,IF(K291<=17,"Gefässrisiko im unteren Bereich",IF(K291>=18,IF(K291<=24,"Gefässrisiko im mittleren Bereich",IF(K291>=25,"Gefässrisiko im hohen Bereich"))))))) -> 
B81: Tag | C81: Gewicht | E81: Bauchumfang | G81: Hüftumfang | I81: B/H Verhältnis | K81: BMI
B82: 1 | D82: =IF(C82="",IF(C83="",IF(C84="",IF(C85="",IF(C86="",IF(C87="",IF(C88="",0,7),6),5),4),3),2),1) -> 0 | F82: =IF(E82="",IF(E83="",IF(E84="",IF(E85="",IF(E86="",IF(E87="",IF(E88="",0,7),6),5),4),3),2),1) -> 0 | H82: =IF(G82="",IF(G83="",IF(G84="",IF(G85="",IF(G86="",IF(G87="",IF(G88="",0,7),6),5),4),3),2),1) -> 0 | I82: =IF(E82=0,"",IF(G82=0,"",E82/G82)) ->  | J82: =IF(I82="",IF(I83="",IF(I84="",IF(I85="",IF(I86="",IF(I87="",IF(I88="",0,7),6),5),4),3),2),1) -> 0 | K82: =IF(C82=0,"",C82/(('GU-GEB'!C10/100)^2)) ->  | L82: =IF(K82="",IF(K83="",IF(K84="",IF(K85="",IF(K86="",IF(K87="",IF(K88="",0,7),6),5),4),3),2),1) -> 0
B83: 2 | D83: =IF(C89="",IF(C90="",IF(C91="",IF(C92="",IF(C93="",IF(C94="",IF(C95="",0,14),13),12),11),10),9),8) -> 0 | F83: =IF(E89="",IF(E90="",IF(E91="",IF(E92="",IF(E93="",IF(E94="",IF(E95="",0,14),13),12),11),10),9),8) -> 0 | H83: =IF(G89="",IF(G90="",IF(G91="",IF(G92="",IF(G93="",IF(G94="",IF(G95="",0,14),13),12),11),10),9),8) -> 0 | J83: =IF(I89="",IF(I90="",IF(I91="",IF(I92="",IF(I93="",IF(I94="",IF(I95="",0,14),13),12),11),10),9),8) -> 0 | K83: =IF(C83=0,"",C83/(('GU-GEB'!C10/100)^2)) ->  | L83: =IF(K89="",IF(K90="",IF(K91="",IF(K92="",IF(K93="",IF(K94="",IF(K95="",0,14),13),12),11),10),9),8) -> 0
B84: 3 | D84: =IF(C96="",IF(C97="",IF(C98="",IF(C99="",IF(C100="",IF(C101="",IF(C102="",0,21),20),19),18),17),16),15) -> 0 | F84: =IF(E96="",IF(E97="",IF(E98="",IF(E99="",IF(E100="",IF(E101="",IF(E102="",0,21),20),19),18),17),16),15) -> 0 | H84: =IF(G96="",IF(G97="",IF(G98="",IF(G99="",IF(G100="",IF(G101="",IF(G102="",0,21),20),19),18),17),16),15) -> 0 | J84: =IF(I96="",IF(I97="",IF(I98="",IF(I99="",IF(I100="",IF(I101="",IF(I102="",0,21),20),19),18),17),16),15) -> 0 | K84: =IF(C84=0,"",C84/(('GU-GEB'!C10/100)^2)) ->  | L84: =IF(K96="",IF(K97="",IF(K98="",IF(K99="",IF(K100="",IF(K101="",IF(K102="",0,21),20),19),18),17),16),15) -> 0
B85: 4 | D85: =IF(C103="",IF(C104="",IF(C105="",IF(C106="",IF(C107="",IF(C108="",IF(C109="",0,28),27),26),25),24),23),22) -> 0 | F85: =IF(E103="",IF(E104="",IF(E105="",IF(E106="",IF(E107="",IF(E108="",IF(E109="",0,28),27),26),25),24),23),22) -> 0 | H85: =IF(G103="",IF(G104="",IF(G105="",IF(G106="",IF(G107="",IF(G108="",IF(G109="",0,28),27),26),25),24),23),22) -> 0 | J85: =IF(I103="",IF(I104="",IF(I105="",IF(I106="",IF(I107="",IF(I108="",IF(I109="",0,28),27),26),25),24),23),22) -> 0 | K85: =IF(C85=0,"",C85/(('GU-GEB'!C10/100)^2)) ->  | L85: =IF(K103="",IF(K104="",IF(K105="",IF(K106="",IF(K107="",IF(K108="",IF(K109="",0,28),27),26),25),24),23),22) -> 0
B86: 5 | D86: =IF(C110="",IF(C111="",IF(C112="",0,31),30),29) -> 0 | F86: =IF(E110="",IF(E111="",IF(E112="",0,31),30),29) -> 0 | H86: =IF(G110="",IF(G111="",IF(G112="",0,31),30),29) -> 0 | J86: =IF(I110="",IF(I111="",IF(I112="",0,31),30),29) -> 0 | K86: =IF(C86=0,"",C86/(('GU-GEB'!C10/100)^2)) ->  | L86: =IF(K110="",IF(K111="",IF(K112="",0,31),30),29) -> 0
B87: 6 | K87: =IF(C87=0,"",C87/(('GU-GEB'!C10/100)^2)) -> 
B88: 7 | D88: =IF(D82=0,IF(D83=0,IF(D84=0,IF(D85=0,IF(D86=0,0,D86),D85),D84),D83),D82) -> 0 | F88: =IF(F82=0,IF(F83=0,IF(F84=0,IF(F85=0,IF(F86=0,0,F86),F85),F84),F83),F82) -> 0 | H88: =IF(H82=0,IF(H83=0,IF(H84=0,IF(H85=0,IF(H86=0,0,H86),H85),H84),H83),H82) -> 0 | J88: =IF(J82=0,IF(J83=0,IF(J84=0,IF(J85=0,IF(J86=0,0,J86),J85),J84),J83),J82) -> 0 | K88: =IF(C88=0,"",C88/(('GU-GEB'!C10/100)^2)) ->  | L88: =IF(L82=0,IF(L83=0,IF(L84=0,IF(L85=0,IF(L86=0,0,L86),L85),L84),L83),L82) -> 0
B89: 8 | K89: =IF(C89=0,"",C89/(('GU-GEB'!C10/100)^2)) -> 
B90: 9 | K90: =IF(C90=0,"",C90/(('GU-GEB'!C10/100)^2)) -> 
B91: 10 | K91: =IF(C91=0,"",C91/(('GU-GEB'!C10/100)^2)) -> 
B92: 11 | K92: =IF(C92=0,"",C92/(('GU-GEB'!C10/100)^2)) -> 
B93: 12 | D93: =IF(C112="",IF(C111="",IF(C110="",IF(C109="",IF(C108="",IF(C107="",IF(C106="",0,25),26),27),28),29),30),31) -> 0 | F93: =IF(E112="",IF(E111="",IF(E110="",IF(E109="",IF(E108="",IF(E107="",IF(E106="",0,25),26),27),28),29),30),31) -> 0 | H93: =IF(G112="",IF(G111="",IF(G110="",IF(G109="",IF(G108="",IF(G107="",IF(G106="",0,25),26),27),28),29),30),31) -> 0 | J93: =IF(I112="",IF(I111="",IF(I110="",IF(I109="",IF(I108="",IF(I107="",IF(I106="",0,25),26),27),28),29),30),31) -> 0 | K93: =IF(C93=0,"",C93/(('GU-GEB'!C10/100)^2)) ->  | L93: =IF(K112="",IF(K111="",IF(K110="",IF(K109="",IF(K108="",IF(K107="",IF(K106="",0,25),26),27),28),29),30),31) -> 0
B94: 13 | D94: =IF(C105="",IF(C104="",IF(C103="",IF(C102="",IF(C101="",IF(C100="",IF(C99="",0,18),19),20),21),22),23),24) -> 0 | F94: =IF(E105="",IF(E104="",IF(E103="",IF(E102="",IF(E101="",IF(E100="",IF(E99="",0,18),19),20),21),22),23),24) -> 0 | H94: =IF(G105="",IF(G104="",IF(G103="",IF(G102="",IF(G101="",IF(G100="",IF(G99="",0,18),19),20),21),22),23),24) -> 0 | J94: =IF(I105="",IF(I104="",IF(I103="",IF(I102="",IF(I101="",IF(I100="",IF(I99="",0,18),19),20),21),22),23),24) -> 0 | K94: =IF(C94=0,"",C94/(('GU-GEB'!C10/100)^2)) ->  | L94: =IF(K105="",IF(K104="",IF(K103="",IF(K102="",IF(K101="",IF(K100="",IF(K99="",0,18),19),20),21),22),23),24) -> 0
B95: 14 | D95: =IF(C98="",IF(C97="",IF(C96="",IF(C95="",IF(C94="",IF(C93="",IF(C92="",0,11),12),13),14),15),16),17) -> 0 | F95: =IF(E98="",IF(E97="",IF(E96="",IF(E95="",IF(E94="",IF(E93="",IF(E92="",0,11),12),13),14),15),16),17) -> 0 | H95: =IF(G98="",IF(G97="",IF(G96="",IF(G95="",IF(G94="",IF(G93="",IF(G92="",0,11),12),13),14),15),16),17) -> 0 | J95: =IF(I98="",IF(I97="",IF(I96="",IF(I95="",IF(I94="",IF(I93="",IF(I92="",0,11),12),13),14),15),16),17) -> 0 | K95: =IF(C95=0,"",C95/(('GU-GEB'!C10/100)^2)) ->  | L95: =IF(K98="",IF(K97="",IF(K96="",IF(K95="",IF(K94="",IF(K93="",IF(K92="",0,11),12),13),14),15),16),17) -> 0
B96: 15 | D96: =IF(C91="",IF(C90="",IF(C89="",IF(C88="",IF(C87="",IF(C86="",IF(C85="",0,4),5),6),7),8),9),10) -> 0 | F96: =IF(E91="",IF(E90="",IF(E89="",IF(E88="",IF(E87="",IF(E86="",IF(E85="",0,4),5),6),7),8),9),10) -> 0 | H96: =IF(G91="",IF(G90="",IF(G89="",IF(G88="",IF(G87="",IF(G86="",IF(G85="",0,4),5),6),7),8),9),10) -> 0 | J96: =IF(I91="",IF(I90="",IF(I89="",IF(I88="",IF(I87="",IF(I86="",IF(I85="",0,4),5),6),7),8),9),10) -> 0 | K96: =IF(C96=0,"",C96/(('GU-GEB'!C10/100)^2)) ->  | L96: =IF(K91="",IF(K90="",IF(K89="",IF(K88="",IF(K87="",IF(K86="",IF(K85="",0,4),5),6),7),8),9),10) -> 0
B97: 16 | D97: =IF(C84="",IF(C83="",IF(C82="",0,1),2),3) -> 0 | F97: =IF(E84="",IF(E83="",IF(E82="",0,1),2),3) -> 0 | H97: =IF(G84="",IF(G83="",IF(G82="",0,1),2),3) -> 0 | J97: =IF(I84="",IF(I83="",IF(I82="",0,1),2),3) -> 0 | K97: =IF(C97=0,"",C97/(('GU-GEB'!C10/100)^2)) ->  | L97: =IF(K84="",IF(K83="",IF(K82="",0,1),2),3) -> 0
B98: 17 | K98: =IF(C98=0,"",C98/(('GU-GEB'!C10/100)^2)) -> 
B99: 18 | D99: =IF(D93=0,IF(D94=0,IF(D95=0,IF(D96=0,IF(D97=0,0,D97),D96),D95),D94),D93) -> 0 | F99: =IF(F93=0,IF(F94=0,IF(F95=0,IF(F96=0,IF(F97=0,0,F97),F96),F95),F94),F93) -> 0 | H99: =IF(H93=0,IF(H94=0,IF(H95=0,IF(H96=0,IF(H97=0,0,H97),H96),H95),H94),H93) -> 0 | J99: =IF(J93=0,IF(J94=0,IF(J95=0,IF(J96=0,IF(J97=0,0,J97),J96),J95),J94),J93) -> 0 | K99: =IF(C99=0,"",C99/(('GU-GEB'!C10/100)^2)) ->  | L99: =IF(L93=0,IF(L94=0,IF(L95=0,IF(L96=0,IF(L97=0,0,L97),L96),L95),L94),L93) -> 0
B100: 19 | K100: =IF(C100=0,"",C100/(('GU-GEB'!C10/100)^2)) -> 
B101: 20 | K101: =IF(C101=0,"",C101/(('GU-GEB'!C10/100)^2)) -> 
B102: 21 | K102: =IF(C102=0,"",C102/(('GU-GEB'!C10/100)^2)) -> 
B103: 22 | K103: =IF(C103=0,"",C103/(('GU-GEB'!C10/100)^2)) -> 
B104: 23 | K104: =IF(C104=0,"",C104/(('GU-GEB'!C10/100)^2)) -> 
B105: 24 | K105: =IF(C105=0,"",C105/(('GU-GEB'!C10/100)^2)) -> 
B106: 25 | K106: =IF(C106=0,"",C106/(('GU-GEB'!C10/100)^2)) -> 
B107: 26 | K107: =IF(C107=0,"",C107/(('GU-GEB'!C10/100)^2)) -> 
B108: 27 | K108: =IF(C108=0,"",C108/(('GU-GEB'!C10/100)^2)) -> 
B109: 28 | K109: =IF(C109=0,"",C109/(('GU-GEB'!C10/100)^2)) -> 
B110: 29 | K110: =IF(C110=0,"",C110/(('GU-GEB'!C10/100)^2)) -> 
B111: 30 | K111: =IF(C111=0,"",C111/(('GU-GEB'!C10/100)^2)) -> 
B112: 31 | K112: =IF(C112=0,"",C112/(('GU-GEB'!C10/100)^2)) -> 
B140: Tag | C140: Puls | E140: BD systolisch | G140: BD diastolisch | I140: BD Mittelwert
B141: 1 | D141: =IF(C141="",IF(C142="",IF(C143="",IF(C144="",IF(C145="",IF(C146="",IF(C147="",0,7),6),5),4),3),2),1) -> 0 | F141: =IF(E141="",IF(E142="",IF(E143="",IF(E144="",IF(E145="",IF(E146="",IF(E147="",0,7),6),5),4),3),2),1) -> 0 | H141: =IF(G141="",IF(G142="",IF(G143="",IF(G144="",IF(G145="",IF(G146="",IF(G147="",0,7),6),5),4),3),2),1) -> 0 | I141: =IF(E141=0,"",IF(G141=0,"",AVERAGEA(E141,G141))) -> 
B142: 2 | D142: =IF(C148="",IF(C149="",IF(C150="",IF(C151="",IF(C152="",IF(C153="",IF(C154="",0,14),13),12),11),10),9),8) -> 0 | F142: =IF(E148="",IF(E149="",IF(E150="",IF(E151="",IF(E152="",IF(E153="",IF(E154="",0,14),13),12),11),10),9),8) -> 0 | H142: =IF(G148="",IF(G149="",IF(G150="",IF(G151="",IF(G152="",IF(G153="",IF(G154="",0,14),13),12),11),10),9),8) -> 0
B143: 3 | D143: =IF(C155="",IF(C156="",IF(C157="",IF(C158="",IF(C159="",IF(C160="",IF(C161="",0,21),20),19),18),17),16),15) -> 0 | F143: =IF(E155="",IF(E156="",IF(E157="",IF(E158="",IF(E159="",IF(E160="",IF(E161="",0,21),20),19),18),17),16),15) -> 0 | H143: =IF(G155="",IF(G156="",IF(G157="",IF(G158="",IF(G159="",IF(G160="",IF(G161="",0,21),20),19),18),17),16),15) -> 0
B144: 4 | D144: =IF(C162="",IF(C163="",IF(C164="",IF(C165="",IF(C166="",IF(C167="",IF(C168="",0,28),27),26),25),24),23),22) -> 0 | F144: =IF(E162="",IF(E163="",IF(E164="",IF(E165="",IF(E166="",IF(E167="",IF(E168="",0,28),27),26),25),24),23),22) -> 0 | H144: =IF(G162="",IF(G163="",IF(G164="",IF(G165="",IF(G166="",IF(G167="",IF(G168="",0,28),27),26),25),24),23),22) -> 0
B145: 5 | D145: =IF(C169="",IF(C170="",IF(C171="",0,31),30),29) -> 0 | F145: =IF(E169="",IF(E170="",IF(E171="",0,31),30),29) -> 0 | H145: =IF(G169="",IF(G170="",IF(G171="",0,31),30),29) -> 0
B146: 6
B147: 7 | D147: =IF(D141=0,IF(D142=0,IF(D143=0,IF(D144=0,IF(D145=0,0,D145),D144),D143),D142),D141) -> 0 | F147: =IF(F141=0,IF(F142=0,IF(F143=0,IF(F144=0,IF(F145=0,0,F145),F144),F143),F142),F141) -> 0 | H147: =IF(H141=0,IF(H142=0,IF(H143=0,IF(H144=0,IF(H145=0,0,H145),H144),H143),H142),H141) -> 0
B148: 8
B149: 9
B150: 10
B151: 11
B152: 12 | D152: =IF(C171="",IF(C170="",IF(C169="",IF(C168="",IF(C167="",IF(C166="",IF(C165="",0,25),26),27),28),29),30),31) -> 0 | F152: =IF(E171="",IF(E170="",IF(E169="",IF(E168="",IF(E167="",IF(E166="",IF(E165="",0,25),26),27),28),29),30),31) -> 0 | H152: =IF(G171="",IF(G170="",IF(G169="",IF(G168="",IF(G167="",IF(G166="",IF(G165="",0,25),26),27),28),29),30),31) -> 0
B153: 13 | D153: =IF(C164="",IF(C163="",IF(C162="",IF(C161="",IF(C160="",IF(C159="",IF(C158="",0,18),19),20),21),22),23),24) -> 0 | F153: =IF(E164="",IF(E163="",IF(E162="",IF(E161="",IF(E160="",IF(E159="",IF(E158="",0,18),19),20),21),22),23),24) -> 0 | H153: =IF(G164="",IF(G163="",IF(G162="",IF(G161="",IF(G160="",IF(G159="",IF(G158="",0,18),19),20),21),22),23),24) -> 0
B154: 14 | D154: =IF(C157="",IF(C156="",IF(C155="",IF(C154="",IF(C153="",IF(C152="",IF(C151="",0,11),12),13),14),15),16),17) -> 0 | F154: =IF(E157="",IF(E156="",IF(E155="",IF(E154="",IF(E153="",IF(E152="",IF(E151="",0,11),12),13),14),15),16),17) -> 0 | H154: =IF(G157="",IF(G156="",IF(G155="",IF(G154="",IF(G153="",IF(G152="",IF(G151="",0,11),12),13),14),15),16),17) -> 0
B155: 15 | D155: =IF(C150="",IF(C149="",IF(C148="",IF(C147="",IF(C146="",IF(C145="",IF(C144="",0,4),5),6),7),8),9),10) -> 0 | F155: =IF(E150="",IF(E149="",IF(E148="",IF(E147="",IF(E146="",IF(E145="",IF(E144="",0,4),5),6),7),8),9),10) -> 0 | H155: =IF(G150="",IF(G149="",IF(G148="",IF(G147="",IF(G146="",IF(G145="",IF(G144="",0,4),5),6),7),8),9),10) -> 0
B156: 16 | D156: =IF(C143="",IF(C142="",IF(C141="",0,1),2),3) -> 0 | F156: =IF(E143="",IF(E142="",IF(E141="",0,1),2),3) -> 0 | H156: =IF(G143="",IF(G142="",IF(G141="",0,1),2),3) -> 0
B157: 17
B158: 18 | D158: =IF(D152=0,IF(D153=0,IF(D154=0,IF(D155=0,IF(D156=0,0,D156),D155),D154),D153),D152) -> 0 | F158: =IF(F152=0,IF(F153=0,IF(F154=0,IF(F155=0,IF(F156=0,0,F156),F155),F154),F153),F152) -> 0 | H158: =IF(H152=0,IF(H153=0,IF(H154=0,IF(H155=0,IF(H156=0,0,H156),H155),H154),H153),H152) -> 0
B159: 19
B160: 20
B161: 21
B162: 22
B163: 23
B164: 24
B165: 25
B166: 26
B167: 27
B168: 28
B169: 29
B170: 30
B171: 31
B173: O | C173: =IF(SUM(C141:C171)=0,"",AVERAGEA(C141:C171)) ->  | E173: =IF(SUM(E141:E171)=0,"",AVERAGEA(E141:E171)) ->  | G173: =IF(SUM(G141:G171)=0,"",AVERAGEA(G141:G171)) ->  | I173: =IF(SUM(I141:I171)=0,"",AVERAGE(I141:I171)) -> 
B202: Grüne Felder: Eingabe erforderlich | G202: Laborwerte (morgendliche Nüchternwerte) / Rauchen / Bewegung
C204: Labor | E204: Werte | G204: Grenzwerte | I204: Gewohnheiten | K204: Ergebnis
C206: C-Peptid (nmol/l) | I206: Anzahl Zigaretten/Tag
B207: Blutzucker (Glukose) (mmol/l) | G207: >/= 6.1 | I207: Bewegung (Std./Wo)
B208: Gesamt-Cholesterin (mmol/l)
B209: LDL-Cholesterin (mmol/l)
B210: HDL-Cholesterin (mmol/l) | G210: =IF(E210="Frau","<1.29","<1.04") -> <1.04
B211: Triglyzeride (mmol/l) | G211: >/= 1.69
B212: CRP sensitiv (mg/l) | G212: >/= 3
B213: Mikroalbuminurie (mg/l) | G213: >/= 5
B216: Umrechnung C-Peptid: nmol/l = pmol/l / 1000
G219: Kriterien für das Vorliegen eines Metabolischen Syndroms | N219: März
C221: Merkmal | E221: Geschlecht | G221: Grenzwerte | I221: Meine Werte | K221: Kriterien erfüllt
C223: Bauchumfang | E223: ='GU-GEB'!C8 -> Frau | G223: =IF(E223="Frau",">88",">102") -> >88 | I223: =K27 ->  | K223: =IF(F88=0,"",IF(I223=0,"",IF(I223>J28,"Ja","Nein"))) ->  | M223: =IF(K223="",0,IF(K223="Nein","0","1")) -> 0
C224: HDL-Cholesterin | E224: ='GU-GEB'!C8 -> Frau | G224: =IF(E224="Frau","<1.29","<1.04") -> <1.29 | H224: =IF('GU-GEB'!C8="Mann",1.04,1.29) -> 1.29 | I224: =IF(E210=0,"",E210) ->  | K224: =IF(E210=0,"",IF(I224<H224,"Ja","Nein")) ->  | M224: =IF(K224="",0,IF(K224="Nein","0","1")) -> 0
C225: Triglyceride | G225: >/= 1.69 | I225: =IF(E211=0,"",E211) ->  | K225: =IF(E211=0,"",IF(I225>=1.69,"Ja","Nein")) ->  | M225: =IF(K225="",0,IF(K225="Nein","0","1")) -> 0
C226: Nüchternzucker | G226: >/= 6.1 | I226: =IF(E207=0,"",E207) ->  | K226: =IF(E207=0,"",IF(I226>=6.1,"Ja","Nein")) ->  | M226: =IF(K226="",0,IF(K226="Nein","0","1")) -> 0
B227: BD systolisch | G227: >/= 130 | I227: =K40 -> 
B228: BD diastolisch | G228: >/= 85 | I228: =K41 -> 
B229: BD Mittelwert | G229: >/= 107.5 | I229: =IF(F147=0,"",IF(H147=0,"",AVERAGE(I227:I228))) ->  | K229: =IF(F147=0,"",IF(H147=0,"",IF(I229=0,"",IF(I229>=108,"Ja","Nein")))) ->  | M229: =IF(K229="",0,IF(K229="Nein","0","1")) -> 0
M231: =SUM(M223+M224+M225+M226+M229) -> 0
B232: =IF(F147=0,"",IF(H147=0,"",IF(M231>=3,"Mindestens 3 Kriterien sind erfüllt. Damit liegt bei Ihnen wahrscheinlich ein Metabolisches Syndrom vor","Die Kriterien für ein Metabolisches Syndrom sind nicht erfüllt"))) -> 
G236: Kriterien für das Vorliegen einer Insulinresistenz - HOMA Index
E238: Merkmal | G238: Einheit | I238: Persönlicher Wert | K238: HOMA Index
E240: Nüchternglucose | G240: mmol/l | I240: =IF(E207=0,"",E207) -> 
E241: C-Peptid | G241: nmol/l | I241: =IF(E206=0,"",E206) ->  | K241: =IF(E206=0,"",IF(E207=0,"",(I240*I241)/2.6)) -> 
E244: HOMA Index | G244: Kriterien
E245: ≤1 | G245: normal
E246: ≥2 | G246: Hinweis auf eine Insulinresistenz
E247: ≥2.5 | G247: Insulinresistenz sehr wahrscheinlich
E248: ≥5 | G248: Durchschnittswert bei Typ 2-Diabetikern
C249: =AND(K241<=1,K241>0) -> FALSE | E249: =AND(K241>1,K241<2) -> FALSE | G249: =AND(K241>=2,K241<2.5) -> FALSE | I249: =AND(K241>=2.5,K241<5) -> FALSE | K249: =K241>=5 -> TRUE
E250: =IF(K241="","",IF(C249,"Kein Hinweis auf eine Insulinresistenz",IF(E249,"Verdacht auf beginnende Insulinresistenz",IF(G249,"Hinweis auf eine Insulinresistenz",IF(I249,"Isulinresistenz sehr wahrscheinlich",IF(K249,"Insulinresistenz sehr hoch wie bei Typ2 Diabetiker","")))))) -> 
E253: Kriterien für das Vorliegen eines Arterioskleroserisikos - Quotient Cholesterin/HDL
C255: Merkmal | E255: Meine Werte | G255: Quotient Chol/HDL | I255: Kriterien | K255: Arterioskleroserisiko
B257: Gesamt-Cholesterin (mmol/l) | E257: =IF(E208=0,"",E208) ->  | G257: =IF(E208=0,"",IF(E210=0,"",E208/E210)) ->  | I257: Quotient unter 5: | K257: gering
B258: HDL-Cholesterin (mmol/l) | E258: =IF(E210=0,"",E210) ->  | I258: Quotient über 5: | K258: erhöht
B261: =IF(E208=0,"",IF(E210=0,"",IF(G257=5,"Ihr Arterioskleroserisiko ist grenzwertig",IF(G257<5,"Ihr Arterioskleroserisiko ist nicht erhöht", IF(G257>5,"Ihr Arterioskleroserisiko ist erhöht"))))) -> 
B263: Man darf sich grundsätzlich nicht allein auf einen günstigen "Gesamtcholesterin zu HDL"-Quotienten verlassen. Hohe HDL-Werte kommen
B264: manchmal dadurch zustande, dass der HDL-vermittelte physiologische Rücktransport oxidierten LDLs aus den Gefässwänden in die Leber
B265: blockiert ist. Das Serum-HDL akkumuliert und kreist in grosser Menge im Blut, ohne seine arteriosklerosepräventive Funktion erfüllen
B266: zu können.
G270: Kriterien für das Vorliegen eines Gefässrisikos
K271: T=Treffer
B272: Merkmal | E272: Meine Werte | G272: Kriterien | H272: T | I272: Kriterien | J272: T | K272: Kriterien | L272: T
B274: Rauchen (Zigaretten/Tag) | E274: =IF(K206="","",IF(K206=0,"0",K206)) ->  | G274: 0 | H274: =IF(K206="","",IF(K206=0,1,)) ->  | I274: 1 bis 6 | J274: =IF(K206="","",IF(E274=0,0,IF(E274>=1,IF(E274<=6,1,0)))) ->  | K274: ab 7 | L274: =IF(K206="","",IF(K206=0,0,IF(K206<7,0,IF(K206>=7,1)))) -> 
B275: Bewegung (Std./Woche) | E275: =IF(K207=0,"",K207) ->  | G275: ab 3 | H275: =IF(K207="","",IF(K207<3,0,IF(K207>=3,1))) ->  | I275: 1 bis 2 | J275: =IF(K207="","",IF(K207=0,0,IF(K207>=1,IF(K207<=2,1,0)))) ->  | K275: 0 | L275: =IF(K207="","",IF(K207=0,1,0)) -> 
B276: =IF(E36="Frau","BMI Frau","") -> BMI Frau | C276: =IF(A36="Mann","Mann bis 24","Frau bis 22") -> Frau bis 22 | E276: =IF(E36="Frau",K24,"") ->  | G276: =IF(B276="","",IF(E36="Frau","Frau bis 22")) -> Frau bis 22 | H276: =IF(E276="","",IF(E276<=22,1,0)) ->  | I276: =IF(B276="","",IF(E36="Frau","Frau 22 bis 28")) -> Frau 22 bis 28 | J276: =IF(E276="","",IF(E276<=22,0,IF(E276>=28,0,IF(E276>22,IF(E276<28,1))))) ->  | K276: =IF(B276="","",IF(E36="Mann","Mann u. Frau ab 28","Mann u. Frau ab 28")) -> Mann u. Frau ab 28 | L276: =IF(E276="","",IF(E276>=28,1,0)) -> 
B277: =IF(E36="Mann","BMI Mann","") ->  | C277: =IF(A37="Mann","Mann bis 24","Frau bis 22") -> Frau bis 22 | E277: =IF(E36="Mann",K24,"") ->  | G277: =IF(B277="","",IF(E36="Mann","Mann bis 24")) ->  | H277: =IF(E277="","",IF(E277<=24,1,0)) ->  | I277: =IF(B277="","",IF(E36="Mann","Mann 24 bis 28")) ->  | J277: =IF(E277="","",IF(E277<=24,0,IF(E277>=28,0,IF(E277>=24,IF(E277<28,1,0))))) ->  | K277: =IF(B277="","",IF(E36="Mann","Mann u. Frau ab 28","Mann u. Frau ab 28")) ->  | L277: =IF(E277="","",IF(E277>=28,1,0)) -> 
B278: Blutdruck (RR) systolisch | E278: =K40 ->  | G278: bis 140 | H278: =IF(K40="","",IF(E278<=140,1,IF(E278>=141,0,))) ->  | I278: 141 - 179 | J278: =IF(K40="","",IF(E278<=140,0,IF(E278>=141,IF(E278<=179,1,0)))) ->  | K278: ab 180 | L278: =IF(K40="","",IF(E278>=180,1,0)) -> 
B279: Blutdruck (RR) diastolisch | E279: =K41 ->  | G279: bis 90 | H279: =IF(K41="","",IF(E279<=90,1,IF(E279>=91,0,))) ->  | I279: 91 - 109 | J279: =IF(K41="","",IF(E279<=90,0,IF(E279>=91,IF(E279<=109,1,0)))) ->  | K279: ab 110 | L279: =IF(K41="","",IF(E279>=110,1,0)) -> 
B280: Blutzucker (Glukose) (mmol/l) | E280: =IF(E207=0,"",E207) ->  | G280: bis 5.5 | H280: =IF(E207="","",IF(E280<=5.5,1,IF(E280>=5.6,0))) ->  | I280: 5.6 - 6.8 | J280: =IF(E207="","",IF(E280<=5.5,0,IF(E280>=5.6,IF(E280<=6.8,1,0)))) ->  | K280: ab 6.9 | L280: =IF(E207="","",IF(E280>=6.9,1,0)) -> 
B281: Gesamt-Cholesterin (mmol/l) | G281: bis 5.18 | H281: =IF(E208="","",IF(E281<=5.18,1,IF(E281>=5.19,0))) ->  | I281: 5.19 - 6.19 | J281: =IF(E208="","",IF(E281<=5.18,0,IF(E281>=5.19,IF(E281<=6.19,1,0)))) ->  | K281: ab 6.20 | L281: =IF(E208="","",IF(E281>=6.2,1,0)) -> 
B282: LDL-Cholesterin (mmol/l) | G282: bis 3.38 | H282: =IF(E209=0,"",IF(E282<=3.38,1,IF(E282>=3.39,0))) ->  | I282: 3.39 - 4.12 | J282: =IF(E209=0,"",IF(E282<=3.38,0,IF(E282>=3.39,IF(E282<=4.12,1,0)))) ->  | K282: ab 4.13 | L282: =IF(E209=0,"",IF(E282>=4.13,1,0)) -> 
B283: HDL-Cholesterin (mmol/l) | G283: ab 1.04 | H283: =IF(E210=0,"",IF(E283>=1.04,1,IF(E283<1.04,0))) ->  | I283: 0.79 - 1.03 | J283: =IF(E210=0,"",IF(E283<0.79,0,IF(E283>=1.04,0,IF(E283>=0.79,IF(E283<=1.03,1,0))))) ->  | K283: bis 0.78 | L283: =IF(E210=0,"",IF(E283<=0.78,1,0)) -> 
B284: Triglyzeride (mmol/l) | G284: bis 1.71 | H284: =IF(E211=0,"",IF(E284<=1.71,1,IF(E284>=1.72,0))) ->  | I284: 1.72 - 2.95 | J284: =IF(E211=0,"",IF(E284<=1.71,0,IF(E284>=1.72,IF(E284<=2.95,1,0)))) ->  | K284: ab 2.96 | L284: =IF(E211=0,"",IF(E284>=2.96,1,0)) -> 
B285: CRP sensitiv (mg/l) | G285: 0 bis 3 | H285: =IF(E212="","",IF(E212=0,1,IF(E212>=0,IF(E212<=3,1,0)))) ->  | I285: 4 bis 9 | J285: =IF(E212="","",IF(E212=0,0,IF(E285<=3,0,IF(E285>=4,IF(E285<=9,1,0))))) ->  | K285: ab 10 | L285: =IF(E212="","",IF(E212=0,0,IF(E285>=10,1,0))) -> 
G287: Treffer gelb | H287: =SUM(H274:H285) -> 0 | I287: Treffer x 1= | K287: =H287*1 -> 0
G288: Treffer blau | H288: =SUM(J274:J285) -> 0 | I288: Treffer x 2= | K288: =H288*2 -> 0
G289: Treffer rot | H289: =SUM(L274:L285) -> 0 | I289: Treffer x 3= | K289: =H289*3 -> 0
G291: Gesamtpunkte | I291: = | K291: =SUM(K287:K289) -> 0
C294: Risiko | E294: Gesamtpunkte | G294: Ihr persönliches Risikoprofil
C296: sehr gering | E296: 11 | G296: =IF(K291=E296,"Kein Risiko für Gefässerkrankung","") -> 
E297: 12 | G297: =IF(K291=E297,"Ihr Resultat: Risiko für Gefässerkrankung sehr gering","") -> 
E298: 13 | G298: =IF(K291=E298,"Risiko für Gefässerkrankung sehr gering","") -> 
E299: 14 | G299: =IF(K291=E299,"Risiko für Gefässerkrankung sehr gering","") -> 
E300: 15 | G300: =IF(K291=E300,"Risiko für Gefässerkrankung gering","") -> 
E301: 16 | G301: =IF(K291=E301,"Risiko für Gefässerkrankung gering","") -> 
E302: 17 | G302: =IF(K291=E302,"Risiko für Gefässerkrankung gering","") -> 
E303: 18 | G303: =IF(K291=E303,"Risiko mittel","") -> 
E304: 19 | G304: =IF(K291=E304,"Risiko für Gefässerkrankung mittel","") -> 
E305: 20 | G305: =IF(K291=E305,"Risiko für eine Gefässerkrankung mittel","") -> 
C306: mittel | E306: 21 | G306: =IF(K291=E306,"Risiko für Gefässerkrankung mittel","") -> 
E307: 22 | G307: =IF(K291=E307,"Risiko für Gefässerkrankung mittel","") -> 
E308: 23 | G308: =IF(K291=E308,"Risiko für Gefässerkrankung mittel","") -> 
E309: 24 | G309: =IF(K291=E309,"Risiko für Gefässerkrankung mittel","") -> 
E310: 25 | G310: =IF(K291=E310,"Ihr Resultat: Risiko für Gefässerkrankung hoch","") -> 
E311: 26 | G311: =IF(K291=E311,"Risiko für Gefässerkrankung hoch","") -> 
E312: 27 | G312: =IF(K291=E312,"Risiko für Gefässerkrankung hoch","") -> 
E313: 28 | G313: =IF(K291=E313,"Risiko für Gefässerkrankung hoch","") -> 
E314: 29 | G314: =IF(K291=E314,"Risiko für Gefässerkrankung hoch","") -> 
E315: 30 | G315: =IF(K291=E315,"Risiko für Gefässerkrankung sehr hoch","") -> 
E316: 31 | G316: =IF(K291=E316,"Risiko für Gefässerkrankung sehr hoch","") -> 
E317: 32 | G317: =IF(K291=E317,"Risiko für Gefässerkrankung sehr hoch","") -> 
C318: hoch | E318: 33 | G318: =IF(K291=E318,"Risiko für Gefässerkrankung extrem hoch","") -> 

Sheet April
B2: Monat: April
I3: Grüne Felder: Eingabe erforderlich
C4: Jahresziel: | E4: =IF(Jahr!J4=0,"",Jahr!J4) -> 82 | G4: Monatsziel: | I4: 86 | N4: Das moderne Gewichtscoaching:
E6: Kommentar | I6: Veränderung | K6: Ergebnis | N6: XLS - von XL bis S
B8: =IF(D88=0,"",IF(K21=0,"",IF(K22=0,"",IF(K22=K21,"Gewicht gleichbleibend",IF(K22<K21,"Sie haben abgenommen! Bravo!",IF(K22>K21,"")))))) ->  | G8: Abgenommen: | K8: =IF(D88=0,"",IF(K22=0,"",IF(K22-K21=0,"0kg",IF(K22>K21,"",K21-K22)))) ->  | N8: Ernährung und Bewegung
B9: =IF(D88=0,"",IF(K21=0,"",IF(K22=0,"",IF(K22=K21,"Gewicht gleichbleibend",IF(K22>K21,"Sie haben zugenommen. Arbeiten Sie an sich!",IF(K22<K21,"")))))) ->  | G9: Zugenommen: | K9: =IF(D88=0,"",IF(K22=0,"",IF(K22-K21=0,"0kg",IF(K22<K21,"",K22-K21)))) -> 
B11: =IF(D88=0,"",IF(K21=0,"",IF(K22=0,"",IF(K22>I4,"Monatsziel noch nicht erreicht!",IF(K22=I4,"Monatsziel erreicht. Bravo!",IF(K22<I4,"Monatsziel sogar unterschritten!")))))) ->  | G11: Vom Monatsziel entfernt um + / -: | K11: =IF(D88=0,"",IF(K22=0,"",IF(K22=I4,"0",K22-I4))) ->  | N11: Psyche und Schlaf
B12: =IF(D88=0,"",IF(K21=0,"",IF(K22=0,"",IF(K22=E4,"Jahresziel erreicht! Gratuliere!",IF(K22>E4,"Jahresziel noch nicht erreicht! Bleiben Sie dran!",IF(K22<E4,"Jahrsziel sogar unterschritten!")))))) ->  | G12: Vom Jahresziel entfernt um + / -: | K12: =IF(D88=0,"",IF(K22=0,"",IF(K22=E4,"0",K22-E4))) -> 
G14: Gewicht - Monatsdurchschnitt: | K14: =IF(SUM(C82:C112)=0,"",AVERAGEA(C82:C112)) ->  | N14: Motivation: XLS Software
I19: Erste - Letzte Messung im Monat | K19: Monatsprofil | N19: Unterstützung
B21: Ihr Gewicht bei BMI-Ideal 22: | E21: =IF('GU-GEB'!C10=0,"",22*(('GU-GEB'!C10/100)^2)) ->  | G21: Gewicht - Erste Messung im Monat: | K21: =IF(D88=0,"",INDEX(C82:C112,D88,1)) ->  | N21: Granuvital "Fit&Schlank" SevisanaLine
B22: Ihr Gewicht bei BMI-Ideal 25: | E22: =IF('GU-GEB'!C10=0,"",25*(('GU-GEB'!C10/100)^2)) ->  | G22: Gewicht - Letzte Messung im Monat: | K22: =IF(D99=0,"",INDEX(C82:C112,D99,1)) -> 
B24: Vom BMI Ideal 22 entfernt: | E24: =IF(L88=0,"",IF(K24=0,"",IF(K24-22=0,"0",K24-22))) ->  | G24: BMI - Erste Messung im Monat: | K24: =IF(L88=0,"",INDEX(K82:K112,L88,1)) ->  | N24: X-Form und X-Form Plus SevisanaLine
B25: Vom BMI Ideal 22 entfernt: | E25: =IF(L99=0,"",IF(K25=0,"",IF(K25-22=0,"0",K25-22))) ->  | G25: BMI - Letzte Messung im Monat: | K25: =IF(L99=0,"",INDEX(K82:K112,L99,1)) -> 
B27: Vom Idealwert entfernt: | E27: =IF(F88=0,"",IF(K27=0,"",IF(K28=0,"",IF(K27-J27=0,"0cm",K27-J27)))) ->  | G27: Bauchumfang - Erste Messung im Monat: | J27: =IF('GU-GEB'!C8="Mann",94,80) -> 80 | K27: =IF(F88=0,"",INDEX(E82:E112,F88,1)) ->  | N27: Reine Flohsamenschalen SevisanaLine
B28: Vom Idealwert entfernt: | E28: =IF(F99=0,"",IF(K27=0,"",IF(K28=0,"",IF(K28-J27=0,"0cm",K28-J27)))) ->  | G28: Bauchumfang - Letzte Messung im Monat: | J28: =IF('GU-GEB'!C8="Mann",102,88) -> 88 | K28: =IF(F99=0,"",INDEX(E82:E112,F99,1)) -> 
G30: Hüftumfang - Erste Messung im Monat: | K30: =IF(H88=0,"",INDEX(G82:G112,H88,1)) ->  | N30: Basenpulver nach Dr. Eichhorn
G31: Hüftumfang - Letzte Messung im Monat: | K31: =IF(H99=0,"",INDEX(G82:G112,H99,1)) -> 
B33: Vom B/H Idealwert entfernt: | E33: =IF(J88=0,"",IF(K33=0,"",IF(K33-G36=0,"0",K33-G36))) ->  | G33: B/H - Erste Messung im Monat: | K33: =IF(J88=0,"",INDEX(I82:I112,J88,1)) ->  | N33: Produkteinformation | P33: www.sevisana.ch
B34: Vom B/H Idealwert entfernt: | E34: =IF(J99=0,"",IF(K34=0,"",IF(K34-G36=0,"0",K34-G36))) ->  | G34: B/H - Letzte Messung im Monat: | K34: =IF(J99=0,"",INDEX(I82:I112,J99,1)) -> 
B36: B/H Ziel gleich/kleiner als: | E36: ='GU-GEB'!C8 -> Frau | G36: =IF(E36="Frau",0.85,1) -> 0.85
G40: Blutdruck systolisch - Erste Messung | K40: =IF(F147=0,"",INDEX(E141:E171,F147,1)) ->  | N40: Bestellung | P40: www.sevisana.ch
G41: Blutdruck diastolisch - Erste Messung | K41: =IF(H147=0,"",INDEX(G141:G171,H147,1)) -> 
G43: Blutdruck systolisch - Letzte Messung | K43: =IF(F158=0,"",INDEX(E141:IE171,F158,1)) -> 
G44: Blutdruck diastolisch - Letzte Messung | K44: =IF(H158=0,"",INDEX(G141:IG171,H158,1)) ->  | N44: Direktbestellung | P44: http://shop.sevisana.ch
G47: Puls - Erste Messung | K47: =IF(D147=0,"",INDEX(C141:C171,D147,1)) -> 
G48: Puls - Letzte Messung | K48: =IF(D158=0,"",INDEX(C141:C171,D158,1)) ->  | N48: Medizinwissen | P48: www.ever.ch
C53: Tendenzen | G53: Verlauf in diesem Monat
B55: Tendenzen Ende Monat: | E55: Gewicht: | G55: =IF(D88=0,"",IF(K21=0,"",IF(K22=0,"",IF(K22<K21,"Gewicht fällt. Bravo!",IF(K22=K21,"Gewicht gleichbleibend",IF(K22>K21,"Achtung! Gewicht steigt. Risiko!")))))) -> 
E56: BMI: | G56: =IF(D88=0,"",IF(K24=0,"",IF(K25=0,"",IF(K25<K24,"BMI fällt. Bravo!",IF(K25=K24,"BMI gleichbleibend",IF(K25>K24,"BMI steigt. Ihre Gesundheit ist gefährdet!")))))) -> 
E57: Bauchumfang: | G57: =IF(F88=0,"",IF(K27=0,"",IF(K28=0,"",IF(K28<K27,"Bauchumfang wird kleiner. Bravo!",IF(K28=K27,"Bauchumfang gleichbleibend",IF(K28>K27,"Achtung! Bauchumfang nimmt zu",IF(K28<=J27,"Normalwert"))))))) -> 
E58: B/H: | G58: =IF(J88=0,"",IF(K33=0,"",IF(K34=0,"",IF(K34<K33,"B/H Verältnis wird kleiner. Bravo!",IF(K34=K33,"B/H Verältnis gleichbleibend",IF(K34>K33,"Achtung! B/H Verhältnis nimmt zu")))))) -> 
C60: Risiko Anfang Monat: | E60: BMI: | G60: =IF(D88=0,"",IF(K24=0,"",IF(K24>=40,"Grad III: Schwere Adipositas",IF(K24>=30,"Grad II: Adipositas",IF(K24>=25,"Grad I: Übergewicht",IF(K24>=20,"Normalgewcht",IF(K24<20,"Untergewicht",))))))) -> 
E61: Bauchumfang: | G61: =IF(F88=0,"",IF(K27=0,"",IF(K27>=J28,"Gesundheitsrisiko hoch",IF(K27>=J27,"Gesundheitsrisiko erhöht",IF(K27<J27,"Kein Gesundheitsrisiko"))))) -> 
E62: B/H: | G62: =IF(J88=0,"",IF(K33=0,"",IF(K33>G36,"Gesundheitsrisiko erhöht",IF(K33=G36,"Grenzwert zu Gesundheitsrisiko erhöht",IF(K33<G36,"Kein Gesundheitsrisiko"))))) -> 
C64: Risiko Ende Monat: | E64: BMI: | G64: =IF(D88=0,"",IF(K25=0,"",IF(K25>=40,"Grad III: Schwere Adipositas",IF(K25>=30,"Grad II: Adipositas",IF(K25>=25,"Grad I: Übergewicht",IF(K25>=20,"Normalgewicht",IF(K25<20,"Untergewicht",))))))) -> 
E65: Bauchumfang: | G65: =IF(F88=0,"",IF(K28=0,"",IF(K28>=J28,"Gesundheitsrisiko hoch",IF(K28>=J27,"Gesundheitsrisiko erhöht",IF(K28<J27,"Kein Gesundheitsrisiko"))))) -> 
E66: B/H: | G66: =IF(J88=0,"",IF(K34=0,"",IF(K34>G36,"Gesundheitsrisiko erhöht",IF(K34=G36,"Grenzwert zu Gesundheitsrisiko erhöht",IF(K34<G36,"Kein Gesundheitsrisiko"))))) -> 
B71: Risiko | E71: Ihr persönliches Risikoprofil
B73: Metabolisches Syndrom | E73: =IF(F147=0,"",B232) -> 
B74: Insulinresistenz | E74: =IF(E206=0,"",IF(E207=0,"",E250)) -> 
B75: Arterioskleroserisiko | E75: =IF(E208=0,"",IF(E210=0,"",B261)) -> 
B76: Gefässrisiko | E76: =IF(K291<11,"",IF(K291=0,"",IF(K291>=11,IF(K291<=17,"Gefässrisiko im unteren Bereich",IF(K291>=18,IF(K291<=24,"Gefässrisiko im mittleren Bereich",IF(K291>=25,"Gefässrisiko im hohen Bereich"))))))) -> 
B81: Tag | C81: Gewicht | E81: Bauchumfang | G81: Hüftumfang | I81: B/H Verhältnis | K81: BMI
B82: 1 | D82: =IF(C82="",IF(C83="",IF(C84="",IF(C85="",IF(C86="",IF(C87="",IF(C88="",0,7),6),5),4),3),2),1) -> 0 | F82: =IF(E82="",IF(E83="",IF(E84="",IF(E85="",IF(E86="",IF(E87="",IF(E88="",0,7),6),5),4),3),2),1) -> 0 | H82: =IF(G82="",IF(G83="",IF(G84="",IF(G85="",IF(G86="",IF(G87="",IF(G88="",0,7),6),5),4),3),2),1) -> 0 | I82: =IF(E82=0,"",IF(G82=0,"",E82/G82)) ->  | J82: =IF(I82="",IF(I83="",IF(I84="",IF(I85="",IF(I86="",IF(I87="",IF(I88="",0,7),6),5),4),3),2),1) -> 0 | K82: =IF(C82=0,"",C82/(('GU-GEB'!C10/100)^2)) ->  | L82: =IF(K82="",IF(K83="",IF(K84="",IF(K85="",IF(K86="",IF(K87="",IF(K88="",0,7),6),5),4),3),2),1) -> 0
B83: 2 | D83: =IF(C89="",IF(C90="",IF(C91="",IF(C92="",IF(C93="",IF(C94="",IF(C95="",0,14),13),12),11),10),9),8) -> 0 | F83: =IF(E89="",IF(E90="",IF(E91="",IF(E92="",IF(E93="",IF(E94="",IF(E95="",0,14),13),12),11),10),9),8) -> 0 | H83: =IF(G89="",IF(G90="",IF(G91="",IF(G92="",IF(G93="",IF(G94="",IF(G95="",0,14),13),12),11),10),9),8) -> 0 | J83: =IF(I89="",IF(I90="",IF(I91="",IF(I92="",IF(I93="",IF(I94="",IF(I95="",0,14),13),12),11),10),9),8) -> 0 | K83: =IF(C83=0,"",C83/(('GU-GEB'!C10/100)^2)) ->  | L83: =IF(K89="",IF(K90="",IF(K91="",IF(K92="",IF(K93="",IF(K94="",IF(K95="",0,14),13),12),11),10),9),8) -> 0
B84: 3 | D84: =IF(C96="",IF(C97="",IF(C98="",IF(C99="",IF(C100="",IF(C101="",IF(C102="",0,21),20),19),18),17),16),15) -> 0 | F84: =IF(E96="",IF(E97="",IF(E98="",IF(E99="",IF(E100="",IF(E101="",IF(E102="",0,21),20),19),18),17),16),15) -> 0 | H84: =IF(G96="",IF(G97="",IF(G98="",IF(G99="",IF(G100="",IF(G101="",IF(G102="",0,21),20),19),18),17),16),15) -> 0 | J84: =IF(I96="",IF(I97="",IF(I98="",IF(I99="",IF(I100="",IF(I101="",IF(I102="",0,21),20),19),18),17),16),15) -> 0 | K84: =IF(C84=0,"",C84/(('GU-GEB'!C10/100)^2)) ->  | L84: =IF(K96="",IF(K97="",IF(K98="",IF(K99="",IF(K100="",IF(K101="",IF(K102="",0,21),20),19),18),17),16),15) -> 0
B85: 4 | D85: =IF(C103="",IF(C104="",IF(C105="",IF(C106="",IF(C107="",IF(C108="",IF(C109="",0,28),27),26),25),24),23),22) -> 0 | F85: =IF(E103="",IF(E104="",IF(E105="",IF(E106="",IF(E107="",IF(E108="",IF(E109="",0,28),27),26),25),24),23),22) -> 0 | H85: =IF(G103="",IF(G104="",IF(G105="",IF(G106="",IF(G107="",IF(G108="",IF(G109="",0,28),27),26),25),24),23),22) -> 0 | J85: =IF(I103="",IF(I104="",IF(I105="",IF(I106="",IF(I107="",IF(I108="",IF(I109="",0,28),27),26),25),24),23),22) -> 0 | K85: =IF(C85=0,"",C85/(('GU-GEB'!C10/100)^2)) ->  | L85: =IF(K103="",IF(K104="",IF(K105="",IF(K106="",IF(K107="",IF(K108="",IF(K109="",0,28),27),26),25),24),23),22) -> 0
B86: 5 | D86: =IF(C110="",IF(C111="",IF(C112="",0,31),30),29) -> 0 | F86: =IF(E110="",IF(E111="",IF(E112="",0,31),30),29) -> 0 | H86: =IF(G110="",IF(G111="",IF(G112="",0,31),30),29) -> 0 | J86: =IF(I110="",IF(I111="",IF(I112="",0,31),30),29) -> 0 | K86: =IF(C86=0,"",C86/(('GU-GEB'!C10/100)^2)) ->  | L86: =IF(K110="",IF(K111="",IF(K112="",0,31),30),29) -> 0
B87: 6 | K87: =IF(C87=0,"",C87/(('GU-GEB'!C10/100)^2)) -> 
B88: 7 | D88: =IF(D82=0,IF(D83=0,IF(D84=0,IF(D85=0,IF(D86=0,0,D86),D85),D84),D83),D82) -> 0 | F88: =IF(F82=0,IF(F83=0,IF(F84=0,IF(F85=0,IF(F86=0,0,F86),F85),F84),F83),F82) -> 0 | H88: =IF(H82=0,IF(H83=0,IF(H84=0,IF(H85=0,IF(H86=0,0,H86),H85),H84),H83),H82) -> 0 | J88: =IF(J82=0,IF(J83=0,IF(J84=0,IF(J85=0,IF(J86=0,0,J86),J85),J84),J83),J82) -> 0 | K88: =IF(C88=0,"",C88/(('GU-GEB'!C10/100)^2)) ->  | L88: =IF(L82=0,IF(L83=0,IF(L84=0,IF(L85=0,IF(L86=0,0,L86),L85),L84),L83),L82) -> 0
B89: 8 | K89: =IF(C89=0,"",C89/(('GU-GEB'!C10/100)^2)) -> 
B90: 9 | K90: =IF(C90=0,"",C90/(('GU-GEB'!C10/100)^2)) -> 
B91: 10 | K91: =IF(C91=0,"",C91/(('GU-GEB'!C10/100)^2)) -> 
B92: 11 | K92: =IF(C92=0,"",C92/(('GU-GEB'!C10/100)^2)) -> 
B93: 12 | D93: =IF(C112="",IF(C111="",IF(C110="",IF(C109="",IF(C108="",IF(C107="",IF(C106="",0,25),26),27),28),29),30),31) -> 0 | F93: =IF(E112="",IF(E111="",IF(E110="",IF(E109="",IF(E108="",IF(E107="",IF(E106="",0,25),26),27),28),29),30),31) -> 0 | H93: =IF(G112="",IF(G111="",IF(G110="",IF(G109="",IF(G108="",IF(G107="",IF(G106="",0,25),26),27),28),29),30),31) -> 0 | J93: =IF(I112="",IF(I111="",IF(I110="",IF(I109="",IF(I108="",IF(I107="",IF(I106="",0,25),26),27),28),29),30),31) -> 0 | K93: =IF(C93=0,"",C93/(('GU-GEB'!C10/100)^2)) ->  | L93: =IF(K112="",IF(K111="",IF(K110="",IF(K109="",IF(K108="",IF(K107="",IF(K106="",0,25),26),27),28),29),30),31) -> 0
B94: 13 | D94: =IF(C105="",IF(C104="",IF(C103="",IF(C102="",IF(C101="",IF(C100="",IF(C99="",0,18),19),20),21),22),23),24) -> 0 | F94: =IF(E105="",IF(E104="",IF(E103="",IF(E102="",IF(E101="",IF(E100="",IF(E99="",0,18),19),20),21),22),23),24) -> 0 | H94: =IF(G105="",IF(G104="",IF(G103="",IF(G102="",IF(G101="",IF(G100="",IF(G99="",0,18),19),20),21),22),23),24) -> 0 | J94: =IF(I105="",IF(I104="",IF(I103="",IF(I102="",IF(I101="",IF(I100="",IF(I99="",0,18),19),20),21),22),23),24) -> 0 | K94: =IF(C94=0,"",C94/(('GU-GEB'!C10/100)^2)) ->  | L94: =IF(K105="",IF(K104="",IF(K103="",IF(K102="",IF(K101="",IF(K100="",IF(K99="",0,18),19),20),21),22),23),24) -> 0
B95: 14 | D95: =IF(C98="",IF(C97="",IF(C96="",IF(C95="",IF(C94="",IF(C93="",IF(C92="",0,11),12),13),14),15),16),17) -> 0 | F95: =IF(E98="",IF(E97="",IF(E96="",IF(E95="",IF(E94="",IF(E93="",IF(E92="",0,11),12),13),14),15),16),17) -> 0 | H95: =IF(G98="",IF(G97="",IF(G96="",IF(G95="",IF(G94="",IF(G93="",IF(G92="",0,11),12),13),14),15),16),17) -> 0 | J95: =IF(I98="",IF(I97="",IF(I96="",IF(I95="",IF(I94="",IF(I93="",IF(I92="",0,11),12),13),14),15),16),17) -> 0 | K95: =IF(C95=0,"",C95/(('GU-GEB'!C10/100)^2)) ->  | L95: =IF(K98="",IF(K97="",IF(K96="",IF(K95="",IF(K94="",IF(K93="",IF(K92="",0,11),12),13),14),15),16),17) -> 0
B96: 15 | D96: =IF(C91="",IF(C90="",IF(C89="",IF(C88="",IF(C87="",IF(C86="",IF(C85="",0,4),5),6),7),8),9),10) -> 0 | F96: =IF(E91="",IF(E90="",IF(E89="",IF(E88="",IF(E87="",IF(E86="",IF(E85="",0,4),5),6),7),8),9),10) -> 0 | H96: =IF(G91="",IF(G90="",IF(G89="",IF(G88="",IF(G87="",IF(G86="",IF(G85="",0,4),5),6),7),8),9),10) -> 0 | J96: =IF(I91="",IF(I90="",IF(I89="",IF(I88="",IF(I87="",IF(I86="",IF(I85="",0,4),5),6),7),8),9),10) -> 0 | K96: =IF(C96=0,"",C96/(('GU-GEB'!C10/100)^2)) ->  | L96: =IF(K91="",IF(K90="",IF(K89="",IF(K88="",IF(K87="",IF(K86="",IF(K85="",0,4),5),6),7),8),9),10) -> 0
B97: 16 | D97: =IF(C84="",IF(C83="",IF(C82="",0,1),2),3) -> 0 | F97: =IF(E84="",IF(E83="",IF(E82="",0,1),2),3) -> 0 | H97: =IF(G84="",IF(G83="",IF(G82="",0,1),2),3) -> 0 | J97: =IF(I84="",IF(I83="",IF(I82="",0,1),2),3) -> 0 | K97: =IF(C97=0,"",C97/(('GU-GEB'!C10/100)^2)) ->  | L97: =IF(K84="",IF(K83="",IF(K82="",0,1),2),3) -> 0
B98: 17 | K98: =IF(C98=0,"",C98/(('GU-GEB'!C10/100)^2)) -> 
B99: 18 | D99: =IF(D93=0,IF(D94=0,IF(D95=0,IF(D96=0,IF(D97=0,0,D97),D96),D95),D94),D93) -> 0 | F99: =IF(F93=0,IF(F94=0,IF(F95=0,IF(F96=0,IF(F97=0,0,F97),F96),F95),F94),F93) -> 0 | H99: =IF(H93=0,IF(H94=0,IF(H95=0,IF(H96=0,IF(H97=0,0,H97),H96),H95),H94),H93) -> 0 | J99: =IF(J93=0,IF(J94=0,IF(J95=0,IF(J96=0,IF(J97=0,0,J97),J96),J95),J94),J93) -> 0 | K99: =IF(C99=0,"",C99/(('GU-GEB'!C10/100)^2)) ->  | L99: =IF(L93=0,IF(L94=0,IF(L95=0,IF(L96=0,IF(L97=0,0,L97),L96),L95),L94),L93) -> 0
B100: 19 | K100: =IF(C100=0,"",C100/(('GU-GEB'!C10/100)^2)) -> 
B101: 20 | K101: =IF(C101=0,"",C101/(('GU-GEB'!C10/100)^2)) -> 
B102: 21 | K102: =IF(C102=0,"",C102/(('GU-GEB'!C10/100)^2)) -> 
B103: 22 | K103: =IF(C103=0,"",C103/(('GU-GEB'!C10/100)^2)) -> 
B104: 23 | K104: =IF(C104=0,"",C104/(('GU-GEB'!C10/100)^2)) -> 
B105: 24 | K105: =IF(C105=0,"",C105/(('GU-GEB'!C10/100)^2)) -> 
B106: 25 | K106: =IF(C106=0,"",C106/(('GU-GEB'!C10/100)^2)) -> 
B107: 26 | K107: =IF(C107=0,"",C107/(('GU-GEB'!C10/100)^2)) -> 
B108: 27 | K108: =IF(C108=0,"",C108/(('GU-GEB'!C10/100)^2)) -> 
B109: 28 | K109: =IF(C109=0,"",C109/(('GU-GEB'!C10/100)^2)) -> 
B110: 29 | K110: =IF(C110=0,"",C110/(('GU-GEB'!C10/100)^2)) -> 
B111: 30 | K111: =IF(C111=0,"",C111/(('GU-GEB'!C10/100)^2)) -> 
B112: 31 | K112: =IF(C112=0,"",C112/(('GU-GEB'!C10/100)^2)) -> 
B140: Tag | C140: Puls | E140: BD systolisch | G140: BD diastolisch | I140: BD Mittelwert
B141: 1 | D141: =IF(C141="",IF(C142="",IF(C143="",IF(C144="",IF(C145="",IF(C146="",IF(C147="",0,7),6),5),4),3),2),1) -> 0 | F141: =IF(E141="",IF(E142="",IF(E143="",IF(E144="",IF(E145="",IF(E146="",IF(E147="",0,7),6),5),4),3),2),1) -> 0 | H141: =IF(G141="",IF(G142="",IF(G143="",IF(G144="",IF(G145="",IF(G146="",IF(G147="",0,7),6),5),4),3),2),1) -> 0 | I141: =IF(E141=0,"",IF(G141=0,"",AVERAGEA(E141,G141))) -> 
B142: 2 | D142: =IF(C148="",IF(C149="",IF(C150="",IF(C151="",IF(C152="",IF(C153="",IF(C154="",0,14),13),12),11),10),9),8) -> 0 | F142: =IF(E148="",IF(E149="",IF(E150="",IF(E151="",IF(E152="",IF(E153="",IF(E154="",0,14),13),12),11),10),9),8) -> 0 | H142: =IF(G148="",IF(G149="",IF(G150="",IF(G151="",IF(G152="",IF(G153="",IF(G154="",0,14),13),12),11),10),9),8) -> 0
B143: 3 | D143: =IF(C155="",IF(C156="",IF(C157="",IF(C158="",IF(C159="",IF(C160="",IF(C161="",0,21),20),19),18),17),16),15) -> 0 | F143: =IF(E155="",IF(E156="",IF(E157="",IF(E158="",IF(E159="",IF(E160="",IF(E161="",0,21),20),19),18),17),16),15) -> 0 | H143: =IF(G155="",IF(G156="",IF(G157="",IF(G158="",IF(G159="",IF(G160="",IF(G161="",0,21),20),19),18),17),16),15) -> 0
B144: 4 | D144: =IF(C162="",IF(C163="",IF(C164="",IF(C165="",IF(C166="",IF(C167="",IF(C168="",0,28),27),26),25),24),23),22) -> 0 | F144: =IF(E162="",IF(E163="",IF(E164="",IF(E165="",IF(E166="",IF(E167="",IF(E168="",0,28),27),26),25),24),23),22) -> 0 | H144: =IF(G162="",IF(G163="",IF(G164="",IF(G165="",IF(G166="",IF(G167="",IF(G168="",0,28),27),26),25),24),23),22) -> 0
B145: 5 | D145: =IF(C169="",IF(C170="",IF(C171="",0,31),30),29) -> 0 | F145: =IF(E169="",IF(E170="",IF(E171="",0,31),30),29) -> 0 | H145: =IF(G169="",IF(G170="",IF(G171="",0,31),30),29) -> 0
B146: 6
B147: 7 | D147: =IF(D141=0,IF(D142=0,IF(D143=0,IF(D144=0,IF(D145=0,0,D145),D144),D143),D142),D141) -> 0 | F147: =IF(F141=0,IF(F142=0,IF(F143=0,IF(F144=0,IF(F145=0,0,F145),F144),F143),F142),F141) -> 0 | H147: =IF(H141=0,IF(H142=0,IF(H143=0,IF(H144=0,IF(H145=0,0,H145),H144),H143),H142),H141) -> 0
B148: 8
B149: 9
B150: 10
B151: 11
B152: 12 | D152: =IF(C171="",IF(C170="",IF(C169="",IF(C168="",IF(C167="",IF(C166="",IF(C165="",0,25),26),27),28),29),30),31) -> 0 | F152: =IF(E171="",IF(E170="",IF(E169="",IF(E168="",IF(E167="",IF(E166="",IF(E165="",0,25),26),27),28),29),30),31) -> 0 | H152: =IF(G171="",IF(G170="",IF(G169="",IF(G168="",IF(G167="",IF(G166="",IF(G165="",0,25),26),27),28),29),30),31) -> 0
B153: 13 | D153: =IF(C164="",IF(C163="",IF(C162="",IF(C161="",IF(C160="",IF(C159="",IF(C158="",0,18),19),20),21),22),23),24) -> 0 | F153: =IF(E164="",IF(E163="",IF(E162="",IF(E161="",IF(E160="",IF(E159="",IF(E158="",0,18),19),20),21),22),23),24) -> 0 | H153: =IF(G164="",IF(G163="",IF(G162="",IF(G161="",IF(G160="",IF(G159="",IF(G158="",0,18),19),20),21),22),23),24) -> 0
B154: 14 | D154: =IF(C157="",IF(C156="",IF(C155="",IF(C154="",IF(C153="",IF(C152="",IF(C151="",0,11),12),13),14),15),16),17) -> 0 | F154: =IF(E157="",IF(E156="",IF(E155="",IF(E154="",IF(E153="",IF(E152="",IF(E151="",0,11),12),13),14),15),16),17) -> 0 | H154: =IF(G157="",IF(G156="",IF(G155="",IF(G154="",IF(G153="",IF(G152="",IF(G151="",0,11),12),13),14),15),16),17) -> 0
B155: 15 | D155: =IF(C150="",IF(C149="",IF(C148="",IF(C147="",IF(C146="",IF(C145="",IF(C144="",0,4),5),6),7),8),9),10) -> 0 | F155: =IF(E150="",IF(E149="",IF(E148="",IF(E147="",IF(E146="",IF(E145="",IF(E144="",0,4),5),6),7),8),9),10) -> 0 | H155: =IF(G150="",IF(G149="",IF(G148="",IF(G147="",IF(G146="",IF(G145="",IF(G144="",0,4),5),6),7),8),9),10) -> 0
B156: 16 | D156: =IF(C143="",IF(C142="",IF(C141="",0,1),2),3) -> 0 | F156: =IF(E143="",IF(E142="",IF(E141="",0,1),2),3) -> 0 | H156: =IF(G143="",IF(G142="",IF(G141="",0,1),2),3) -> 0
B157: 17
B158: 18 | D158: =IF(D152=0,IF(D153=0,IF(D154=0,IF(D155=0,IF(D156=0,0,D156),D155),D154),D153),D152) -> 0 | F158: =IF(F152=0,IF(F153=0,IF(F154=0,IF(F155=0,IF(F156=0,0,F156),F155),F154),F153),F152) -> 0 | H158: =IF(H152=0,IF(H153=0,IF(H154=0,IF(H155=0,IF(H156=0,0,H156),H155),H154),H153),H152) -> 0
B159: 19
B160: 20
B161: 21
B162: 22
B163: 23
B164: 24
B165: 25
B166: 26
B167: 27
B168: 28
B169: 29
B170: 30
B171: 31
B173: O | C173: =IF(SUM(C141:C171)=0,"",AVERAGEA(C141:C171)) ->  | E173: =IF(SUM(E141:E171)=0,"",AVERAGEA(E141:E171)) ->  | G173: =IF(SUM(G141:G171)=0,"",AVERAGEA(G141:G171)) ->  | I173: =IF(SUM(I141:I171)=0,"",AVERAGE(I141:I171)) -> 
B202: Grüne Felder: Eingabe erforderlich | G202: Laborwerte (morgendliche Nüchternwerte) / Rauchen / Bewegung
C204: Labor | E204: Werte | G204: Grenzwerte | I204: Gewohnheiten | K204: Ergebnis
C206: C-Peptid (nmol/l) | I206: Anzahl Zigaretten/Tag
B207: Blutzucker (Glukose) (mmol/l) | G207: >/= 6.1 | I207: Bewegung (Std./Wo)
B208: Gesamt-Cholesterin (mmol/l)
B209: LDL-Cholesterin (mmol/l)
B210: HDL-Cholesterin (mmol/l) | G210: =IF(E210="Frau","<1.29","<1.04") -> <1.04
B211: Triglyzeride (mmol/l) | G211: >/= 1.69
B212: CRP sensitiv (mg/l) | G212: >/= 3
B213: Mikroalbuminurie (mg/l) | G213: >/= 5
B216: Umrechnung C-Peptid: nmol/l = pmol/l / 1000
G219: Kriterien für das Vorliegen eines Metabolischen Syndroms
C221: Merkmal | E221: Geschlecht | G221: Grenzwerte | I221: Meine Werte | K221: Kriterien erfüllt
C223: Bauchumfang | E223: ='GU-GEB'!C8 -> Frau | G223: =IF(E223="Frau",">88",">102") -> >88 | I223: =K27 ->  | K223: =IF(F88=0,"",IF(I223=0,"",IF(I223>J28,"Ja","Nein"))) ->  | M223: =IF(K223="",0,IF(K223="Nein","0","1")) -> 0
C224: HDL-Cholesterin | E224: ='GU-GEB'!C8 -> Frau | G224: =IF(E224="Frau","<1.29","<1.04") -> <1.29 | H224: =IF('GU-GEB'!C8="Mann",1.04,1.29) -> 1.29 | I224: =IF(E210=0,"",E210) ->  | K224: =IF(E210=0,"",IF(I224<H224,"Ja","Nein")) ->  | M224: =IF(K224="",0,IF(K224="Nein","0","1")) -> 0
C225: Triglyceride | G225: >/= 1.69 | I225: =IF(E211=0,"",E211) ->  | K225: =IF(E211=0,"",IF(I225>=1.69,"Ja","Nein")) ->  | M225: =IF(K225="",0,IF(K225="Nein","0","1")) -> 0
C226: Nüchternzucker | G226: >/= 6.1 | I226: =IF(E207=0,"",E207) ->  | K226: =IF(E207=0,"",IF(I226>=6.1,"Ja","Nein")) ->  | M226: =IF(K226="",0,IF(K226="Nein","0","1")) -> 0
B227: BD systolisch | G227: >/= 130 | I227: =K40 -> 
B228: BD diastolisch | G228: >/= 85 | I228: =K41 -> 
B229: BD Mittelwert | G229: >/= 107.5 | I229: =IF(F147=0,"",IF(H147=0,"",AVERAGE(I227:I228))) ->  | K229: =IF(F147=0,"",IF(H147=0,"",IF(I229=0,"",IF(I229>=108,"Ja","Nein")))) ->  | M229: =IF(K229="",0,IF(K229="Nein","0","1")) -> 0
M231: =SUM(M223+M224+M225+M226+M229) -> 0
B232: =IF(F147=0,"",IF(H147=0,"",IF(M231>=3,"Mindestens 3 Kriterien sind erfüllt. Damit liegt bei Ihnen wahrscheinlich ein Metabolisches Syndrom vor","Die Kriterien für ein Metabolisches Syndrom sind nicht erfüllt"))) -> 
G236: Kriterien für das Vorliegen einer Insulinresistenz - HOMA Index
E238: Merkmal | G238: Einheit | I238: Persönlicher Wert | K238: HOMA Index
E240: Nüchternglucose | G240: mmol/l | I240: =IF(E207=0,"",E207) -> 
E241: C-Peptid | G241: nmol/l | I241: =IF(E206=0,"",E206) ->  | K241: =IF(E206=0,"",IF(E207=0,"",(I240*I241)/2.6)) -> 
E244: HOMA Index | G244: Kriterien
E245: ≤1 | G245: normal
E246: ≥2 | G246: Hinweis auf eine Insulinresistenz
E247: ≥2.5 | G247: Insulinresistenz sehr wahrscheinlich
E248: ≥5 | G248: Durchschnittswert bei Typ 2-Diabetikern
C249: =AND(K241<=1,K241>0) -> FALSE | E249: =AND(K241>1,K241<2) -> FALSE | G249: =AND(K241>=2,K241<2.5) -> FALSE | I249: =AND(K241>=2.5,K241<5) -> FALSE | K249: =K241>=5 -> TRUE
E250: =IF(K241="","",IF(C249,"Kein Hinweis auf eine Insulinresistenz",IF(E249,"Verdacht auf beginnende Insulinresistenz",IF(G249,"Hinweis auf eine Insulinresistenz",IF(I249,"Isulinresistenz sehr wahrscheinlich",IF(K249,"Insulinresistenz sehr hoch wie bei Typ2 Diabetiker","")))))) -> 
E253: Kriterien für das Vorliegen eines Arterioskleroserisikos - Quotient Cholesterin/HDL
C255: Merkmal | E255: Meine Werte | G255: Quotient Chol/HDL | I255: Kriterien | K255: Arterioskleroserisiko
B257: Gesamt-Cholesterin (mmol/l) | E257: =IF(E208=0,"",E208) ->  | G257: =IF(E208=0,"",IF(E210=0,"",E208/E210)) ->  | I257: Quotient unter 5: | K257: gering
B258: HDL-Cholesterin (mmol/l) | E258: =IF(E210=0,"",E210) ->  | I258: Quotient über 5: | K258: erhöht
B261: =IF(E208=0,"",IF(E210=0,"",IF(G257=5,"Ihr Arterioskleroserisiko ist grenzwertig",IF(G257<5,"Ihr Arterioskleroserisiko ist nicht erhöht", IF(G257>5,"Ihr Arterioskleroserisiko ist erhöht"))))) -> 
B263: Man darf sich grundsätzlich nicht allein auf einen günstigen "Gesamtcholesterin zu HDL"-Quotienten verlassen. Hohe HDL-Werte kommen
B264: manchmal dadurch zustande, dass der HDL-vermittelte physiologische Rücktransport oxidierten LDLs aus den Gefässwänden in die Leber
B265: blockiert ist. Das Serum-HDL akkumuliert und kreist in grosser Menge im Blut, ohne seine arteriosklerosepräventive Funktion erfüllen
B266: zu können.
G270: Kriterien für das Vorliegen eines Gefässrisikos
K271: T=Treffer
B272: Merkmal | E272: Meine Werte | G272: Kriterien | H272: T | I272: Kriterien | J272: T | K272: Kriterien | L272: T
B274: Rauchen (Zigaretten/Tag) | E274: =IF(K206="","",IF(K206=0,"0",K206)) ->  | G274: 0 | H274: =IF(K206="","",IF(K206=0,1,)) ->  | I274: 1 bis 6 | J274: =IF(K206="","",IF(E274=0,0,IF(E274>=1,IF(E274<=6,1,0)))) ->  | K274: ab 7 | L274: =IF(K206="","",IF(K206=0,0,IF(K206<7,0,IF(K206>=7,1)))) -> 
B275: Bewegung (Std./Woche) | E275: =IF(K207=0,"",K207) ->  | G275: ab 3 | H275: =IF(K207="","",IF(K207<3,0,IF(K207>=3,1))) ->  | I275: 1 bis 2 | J275: =IF(K207="","",IF(K207=0,0,IF(K207>=1,IF(K207<=2,1,0)))) ->  | K275: 0 | L275: =IF(K207="","",IF(K207=0,1,0)) -> 
B276: =IF(E36="Frau","BMI Frau","") -> BMI Frau | C276: =IF(A36="Mann","Mann bis 24","Frau bis 22") -> Frau bis 22 | E276: =IF(E36="Frau",K24,"") ->  | G276: =IF(B276="","",IF(E36="Frau","Frau bis 22")) -> Frau bis 22 | H276: =IF(E276="","",IF(E276<=22,1,0)) ->  | I276: =IF(B276="","",IF(E36="Frau","Frau 22 bis 28")) -> Frau 22 bis 28 | J276: =IF(E276="","",IF(E276<=22,0,IF(E276>=28,0,IF(E276>22,IF(E276<28,1))))) ->  | K276: =IF(B276="","",IF(E36="Mann","Mann u. Frau ab 28","Mann u. Frau ab 28")) -> Mann u. Frau ab 28 | L276: =IF(E276="","",IF(E276>=28,1,0)) -> 
B277: =IF(E36="Mann","BMI Mann","") ->  | C277: =IF(A37="Mann","Mann bis 24","Frau bis 22") -> Frau bis 22 | E277: =IF(E36="Mann",K24,"") ->  | G277: =IF(B277="","",IF(E36="Mann","Mann bis 24")) ->  | H277: =IF(E277="","",IF(E277<=24,1,0)) ->  | I277: =IF(B277="","",IF(E36="Mann","Mann 24 bis 28")) ->  | J277: =IF(E277="","",IF(E277<=24,0,IF(E277>=28,0,IF(E277>=24,IF(E277<28,1,0))))) ->  | K277: =IF(B277="","",IF(E36="Mann","Mann u. Frau ab 28","Mann u. Frau ab 28")) ->  | L277: =IF(E277="","",IF(E277>=28,1,0)) -> 
B278: Blutdruck (RR) systolisch | E278: =K40 ->  | G278: bis 140 | H278: =IF(K40="","",IF(E278<=140,1,IF(E278>=141,0,))) ->  | I278: 141 - 179 | J278: =IF(K40="","",IF(E278<=140,0,IF(E278>=141,IF(E278<=179,1,0)))) ->  | K278: ab 180 | L278: =IF(K40="","",IF(E278>=180,1,0)) -> 
B279: Blutdruck (RR) diastolisch | E279: =K41 ->  | G279: bis 90 | H279: =IF(K41="","",IF(E279<=90,1,IF(E279>=91,0,))) ->  | I279: 91 - 109 | J279: =IF(K41="","",IF(E279<=90,0,IF(E279>=91,IF(E279<=109,1,0)))) ->  | K279: ab 110 | L279: =IF(K41="","",IF(E279>=110,1,0)) -> 
B280: Blutzucker (Glukose) (mmol/l) | E280: =IF(E207=0,"",E207) ->  | G280: bis 5.5 | H280: =IF(E207="","",IF(E280<=5.5,1,IF(E280>=5.6,0))) ->  | I280: 5.6 - 6.8 | J280: =IF(E207="","",IF(E280<=5.5,0,IF(E280>=5.6,IF(E280<=6.8,1,0)))) ->  | K280: ab 6.9 | L280: =IF(E207="","",IF(E280>=6.9,1,0)) -> 
B281: Gesamt-Cholesterin (mmol/l) | G281: bis 5.18 | H281: =IF(E208="","",IF(E281<=5.18,1,IF(E281>=5.19,0))) ->  | I281: 5.19 - 6.19 | J281: =IF(E208="","",IF(E281<=5.18,0,IF(E281>=5.19,IF(E281<=6.19,1,0)))) ->  | K281: ab 6.20 | L281: =IF(E208="","",IF(E281>=6.2,1,0)) -> 
B282: LDL-Cholesterin (mmol/l) | G282: bis 3.38 | H282: =IF(E209=0,"",IF(E282<=3.38,1,IF(E282>=3.39,0))) ->  | I282: 3.39 - 4.12 | J282: =IF(E209=0,"",IF(E282<=3.38,0,IF(E282>=3.39,IF(E282<=4.12,1,0)))) ->  | K282: ab 4.13 | L282: =IF(E209=0,"",IF(E282>=4.13,1,0)) -> 
B283: HDL-Cholesterin (mmol/l) | G283: ab 1.04 | H283: =IF(E210=0,"",IF(E283>=1.04,1,IF(E283<1.04,0))) ->  | I283: 0.79 - 1.03 | J283: =IF(E210=0,"",IF(E283<0.79,0,IF(E283>=1.04,0,IF(E283>=0.79,IF(E283<=1.03,1,0))))) ->  | K283: bis 0.78 | L283: =IF(E210=0,"",IF(E283<=0.78,1,0)) -> 
B284: Triglyzeride (mmol/l) | G284: bis 1.71 | H284: =IF(E211=0,"",IF(E284<=1.71,1,IF(E284>=1.72,0))) ->  | I284: 1.72 - 2.95 | J284: =IF(E211=0,"",IF(E284<=1.71,0,IF(E284>=1.72,IF(E284<=2.95,1,0)))) ->  | K284: ab 2.96 | L284: =IF(E211=0,"",IF(E284>=2.96,1,0)) -> 
B285: CRP sensitiv (mg/l) | G285: 0 bis 3 | H285: =IF(E212="","",IF(E212=0,1,IF(E212>=0,IF(E212<=3,1,0)))) ->  | I285: 4 bis 9 | J285: =IF(E212="","",IF(E212=0,0,IF(E285<=3,0,IF(E285>=4,IF(E285<=9,1,0))))) ->  | K285: ab 10 | L285: =IF(E212="","",IF(E212=0,0,IF(E285>=10,1,0))) -> 
G287: Treffer gelb | H287: =SUM(H274:H285) -> 0 | I287: Treffer x 1= | K287: =H287*1 -> 0
G288: Treffer blau | H288: =SUM(J274:J285) -> 0 | I288: Treffer x 2= | K288: =H288*2 -> 0
G289: Treffer rot | H289: =SUM(L274:L285) -> 0 | I289: Treffer x 3= | K289: =H289*3 -> 0
G291: Gesamtpunkte | I291: = | K291: =SUM(K287:K289) -> 0
C294: Risiko | E294: Gesamtpunkte | G294: Ihr persönliches Risikoprofil
C296: sehr gering | E296: 11 | G296: =IF(K291=E296,"Kein Risiko für Gefässerkrankung","") -> 
E297: 12 | G297: =IF(K291=E297,"Ihr Resultat: Risiko für Gefässerkrankung sehr gering","") -> 
E298: 13 | G298: =IF(K291=E298,"Risiko für Gefässerkrankung sehr gering","") -> 
E299: 14 | G299: =IF(K291=E299,"Risiko für Gefässerkrankung sehr gering","") -> 
E300: 15 | G300: =IF(K291=E300,"Risiko für Gefässerkrankung gering","") -> 
E301: 16 | G301: =IF(K291=E301,"Risiko für Gefässerkrankung gering","") -> 
E302: 17 | G302: =IF(K291=E302,"Risiko für Gefässerkrankung gering","") -> 
E303: 18 | G303: =IF(K291=E303,"Risiko mittel","") -> 
E304: 19 | G304: =IF(K291=E304,"Risiko für Gefässerkrankung mittel","") -> 
E305: 20 | G305: =IF(K291=E305,"Risiko für eine Gefässerkrankung mittel","") -> 
C306: mittel | E306: 21 | G306: =IF(K291=E306,"Risiko für Gefässerkrankung mittel","") -> 
E307: 22 | G307: =IF(K291=E307,"Risiko für Gefässerkrankung mittel","") -> 
E308: 23 | G308: =IF(K291=E308,"Risiko für Gefässerkrankung mittel","") -> 
E309: 24 | G309: =IF(K291=E309,"Risiko für Gefässerkrankung mittel","") -> 
E310: 25 | G310: =IF(K291=E310,"Ihr Resultat: Risiko für Gefässerkrankung hoch","") -> 
E311: 26 | G311: =IF(K291=E311,"Risiko für Gefässerkrankung hoch","") -> 
E312: 27 | G312: =IF(K291=E312,"Risiko für Gefässerkrankung hoch","") -> 
E313: 28 | G313: =IF(K291=E313,"Risiko für Gefässerkrankung hoch","") -> 
E314: 29 | G314: =IF(K291=E314,"Risiko für Gefässerkrankung hoch","") -> 
E315: 30 | G315: =IF(K291=E315,"Risiko für Gefässerkrankung sehr hoch","") -> 
E316: 31 | G316: =IF(K291=E316,"Risiko für Gefässerkrankung sehr hoch","") -> 
E317: 32 | G317: =IF(K291=E317,"Risiko für Gefässerkrankung sehr hoch","") -> 
C318: hoch | E318: 33 | G318: =IF(K291=E318,"Risiko für Gefässerkrankung extrem hoch","") -> 

Sheet Mai
B2: Monat: Mai
I3: Grüne Felder: Eingabe erforderlich
C4: Jahresziel: | E4: =IF(Jahr!J4=0,"",Jahr!J4) -> 82 | G4: Monatsziel: | I4: 86 | N4: Das moderne Gewichtscoaching:
E6: Kommentar | I6: Veränderung | K6: Ergebnis | N6: XLS - von XL bis S
B8: =IF(D88=0,"",IF(K21=0,"",IF(K22=0,"",IF(K22=K21,"Gewicht gleichbleibend",IF(K22<K21,"Sie haben abgenommen! Bravo!",IF(K22>K21,"")))))) ->  | G8: Abgenommen: | K8: =IF(D88=0,"",IF(K22=0,"",IF(K22-K21=0,"0kg",IF(K22>K21,"",K21-K22)))) ->  | N8: Ernährung und Bewegung
B9: =IF(D88=0,"",IF(K21=0,"",IF(K22=0,"",IF(K22=K21,"Gewicht gleichbleibend",IF(K22>K21,"Sie haben zugenommen. Arbeiten Sie an sich!",IF(K22<K21,"")))))) ->  | G9: Zugenommen: | K9: =IF(D88=0,"",IF(K22=0,"",IF(K22-K21=0,"0kg",IF(K22<K21,"",K22-K21)))) -> 
B11: =IF(D88=0,"",IF(K21=0,"",IF(K22=0,"",IF(K22>I4,"Monatsziel noch nicht erreicht!",IF(K22=I4,"Monatsziel erreicht. Bravo!",IF(K22<I4,"Monatsziel sogar unterschritten!")))))) ->  | G11: Vom Monatsziel entfernt um + / -: | K11: =IF(D88=0,"",IF(K22=0,"",IF(K22=I4,"0",K22-I4))) ->  | N11: Psyche und Schlaf
B12: =IF(D88=0,"",IF(K21=0,"",IF(K22=0,"",IF(K22=E4,"Jahresziel erreicht! Gratuliere!",IF(K22>E4,"Jahresziel noch nicht erreicht! Bleiben Sie dran!",IF(K22<E4,"Jahrsziel sogar unterschritten!")))))) ->  | G12: Vom Jahresziel entfernt um + / -: | K12: =IF(D88=0,"",IF(K22=0,"",IF(K22=E4,"0",K22-E4))) -> 
G14: Gewicht - Monatsdurchschnitt: | K14: =IF(SUM(C82:C112)=0,"",AVERAGEA(C82:C112)) ->  | N14: Motivation: XLS Software
I19: Erste - Letzte Messung im Monat | K19: Monatsprofil | N19: Unterstützung
B21: Ihr Gewicht bei BMI-Ideal 22: | E21: =IF('GU-GEB'!C10=0,"",22*(('GU-GEB'!C10/100)^2)) ->  | G21: Gewicht - Erste Messung im Monat: | K21: =IF(D88=0,"",INDEX(C82:C112,D88,1)) ->  | N21: Granuvital "Fit&Schlank" SevisanaLine
B22: Ihr Gewicht bei BMI-Ideal 25: | E22: =IF('GU-GEB'!C10=0,"",25*(('GU-GEB'!C10/100)^2)) ->  | G22: Gewicht - Letzte Messung im Monat: | K22: =IF(D99=0,"",INDEX(C82:C112,D99,1)) -> 
B24: Vom BMI Ideal 22 entfernt: | E24: =IF(L88=0,"",IF(K24=0,"",IF(K24-22=0,"0",K24-22))) ->  | G24: BMI - Erste Messung im Monat: | K24: =IF(L88=0,"",INDEX(K82:K112,L88,1)) ->  | N24: X-Form und X-Form Plus SevisanaLine
B25: Vom BMI Ideal 22 entfernt: | E25: =IF(L99=0,"",IF(K25=0,"",IF(K25-22=0,"0",K25-22))) ->  | G25: BMI - Letzte Messung im Monat: | K25: =IF(L99=0,"",INDEX(K82:K112,L99,1)) -> 
B27: Vom Idealwert entfernt: | E27: =IF(F88=0,"",IF(K27=0,"",IF(K28=0,"",IF(K27-J27=0,"0cm",K27-J27)))) ->  | G27: Bauchumfang - Erste Messung im Monat: | J27: =IF('GU-GEB'!C8="Mann",94,80) -> 80 | K27: =IF(F88=0,"",INDEX(E82:E112,F88,1)) ->  | N27: Reine Flohsamenschalen SevisanaLine
B28: Vom Idealwert entfernt: | E28: =IF(F99=0,"",IF(K27=0,"",IF(K28=0,"",IF(K28-J27=0,"0cm",K28-J27)))) ->  | G28: Bauchumfang - Letzte Messung im Monat: | J28: =IF('GU-GEB'!C8="Mann",102,88) -> 88 | K28: =IF(F99=0,"",INDEX(E82:E112,F99,1)) -> 
G30: Hüftumfang - Erste Messung im Monat: | K30: =IF(H88=0,"",INDEX(G82:G112,H88,1)) ->  | N30: Basenpulver nach Dr. Eichhorn
G31: Hüftumfang - Letzte Messung im Monat: | K31: =IF(H99=0,"",INDEX(G82:G112,H99,1)) -> 
B33: Vom B/H Idealwert entfernt: | E33: =IF(J88=0,"",IF(K33=0,"",IF(K33-G36=0,"0",K33-G36))) ->  | G33: B/H - Erste Messung im Monat: | K33: =IF(J88=0,"",INDEX(I82:I112,J88,1)) ->  | N33: Produkteinformation | P33: www.sevisana.ch
B34: Vom B/H Idealwert entfernt: | E34: =IF(J99=0,"",IF(K34=0,"",IF(K34-G36=0,"0",K34-G36))) ->  | G34: B/H - Letzte Messung im Monat: | K34: =IF(J99=0,"",INDEX(I82:I112,J99,1)) -> 
B36: B/H Ziel gleich/kleiner als: | E36: ='GU-GEB'!C8 -> Frau | G36: =IF(E36="Frau",0.85,1) -> 0.85
G40: Blutdruck systolisch - Erste Messung | K40: =IF(F147=0,"",INDEX(E141:E171,F147,1)) ->  | N40: Bestellung | P40: www.sevisana.ch
G41: Blutdruck diastolisch - Erste Messung | K41: =IF(H147=0,"",INDEX(G141:G171,H147,1)) -> 
G43: Blutdruck systolisch - Letzte Messung | K43: =IF(F158=0,"",INDEX(E141:IE171,F158,1)) -> 
G44: Blutdruck diastolisch - Letzte Messung | K44: =IF(H158=0,"",INDEX(G141:IG171,H158,1)) ->  | N44: Direktbestellung | P44: http://shop.sevisana.ch
G47: Puls - Erste Messung | K47: =IF(D147=0,"",INDEX(C141:C171,D147,1)) -> 
G48: Puls - Letzte Messung | K48: =IF(D158=0,"",INDEX(C141:C171,D158,1)) ->  | N48: Medizinwissen | P48: www.ever.ch
C53: Tendenzen | G53: Verlauf in diesem Monat
B55: Tendenzen Ende Monat: | E55: Gewicht: | G55: =IF(D88=0,"",IF(K21=0,"",IF(K22=0,"",IF(K22<K21,"Gewicht fällt. Bravo!",IF(K22=K21,"Gewicht gleichbleibend",IF(K22>K21,"Achtung! Gewicht steigt. Risiko!")))))) -> 
E56: BMI: | G56: =IF(D88=0,"",IF(K24=0,"",IF(K25=0,"",IF(K25<K24,"BMI fällt. Bravo!",IF(K25=K24,"BMI gleichbleibend",IF(K25>K24,"BMI steigt. Ihre Gesundheit ist gefährdet!")))))) -> 
E57: Bauchumfang: | G57: =IF(F88=0,"",IF(K27=0,"",IF(K28=0,"",IF(K28<K27,"Bauchumfang wird kleiner. Bravo!",IF(K28=K27,"Bauchumfang gleichbleibend",IF(K28>K27,"Achtung! Bauchumfang nimmt zu",IF(K28<=J27,"Normalwert"))))))) -> 
E58: B/H: | G58: =IF(J88=0,"",IF(K33=0,"",IF(K34=0,"",IF(K34<K33,"B/H Verältnis wird kleiner. Bravo!",IF(K34=K33,"B/H Verältnis gleichbleibend",IF(K34>K33,"Achtung! B/H Verhältnis nimmt zu")))))) -> 
C60: Risiko Anfang Monat: | E60: BMI: | G60: =IF(D88=0,"",IF(K24=0,"",IF(K24>=40,"Grad III: Schwere Adipositas",IF(K24>=30,"Grad II: Adipositas",IF(K24>=25,"Grad I: Übergewichtt",IF(K24>=20,"Normalgewicht",IF(K24<20,"Untergewicht",))))))) -> 
E61: Bauchumfang: | G61: =IF(F88=0,"",IF(K27=0,"",IF(K27>=J28,"Gesundheitsrisiko hoch",IF(K27>=J27,"Gesundheitsrisiko erhöht",IF(K27<J27,"Kein Gesundheitsrisiko"))))) -> 
E62: B/H: | G62: =IF(J88=0,"",IF(K33=0,"",IF(K33>G36,"Gesundheitsrisiko erhöht",IF(K33=G36,"Grenzwert zu Gesundheitsrisiko erhöht",IF(K33<G36,"Kein Gesundheitsrisiko"))))) -> 
C64: Risiko Ende Monat: | E64: BMI: | G64: =IF(D88=0,"",IF(K25=0,"",IF(K25>=40,"Grad III: Schwere Adipositas",IF(K25>=30,"Grad II: Adipositas",IF(K25>=25,"Grad I: Übergewicht",IF(K25>=20,"Normalgewicht",IF(K25<20,"Untergewicht",))))))) -> 
E65: Bauchumfang: | G65: =IF(F88=0,"",IF(K28=0,"",IF(K28>=J28,"Gesundheitsrisiko hoch",IF(K28>=J27,"Gesundheitsrisiko erhöht",IF(K28<J27,"Kein Gesundheitsrisiko"))))) -> 
E66: B/H: | G66: =IF(J88=0,"",IF(K34=0,"",IF(K34>G36,"Gesundheitsrisiko erhöht",IF(K34=G36,"Grenzwert zu Gesundheitsrisiko erhöht",IF(K34<G36,"Kein Gesundheitsrisiko"))))) -> 
B71: Risiko | E71: Ihr persönliches Risikoprofil
B73: Metabolisches Syndrom | E73: =IF(F147=0,"",B232) -> 
B74: Insulinresistenz | E74: =IF(E206=0,"",IF(E207=0,"",E250)) -> 
B75: Arterioskleroserisiko | E75: =IF(E208=0,"",IF(E210=0,"",B261)) -> 
B76: Gefässrisiko | E76: =IF(K291<11,"",IF(K291=0,"",IF(K291>=11,IF(K291<=17,"Gefässrisiko im unteren Bereich",IF(K291>=18,IF(K291<=24,"Gefässrisiko im mittleren Bereich",IF(K291>=25,"Gefässrisiko im hohen Bereich"))))))) -> 
B81: Tag | C81: Gewicht | E81: Bauchumfang | G81: Hüftumfang | I81: B/H Verhältnis | K81: BMI
B82: 1 | D82: =IF(C82="",IF(C83="",IF(C84="",IF(C85="",IF(C86="",IF(C87="",IF(C88="",0,7),6),5),4),3),2),1) -> 0 | F82: =IF(E82="",IF(E83="",IF(E84="",IF(E85="",IF(E86="",IF(E87="",IF(E88="",0,7),6),5),4),3),2),1) -> 0 | H82: =IF(G82="",IF(G83="",IF(G84="",IF(G85="",IF(G86="",IF(G87="",IF(G88="",0,7),6),5),4),3),2),1) -> 0 | I82: =IF(E82=0,"",IF(G82=0,"",E82/G82)) ->  | J82: =IF(I82="",IF(I83="",IF(I84="",IF(I85="",IF(I86="",IF(I87="",IF(I88="",0,7),6),5),4),3),2),1) -> 0 | K82: =IF(C82=0,"",C82/(('GU-GEB'!C10/100)^2)) ->  | L82: =IF(K82="",IF(K83="",IF(K84="",IF(K85="",IF(K86="",IF(K87="",IF(K88="",0,7),6),5),4),3),2),1) -> 0
B83: 2 | D83: =IF(C89="",IF(C90="",IF(C91="",IF(C92="",IF(C93="",IF(C94="",IF(C95="",0,14),13),12),11),10),9),8) -> 0 | F83: =IF(E89="",IF(E90="",IF(E91="",IF(E92="",IF(E93="",IF(E94="",IF(E95="",0,14),13),12),11),10),9),8) -> 0 | H83: =IF(G89="",IF(G90="",IF(G91="",IF(G92="",IF(G93="",IF(G94="",IF(G95="",0,14),13),12),11),10),9),8) -> 0 | J83: =IF(I89="",IF(I90="",IF(I91="",IF(I92="",IF(I93="",IF(I94="",IF(I95="",0,14),13),12),11),10),9),8) -> 0 | K83: =IF(C83=0,"",C83/(('GU-GEB'!C10/100)^2)) ->  | L83: =IF(K89="",IF(K90="",IF(K91="",IF(K92="",IF(K93="",IF(K94="",IF(K95="",0,14),13),12),11),10),9),8) -> 0
B84: 3 | D84: =IF(C96="",IF(C97="",IF(C98="",IF(C99="",IF(C100="",IF(C101="",IF(C102="",0,21),20),19),18),17),16),15) -> 0 | F84: =IF(E96="",IF(E97="",IF(E98="",IF(E99="",IF(E100="",IF(E101="",IF(E102="",0,21),20),19),18),17),16),15) -> 0 | H84: =IF(G96="",IF(G97="",IF(G98="",IF(G99="",IF(G100="",IF(G101="",IF(G102="",0,21),20),19),18),17),16),15) -> 0 | J84: =IF(I96="",IF(I97="",IF(I98="",IF(I99="",IF(I100="",IF(I101="",IF(I102="",0,21),20),19),18),17),16),15) -> 0 | K84: =IF(C84=0,"",C84/(('GU-GEB'!C10/100)^2)) ->  | L84: =IF(K96="",IF(K97="",IF(K98="",IF(K99="",IF(K100="",IF(K101="",IF(K102="",0,21),20),19),18),17),16),15) -> 0
B85: 4 | D85: =IF(C103="",IF(C104="",IF(C105="",IF(C106="",IF(C107="",IF(C108="",IF(C109="",0,28),27),26),25),24),23),22) -> 0 | F85: =IF(E103="",IF(E104="",IF(E105="",IF(E106="",IF(E107="",IF(E108="",IF(E109="",0,28),27),26),25),24),23),22) -> 0 | H85: =IF(G103="",IF(G104="",IF(G105="",IF(G106="",IF(G107="",IF(G108="",IF(G109="",0,28),27),26),25),24),23),22) -> 0 | J85: =IF(I103="",IF(I104="",IF(I105="",IF(I106="",IF(I107="",IF(I108="",IF(I109="",0,28),27),26),25),24),23),22) -> 0 | K85: =IF(C85=0,"",C85/(('GU-GEB'!C10/100)^2)) ->  | L85: =IF(K103="",IF(K104="",IF(K105="",IF(K106="",IF(K107="",IF(K108="",IF(K109="",0,28),27),26),25),24),23),22) -> 0
B86: 5 | D86: =IF(C110="",IF(C111="",IF(C112="",0,31),30),29) -> 0 | F86: =IF(E110="",IF(E111="",IF(E112="",0,31),30),29) -> 0 | H86: =IF(G110="",IF(G111="",IF(G112="",0,31),30),29) -> 0 | J86: =IF(I110="",IF(I111="",IF(I112="",0,31),30),29) -> 0 | K86: =IF(C86=0,"",C86/(('GU-GEB'!C10/100)^2)) ->  | L86: =IF(K110="",IF(K111="",IF(K112="",0,31),30),29) -> 0
B87: 6 | K87: =IF(C87=0,"",C87/(('GU-GEB'!C10/100)^2)) -> 
B88: 7 | D88: =IF(D82=0,IF(D83=0,IF(D84=0,IF(D85=0,IF(D86=0,0,D86),D85),D84),D83),D82) -> 0 | F88: =IF(F82=0,IF(F83=0,IF(F84=0,IF(F85=0,IF(F86=0,0,F86),F85),F84),F83),F82) -> 0 | H88: =IF(H82=0,IF(H83=0,IF(H84=0,IF(H85=0,IF(H86=0,0,H86),H85),H84),H83),H82) -> 0 | J88: =IF(J82=0,IF(J83=0,IF(J84=0,IF(J85=0,IF(J86=0,0,J86),J85),J84),J83),J82) -> 0 | K88: =IF(C88=0,"",C88/(('GU-GEB'!C10/100)^2)) ->  | L88: =IF(L82=0,IF(L83=0,IF(L84=0,IF(L85=0,IF(L86=0,0,L86),L85),L84),L83),L82) -> 0
B89: 8 | K89: =IF(C89=0,"",C89/(('GU-GEB'!C10/100)^2)) -> 
B90: 9 | K90: =IF(C90=0,"",C90/(('GU-GEB'!C10/100)^2)) -> 
B91: 10 | K91: =IF(C91=0,"",C91/(('GU-GEB'!C10/100)^2)) -> 
B92: 11 | K92: =IF(C92=0,"",C92/(('GU-GEB'!C10/100)^2)) -> 
B93: 12 | D93: =IF(C112="",IF(C111="",IF(C110="",IF(C109="",IF(C108="",IF(C107="",IF(C106="",0,25),26),27),28),29),30),31) -> 0 | F93: =IF(E112="",IF(E111="",IF(E110="",IF(E109="",IF(E108="",IF(E107="",IF(E106="",0,25),26),27),28),29),30),31) -> 0 | H93: =IF(G112="",IF(G111="",IF(G110="",IF(G109="",IF(G108="",IF(G107="",IF(G106="",0,25),26),27),28),29),30),31) -> 0 | J93: =IF(I112="",IF(I111="",IF(I110="",IF(I109="",IF(I108="",IF(I107="",IF(I106="",0,25),26),27),28),29),30),31) -> 0 | K93: =IF(C93=0,"",C93/(('GU-GEB'!C10/100)^2)) ->  | L93: =IF(K112="",IF(K111="",IF(K110="",IF(K109="",IF(K108="",IF(K107="",IF(K106="",0,25),26),27),28),29),30),31) -> 0
B94: 13 | D94: =IF(C105="",IF(C104="",IF(C103="",IF(C102="",IF(C101="",IF(C100="",IF(C99="",0,18),19),20),21),22),23),24) -> 0 | F94: =IF(E105="",IF(E104="",IF(E103="",IF(E102="",IF(E101="",IF(E100="",IF(E99="",0,18),19),20),21),22),23),24) -> 0 | H94: =IF(G105="",IF(G104="",IF(G103="",IF(G102="",IF(G101="",IF(G100="",IF(G99="",0,18),19),20),21),22),23),24) -> 0 | J94: =IF(I105="",IF(I104="",IF(I103="",IF(I102="",IF(I101="",IF(I100="",IF(I99="",0,18),19),20),21),22),23),24) -> 0 | K94: =IF(C94=0,"",C94/(('GU-GEB'!C10/100)^2)) ->  | L94: =IF(K105="",IF(K104="",IF(K103="",IF(K102="",IF(K101="",IF(K100="",IF(K99="",0,18),19),20),21),22),23),24) -> 0
B95: 14 | D95: =IF(C98="",IF(C97="",IF(C96="",IF(C95="",IF(C94="",IF(C93="",IF(C92="",0,11),12),13),14),15),16),17) -> 0 | F95: =IF(E98="",IF(E97="",IF(E96="",IF(E95="",IF(E94="",IF(E93="",IF(E92="",0,11),12),13),14),15),16),17) -> 0 | H95: =IF(G98="",IF(G97="",IF(G96="",IF(G95="",IF(G94="",IF(G93="",IF(G92="",0,11),12),13),14),15),16),17) -> 0 | J95: =IF(I98="",IF(I97="",IF(I96="",IF(I95="",IF(I94="",IF(I93="",IF(I92="",0,11),12),13),14),15),16),17) -> 0 | K95: =IF(C95=0,"",C95/(('GU-GEB'!C10/100)^2)) ->  | L95: =IF(K98="",IF(K97="",IF(K96="",IF(K95="",IF(K94="",IF(K93="",IF(K92="",0,11),12),13),14),15),16),17) -> 0
B96: 15 | D96: =IF(C91="",IF(C90="",IF(C89="",IF(C88="",IF(C87="",IF(C86="",IF(C85="",0,4),5),6),7),8),9),10) -> 0 | F96: =IF(E91="",IF(E90="",IF(E89="",IF(E88="",IF(E87="",IF(E86="",IF(E85="",0,4),5),6),7),8),9),10) -> 0 | H96: =IF(G91="",IF(G90="",IF(G89="",IF(G88="",IF(G87="",IF(G86="",IF(G85="",0,4),5),6),7),8),9),10) -> 0 | J96: =IF(I91="",IF(I90="",IF(I89="",IF(I88="",IF(I87="",IF(I86="",IF(I85="",0,4),5),6),7),8),9),10) -> 0 | K96: =IF(C96=0,"",C96/(('GU-GEB'!C10/100)^2)) ->  | L96: =IF(K91="",IF(K90="",IF(K89="",IF(K88="",IF(K87="",IF(K86="",IF(K85="",0,4),5),6),7),8),9),10) -> 0
B97: 16 | D97: =IF(C84="",IF(C83="",IF(C82="",0,1),2),3) -> 0 | F97: =IF(E84="",IF(E83="",IF(E82="",0,1),2),3) -> 0 | H97: =IF(G84="",IF(G83="",IF(G82="",0,1),2),3) -> 0 | J97: =IF(I84="",IF(I83="",IF(I82="",0,1),2),3) -> 0 | K97: =IF(C97=0,"",C97/(('GU-GEB'!C10/100)^2)) ->  | L97: =IF(K84="",IF(K83="",IF(K82="",0,1),2),3) -> 0
B98: 17 | K98: =IF(C98=0,"",C98/(('GU-GEB'!C10/100)^2)) -> 
B99: 18 | D99: =IF(D93=0,IF(D94=0,IF(D95=0,IF(D96=0,IF(D97=0,0,D97),D96),D95),D94),D93) -> 0 | F99: =IF(F93=0,IF(F94=0,IF(F95=0,IF(F96=0,IF(F97=0,0,F97),F96),F95),F94),F93) -> 0 | H99: =IF(H93=0,IF(H94=0,IF(H95=0,IF(H96=0,IF(H97=0,0,H97),H96),H95),H94),H93) -> 0 | J99: =IF(J93=0,IF(J94=0,IF(J95=0,IF(J96=0,IF(J97=0,0,J97),J96),J95),J94),J93) -> 0 | K99: =IF(C99=0,"",C99/(('GU-GEB'!C10/100)^2)) ->  | L99: =IF(L93=0,IF(L94=0,IF(L95=0,IF(L96=0,IF(L97=0,0,L97),L96),L95),L94),L93) -> 0
B100: 19 | K100: =IF(C100=0,"",C100/(('GU-GEB'!C10/100)^2)) -> 
B101: 20 | K101: =IF(C101=0,"",C101/(('GU-GEB'!C10/100)^2)) -> 
B102: 21 | K102: =IF(C102=0,"",C102/(('GU-GEB'!C10/100)^2)) -> 
B103: 22 | K103: =IF(C103=0,"",C103/(('GU-GEB'!C10/100)^2)) -> 
B104: 23 | K104: =IF(C104=0,"",C104/(('GU-GEB'!C10/100)^2)) -> 
B105: 24 | K105: =IF(C105=0,"",C105/(('GU-GEB'!C10/100)^2)) -> 
B106: 25 | K106: =IF(C106=0,"",C106/(('GU-GEB'!C10/100)^2)) -> 
B107: 26 | K107: =IF(C107=0,"",C107/(('GU-GEB'!C10/100)^2)) -> 
B108: 27 | K108: =IF(C108=0,"",C108/(('GU-GEB'!C10/100)^2)) -> 
B109: 28 | K109: =IF(C109=0,"",C109/(('GU-GEB'!C10/100)^2)) -> 
B110: 29 | K110: =IF(C110=0,"",C110/(('GU-GEB'!C10/100)^2)) -> 
B111: 30 | K111: =IF(C111=0,"",C111/(('GU-GEB'!C10/100)^2)) -> 
B112: 31 | K112: =IF(C112=0,"",C112/(('GU-GEB'!C10/100)^2)) -> 
B140: Tag | C140: Puls | E140: BD systolisch | G140: BD diastolisch | I140: BD Mittelwert
B141: 1 | D141: =IF(C141="",IF(C142="",IF(C143="",IF(C144="",IF(C145="",IF(C146="",IF(C147="",0,7),6),5),4),3),2),1) -> 0 | F141: =IF(E141="",IF(E142="",IF(E143="",IF(E144="",IF(E145="",IF(E146="",IF(E147="",0,7),6),5),4),3),2),1) -> 0 | H141: =IF(G141="",IF(G142="",IF(G143="",IF(G144="",IF(G145="",IF(G146="",IF(G147="",0,7),6),5),4),3),2),1) -> 0 | I141: =IF(E141=0,"",IF(G141=0,"",AVERAGEA(E141,G141))) -> 
B142: 2 | D142: =IF(C148="",IF(C149="",IF(C150="",IF(C151="",IF(C152="",IF(C153="",IF(C154="",0,14),13),12),11),10),9),8) -> 0 | F142: =IF(E148="",IF(E149="",IF(E150="",IF(E151="",IF(E152="",IF(E153="",IF(E154="",0,14),13),12),11),10),9),8) -> 0 | H142: =IF(G148="",IF(G149="",IF(G150="",IF(G151="",IF(G152="",IF(G153="",IF(G154="",0,14),13),12),11),10),9),8) -> 0
B143: 3 | D143: =IF(C155="",IF(C156="",IF(C157="",IF(C158="",IF(C159="",IF(C160="",IF(C161="",0,21),20),19),18),17),16),15) -> 0 | F143: =IF(E155="",IF(E156="",IF(E157="",IF(E158="",IF(E159="",IF(E160="",IF(E161="",0,21),20),19),18),17),16),15) -> 0 | H143: =IF(G155="",IF(G156="",IF(G157="",IF(G158="",IF(G159="",IF(G160="",IF(G161="",0,21),20),19),18),17),16),15) -> 0
B144: 4 | D144: =IF(C162="",IF(C163="",IF(C164="",IF(C165="",IF(C166="",IF(C167="",IF(C168="",0,28),27),26),25),24),23),22) -> 0 | F144: =IF(E162="",IF(E163="",IF(E164="",IF(E165="",IF(E166="",IF(E167="",IF(E168="",0,28),27),26),25),24),23),22) -> 0 | H144: =IF(G162="",IF(G163="",IF(G164="",IF(G165="",IF(G166="",IF(G167="",IF(G168="",0,28),27),26),25),24),23),22) -> 0
B145: 5 | D145: =IF(C169="",IF(C170="",IF(C171="",0,31),30),29) -> 0 | F145: =IF(E169="",IF(E170="",IF(E171="",0,31),30),29) -> 0 | H145: =IF(G169="",IF(G170="",IF(G171="",0,31),30),29) -> 0
B146: 6
B147: 7 | D147: =IF(D141=0,IF(D142=0,IF(D143=0,IF(D144=0,IF(D145=0,0,D145),D144),D143),D142),D141) -> 0 | F147: =IF(F141=0,IF(F142=0,IF(F143=0,IF(F144=0,IF(F145=0,0,F145),F144),F143),F142),F141) -> 0 | H147: =IF(H141=0,IF(H142=0,IF(H143=0,IF(H144=0,IF(H145=0,0,H145),H144),H143),H142),H141) -> 0
B148: 8
B149: 9
B150: 10
B151: 11
B152: 12 | D152: =IF(C171="",IF(C170="",IF(C169="",IF(C168="",IF(C167="",IF(C166="",IF(C165="",0,25),26),27),28),29),30),31) -> 0 | F152: =IF(E171="",IF(E170="",IF(E169="",IF(E168="",IF(E167="",IF(E166="",IF(E165="",0,25),26),27),28),29),30),31) -> 0 | H152: =IF(G171="",IF(G170="",IF(G169="",IF(G168="",IF(G167="",IF(G166="",IF(G165="",0,25),26),27),28),29),30),31) -> 0
B153: 13 | D153: =IF(C164="",IF(C163="",IF(C162="",IF(C161="",IF(C160="",IF(C159="",IF(C158="",0,18),19),20),21),22),23),24) -> 0 | F153: =IF(E164="",IF(E163="",IF(E162="",IF(E161="",IF(E160="",IF(E159="",IF(E158="",0,18),19),20),21),22),23),24) -> 0 | H153: =IF(G164="",IF(G163="",IF(G162="",IF(G161="",IF(G160="",IF(G159="",IF(G158="",0,18),19),20),21),22),23),24) -> 0
B154: 14 | D154: =IF(C157="",IF(C156="",IF(C155="",IF(C154="",IF(C153="",IF(C152="",IF(C151="",0,11),12),13),14),15),16),17) -> 0 | F154: =IF(E157="",IF(E156="",IF(E155="",IF(E154="",IF(E153="",IF(E152="",IF(E151="",0,11),12),13),14),15),16),17) -> 0 | H154: =IF(G157="",IF(G156="",IF(G155="",IF(G154="",IF(G153="",IF(G152="",IF(G151="",0,11),12),13),14),15),16),17) -> 0
B155: 15 | D155: =IF(C150="",IF(C149="",IF(C148="",IF(C147="",IF(C146="",IF(C145="",IF(C144="",0,4),5),6),7),8),9),10) -> 0 | F155: =IF(E150="",IF(E149="",IF(E148="",IF(E147="",IF(E146="",IF(E145="",IF(E144="",0,4),5),6),7),8),9),10) -> 0 | H155: =IF(G150="",IF(G149="",IF(G148="",IF(G147="",IF(G146="",IF(G145="",IF(G144="",0,4),5),6),7),8),9),10) -> 0
B156: 16 | D156: =IF(C143="",IF(C142="",IF(C141="",0,1),2),3) -> 0 | F156: =IF(E143="",IF(E142="",IF(E141="",0,1),2),3) -> 0 | H156: =IF(G143="",IF(G142="",IF(G141="",0,1),2),3) -> 0
B157: 17
B158: 18 | D158: =IF(D152=0,IF(D153=0,IF(D154=0,IF(D155=0,IF(D156=0,0,D156),D155),D154),D153),D152) -> 0 | F158: =IF(F152=0,IF(F153=0,IF(F154=0,IF(F155=0,IF(F156=0,0,F156),F155),F154),F153),F152) -> 0 | H158: =IF(H152=0,IF(H153=0,IF(H154=0,IF(H155=0,IF(H156=0,0,H156),H155),H154),H153),H152) -> 0
B159: 19
B160: 20
B161: 21
B162: 22
B163: 23
B164: 24
B165: 25
B166: 26
B167: 27
B168: 28
B169: 29
B170: 30
B171: 31
B173: O | C173: =IF(SUM(C141:C171)=0,"",AVERAGEA(C141:C171)) ->  | E173: =IF(SUM(E141:E171)=0,"",AVERAGEA(E141:E171)) ->  | G173: =IF(SUM(G141:G171)=0,"",AVERAGEA(G141:G171)) ->  | I173: =IF(SUM(I141:I171)=0,"",AVERAGE(I141:I171)) -> 
B202: Grüne Felder: Eingabe erforderlich | G202: Laborwerte (morgendliche Nüchternwerte) / Rauchen / Bewegung
C204: Labor | E204: Werte | G204: Grenzwerte | I204: Gewohnheiten | K204: Ergebnis
C206: C-Peptid (nmol/l) | I206: Anzahl Zigaretten/Tag
B207: Blutzucker (Glukose) (mmol/l) | G207: >/= 6.1 | I207: Bewegung (Std./Wo)
B208: Gesamt-Cholesterin (mmol/l)
B209: LDL-Cholesterin (mmol/l)
B210: HDL-Cholesterin (mmol/l) | G210: =IF(E210="Frau","<1.29","<1.04") -> <1.04
B211: Triglyzeride (mmol/l) | G211: >/= 1.69
B212: CRP sensitiv (mg/l) | G212: >/= 3
B213: Mikroalbuminurie (mg/l) | G213: >/= 5
B216: Umrechnung C-Peptid: nmol/l = pmol/l / 1000
G219: Kriterien für das Vorliegen eines Metabolischen Syndroms | N219: Mai
C221: Merkmal | E221: Geschlecht | G221: Grenzwerte | I221: Meine Werte | K221: Kriterien erfüllt
C223: Bauchumfang | E223: ='GU-GEB'!C8 -> Frau | G223: =IF(E223="Frau",">88",">102") -> >88 | I223: =K27 ->  | K223: =IF(F88=0,"",IF(I223=0,"",IF(I223>J28,"Ja","Nein"))) ->  | M223: =IF(K223="",0,IF(K223="Nein","0","1")) -> 0
C224: HDL-Cholesterin | E224: ='GU-GEB'!C8 -> Frau | G224: =IF(E224="Frau","<1.29","<1.04") -> <1.29 | H224: =IF('GU-GEB'!C8="Mann",1.04,1.29) -> 1.29 | I224: =IF(E210=0,"",E210) ->  | K224: =IF(E210=0,"",IF(I224<H224,"Ja","Nein")) ->  | M224: =IF(K224="",0,IF(K224="Nein","0","1")) -> 0
C225: Triglyceride | G225: >/= 1.69 | I225: =IF(E211=0,"",E211) ->  | K225: =IF(E211=0,"",IF(I225>=1.69,"Ja","Nein")) ->  | M225: =IF(K225="",0,IF(K225="Nein","0","1")) -> 0
C226: Nüchternzucker | G226: >/= 6.1 | I226: =IF(E207=0,"",E207) ->  | K226: =IF(E207=0,"",IF(I226>=6.1,"Ja","Nein")) ->  | M226: =IF(K226="",0,IF(K226="Nein","0","1")) -> 0
B227: BD systolisch | G227: >/= 130 | I227: =K40 -> 
B228: BD diastolisch | G228: >/= 85 | I228: =K41 -> 
B229: BD Mittelwert | G229: >/= 107.5 | I229: =IF(F147=0,"",IF(H147=0,"",AVERAGE(I227:I228))) ->  | K229: =IF(F147=0,"",IF(H147=0,"",IF(I229=0,"",IF(I229>=108,"Ja","Nein")))) ->  | M229: =IF(K229="",0,IF(K229="Nein","0","1")) -> 0
M231: =SUM(M223+M224+M225+M226+M229) -> 0
B232: =IF(F147=0,"",IF(H147=0,"",IF(M231>=3,"Mindestens 3 Kriterien sind erfüllt. Damit liegt bei Ihnen wahrscheinlich ein Metabolisches Syndrom vor","Die Kriterien für ein Metabolisches Syndrom sind nicht erfüllt"))) -> 
G236: Kriterien für das Vorliegen einer Insulinresistenz - HOMA Index
E238: Merkmal | G238: Einheit | I238: Persönlicher Wert | K238: HOMA Index
E240: Nüchternglucose | G240: mmol/l | I240: =IF(E207=0,"",E207) -> 
E241: C-Peptid | G241: nmol/l | I241: =IF(E206=0,"",E206) ->  | K241: =IF(E206=0,"",IF(E207=0,"",(I240*I241)/2.6)) -> 
E244: HOMA Index | G244: Kriterien
E245: ≤1 | G245: normal
E246: ≥2 | G246: Hinweis auf eine Insulinresistenz
E247: ≥2.5 | G247: Insulinresistenz sehr wahrscheinlich
E248: ≥5 | G248: Durchschnittswert bei Typ 2-Diabetikern
C249: =AND(K241<=1,K241>0) -> FALSE | E249: =AND(K241>1,K241<2) -> FALSE | G249: =AND(K241>=2,K241<2.5) -> FALSE | I249: =AND(K241>=2.5,K241<5) -> FALSE | K249: =K241>=5 -> TRUE
E250: =IF(K241="","",IF(C249,"Kein Hinweis auf eine Insulinresistenz",IF(E249,"Verdacht auf beginnende Insulinresistenz",IF(G249,"Hinweis auf eine Insulinresistenz",IF(I249,"Isulinresistenz sehr wahrscheinlich",IF(K249,"Insulinresistenz sehr hoch wie bei Typ2 Diabetiker","")))))) -> 
E253: Kriterien für das Vorliegen eines Arterioskleroserisikos - Quotient Cholesterin/HDL
C255: Merkmal | E255: Meine Werte | G255: Quotient Chol/HDL | I255: Kriterien | K255: Arterioskleroserisiko
B257: Gesamt-Cholesterin (mmol/l) | E257: =IF(E208=0,"",E208) ->  | G257: =IF(E208=0,"",IF(E210=0,"",E208/E210)) ->  | I257: Quotient unter 5: | K257: gering
B258: HDL-Cholesterin (mmol/l) | E258: =IF(E210=0,"",E210) ->  | I258: Quotient über 5: | K258: erhöht
B261: =IF(E208=0,"",IF(E210=0,"",IF(G257=5,"Ihr Arterioskleroserisiko ist grenzwertig",IF(G257<5,"Ihr Arterioskleroserisiko ist nicht erhöht", IF(G257>5,"Ihr Arterioskleroserisiko ist erhöht"))))) -> 
B263: Man darf sich grundsätzlich nicht allein auf einen günstigen "Gesamtcholesterin zu HDL"-Quotienten verlassen. Hohe HDL-Werte kommen
B264: manchmal dadurch zustande, dass der HDL-vermittelte physiologische Rücktransport oxidierten LDLs aus den Gefässwänden in die Leber
B265: blockiert ist. Das Serum-HDL akkumuliert und kreist in grosser Menge im Blut, ohne seine arteriosklerosepräventive Funktion erfüllen
B266: zu können.
G270: Kriterien für das Vorliegen eines Gefässrisikos
K271: T=Treffer
B272: Merkmal | E272: Meine Werte | G272: Kriterien | H272: T | I272: Kriterien | J272: T | K272: Kriterien | L272: T
B274: Rauchen (Zigaretten/Tag) | E274: =IF(K206="","",IF(K206=0,"0",K206)) ->  | G274: 0 | H274: =IF(K206="","",IF(K206=0,1,)) ->  | I274: 1 bis 6 | J274: =IF(K206="","",IF(E274=0,0,IF(E274>=1,IF(E274<=6,1,0)))) ->  | K274: ab 7 | L274: =IF(K206="","",IF(K206=0,0,IF(K206<7,0,IF(K206>=7,1)))) -> 
B275: Bewegung (Std./Woche) | E275: =IF(K207=0,"",K207) ->  | G275: ab 3 | H275: =IF(K207="","",IF(K207<3,0,IF(K207>=3,1))) ->  | I275: 1 bis 2 | J275: =IF(K207="","",IF(K207=0,0,IF(K207>=1,IF(K207<=2,1,0)))) ->  | K275: 0 | L275: =IF(K207="","",IF(K207=0,1,0)) -> 
B276: =IF(E36="Frau","BMI Frau","") -> BMI Frau | C276: =IF(A36="Mann","Mann bis 24","Frau bis 22") -> Frau bis 22 | E276: =IF(E36="Frau",K24,"") ->  | G276: =IF(B276="","",IF(E36="Frau","Frau bis 22")) -> Frau bis 22 | H276: =IF(E276="","",IF(E276<=22,1,0)) ->  | I276: =IF(B276="","",IF(E36="Frau","Frau 22 bis 28")) -> Frau 22 bis 28 | J276: =IF(E276="","",IF(E276<=22,0,IF(E276>=28,0,IF(E276>22,IF(E276<28,1))))) ->  | K276: =IF(B276="","",IF(E36="Mann","Mann u. Frau ab 28","Mann u. Frau ab 28")) -> Mann u. Frau ab 28 | L276: =IF(E276="","",IF(E276>=28,1,0)) -> 
B277: =IF(E36="Mann","BMI Mann","") ->  | C277: =IF(A37="Mann","Mann bis 24","Frau bis 22") -> Frau bis 22 | E277: =IF(E36="Mann",K24,"") ->  | G277: =IF(B277="","",IF(E36="Mann","Mann bis 24")) ->  | H277: =IF(E277="","",IF(E277<=24,1,0)) ->  | I277: =IF(B277="","",IF(E36="Mann","Mann 24 bis 28")) ->  | J277: =IF(E277="","",IF(E277<=24,0,IF(E277>=28,0,IF(E277>=24,IF(E277<28,1,0))))) ->  | K277: =IF(B277="","",IF(E36="Mann","Mann u. Frau ab 28","Mann u. Frau ab 28")) ->  | L277: =IF(E277="","",IF(E277>=28,1,0)) -> 
B278: Blutdruck (RR) systolisch | E278: =K40 ->  | G278: bis 140 | H278: =IF(K40="","",IF(E278<=140,1,IF(E278>=141,0,))) ->  | I278: 141 - 179 | J278: =IF(K40="","",IF(E278<=140,0,IF(E278>=141,IF(E278<=179,1,0)))) ->  | K278: ab 180 | L278: =IF(K40="","",IF(E278>=180,1,0)) -> 
B279: Blutdruck (RR) diastolisch | E279: =K41 ->  | G279: bis 90 | H279: =IF(K41="","",IF(E279<=90,1,IF(E279>=91,0,))) ->  | I279: 91 - 109 | J279: =IF(K41="","",IF(E279<=90,0,IF(E279>=91,IF(E279<=109,1,0)))) ->  | K279: ab 110 | L279: =IF(K41="","",IF(E279>=110,1,0)) -> 
B280: Blutzucker (Glukose) (mmol/l) | E280: =IF(E207=0,"",E207) ->  | G280: bis 5.5 | H280: =IF(E207="","",IF(E280<=5.5,1,IF(E280>=5.6,0))) ->  | I280: 5.6 - 6.8 | J280: =IF(E207="","",IF(E280<=5.5,0,IF(E280>=5.6,IF(E280<=6.8,1,0)))) ->  | K280: ab 6.9 | L280: =IF(E207="","",IF(E280>=6.9,1,0)) -> 
B281: Gesamt-Cholesterin (mmol/l) | G281: bis 5.18 | H281: =IF(E208="","",IF(E281<=5.18,1,IF(E281>=5.19,0))) ->  | I281: 5.19 - 6.19 | J281: =IF(E208="","",IF(E281<=5.18,0,IF(E281>=5.19,IF(E281<=6.19,1,0)))) ->  | K281: ab 6.20 | L281: =IF(E208="","",IF(E281>=6.2,1,0)) -> 
B282: LDL-Cholesterin (mmol/l) | G282: bis 3.38 | H282: =IF(E209=0,"",IF(E282<=3.38,1,IF(E282>=3.39,0))) ->  | I282: 3.39 - 4.12 | J282: =IF(E209=0,"",IF(E282<=3.38,0,IF(E282>=3.39,IF(E282<=4.12,1,0)))) ->  | K282: ab 4.13 | L282: =IF(E209=0,"",IF(E282>=4.13,1,0)) -> 
B283: HDL-Cholesterin (mmol/l) | G283: ab 1.04 | H283: =IF(E210=0,"",IF(E283>=1.04,1,IF(E283<1.04,0))) ->  | I283: 0.79 - 1.03 | J283: =IF(E210=0,"",IF(E283<0.79,0,IF(E283>=1.04,0,IF(E283>=0.79,IF(E283<=1.03,1,0))))) ->  | K283: bis 0.78 | L283: =IF(E210=0,"",IF(E283<=0.78,1,0)) -> 
B284: Triglyzeride (mmol/l) | G284: bis 1.71 | H284: =IF(E211=0,"",IF(E284<=1.71,1,IF(E284>=1.72,0))) ->  | I284: 1.72 - 2.95 | J284: =IF(E211=0,"",IF(E284<=1.71,0,IF(E284>=1.72,IF(E284<=2.95,1,0)))) ->  | K284: ab 2.96 | L284: =IF(E211=0,"",IF(E284>=2.96,1,0)) -> 
B285: CRP sensitiv (mg/l) | G285: 0 bis 3 | H285: =IF(E212="","",IF(E212=0,1,IF(E212>=0,IF(E212<=3,1,0)))) ->  | I285: 4 bis 9 | J285: =IF(E212="","",IF(E212=0,0,IF(E285<=3,0,IF(E285>=4,IF(E285<=9,1,0))))) ->  | K285: ab 10 | L285: =IF(E212="","",IF(E212=0,0,IF(E285>=10,1,0))) -> 
G287: Treffer gelb | H287: =SUM(H274:H285) -> 0 | I287: Treffer x 1= | K287: =H287*1 -> 0
G288: Treffer blau | H288: =SUM(J274:J285) -> 0 | I288: Treffer x 2= | K288: =H288*2 -> 0
G289: Treffer rot | H289: =SUM(L274:L285) -> 0 | I289: Treffer x 3= | K289: =H289*3 -> 0
G291: Gesamtpunkte | I291: = | K291: =SUM(K287:K289) -> 0
C294: Risiko | E294: Gesamtpunkte | G294: Ihr persönliches Risikoprofil
C296: sehr gering | E296: 11 | G296: =IF(K291=E296,"Kein Risiko für Gefässerkrankung","") -> 
E297: 12 | G297: =IF(K291=E297,"Ihr Resultat: Risiko für Gefässerkrankung sehr gering","") -> 
E298: 13 | G298: =IF(K291=E298,"Risiko für Gefässerkrankung sehr gering","") -> 
E299: 14 | G299: =IF(K291=E299,"Risiko für Gefässerkrankung sehr gering","") -> 
E300: 15 | G300: =IF(K291=E300,"Risiko für Gefässerkrankung gering","") -> 
E301: 16 | G301: =IF(K291=E301,"Risiko für Gefässerkrankung gering","") -> 
E302: 17 | G302: =IF(K291=E302,"Risiko für Gefässerkrankung gering","") -> 
E303: 18 | G303: =IF(K291=E303,"Risiko mittel","") -> 
E304: 19 | G304: =IF(K291=E304,"Risiko für Gefässerkrankung mittel","") -> 
E305: 20 | G305: =IF(K291=E305,"Risiko für eine Gefässerkrankung mittel","") -> 
C306: mittel | E306: 21 | G306: =IF(K291=E306,"Risiko für Gefässerkrankung mittel","") -> 
E307: 22 | G307: =IF(K291=E307,"Risiko für Gefässerkrankung mittel","") -> 
E308: 23 | G308: =IF(K291=E308,"Risiko für Gefässerkrankung mittel","") -> 
E309: 24 | G309: =IF(K291=E309,"Risiko für Gefässerkrankung mittel","") -> 
E310: 25 | G310: =IF(K291=E310,"Ihr Resultat: Risiko für Gefässerkrankung hoch","") -> 
E311: 26 | G311: =IF(K291=E311,"Risiko für Gefässerkrankung hoch","") -> 
E312: 27 | G312: =IF(K291=E312,"Risiko für Gefässerkrankung hoch","") -> 
E313: 28 | G313: =IF(K291=E313,"Risiko für Gefässerkrankung hoch","") -> 
E314: 29 | G314: =IF(K291=E314,"Risiko für Gefässerkrankung hoch","") -> 
E315: 30 | G315: =IF(K291=E315,"Risiko für Gefässerkrankung sehr hoch","") -> 
E316: 31 | G316: =IF(K291=E316,"Risiko für Gefässerkrankung sehr hoch","") -> 
E317: 32 | G317: =IF(K291=E317,"Risiko für Gefässerkrankung sehr hoch","") -> 
C318: hoch | E318: 33 | G318: =IF(K291=E318,"Risiko für Gefässerkrankung extrem hoch","") -> 

Sheet Juni
B2: Monat: Juni
I3: Grüne Felder: Eingabe erforderlich
C4: Jahresziel: | E4: =IF(Jahr!J4=0,"",Jahr!J4) -> 82 | G4: Monatsziel: | N4: Das moderne Gewichtscoaching:
E6: Kommentar | I6: Veränderung | K6: Ergebnis | N6: XLS - von XL bis S
B8: =IF(D88=0,"",IF(K21=0,"",IF(K22=0,"",IF(K22=K21,"Gewicht gleichbleibend",IF(K22<K21,"Sie haben abgenommen! Bravo!",IF(K22>K21,"")))))) ->  | G8: Abgenommen: | K8: =IF(D88=0,"",IF(K22=0,"",IF(K22-K21=0,"0kg",IF(K22>K21,"",K21-K22)))) ->  | N8: Ernährung und Bewegung
B9: =IF(D88=0,"",IF(K21=0,"",IF(K22=0,"",IF(K22=K21,"Gewicht gleichbleibend",IF(K22>K21,"Sie haben zugenommen. Arbeiten Sie an sich!",IF(K22<K21,"")))))) ->  | G9: Zugenommen: | K9: =IF(D88=0,"",IF(K22=0,"",IF(K22-K21=0,"0kg",IF(K22<K21,"",K22-K21)))) -> 
B11: =IF(D88=0,"",IF(K21=0,"",IF(K22=0,"",IF(K22>I4,"Monatsziel noch nicht erreicht!",IF(K22=I4,"Monatsziel erreicht. Bravo!",IF(K22<I4,"Monatsziel sogar unterschritten!")))))) ->  | G11: Vom Monatsziel entfernt um + / -: | K11: =IF(D88=0,"",IF(K22=0,"",IF(K22=I4,"0",K22-I4))) ->  | N11: Psyche und Schlaf
B12: =IF(D88=0,"",IF(K21=0,"",IF(K22=0,"",IF(K22=E4,"Jahresziel erreicht! Gratuliere!",IF(K22>E4,"Jahresziel noch nicht erreicht! Bleiben Sie dran!",IF(K22<E4,"Jahrsziel sogar unterschritten!")))))) ->  | G12: Vom Jahresziel entfernt um + / -: | K12: =IF(D88=0,"",IF(K22=0,"",IF(K22=E4,"0",K22-E4))) -> 
G14: Gewicht - Monatsdurchschnitt: | K14: =IF(SUM(C82:C112)=0,"",AVERAGEA(C82:C112)) ->  | N14: Motivation: XLS Software
I19: Erste - Letzte Messung im Monat | K19: Monatsprofil | N19: Unterstützung
B21: Ihr Gewicht bei BMI-Ideal 22: | E21: =IF('GU-GEB'!C10=0,"",22*(('GU-GEB'!C10/100)^2)) ->  | G21: Gewicht - Erste Messung im Monat: | K21: =IF(D88=0,"",INDEX(C82:C112,D88,1)) ->  | N21: Granuvital "Fit&Schlank" SevisanaLine
B22: Ihr Gewicht bei BMI-Ideal 25: | E22: =IF('GU-GEB'!C10=0,"",25*(('GU-GEB'!C10/100)^2)) ->  | G22: Gewicht - Letzte Messung im Monat: | K22: =IF(D99=0,"",INDEX(C82:C112,D99,1)) -> 
B24: Vom BMI Ideal 22 entfernt: | E24: =IF(L88=0,"",IF(K24=0,"",IF(K24-22=0,"0",K24-22))) ->  | G24: BMI - Erste Messung im Monat: | K24: =IF(L88=0,"",INDEX(K82:K112,L88,1)) ->  | N24: X-Form und X-Form Plus SevisanaLine
B25: Vom BMI Ideal 22 entfernt: | E25: =IF(L99=0,"",IF(K25=0,"",IF(K25-22=0,"0",K25-22))) ->  | G25: BMI - Letzte Messung im Monat: | K25: =IF(L99=0,"",INDEX(K82:K112,L99,1)) -> 
B27: Vom Idealwert entfernt: | E27: =IF(F88=0,"",IF(K27=0,"",IF(K28=0,"",IF(K27-J27=0,"0cm",K27-J27)))) ->  | G27: Bauchumfang - Erste Messung im Monat: | J27: =IF('GU-GEB'!C8="Mann",94,80) -> 80 | K27: =IF(F88=0,"",INDEX(E82:E112,F88,1)) ->  | N27: Reine Flohsamenschalen SevisanaLine
B28: Vom Idealwert entfernt: | E28: =IF(F99=0,"",IF(K27=0,"",IF(K28=0,"",IF(K28-J27=0,"0cm",K28-J27)))) ->  | G28: Bauchumfang - Letzte Messung im Monat: | J28: =IF('GU-GEB'!C8="Mann",102,88) -> 88 | K28: =IF(F99=0,"",INDEX(E82:E112,F99,1)) -> 
G30: Hüftumfang - Erste Messung im Monat: | K30: =IF(H88=0,"",INDEX(G82:G112,H88,1)) ->  | N30: Basenpulver nach Dr. Eichhorn
G31: Hüftumfang - Letzte Messung im Monat: | K31: =IF(H99=0,"",INDEX(G82:G112,H99,1)) -> 
B33: Vom B/H Idealwert entfernt: | E33: =IF(J88=0,"",IF(K33=0,"",IF(K33-G36=0,"0",K33-G36))) ->  | G33: B/H - Erste Messung im Monat: | K33: =IF(J88=0,"",INDEX(I82:I112,J88,1)) ->  | N33: Produkteinformation | P33: www.sevisana.ch
B34: Vom B/H Idealwert entfernt: | E34: =IF(J99=0,"",IF(K34=0,"",IF(K34-G36=0,"0",K34-G36))) ->  | G34: B/H - Letzte Messung im Monat: | K34: =IF(J99=0,"",INDEX(I82:I112,J99,1)) -> 
B36: B/H Ziel gleich/kleiner als: | E36: ='GU-GEB'!C8 -> Frau | G36: =IF(E36="Frau",0.85,1) -> 0.85
G40: Blutdruck systolisch - Erste Messung | K40: =IF(F147=0,"",INDEX(E141:E171,F147,1)) ->  | N40: Bestellung | P40: www.sevisana.ch
G41: Blutdruck diastolisch - Erste Messung | K41: =IF(H147=0,"",INDEX(G141:G171,H147,1)) -> 
G43: Blutdruck systolisch - Letzte Messung | K43: =IF(F158=0,"",INDEX(E141:IE171,F158,1)) -> 
G44: Blutdruck diastolisch - Letzte Messung | K44: =IF(H158=0,"",INDEX(G141:IG171,H158,1)) ->  | N44: Direktbestellung | P44: http://shop.sevisana.ch
G47: Puls - Erste Messung | K47: =IF(D147=0,"",INDEX(C141:C171,D147,1)) -> 
G48: Puls - Letzte Messung | K48: =IF(D158=0,"",INDEX(C141:C171,D158,1)) ->  | N48: Medizinwissen | P48: www.ever.ch
C53: Tendenzen | G53: Verlauf in diesem Monat
B55: Tendenzen Ende Monat: | E55: Gewicht: | G55: =IF(D88=0,"",IF(K21=0,"",IF(K22=0,"",IF(K22<K21,"Gewicht fällt. Bravo!",IF(K22=K21,"Gewicht gleichbleibend",IF(K22>K21,"Achtung! Gewicht steigt. Risiko!")))))) -> 
E56: BMI: | G56: =IF(D88=0,"",IF(K24=0,"",IF(K25=0,"",IF(K25<K24,"BMI fällt. Bravo!",IF(K25=K24,"BMI gleichbleibend",IF(K25>K24,"BMI steigt. Ihre Gesundheit ist gefährdet!")))))) -> 
E57: Bauchumfang: | G57: =IF(F88=0,"",IF(K27=0,"",IF(K28=0,"",IF(K28<K27,"Bauchumfang wird kleiner. Bravo!",IF(K28=K27,"Bauchumfang gleichbleibend",IF(K28>K27,"Achtung! Bauchumfang nimmt zu",IF(K28<=J27,"Normalwert"))))))) -> 
E58: B/H: | G58: =IF(J88=0,"",IF(K33=0,"",IF(K34=0,"",IF(K34<K33,"B/H Verältnis wird kleiner. Bravo!",IF(K34=K33,"B/H Verältnis gleichbleibend",IF(K34>K33,"Achtung! B/H Verhältnis nimmt zu")))))) -> 
C60: Risiko Anfang Monat: | E60: BMI: | G60: =IF(D88=0,"",IF(K24=0,"",IF(K24>=40,"Grad III: Schwere Adipositas",IF(K24>=30,"Grad II: Adipositas",IF(K24>=25,"Grad I: Übergewichtt",IF(K24>=20,"Normalgewicht",IF(K24<20,"Untergewicht",))))))) -> 
E61: Bauchumfang: | G61: =IF(F88=0,"",IF(K27=0,"",IF(K27>=J28,"Gesundheitsrisiko hoch",IF(K27>=J27,"Gesundheitsrisiko erhöht",IF(K27<J27,"Kein Gesundheitsrisiko"))))) -> 
E62: B/H: | G62: =IF(J88=0,"",IF(K33=0,"",IF(K33>G36,"Gesundheitsrisiko erhöht",IF(K33=G36,"Grenzwert zu Gesundheitsrisiko erhöht",IF(K33<G36,"Kein Gesundheitsrisiko"))))) -> 
C64: Risiko Ende Monat: | E64: BMI: | G64: =IF(D88=0,"",IF(K25=0,"",IF(K25>=40,"Grad III: Schwere Adipositas",IF(K25>=30,"Grad II: Adipositas",IF(K25>=25,"Grad I: Übergewicht",IF(K25>=20,"Normalgewicht",IF(K25<20,"Untergewicht",))))))) -> 
E65: Bauchumfang: | G65: =IF(F88=0,"",IF(K28=0,"",IF(K28>=J28,"Gesundheitsrisiko hoch",IF(K28>=J27,"Gesundheitsrisiko erhöht",IF(K28<J27,"Kein Gesundheitsrisiko"))))) -> 
E66: B/H: | G66: =IF(J88=0,"",IF(K34=0,"",IF(K34>G36,"Gesundheitsrisiko erhöht",IF(K34=G36,"Grenzwert zu Gesundheitsrisiko erhöht",IF(K34<G36,"Kein Gesundheitsrisiko"))))) -> 
B71: Risiko | E71: Ihr persönliches Risikoprofil
B73: Metabolisches Syndrom | E73: =IF(F147=0,"",B232) -> 
B74: Insulinresistenz | E74: =IF(E206=0,"",IF(E207=0,"",E250)) -> 
B75: Arterioskleroserisiko | E75: =IF(E208=0,"",IF(E210=0,"",B261)) -> 
B76: Gefässrisiko | E76: =IF(K291<11,"",IF(K291=0,"",IF(K291>=11,IF(K291<=17,"Gefässrisiko im unteren Bereich",IF(K291>=18,IF(K291<=24,"Gefässrisiko im mittleren Bereich",IF(K291>=25,"Gefässrisiko im hohen Bereich"))))))) -> 
B81: Tag | C81: Gewicht | E81: Bauchumfang | G81: Hüftumfang | I81: B/H Verhältnis | K81: BMI
B82: 1 | D82: =IF(C82="",IF(C83="",IF(C84="",IF(C85="",IF(C86="",IF(C87="",IF(C88="",0,7),6),5),4),3),2),1) -> 0 | F82: =IF(E82="",IF(E83="",IF(E84="",IF(E85="",IF(E86="",IF(E87="",IF(E88="",0,7),6),5),4),3),2),1) -> 0 | H82: =IF(G82="",IF(G83="",IF(G84="",IF(G85="",IF(G86="",IF(G87="",IF(G88="",0,7),6),5),4),3),2),1) -> 0 | I82: =IF(E82=0,"",IF(G82=0,"",E82/G82)) ->  | J82: =IF(I82="",IF(I83="",IF(I84="",IF(I85="",IF(I86="",IF(I87="",IF(I88="",0,7),6),5),4),3),2),1) -> 0 | K82: =IF(C82=0,"",C82/(('GU-GEB'!C10/100)^2)) ->  | L82: =IF(K82="",IF(K83="",IF(K84="",IF(K85="",IF(K86="",IF(K87="",IF(K88="",0,7),6),5),4),3),2),1) -> 0
B83: 2 | D83: =IF(C89="",IF(C90="",IF(C91="",IF(C92="",IF(C93="",IF(C94="",IF(C95="",0,14),13),12),11),10),9),8) -> 0 | F83: =IF(E89="",IF(E90="",IF(E91="",IF(E92="",IF(E93="",IF(E94="",IF(E95="",0,14),13),12),11),10),9),8) -> 0 | H83: =IF(G89="",IF(G90="",IF(G91="",IF(G92="",IF(G93="",IF(G94="",IF(G95="",0,14),13),12),11),10),9),8) -> 0 | J83: =IF(I89="",IF(I90="",IF(I91="",IF(I92="",IF(I93="",IF(I94="",IF(I95="",0,14),13),12),11),10),9),8) -> 0 | K83: =IF(C83=0,"",C83/(('GU-GEB'!C10/100)^2)) ->  | L83: =IF(K89="",IF(K90="",IF(K91="",IF(K92="",IF(K93="",IF(K94="",IF(K95="",0,14),13),12),11),10),9),8) -> 0
B84: 3 | D84: =IF(C96="",IF(C97="",IF(C98="",IF(C99="",IF(C100="",IF(C101="",IF(C102="",0,21),20),19),18),17),16),15) -> 0 | F84: =IF(E96="",IF(E97="",IF(E98="",IF(E99="",IF(E100="",IF(E101="",IF(E102="",0,21),20),19),18),17),16),15) -> 0 | H84: =IF(G96="",IF(G97="",IF(G98="",IF(G99="",IF(G100="",IF(G101="",IF(G102="",0,21),20),19),18),17),16),15) -> 0 | J84: =IF(I96="",IF(I97="",IF(I98="",IF(I99="",IF(I100="",IF(I101="",IF(I102="",0,21),20),19),18),17),16),15) -> 0 | K84: =IF(C84=0,"",C84/(('GU-GEB'!C10/100)^2)) ->  | L84: =IF(K96="",IF(K97="",IF(K98="",IF(K99="",IF(K100="",IF(K101="",IF(K102="",0,21),20),19),18),17),16),15) -> 0
B85: 4 | D85: =IF(C103="",IF(C104="",IF(C105="",IF(C106="",IF(C107="",IF(C108="",IF(C109="",0,28),27),26),25),24),23),22) -> 0 | F85: =IF(E103="",IF(E104="",IF(E105="",IF(E106="",IF(E107="",IF(E108="",IF(E109="",0,28),27),26),25),24),23),22) -> 0 | H85: =IF(G103="",IF(G104="",IF(G105="",IF(G106="",IF(G107="",IF(G108="",IF(G109="",0,28),27),26),25),24),23),22) -> 0 | J85: =IF(I103="",IF(I104="",IF(I105="",IF(I106="",IF(I107="",IF(I108="",IF(I109="",0,28),27),26),25),24),23),22) -> 0 | K85: =IF(C85=0,"",C85/(('GU-GEB'!C10/100)^2)) ->  | L85: =IF(K103="",IF(K104="",IF(K105="",IF(K106="",IF(K107="",IF(K108="",IF(K109="",0,28),27),26),25),24),23),22) -> 0
B86: 5 | D86: =IF(C110="",IF(C111="",IF(C112="",0,31),30),29) -> 0 | F86: =IF(E110="",IF(E111="",IF(E112="",0,31),30),29) -> 0 | H86: =IF(G110="",IF(G111="",IF(G112="",0,31),30),29) -> 0 | J86: =IF(I110="",IF(I111="",IF(I112="",0,31),30),29) -> 0 | K86: =IF(C86=0,"",C86/(('GU-GEB'!C10/100)^2)) ->  | L86: =IF(K110="",IF(K111="",IF(K112="",0,31),30),29) -> 0
B87: 6 | K87: =IF(C87=0,"",C87/(('GU-GEB'!C10/100)^2)) -> 
B88: 7 | D88: =IF(D82=0,IF(D83=0,IF(D84=0,IF(D85=0,IF(D86=0,0,D86),D85),D84),D83),D82) -> 0 | F88: =IF(F82=0,IF(F83=0,IF(F84=0,IF(F85=0,IF(F86=0,0,F86),F85),F84),F83),F82) -> 0 | H88: =IF(H82=0,IF(H83=0,IF(H84=0,IF(H85=0,IF(H86=0,0,H86),H85),H84),H83),H82) -> 0 | J88: =IF(J82=0,IF(J83=0,IF(J84=0,IF(J85=0,IF(J86=0,0,J86),J85),J84),J83),J82) -> 0 | K88: =IF(C88=0,"",C88/(('GU-GEB'!C10/100)^2)) ->  | L88: =IF(L82=0,IF(L83=0,IF(L84=0,IF(L85=0,IF(L86=0,0,L86),L85),L84),L83),L82) -> 0
B89: 8 | K89: =IF(C89=0,"",C89/(('GU-GEB'!C10/100)^2)) -> 
B90: 9 | K90: =IF(C90=0,"",C90/(('GU-GEB'!C10/100)^2)) -> 
B91: 10 | K91: =IF(C91=0,"",C91/(('GU-GEB'!C10/100)^2)) -> 
B92: 11 | K92: =IF(C92=0,"",C92/(('GU-GEB'!C10/100)^2)) -> 
B93: 12 | D93: =IF(C112="",IF(C111="",IF(C110="",IF(C109="",IF(C108="",IF(C107="",IF(C106="",0,25),26),27),28),29),30),31) -> 0 | F93: =IF(E112="",IF(E111="",IF(E110="",IF(E109="",IF(E108="",IF(E107="",IF(E106="",0,25),26),27),28),29),30),31) -> 0 | H93: =IF(G112="",IF(G111="",IF(G110="",IF(G109="",IF(G108="",IF(G107="",IF(G106="",0,25),26),27),28),29),30),31) -> 0 | J93: =IF(I112="",IF(I111="",IF(I110="",IF(I109="",IF(I108="",IF(I107="",IF(I106="",0,25),26),27),28),29),30),31) -> 0 | K93: =IF(C93=0,"",C93/(('GU-GEB'!C10/100)^2)) ->  | L93: =IF(K112="",IF(K111="",IF(K110="",IF(K109="",IF(K108="",IF(K107="",IF(K106="",0,25),26),27),28),29),30),31) -> 0
B94: 13 | D94: =IF(C105="",IF(C104="",IF(C103="",IF(C102="",IF(C101="",IF(C100="",IF(C99="",0,18),19),20),21),22),23),24) -> 0 | F94: =IF(E105="",IF(E104="",IF(E103="",IF(E102="",IF(E101="",IF(E100="",IF(E99="",0,18),19),20),21),22),23),24) -> 0 | H94: =IF(G105="",IF(G104="",IF(G103="",IF(G102="",IF(G101="",IF(G100="",IF(G99="",0,18),19),20),21),22),23),24) -> 0 | J94: =IF(I105="",IF(I104="",IF(I103="",IF(I102="",IF(I101="",IF(I100="",IF(I99="",0,18),19),20),21),22),23),24) -> 0 | K94: =IF(C94=0,"",C94/(('GU-GEB'!C10/100)^2)) ->  | L94: =IF(K105="",IF(K104="",IF(K103="",IF(K102="",IF(K101="",IF(K100="",IF(K99="",0,18),19),20),21),22),23),24) -> 0
B95: 14 | D95: =IF(C98="",IF(C97="",IF(C96="",IF(C95="",IF(C94="",IF(C93="",IF(C92="",0,11),12),13),14),15),16),17) -> 0 | F95: =IF(E98="",IF(E97="",IF(E96="",IF(E95="",IF(E94="",IF(E93="",IF(E92="",0,11),12),13),14),15),16),17) -> 0 | H95: =IF(G98="",IF(G97="",IF(G96="",IF(G95="",IF(G94="",IF(G93="",IF(G92="",0,11),12),13),14),15),16),17) -> 0 | J95: =IF(I98="",IF(I97="",IF(I96="",IF(I95="",IF(I94="",IF(I93="",IF(I92="",0,11),12),13),14),15),16),17) -> 0 | K95: =IF(C95=0,"",C95/(('GU-GEB'!C10/100)^2)) ->  | L95: =IF(K98="",IF(K97="",IF(K96="",IF(K95="",IF(K94="",IF(K93="",IF(K92="",0,11),12),13),14),15),16),17) -> 0
B96: 15 | D96: =IF(C91="",IF(C90="",IF(C89="",IF(C88="",IF(C87="",IF(C86="",IF(C85="",0,4),5),6),7),8),9),10) -> 0 | F96: =IF(E91="",IF(E90="",IF(E89="",IF(E88="",IF(E87="",IF(E86="",IF(E85="",0,4),5),6),7),8),9),10) -> 0 | H96: =IF(G91="",IF(G90="",IF(G89="",IF(G88="",IF(G87="",IF(G86="",IF(G85="",0,4),5),6),7),8),9),10) -> 0 | J96: =IF(I91="",IF(I90="",IF(I89="",IF(I88="",IF(I87="",IF(I86="",IF(I85="",0,4),5),6),7),8),9),10) -> 0 | K96: =IF(C96=0,"",C96/(('GU-GEB'!C10/100)^2)) ->  | L96: =IF(K91="",IF(K90="",IF(K89="",IF(K88="",IF(K87="",IF(K86="",IF(K85="",0,4),5),6),7),8),9),10) -> 0
B97: 16 | D97: =IF(C84="",IF(C83="",IF(C82="",0,1),2),3) -> 0 | F97: =IF(E84="",IF(E83="",IF(E82="",0,1),2),3) -> 0 | H97: =IF(G84="",IF(G83="",IF(G82="",0,1),2),3) -> 0 | J97: =IF(I84="",IF(I83="",IF(I82="",0,1),2),3) -> 0 | K97: =IF(C97=0,"",C97/(('GU-GEB'!C10/100)^2)) ->  | L97: =IF(K84="",IF(K83="",IF(K82="",0,1),2),3) -> 0
B98: 17 | K98: =IF(C98=0,"",C98/(('GU-GEB'!C10/100)^2)) -> 
B99: 18 | D99: =IF(D93=0,IF(D94=0,IF(D95=0,IF(D96=0,IF(D97=0,0,D97),D96),D95),D94),D93) -> 0 | F99: =IF(F93=0,IF(F94=0,IF(F95=0,IF(F96=0,IF(F97=0,0,F97),F96),F95),F94),F93) -> 0 | H99: =IF(H93=0,IF(H94=0,IF(H95=0,IF(H96=0,IF(H97=0,0,H97),H96),H95),H94),H93) -> 0 | J99: =IF(J93=0,IF(J94=0,IF(J95=0,IF(J96=0,IF(J97=0,0,J97),J96),J95),J94),J93) -> 0 | K99: =IF(C99=0,"",C99/(('GU-GEB'!C10/100)^2)) ->  | L99: =IF(L93=0,IF(L94=0,IF(L95=0,IF(L96=0,IF(L97=0,0,L97),L96),L95),L94),L93) -> 0
B100: 19 | K100: =IF(C100=0,"",C100/(('GU-GEB'!C10/100)^2)) -> 
B101: 20 | K101: =IF(C101=0,"",C101/(('GU-GEB'!C10/100)^2)) -> 
B102: 21 | K102: =IF(C102=0,"",C102/(('GU-GEB'!C10/100)^2)) -> 
B103: 22 | K103: =IF(C103=0,"",C103/(('GU-GEB'!C10/100)^2)) -> 
B104: 23 | K104: =IF(C104=0,"",C104/(('GU-GEB'!C10/100)^2)) -> 
B105: 24 | K105: =IF(C105=0,"",C105/(('GU-GEB'!C10/100)^2)) -> 
B106: 25 | K106: =IF(C106=0,"",C106/(('GU-GEB'!C10/100)^2)) -> 
B107: 26 | K107: =IF(C107=0,"",C107/(('GU-GEB'!C10/100)^2)) -> 
B108: 27 | K108: =IF(C108=0,"",C108/(('GU-GEB'!C10/100)^2)) -> 
B109: 28 | K109: =IF(C109=0,"",C109/(('GU-GEB'!C10/100)^2)) -> 
B110: 29 | K110: =IF(C110=0,"",C110/(('GU-GEB'!C10/100)^2)) -> 
B111: 30 | K111: =IF(C111=0,"",C111/(('GU-GEB'!C10/100)^2)) -> 
B112: 31 | K112: =IF(C112=0,"",C112/(('GU-GEB'!C10/100)^2)) -> 
B140: Tag | C140: Puls | E140: BD systolisch | G140: BD diastolisch | I140: BD Mittelwert
B141: 1 | D141: =IF(C141="",IF(C142="",IF(C143="",IF(C144="",IF(C145="",IF(C146="",IF(C147="",0,7),6),5),4),3),2),1) -> 0 | F141: =IF(E141="",IF(E142="",IF(E143="",IF(E144="",IF(E145="",IF(E146="",IF(E147="",0,7),6),5),4),3),2),1) -> 0 | H141: =IF(G141="",IF(G142="",IF(G143="",IF(G144="",IF(G145="",IF(G146="",IF(G147="",0,7),6),5),4),3),2),1) -> 0 | I141: =IF(E141=0,"",IF(G141=0,"",AVERAGEA(E141,G141))) -> 
B142: 2 | D142: =IF(C148="",IF(C149="",IF(C150="",IF(C151="",IF(C152="",IF(C153="",IF(C154="",0,14),13),12),11),10),9),8) -> 0 | F142: =IF(E148="",IF(E149="",IF(E150="",IF(E151="",IF(E152="",IF(E153="",IF(E154="",0,14),13),12),11),10),9),8) -> 0 | H142: =IF(G148="",IF(G149="",IF(G150="",IF(G151="",IF(G152="",IF(G153="",IF(G154="",0,14),13),12),11),10),9),8) -> 0
B143: 3 | D143: =IF(C155="",IF(C156="",IF(C157="",IF(C158="",IF(C159="",IF(C160="",IF(C161="",0,21),20),19),18),17),16),15) -> 0 | F143: =IF(E155="",IF(E156="",IF(E157="",IF(E158="",IF(E159="",IF(E160="",IF(E161="",0,21),20),19),18),17),16),15) -> 0 | H143: =IF(G155="",IF(G156="",IF(G157="",IF(G158="",IF(G159="",IF(G160="",IF(G161="",0,21),20),19),18),17),16),15) -> 0
B144: 4 | D144: =IF(C162="",IF(C163="",IF(C164="",IF(C165="",IF(C166="",IF(C167="",IF(C168="",0,28),27),26),25),24),23),22) -> 0 | F144: =IF(E162="",IF(E163="",IF(E164="",IF(E165="",IF(E166="",IF(E167="",IF(E168="",0,28),27),26),25),24),23),22) -> 0 | H144: =IF(G162="",IF(G163="",IF(G164="",IF(G165="",IF(G166="",IF(G167="",IF(G168="",0,28),27),26),25),24),23),22) -> 0
B145: 5 | D145: =IF(C169="",IF(C170="",IF(C171="",0,31),30),29) -> 0 | F145: =IF(E169="",IF(E170="",IF(E171="",0,31),30),29) -> 0 | H145: =IF(G169="",IF(G170="",IF(G171="",0,31),30),29) -> 0
B146: 6
B147: 7 | D147: =IF(D141=0,IF(D142=0,IF(D143=0,IF(D144=0,IF(D145=0,0,D145),D144),D143),D142),D141) -> 0 | F147: =IF(F141=0,IF(F142=0,IF(F143=0,IF(F144=0,IF(F145=0,0,F145),F144),F143),F142),F141) -> 0 | H147: =IF(H141=0,IF(H142=0,IF(H143=0,IF(H144=0,IF(H145=0,0,H145),H144),H143),H142),H141) -> 0
B148: 8
B149: 9
B150: 10
B151: 11
B152: 12 | D152: =IF(C171="",IF(C170="",IF(C169="",IF(C168="",IF(C167="",IF(C166="",IF(C165="",0,25),26),27),28),29),30),31) -> 0 | F152: =IF(E171="",IF(E170="",IF(E169="",IF(E168="",IF(E167="",IF(E166="",IF(E165="",0,25),26),27),28),29),30),31) -> 0 | H152: =IF(G171="",IF(G170="",IF(G169="",IF(G168="",IF(G167="",IF(G166="",IF(G165="",0,25),26),27),28),29),30),31) -> 0
B153: 13 | D153: =IF(C164="",IF(C163="",IF(C162="",IF(C161="",IF(C160="",IF(C159="",IF(C158="",0,18),19),20),21),22),23),24) -> 0 | F153: =IF(E164="",IF(E163="",IF(E162="",IF(E161="",IF(E160="",IF(E159="",IF(E158="",0,18),19),20),21),22),23),24) -> 0 | H153: =IF(G164="",IF(G163="",IF(G162="",IF(G161="",IF(G160="",IF(G159="",IF(G158="",0,18),19),20),21),22),23),24) -> 0
B154: 14 | D154: =IF(C157="",IF(C156="",IF(C155="",IF(C154="",IF(C153="",IF(C152="",IF(C151="",0,11),12),13),14),15),16),17) -> 0 | F154: =IF(E157="",IF(E156="",IF(E155="",IF(E154="",IF(E153="",IF(E152="",IF(E151="",0,11),12),13),14),15),16),17) -> 0 | H154: =IF(G157="",IF(G156="",IF(G155="",IF(G154="",IF(G153="",IF(G152="",IF(G151="",0,11),12),13),14),15),16),17) -> 0
B155: 15 | D155: =IF(C150="",IF(C149="",IF(C148="",IF(C147="",IF(C146="",IF(C145="",IF(C144="",0,4),5),6),7),8),9),10) -> 0 | F155: =IF(E150="",IF(E149="",IF(E148="",IF(E147="",IF(E146="",IF(E145="",IF(E144="",0,4),5),6),7),8),9),10) -> 0 | H155: =IF(G150="",IF(G149="",IF(G148="",IF(G147="",IF(G146="",IF(G145="",IF(G144="",0,4),5),6),7),8),9),10) -> 0
B156: 16 | D156: =IF(C143="",IF(C142="",IF(C141="",0,1),2),3) -> 0 | F156: =IF(E143="",IF(E142="",IF(E141="",0,1),2),3) -> 0 | H156: =IF(G143="",IF(G142="",IF(G141="",0,1),2),3) -> 0
B157: 17
B158: 18 | D158: =IF(D152=0,IF(D153=0,IF(D154=0,IF(D155=0,IF(D156=0,0,D156),D155),D154),D153),D152) -> 0 | F158: =IF(F152=0,IF(F153=0,IF(F154=0,IF(F155=0,IF(F156=0,0,F156),F155),F154),F153),F152) -> 0 | H158: =IF(H152=0,IF(H153=0,IF(H154=0,IF(H155=0,IF(H156=0,0,H156),H155),H154),H153),H152) -> 0
B159: 19
B160: 20
B161: 21
B162: 22
B163: 23
B164: 24
B165: 25
B166: 26
B167: 27
B168: 28
B169: 29
B170: 30
B171: 31
B173: O | C173: =IF(SUM(C141:C171)=0,"",AVERAGEA(C141:C171)) ->  | E173: =IF(SUM(E141:E171)=0,"",AVERAGEA(E141:E171)) ->  | G173: =IF(SUM(G141:G171)=0,"",AVERAGEA(G141:G171)) ->  | I173: =IF(SUM(I141:I171)=0,"",AVERAGE(I141:I171)) -> 
B202: Grüne Felder: Eingabe erforderlich | G202: Laborwerte (morgendliche Nüchternwerte) / Rauchen / Bewegung
C204: Labor | E204: Werte | G204: Grenzwerte | I204: Gewohnheiten | K204: Ergebnis
C206: C-Peptid (nmol/l) | I206: Anzahl Zigaretten/Tag
B207: Blutzucker (Glukose) (mmol/l) | G207: >/= 6.1 | I207: Bewegung (Std./Wo)
B208: Gesamt-Cholesterin (mmol/l)
B209: LDL-Cholesterin (mmol/l)
B210: HDL-Cholesterin (mmol/l) | G210: =IF(E210="Frau","<1.29","<1.04") -> <1.04
B211: Triglyzeride (mmol/l) | G211: >/= 1.69
B212: CRP sensitiv (mg/l) | G212: >/= 3
B213: Mikroalbuminurie (mg/l) | G213: >/= 5
B216: Umrechnung C-Peptid: nmol/l = pmol/l / 1000
G219: Kriterien für das Vorliegen eines Metabolischen Syndroms
C221: Merkmal | E221: Geschlecht | G221: Grenzwerte | I221: Meine Werte | K221: Kriterien erfüllt
C223: Bauchumfang | E223: ='GU-GEB'!C8 -> Frau | G223: =IF(E223="Frau",">88",">102") -> >88 | I223: =K27 ->  | K223: =IF(F88=0,"",IF(I223=0,"",IF(I223>J28,"Ja","Nein"))) ->  | M223: =IF(K223="",0,IF(K223="Nein","0","1")) -> 0
C224: HDL-Cholesterin | E224: ='GU-GEB'!C8 -> Frau | G224: =IF(E224="Frau","<1.29","<1.04") -> <1.29 | H224: =IF('GU-GEB'!C8="Mann",1.04,1.29) -> 1.29 | I224: =IF(E210=0,"",E210) ->  | K224: =IF(E210=0,"",IF(I224<H224,"Ja","Nein")) ->  | M224: =IF(K224="",0,IF(K224="Nein","0","1")) -> 0
C225: Triglyceride | G225: >/= 1.69 | I225: =IF(E211=0,"",E211) ->  | K225: =IF(E211=0,"",IF(I225>=1.69,"Ja","Nein")) ->  | M225: =IF(K225="",0,IF(K225="Nein","0","1")) -> 0
C226: Nüchternzucker | G226: >/= 6.1 | I226: =IF(E207=0,"",E207) ->  | K226: =IF(E207=0,"",IF(I226>=6.1,"Ja","Nein")) ->  | M226: =IF(K226="",0,IF(K226="Nein","0","1")) -> 0
B227: BD systolisch | G227: >/= 130 | I227: =K40 -> 
B228: BD diastolisch | G228: >/= 85 | I228: =K41 -> 
B229: BD Mittelwert | G229: >/= 107.5 | I229: =IF(F147=0,"",IF(H147=0,"",AVERAGE(I227:I228))) ->  | K229: =IF(F147=0,"",IF(H147=0,"",IF(I229=0,"",IF(I229>=108,"Ja","Nein")))) ->  | M229: =IF(K229="",0,IF(K229="Nein","0","1")) -> 0
M231: =SUM(M223+M224+M225+M226+M229) -> 0
B232: =IF(F147=0,"",IF(H147=0,"",IF(M231>=3,"Mindestens 3 Kriterien sind erfüllt. Damit liegt bei Ihnen wahrscheinlich ein Metabolisches Syndrom vor","Die Kriterien für ein Metabolisches Syndrom sind nicht erfüllt"))) -> 
G236: Kriterien für das Vorliegen einer Insulinresistenz - HOMA Index
E238: Merkmal | G238: Einheit | I238: Persönlicher Wert | K238: HOMA Index
E240: Nüchternglucose | G240: mmol/l | I240: =IF(E207=0,"",E207) -> 
E241: C-Peptid | G241: nmol/l | I241: =IF(E206=0,"",E206) ->  | K241: =IF(E206=0,"",IF(E207=0,"",(I240*I241)/2.6)) -> 
E244: HOMA Index | G244: Kriterien
E245: ≤1 | G245: normal
E246: ≥2 | G246: Hinweis auf eine Insulinresistenz
E247: ≥2.5 | G247: Insulinresistenz sehr wahrscheinlich
E248: ≥5 | G248: Durchschnittswert bei Typ 2-Diabetikern
C249: =AND(K241<=1,K241>0) -> FALSE | E249: =AND(K241>1,K241<2) -> FALSE | G249: =AND(K241>=2,K241<2.5) -> FALSE | I249: =AND(K241>=2.5,K241<5) -> FALSE | K249: =K241>=5 -> TRUE
E250: =IF(K241="","",IF(C249,"Kein Hinweis auf eine Insulinresistenz",IF(E249,"Verdacht auf beginnende Insulinresistenz",IF(G249,"Hinweis auf eine Insulinresistenz",IF(I249,"Isulinresistenz sehr wahrscheinlich",IF(K249,"Insulinresistenz sehr hoch wie bei Typ2 Diabetiker","")))))) -> 
E253: Kriterien für das Vorliegen eines Arterioskleroserisikos - Quotient Cholesterin/HDL
C255: Merkmal | E255: Meine Werte | G255: Quotient Chol/HDL | I255: Kriterien | K255: Arterioskleroserisiko
B257: Gesamt-Cholesterin (mmol/l) | E257: =IF(E208=0,"",E208) ->  | G257: =IF(E208=0,"",IF(E210=0,"",E208/E210)) ->  | I257: Quotient unter 5: | K257: gering
B258: HDL-Cholesterin (mmol/l) | E258: =IF(E210=0,"",E210) ->  | I258: Quotient über 5: | K258: erhöht
B261: =IF(E208=0,"",IF(E210=0,"",IF(G257=5,"Ihr Arterioskleroserisiko ist grenzwertig",IF(G257<5,"Ihr Arterioskleroserisiko ist nicht erhöht", IF(G257>5,"Ihr Arterioskleroserisiko ist erhöht"))))) -> 
B263: Man darf sich grundsätzlich nicht allein auf einen günstigen "Gesamtcholesterin zu HDL"-Quotienten verlassen. Hohe HDL-Werte kommen
B264: manchmal dadurch zustande, dass der HDL-vermittelte physiologische Rücktransport oxidierten LDLs aus den Gefässwänden in die Leber
B265: blockiert ist. Das Serum-HDL akkumuliert und kreist in grosser Menge im Blut, ohne seine arteriosklerosepräventive Funktion erfüllen
B266: zu können.
G270: Kriterien für das Vorliegen eines Gefässrisikos
K271: T=Treffer
B272: Merkmal | E272: Meine Werte | G272: Kriterien | H272: T | I272: Kriterien | J272: T | K272: Kriterien | L272: T
B274: Rauchen (Zigaretten/Tag) | E274: =IF(K206="","",IF(K206=0,"0",K206)) ->  | G274: 0 | H274: =IF(K206="","",IF(K206=0,1,)) ->  | I274: 1 bis 6 | J274: =IF(K206="","",IF(E274=0,0,IF(E274>=1,IF(E274<=6,1,0)))) ->  | K274: ab 7 | L274: =IF(K206="","",IF(K206=0,0,IF(K206<7,0,IF(K206>=7,1)))) -> 
B275: Bewegung (Std./Woche) | E275: =IF(K207=0,"",K207) ->  | G275: ab 3 | H275: =IF(K207="","",IF(K207<3,0,IF(K207>=3,1))) ->  | I275: 1 bis 2 | J275: =IF(K207="","",IF(K207=0,0,IF(K207>=1,IF(K207<=2,1,0)))) ->  | K275: 0 | L275: =IF(K207="","",IF(K207=0,1,0)) -> 
B276: =IF(E36="Frau","BMI Frau","") -> BMI Frau | C276: =IF(A36="Mann","Mann bis 24","Frau bis 22") -> Frau bis 22 | E276: =IF(E36="Frau",K24,"") ->  | G276: =IF(B276="","",IF(E36="Frau","Frau bis 22")) -> Frau bis 22 | H276: =IF(E276="","",IF(E276<=22,1,0)) ->  | I276: =IF(B276="","",IF(E36="Frau","Frau 22 bis 28")) -> Frau 22 bis 28 | J276: =IF(E276="","",IF(E276<=22,0,IF(E276>=28,0,IF(E276>22,IF(E276<28,1))))) ->  | K276: =IF(B276="","",IF(E36="Mann","Mann u. Frau ab 28","Mann u. Frau ab 28")) -> Mann u. Frau ab 28 | L276: =IF(E276="","",IF(E276>=28,1,0)) -> 
B277: =IF(E36="Mann","BMI Mann","") ->  | C277: =IF(A37="Mann","Mann bis 24","Frau bis 22") -> Frau bis 22 | E277: =IF(E36="Mann",K24,"") ->  | G277: =IF(B277="","",IF(E36="Mann","Mann bis 24")) ->  | H277: =IF(E277="","",IF(E277<=24,1,0)) ->  | I277: =IF(B277="","",IF(E36="Mann","Mann 24 bis 28")) ->  | J277: =IF(E277="","",IF(E277<=24,0,IF(E277>=28,0,IF(E277>=24,IF(E277<28,1,0))))) ->  | K277: =IF(B277="","",IF(E36="Mann","Mann u. Frau ab 28","Mann u. Frau ab 28")) ->  | L277: =IF(E277="","",IF(E277>=28,1,0)) -> 
B278: Blutdruck (RR) systolisch | E278: =K40 ->  | G278: bis 140 | H278: =IF(K40="","",IF(E278<=140,1,IF(E278>=141,0,))) ->  | I278: 141 - 179 | J278: =IF(K40="","",IF(E278<=140,0,IF(E278>=141,IF(E278<=179,1,0)))) ->  | K278: ab 180 | L278: =IF(K40="","",IF(E278>=180,1,0)) -> 
B279: Blutdruck (RR) diastolisch | E279: =K41 ->  | G279: bis 90 | H279: =IF(K41="","",IF(E279<=90,1,IF(E279>=91,0,))) ->  | I279: 91 - 109 | J279: =IF(K41="","",IF(E279<=90,0,IF(E279>=91,IF(E279<=109,1,0)))) ->  | K279: ab 110 | L279: =IF(K41="","",IF(E279>=110,1,0)) -> 
B280: Blutzucker (Glukose) (mmol/l) | E280: =IF(E207=0,"",E207) ->  | G280: bis 5.5 | H280: =IF(E207="","",IF(E280<=5.5,1,IF(E280>=5.6,0))) ->  | I280: 5.6 - 6.8 | J280: =IF(E207="","",IF(E280<=5.5,0,IF(E280>=5.6,IF(E280<=6.8,1,0)))) ->  | K280: ab 6.9 | L280: =IF(E207="","",IF(E280>=6.9,1,0)) -> 
B281: Gesamt-Cholesterin (mmol/l) | G281: bis 5.18 | H281: =IF(E208="","",IF(E281<=5.18,1,IF(E281>=5.19,0))) ->  | I281: 5.19 - 6.19 | J281: =IF(E208="","",IF(E281<=5.18,0,IF(E281>=5.19,IF(E281<=6.19,1,0)))) ->  | K281: ab 6.20 | L281: =IF(E208="","",IF(E281>=6.2,1,0)) -> 
B282: LDL-Cholesterin (mmol/l) | G282: bis 3.38 | H282: =IF(E209=0,"",IF(E282<=3.38,1,IF(E282>=3.39,0))) ->  | I282: 3.39 - 4.12 | J282: =IF(E209=0,"",IF(E282<=3.38,0,IF(E282>=3.39,IF(E282<=4.12,1,0)))) ->  | K282: ab 4.13 | L282: =IF(E209=0,"",IF(E282>=4.13,1,0)) -> 
B283: HDL-Cholesterin (mmol/l) | G283: ab 1.04 | H283: =IF(E210=0,"",IF(E283>=1.04,1,IF(E283<1.04,0))) ->  | I283: 0.79 - 1.03 | J283: =IF(E210=0,"",IF(E283<0.79,0,IF(E283>=1.04,0,IF(E283>=0.79,IF(E283<=1.03,1,0))))) ->  | K283: bis 0.78 | L283: =IF(E210=0,"",IF(E283<=0.78,1,0)) -> 
B284: Triglyzeride (mmol/l) | G284: bis 1.71 | H284: =IF(E211=0,"",IF(E284<=1.71,1,IF(E284>=1.72,0))) ->  | I284: 1.72 - 2.95 | J284: =IF(E211=0,"",IF(E284<=1.71,0,IF(E284>=1.72,IF(E284<=2.95,1,0)))) ->  | K284: ab 2.96 | L284: =IF(E211=0,"",IF(E284>=2.96,1,0)) -> 
B285: CRP sensitiv (mg/l) | G285: 0 bis 3 | H285: =IF(E212="","",IF(E212=0,1,IF(E212>=0,IF(E212<=3,1,0)))) ->  | I285: 4 bis 9 | J285: =IF(E212="","",IF(E212=0,0,IF(E285<=3,0,IF(E285>=4,IF(E285<=9,1,0))))) ->  | K285: ab 10 | L285: =IF(E212="","",IF(E212=0,0,IF(E285>=10,1,0))) -> 
G287: Treffer gelb | H287: =SUM(H274:H285) -> 0 | I287: Treffer x 1= | K287: =H287*1 -> 0
G288: Treffer blau | H288: =SUM(J274:J285) -> 0 | I288: Treffer x 2= | K288: =H288*2 -> 0
G289: Treffer rot | H289: =SUM(L274:L285) -> 0 | I289: Treffer x 3= | K289: =H289*3 -> 0
G291: Gesamtpunkte | I291: = | K291: =SUM(K287:K289) -> 0
C294: Risiko | E294: Gesamtpunkte | G294: Ihr persönliches Risikoprofil
C296: sehr gering | E296: 11 | G296: =IF(K291=E296,"Kein Risiko für Gefässerkrankung","") -> 
E297: 12 | G297: =IF(K291=E297,"Ihr Resultat: Risiko für Gefässerkrankung sehr gering","") -> 
E298: 13 | G298: =IF(K291=E298,"Risiko für Gefässerkrankung sehr gering","") -> 
E299: 14 | G299: =IF(K291=E299,"Risiko für Gefässerkrankung sehr gering","") -> 
E300: 15 | G300: =IF(K291=E300,"Risiko für Gefässerkrankung gering","") -> 
E301: 16 | G301: =IF(K291=E301,"Risiko für Gefässerkrankung gering","") -> 
E302: 17 | G302: =IF(K291=E302,"Risiko für Gefässerkrankung gering","") -> 
E303: 18 | G303: =IF(K291=E303,"Risiko mittel","") -> 
E304: 19 | G304: =IF(K291=E304,"Risiko für Gefässerkrankung mittel","") -> 
E305: 20 | G305: =IF(K291=E305,"Risiko für eine Gefässerkrankung mittel","") -> 
C306: mittel | E306: 21 | G306: =IF(K291=E306,"Risiko für Gefässerkrankung mittel","") -> 
E307: 22 | G307: =IF(K291=E307,"Risiko für Gefässerkrankung mittel","") -> 
E308: 23 | G308: =IF(K291=E308,"Risiko für Gefässerkrankung mittel","") -> 
E309: 24 | G309: =IF(K291=E309,"Risiko für Gefässerkrankung mittel","") -> 
E310: 25 | G310: =IF(K291=E310,"Ihr Resultat: Risiko für Gefässerkrankung hoch","") -> 
E311: 26 | G311: =IF(K291=E311,"Risiko für Gefässerkrankung hoch","") -> 
E312: 27 | G312: =IF(K291=E312,"Risiko für Gefässerkrankung hoch","") -> 
E313: 28 | G313: =IF(K291=E313,"Risiko für Gefässerkrankung hoch","") -> 
E314: 29 | G314: =IF(K291=E314,"Risiko für Gefässerkrankung hoch","") -> 
E315: 30 | G315: =IF(K291=E315,"Risiko für Gefässerkrankung sehr hoch","") -> 
E316: 31 | G316: =IF(K291=E316,"Risiko für Gefässerkrankung sehr hoch","") -> 
E317: 32 | G317: =IF(K291=E317,"Risiko für Gefässerkrankung sehr hoch","") -> 
C318: hoch | E318: 33 | G318: =IF(K291=E318,"Risiko für Gefässerkrankung extrem hoch","") -> 

Sheet Juli
B2: Monat: Juli
I3: Grüne Felder: Eingabe erforderlich
C4: Jahresziel: | E4: =IF(Jahr!J4=0,"",Jahr!J4) -> 82 | G4: Monatsziel: | N4: Das moderne Gewichtscoaching:
E6: Kommentar | I6: Veränderung | K6: Ergebnis | N6: XLS - von XL bis S
B8: =IF(D88=0,"",IF(K21=0,"",IF(K22=0,"",IF(K22=K21,"Gewicht gleichbleibend",IF(K22<K21,"Sie haben abgenommen! Bravo!",IF(K22>K21,"")))))) ->  | G8: Abgenommen: | K8: =IF(D88=0,"",IF(K22=0,"",IF(K22-K21=0,"0kg",IF(K22>K21,"",K21-K22)))) ->  | N8: Ernährung und Bewegung
B9: =IF(D88=0,"",IF(K21=0,"",IF(K22=0,"",IF(K22=K21,"Gewicht gleichbleibend",IF(K22>K21,"Sie haben zugenommen. Arbeiten Sie an sich!",IF(K22<K21,"")))))) ->  | G9: Zugenommen: | K9: =IF(D88=0,"",IF(K22=0,"",IF(K22-K21=0,"0kg",IF(K22<K21,"",K22-K21)))) -> 
B11: =IF(D88=0,"",IF(K21=0,"",IF(K22=0,"",IF(K22>I4,"Monatsziel noch nicht erreicht!",IF(K22=I4,"Monatsziel erreicht. Bravo!",IF(K22<I4,"Monatsziel sogar unterschritten!")))))) ->  | G11: Vom Monatsziel entfernt um + / -: | K11: =IF(D88=0,"",IF(K22=0,"",IF(K22=I4,"0",K22-I4))) ->  | N11: Psyche und Schlaf
B12: =IF(D88=0,"",IF(K21=0,"",IF(K22=0,"",IF(K22=E4,"Jahresziel erreicht! Gratuliere!",IF(K22>E4,"Jahresziel noch nicht erreicht! Bleiben Sie dran!",IF(K22<E4,"Jahrsziel sogar unterschritten!")))))) ->  | G12: Vom Jahresziel entfernt um + / -: | K12: =IF(D88=0,"",IF(K22=0,"",IF(K22=E4,"0",K22-E4))) -> 
G14: Gewicht - Monatsdurchschnitt: | K14: =IF(SUM(C82:C112)=0,"",AVERAGEA(C82:C112)) ->  | N14: Motivation: XLS Software
I19: Erste - Letzte Messung im Monat | K19: Monatsprofil | N19: Unterstützung
B21: Ihr Gewicht bei BMI-Ideal 22: | E21: =IF('GU-GEB'!C10=0,"",22*(('GU-GEB'!C10/100)^2)) ->  | G21: Gewicht - Erste Messung im Monat: | K21: =IF(D88=0,"",INDEX(C82:C112,D88,1)) ->  | N21: Granuvital "Fit&Schlank" SevisanaLine
B22: Ihr Gewicht bei BMI-Ideal 25: | E22: =IF('GU-GEB'!C10=0,"",25*(('GU-GEB'!C10/100)^2)) ->  | G22: Gewicht - Letzte Messung im Monat: | K22: =IF(D99=0,"",INDEX(C82:C112,D99,1)) -> 
B24: Vom BMI Ideal 22 entfernt: | E24: =IF(L88=0,"",IF(K24=0,"",IF(K24-22=0,"0",K24-22))) ->  | G24: BMI - Erste Messung im Monat: | K24: =IF(L88=0,"",INDEX(K82:K112,L88,1)) ->  | N24: X-Form und X-Form Plus SevisanaLine
B25: Vom BMI Ideal 22 entfernt: | E25: =IF(L99=0,"",IF(K25=0,"",IF(K25-22=0,"0",K25-22))) ->  | G25: BMI - Letzte Messung im Monat: | K25: =IF(L99=0,"",INDEX(K82:K112,L99,1)) -> 
B27: Vom Idealwert entfernt: | E27: =IF(F88=0,"",IF(K27=0,"",IF(K28=0,"",IF(K27-J27=0,"0cm",K27-J27)))) ->  | G27: Bauchumfang - Erste Messung im Monat: | J27: =IF('GU-GEB'!C8="Mann",94,80) -> 80 | K27: =IF(F88=0,"",INDEX(E82:E112,F88,1)) ->  | N27: Reine Flohsamenschalen SevisanaLine
B28: Vom Idealwert entfernt: | E28: =IF(F99=0,"",IF(K27=0,"",IF(K28=0,"",IF(K28-J27=0,"0cm",K28-J27)))) ->  | G28: Bauchumfang - Letzte Messung im Monat: | J28: =IF('GU-GEB'!C8="Mann",102,88) -> 88 | K28: =IF(F99=0,"",INDEX(E82:E112,F99,1)) -> 
G30: Hüftumfang - Erste Messung im Monat: | K30: =IF(H88=0,"",INDEX(G82:G112,H88,1)) ->  | N30: Basenpulver nach Dr. Eichhorn
G31: Hüftumfang - Letzte Messung im Monat: | K31: =IF(H99=0,"",INDEX(G82:G112,H99,1)) -> 
B33: Vom B/H Idealwert entfernt: | E33: =IF(J88=0,"",IF(K33=0,"",IF(K33-G36=0,"0",K33-G36))) ->  | G33: B/H - Erste Messung im Monat: | K33: =IF(J88=0,"",INDEX(I82:I112,J88,1)) ->  | N33: Produkteinformation | P33: www.sevisana.ch
B34: Vom B/H Idealwert entfernt: | E34: =IF(J99=0,"",IF(K34=0,"",IF(K34-G36=0,"0",K34-G36))) ->  | G34: B/H - Letzte Messung im Monat: | K34: =IF(J99=0,"",INDEX(I82:I112,J99,1)) -> 
B36: B/H Ziel gleich/kleiner als: | E36: ='GU-GEB'!C8 -> Frau | G36: =IF(E36="Frau",0.85,1) -> 0.85
G40: Blutdruck systolisch - Erste Messung | K40: =IF(F147=0,"",INDEX(E141:E171,F147,1)) ->  | N40: Bestellung | P40: www.sevisana.ch
G41: Blutdruck diastolisch - Erste Messung | K41: =IF(H147=0,"",INDEX(G141:G171,H147,1)) -> 
G43: Blutdruck systolisch - Letzte Messung | K43: =IF(F158=0,"",INDEX(E141:IE171,F158,1)) -> 
G44: Blutdruck diastolisch - Letzte Messung | K44: =IF(H158=0,"",INDEX(G141:IG171,H158,1)) ->  | N44: Direktbestellung | P44: http://shop.sevisana.ch
G47: Puls - Erste Messung | K47: =IF(D147=0,"",INDEX(C141:C171,D147,1)) -> 
G48: Puls - Letzte Messung | K48: =IF(D158=0,"",INDEX(C141:C171,D158,1)) ->  | N48: Medizinwissen | P48: www.ever.ch
C53: Tendenzen | G53: Verlauf in diesem Monat
B55: Tendenzen Ende Monat: | E55: Gewicht: | G55: =IF(D88=0,"",IF(K21=0,"",IF(K22=0,"",IF(K22<K21,"Gewicht fällt. Bravo!",IF(K22=K21,"Gewicht gleichbleibend",IF(K22>K21,"Achtung! Gewicht steigt. Risiko!")))))) -> 
E56: BMI: | G56: =IF(D88=0,"",IF(K24=0,"",IF(K25=0,"",IF(K25<K24,"BMI fällt. Bravo!",IF(K25=K24,"BMI gleichbleibend",IF(K25>K24,"BMI steigt. Ihre Gesundheit ist gefährdet!")))))) -> 
E57: Bauchumfang: | G57: =IF(F88=0,"",IF(K27=0,"",IF(K28=0,"",IF(K28<K27,"Bauchumfang wird kleiner. Bravo!",IF(K28=K27,"Bauchumfang gleichbleibend",IF(K28>K27,"Achtung! Bauchumfang nimmt zu",IF(K28<=J27,"Normalwert"))))))) -> 
E58: B/H: | G58: =IF(J88=0,"",IF(K33=0,"",IF(K34=0,"",IF(K34<K33,"B/H Verältnis wird kleiner. Bravo!",IF(K34=K33,"B/H Verältnis gleichbleibend",IF(K34>K33,"Achtung! B/H Verhältnis nimmt zu")))))) -> 
C60: Risiko Anfang Monat: | E60: BMI: | G60: =IF(D88=0,"",IF(K24=0,"",IF(K24>=40,"Grad III: Schwere Adipositas",IF(K24>=30,"Grad II: Adipositas",IF(K24>=25,"Grad I: Übergewichtt",IF(K24>=20,"Normalgewicht",IF(K24<20,"Untergewicht",))))))) -> 
E61: Bauchumfang: | G61: =IF(F88=0,"",IF(K27=0,"",IF(K27>=J28,"Gesundheitsrisiko hoch",IF(K27>=J27,"Gesundheitsrisiko erhöht",IF(K27<J27,"Kein Gesundheitsrisiko"))))) -> 
E62: B/H: | G62: =IF(J88=0,"",IF(K33=0,"",IF(K33>G36,"Gesundheitsrisiko erhöht",IF(K33=G36,"Grenzwert zu Gesundheitsrisiko erhöht",IF(K33<G36,"Kein Gesundheitsrisiko"))))) -> 
C64: Risiko Ende Monat: | E64: BMI: | G64: =IF(D88=0,"",IF(K25=0,"",IF(K25>=40,"Grad III: Schwere Adipositas",IF(K25>=30,"Grad II: Adipositas",IF(K25>=25,"Grad I: Übergewicht",IF(K25>=20,"Normalgewicht",IF(K25<20,"Untergewicht",))))))) -> 
E65: Bauchumfang: | G65: =IF(F88=0,"",IF(K28=0,"",IF(K28>=J28,"Gesundheitsrisiko hoch",IF(K28>=J27,"Gesundheitsrisiko erhöht",IF(K28<J27,"Kein Gesundheitsrisiko"))))) -> 
E66: B/H: | G66: =IF(J88=0,"",IF(K34=0,"",IF(K34>G36,"Gesundheitsrisiko erhöht",IF(K34=G36,"Grenzwert zu Gesundheitsrisiko erhöht",IF(K34<G36,"Kein Gesundheitsrisiko"))))) -> 
B71: Risiko | E71: Ihr persönliches Risikoprofil
B73: Metabolisches Syndrom | E73: =IF(F147=0,"",B232) -> 
B74: Insulinresistenz | E74: =IF(E206=0,"",IF(E207=0,"",E250)) -> 
B75: Arterioskleroserisiko | E75: =IF(E208=0,"",IF(E210=0,"",B261)) -> 
B76: Gefässrisiko | E76: =IF(K291<11,"",IF(K291=0,"",IF(K291>=11,IF(K291<=17,"Gefässrisiko im unteren Bereich",IF(K291>=18,IF(K291<=24,"Gefässrisiko im mittleren Bereich",IF(K291>=25,"Gefässrisiko im hohen Bereich"))))))) -> 
B81: Tag | C81: Gewicht | E81: Bauchumfang | G81: Hüftumfang | I81: B/H Verhältnis | K81: BMI
B82: 1 | D82: =IF(C82="",IF(C83="",IF(C84="",IF(C85="",IF(C86="",IF(C87="",IF(C88="",0,7),6),5),4),3),2),1) -> 0 | F82: =IF(E82="",IF(E83="",IF(E84="",IF(E85="",IF(E86="",IF(E87="",IF(E88="",0,7),6),5),4),3),2),1) -> 0 | H82: =IF(G82="",IF(G83="",IF(G84="",IF(G85="",IF(G86="",IF(G87="",IF(G88="",0,7),6),5),4),3),2),1) -> 0 | I82: =IF(E82=0,"",IF(G82=0,"",E82/G82)) ->  | J82: =IF(I82="",IF(I83="",IF(I84="",IF(I85="",IF(I86="",IF(I87="",IF(I88="",0,7),6),5),4),3),2),1) -> 0 | K82: =IF(C82=0,"",C82/(('GU-GEB'!C10/100)^2)) ->  | L82: =IF(K82="",IF(K83="",IF(K84="",IF(K85="",IF(K86="",IF(K87="",IF(K88="",0,7),6),5),4),3),2),1) -> 0
B83: 2 | D83: =IF(C89="",IF(C90="",IF(C91="",IF(C92="",IF(C93="",IF(C94="",IF(C95="",0,14),13),12),11),10),9),8) -> 0 | F83: =IF(E89="",IF(E90="",IF(E91="",IF(E92="",IF(E93="",IF(E94="",IF(E95="",0,14),13),12),11),10),9),8) -> 0 | H83: =IF(G89="",IF(G90="",IF(G91="",IF(G92="",IF(G93="",IF(G94="",IF(G95="",0,14),13),12),11),10),9),8) -> 0 | J83: =IF(I89="",IF(I90="",IF(I91="",IF(I92="",IF(I93="",IF(I94="",IF(I95="",0,14),13),12),11),10),9),8) -> 0 | K83: =IF(C83=0,"",C83/(('GU-GEB'!C10/100)^2)) ->  | L83: =IF(K89="",IF(K90="",IF(K91="",IF(K92="",IF(K93="",IF(K94="",IF(K95="",0,14),13),12),11),10),9),8) -> 0
B84: 3 | D84: =IF(C96="",IF(C97="",IF(C98="",IF(C99="",IF(C100="",IF(C101="",IF(C102="",0,21),20),19),18),17),16),15) -> 0 | F84: =IF(E96="",IF(E97="",IF(E98="",IF(E99="",IF(E100="",IF(E101="",IF(E102="",0,21),20),19),18),17),16),15) -> 0 | H84: =IF(G96="",IF(G97="",IF(G98="",IF(G99="",IF(G100="",IF(G101="",IF(G102="",0,21),20),19),18),17),16),15) -> 0 | J84: =IF(I96="",IF(I97="",IF(I98="",IF(I99="",IF(I100="",IF(I101="",IF(I102="",0,21),20),19),18),17),16),15) -> 0 | K84: =IF(C84=0,"",C84/(('GU-GEB'!C10/100)^2)) ->  | L84: =IF(K96="",IF(K97="",IF(K98="",IF(K99="",IF(K100="",IF(K101="",IF(K102="",0,21),20),19),18),17),16),15) -> 0
B85: 4 | D85: =IF(C103="",IF(C104="",IF(C105="",IF(C106="",IF(C107="",IF(C108="",IF(C109="",0,28),27),26),25),24),23),22) -> 0 | F85: =IF(E103="",IF(E104="",IF(E105="",IF(E106="",IF(E107="",IF(E108="",IF(E109="",0,28),27),26),25),24),23),22) -> 0 | H85: =IF(G103="",IF(G104="",IF(G105="",IF(G106="",IF(G107="",IF(G108="",IF(G109="",0,28),27),26),25),24),23),22) -> 0 | J85: =IF(I103="",IF(I104="",IF(I105="",IF(I106="",IF(I107="",IF(I108="",IF(I109="",0,28),27),26),25),24),23),22) -> 0 | K85: =IF(C85=0,"",C85/(('GU-GEB'!C10/100)^2)) ->  | L85: =IF(K103="",IF(K104="",IF(K105="",IF(K106="",IF(K107="",IF(K108="",IF(K109="",0,28),27),26),25),24),23),22) -> 0
B86: 5 | D86: =IF(C110="",IF(C111="",IF(C112="",0,31),30),29) -> 0 | F86: =IF(E110="",IF(E111="",IF(E112="",0,31),30),29) -> 0 | H86: =IF(G110="",IF(G111="",IF(G112="",0,31),30),29) -> 0 | J86: =IF(I110="",IF(I111="",IF(I112="",0,31),30),29) -> 0 | K86: =IF(C86=0,"",C86/(('GU-GEB'!C10/100)^2)) ->  | L86: =IF(K110="",IF(K111="",IF(K112="",0,31),30),29) -> 0
B87: 6 | K87: =IF(C87=0,"",C87/(('GU-GEB'!C10/100)^2)) -> 
B88: 7 | D88: =IF(D82=0,IF(D83=0,IF(D84=0,IF(D85=0,IF(D86=0,0,D86),D85),D84),D83),D82) -> 0 | F88: =IF(F82=0,IF(F83=0,IF(F84=0,IF(F85=0,IF(F86=0,0,F86),F85),F84),F83),F82) -> 0 | H88: =IF(H82=0,IF(H83=0,IF(H84=0,IF(H85=0,IF(H86=0,0,H86),H85),H84),H83),H82) -> 0 | J88: =IF(J82=0,IF(J83=0,IF(J84=0,IF(J85=0,IF(J86=0,0,J86),J85),J84),J83),J82) -> 0 | K88: =IF(C88=0,"",C88/(('GU-GEB'!C10/100)^2)) ->  | L88: =IF(L82=0,IF(L83=0,IF(L84=0,IF(L85=0,IF(L86=0,0,L86),L85),L84),L83),L82) -> 0
B89: 8 | K89: =IF(C89=0,"",C89/(('GU-GEB'!C10/100)^2)) -> 
B90: 9 | K90: =IF(C90=0,"",C90/(('GU-GEB'!C10/100)^2)) -> 
B91: 10 | K91: =IF(C91=0,"",C91/(('GU-GEB'!C10/100)^2)) -> 
B92: 11 | K92: =IF(C92=0,"",C92/(('GU-GEB'!C10/100)^2)) -> 
B93: 12 | D93: =IF(C112="",IF(C111="",IF(C110="",IF(C109="",IF(C108="",IF(C107="",IF(C106="",0,25),26),27),28),29),30),31) -> 0 | F93: =IF(E112="",IF(E111="",IF(E110="",IF(E109="",IF(E108="",IF(E107="",IF(E106="",0,25),26),27),28),29),30),31) -> 0 | H93: =IF(G112="",IF(G111="",IF(G110="",IF(G109="",IF(G108="",IF(G107="",IF(G106="",0,25),26),27),28),29),30),31) -> 0 | J93: =IF(I112="",IF(I111="",IF(I110="",IF(I109="",IF(I108="",IF(I107="",IF(I106="",0,25),26),27),28),29),30),31) -> 0 | K93: =IF(C93=0,"",C93/(('GU-GEB'!C10/100)^2)) ->  | L93: =IF(K112="",IF(K111="",IF(K110="",IF(K109="",IF(K108="",IF(K107="",IF(K106="",0,25),26),27),28),29),30),31) -> 0
B94: 13 | D94: =IF(C105="",IF(C104="",IF(C103="",IF(C102="",IF(C101="",IF(C100="",IF(C99="",0,18),19),20),21),22),23),24) -> 0 | F94: =IF(E105="",IF(E104="",IF(E103="",IF(E102="",IF(E101="",IF(E100="",IF(E99="",0,18),19),20),21),22),23),24) -> 0 | H94: =IF(G105="",IF(G104="",IF(G103="",IF(G102="",IF(G101="",IF(G100="",IF(G99="",0,18),19),20),21),22),23),24) -> 0 | J94: =IF(I105="",IF(I104="",IF(I103="",IF(I102="",IF(I101="",IF(I100="",IF(I99="",0,18),19),20),21),22),23),24) -> 0 | K94: =IF(C94=0,"",C94/(('GU-GEB'!C10/100)^2)) ->  | L94: =IF(K105="",IF(K104="",IF(K103="",IF(K102="",IF(K101="",IF(K100="",IF(K99="",0,18),19),20),21),22),23),24) -> 0
B95: 14 | D95: =IF(C98="",IF(C97="",IF(C96="",IF(C95="",IF(C94="",IF(C93="",IF(C92="",0,11),12),13),14),15),16),17) -> 0 | F95: =IF(E98="",IF(E97="",IF(E96="",IF(E95="",IF(E94="",IF(E93="",IF(E92="",0,11),12),13),14),15),16),17) -> 0 | H95: =IF(G98="",IF(G97="",IF(G96="",IF(G95="",IF(G94="",IF(G93="",IF(G92="",0,11),12),13),14),15),16),17) -> 0 | J95: =IF(I98="",IF(I97="",IF(I96="",IF(I95="",IF(I94="",IF(I93="",IF(I92="",0,11),12),13),14),15),16),17) -> 0 | K95: =IF(C95=0,"",C95/(('GU-GEB'!C10/100)^2)) ->  | L95: =IF(K98="",IF(K97="",IF(K96="",IF(K95="",IF(K94="",IF(K93="",IF(K92="",0,11),12),13),14),15),16),17) -> 0
B96: 15 | D96: =IF(C91="",IF(C90="",IF(C89="",IF(C88="",IF(C87="",IF(C86="",IF(C85="",0,4),5),6),7),8),9),10) -> 0 | F96: =IF(E91="",IF(E90="",IF(E89="",IF(E88="",IF(E87="",IF(E86="",IF(E85="",0,4),5),6),7),8),9),10) -> 0 | H96: =IF(G91="",IF(G90="",IF(G89="",IF(G88="",IF(G87="",IF(G86="",IF(G85="",0,4),5),6),7),8),9),10) -> 0 | J96: =IF(I91="",IF(I90="",IF(I89="",IF(I88="",IF(I87="",IF(I86="",IF(I85="",0,4),5),6),7),8),9),10) -> 0 | K96: =IF(C96=0,"",C96/(('GU-GEB'!C10/100)^2)) ->  | L96: =IF(K91="",IF(K90="",IF(K89="",IF(K88="",IF(K87="",IF(K86="",IF(K85="",0,4),5),6),7),8),9),10) -> 0
B97: 16 | D97: =IF(C84="",IF(C83="",IF(C82="",0,1),2),3) -> 0 | F97: =IF(E84="",IF(E83="",IF(E82="",0,1),2),3) -> 0 | H97: =IF(G84="",IF(G83="",IF(G82="",0,1),2),3) -> 0 | J97: =IF(I84="",IF(I83="",IF(I82="",0,1),2),3) -> 0 | K97: =IF(C97=0,"",C97/(('GU-GEB'!C10/100)^2)) ->  | L97: =IF(K84="",IF(K83="",IF(K82="",0,1),2),3) -> 0
B98: 17 | K98: =IF(C98=0,"",C98/(('GU-GEB'!C10/100)^2)) -> 
B99: 18 | D99: =IF(D93=0,IF(D94=0,IF(D95=0,IF(D96=0,IF(D97=0,0,D97),D96),D95),D94),D93) -> 0 | F99: =IF(F93=0,IF(F94=0,IF(F95=0,IF(F96=0,IF(F97=0,0,F97),F96),F95),F94),F93) -> 0 | H99: =IF(H93=0,IF(H94=0,IF(H95=0,IF(H96=0,IF(H97=0,0,H97),H96),H95),H94),H93) -> 0 | J99: =IF(J93=0,IF(J94=0,IF(J95=0,IF(J96=0,IF(J97=0,0,J97),J96),J95),J94),J93) -> 0 | K99: =IF(C99=0,"",C99/(('GU-GEB'!C10/100)^2)) ->  | L99: =IF(L93=0,IF(L94=0,IF(L95=0,IF(L96=0,IF(L97=0,0,L97),L96),L95),L94),L93) -> 0
B100: 19 | K100: =IF(C100=0,"",C100/(('GU-GEB'!C10/100)^2)) -> 
B101: 20 | K101: =IF(C101=0,"",C101/(('GU-GEB'!C10/100)^2)) -> 
B102: 21 | K102: =IF(C102=0,"",C102/(('GU-GEB'!C10/100)^2)) -> 
B103: 22 | K103: =IF(C103=0,"",C103/(('GU-GEB'!C10/100)^2)) -> 
B104: 23 | K104: =IF(C104=0,"",C104/(('GU-GEB'!C10/100)^2)) -> 
B105: 24 | K105: =IF(C105=0,"",C105/(('GU-GEB'!C10/100)^2)) -> 
B106: 25 | K106: =IF(C106=0,"",C106/(('GU-GEB'!C10/100)^2)) -> 
B107: 26 | K107: =IF(C107=0,"",C107/(('GU-GEB'!C10/100)^2)) -> 
B108: 27 | K108: =IF(C108=0,"",C108/(('GU-GEB'!C10/100)^2)) -> 
B109: 28 | K109: =IF(C109=0,"",C109/(('GU-GEB'!C10/100)^2)) -> 
B110: 29 | K110: =IF(C110=0,"",C110/(('GU-GEB'!C10/100)^2)) -> 
B111: 30 | K111: =IF(C111=0,"",C111/(('GU-GEB'!C10/100)^2)) -> 
B112: 31 | K112: =IF(C112=0,"",C112/(('GU-GEB'!C10/100)^2)) -> 
B140: Tag | C140: Puls | E140: BD systolisch | G140: BD diastolisch | I140: BD Mittelwert
B141: 1 | D141: =IF(C141="",IF(C142="",IF(C143="",IF(C144="",IF(C145="",IF(C146="",IF(C147="",0,7),6),5),4),3),2),1) -> 0 | F141: =IF(E141="",IF(E142="",IF(E143="",IF(E144="",IF(E145="",IF(E146="",IF(E147="",0,7),6),5),4),3),2),1) -> 0 | H141: =IF(G141="",IF(G142="",IF(G143="",IF(G144="",IF(G145="",IF(G146="",IF(G147="",0,7),6),5),4),3),2),1) -> 0 | I141: =IF(E141=0,"",IF(G141=0,"",AVERAGEA(E141,G141))) -> 
B142: 2 | D142: =IF(C148="",IF(C149="",IF(C150="",IF(C151="",IF(C152="",IF(C153="",IF(C154="",0,14),13),12),11),10),9),8) -> 0 | F142: =IF(E148="",IF(E149="",IF(E150="",IF(E151="",IF(E152="",IF(E153="",IF(E154="",0,14),13),12),11),10),9),8) -> 0 | H142: =IF(G148="",IF(G149="",IF(G150="",IF(G151="",IF(G152="",IF(G153="",IF(G154="",0,14),13),12),11),10),9),8) -> 0
B143: 3 | D143: =IF(C155="",IF(C156="",IF(C157="",IF(C158="",IF(C159="",IF(C160="",IF(C161="",0,21),20),19),18),17),16),15) -> 0 | F143: =IF(E155="",IF(E156="",IF(E157="",IF(E158="",IF(E159="",IF(E160="",IF(E161="",0,21),20),19),18),17),16),15) -> 0 | H143: =IF(G155="",IF(G156="",IF(G157="",IF(G158="",IF(G159="",IF(G160="",IF(G161="",0,21),20),19),18),17),16),15) -> 0
B144: 4 | D144: =IF(C162="",IF(C163="",IF(C164="",IF(C165="",IF(C166="",IF(C167="",IF(C168="",0,28),27),26),25),24),23),22) -> 0 | F144: =IF(E162="",IF(E163="",IF(E164="",IF(E165="",IF(E166="",IF(E167="",IF(E168="",0,28),27),26),25),24),23),22) -> 0 | H144: =IF(G162="",IF(G163="",IF(G164="",IF(G165="",IF(G166="",IF(G167="",IF(G168="",0,28),27),26),25),24),23),22) -> 0
B145: 5 | D145: =IF(C169="",IF(C170="",IF(C171="",0,31),30),29) -> 0 | F145: =IF(E169="",IF(E170="",IF(E171="",0,31),30),29) -> 0 | H145: =IF(G169="",IF(G170="",IF(G171="",0,31),30),29) -> 0
B146: 6
B147: 7 | D147: =IF(D141=0,IF(D142=0,IF(D143=0,IF(D144=0,IF(D145=0,0,D145),D144),D143),D142),D141) -> 0 | F147: =IF(F141=0,IF(F142=0,IF(F143=0,IF(F144=0,IF(F145=0,0,F145),F144),F143),F142),F141) -> 0 | H147: =IF(H141=0,IF(H142=0,IF(H143=0,IF(H144=0,IF(H145=0,0,H145),H144),H143),H142),H141) -> 0
B148: 8
B149: 9
B150: 10
B151: 11
B152: 12 | D152: =IF(C171="",IF(C170="",IF(C169="",IF(C168="",IF(C167="",IF(C166="",IF(C165="",0,25),26),27),28),29),30),31) -> 0 | F152: =IF(E171="",IF(E170="",IF(E169="",IF(E168="",IF(E167="",IF(E166="",IF(E165="",0,25),26),27),28),29),30),31) -> 0 | H152: =IF(G171="",IF(G170="",IF(G169="",IF(G168="",IF(G167="",IF(G166="",IF(G165="",0,25),26),27),28),29),30),31) -> 0
B153: 13 | D153: =IF(C164="",IF(C163="",IF(C162="",IF(C161="",IF(C160="",IF(C159="",IF(C158="",0,18),19),20),21),22),23),24) -> 0 | F153: =IF(E164="",IF(E163="",IF(E162="",IF(E161="",IF(E160="",IF(E159="",IF(E158="",0,18),19),20),21),22),23),24) -> 0 | H153: =IF(G164="",IF(G163="",IF(G162="",IF(G161="",IF(G160="",IF(G159="",IF(G158="",0,18),19),20),21),22),23),24) -> 0
B154: 14 | D154: =IF(C157="",IF(C156="",IF(C155="",IF(C154="",IF(C153="",IF(C152="",IF(C151="",0,11),12),13),14),15),16),17) -> 0 | F154: =IF(E157="",IF(E156="",IF(E155="",IF(E154="",IF(E153="",IF(E152="",IF(E151="",0,11),12),13),14),15),16),17) -> 0 | H154: =IF(G157="",IF(G156="",IF(G155="",IF(G154="",IF(G153="",IF(G152="",IF(G151="",0,11),12),13),14),15),16),17) -> 0
B155: 15 | D155: =IF(C150="",IF(C149="",IF(C148="",IF(C147="",IF(C146="",IF(C145="",IF(C144="",0,4),5),6),7),8),9),10) -> 0 | F155: =IF(E150="",IF(E149="",IF(E148="",IF(E147="",IF(E146="",IF(E145="",IF(E144="",0,4),5),6),7),8),9),10) -> 0 | H155: =IF(G150="",IF(G149="",IF(G148="",IF(G147="",IF(G146="",IF(G145="",IF(G144="",0,4),5),6),7),8),9),10) -> 0
B156: 16 | D156: =IF(C143="",IF(C142="",IF(C141="",0,1),2),3) -> 0 | F156: =IF(E143="",IF(E142="",IF(E141="",0,1),2),3) -> 0 | H156: =IF(G143="",IF(G142="",IF(G141="",0,1),2),3) -> 0
B157: 17
B158: 18 | D158: =IF(D152=0,IF(D153=0,IF(D154=0,IF(D155=0,IF(D156=0,0,D156),D155),D154),D153),D152) -> 0 | F158: =IF(F152=0,IF(F153=0,IF(F154=0,IF(F155=0,IF(F156=0,0,F156),F155),F154),F153),F152) -> 0 | H158: =IF(H152=0,IF(H153=0,IF(H154=0,IF(H155=0,IF(H156=0,0,H156),H155),H154),H153),H152) -> 0
B159: 19
B160: 20
B161: 21
B162: 22
B163: 23
B164: 24
B165: 25
B166: 26
B167: 27
B168: 28
B169: 29
B170: 30
B171: 31
B173: O | C173: =IF(SUM(C141:C171)=0,"",AVERAGEA(C141:C171)) ->  | E173: =IF(SUM(E141:E171)=0,"",AVERAGEA(E141:E171)) ->  | G173: =IF(SUM(G141:G171)=0,"",AVERAGEA(G141:G171)) ->  | I173: =IF(SUM(I141:I171)=0,"",AVERAGE(I141:I171)) -> 
B202: Grüne Felder: Eingabe erforderlich | G202: Laborwerte (morgendliche Nüchternwerte) / Rauchen / Bewegung
C204: Labor | E204: Werte | G204: Grenzwerte | I204: Gewohnheiten | K204: Ergebnis
C206: C-Peptid (nmol/l) | I206: Anzahl Zigaretten/Tag
B207: Blutzucker (Glukose) (mmol/l) | G207: >/= 6.1 | I207: Bewegung (Std./Wo)
B208: Gesamt-Cholesterin (mmol/l)
B209: LDL-Cholesterin (mmol/l)
B210: HDL-Cholesterin (mmol/l) | G210: =IF(E210="Frau","<1.29","<1.04") -> <1.04
B211: Triglyzeride (mmol/l) | G211: >/= 1.69
B212: CRP sensitiv (mg/l) | G212: >/= 3
B213: Mikroalbuminurie (mg/l) | G213: >/= 5
B216: Umrechnung C-Peptid: nmol/l = pmol/l / 1000
G219: Kriterien für das Vorliegen eines Metabolischen Syndroms
C221: Merkmal | E221: Geschlecht | G221: Grenzwerte | I221: Meine Werte | K221: Kriterien erfüllt
C223: Bauchumfang | E223: ='GU-GEB'!C8 -> Frau | G223: =IF(E223="Frau",">88",">102") -> >88 | I223: =K27 ->  | K223: =IF(F88=0,"",IF(I223=0,"",IF(I223>J28,"Ja","Nein"))) ->  | M223: =IF(K223="",0,IF(K223="Nein","0","1")) -> 0
C224: HDL-Cholesterin | E224: ='GU-GEB'!C8 -> Frau | G224: =IF(E224="Frau","<1.29","<1.04") -> <1.29 | H224: =IF('GU-GEB'!C8="Mann",1.04,1.29) -> 1.29 | I224: =IF(E210=0,"",E210) ->  | K224: =IF(E210=0,"",IF(I224<H224,"Ja","Nein")) ->  | M224: =IF(K224="",0,IF(K224="Nein","0","1")) -> 0
C225: Triglyceride | G225: >/= 1.69 | I225: =IF(E211=0,"",E211) ->  | K225: =IF(E211=0,"",IF(I225>=1.69,"Ja","Nein")) ->  | M225: =IF(K225="",0,IF(K225="Nein","0","1")) -> 0
C226: Nüchternzucker | G226: >/= 6.1 | I226: =IF(E207=0,"",E207) ->  | K226: =IF(E207=0,"",IF(I226>=6.1,"Ja","Nein")) ->  | M226: =IF(K226="",0,IF(K226="Nein","0","1")) -> 0
B227: BD systolisch | G227: >/= 130 | I227: =K40 -> 
B228: BD diastolisch | G228: >/= 85 | I228: =K41 -> 
B229: BD Mittelwert | G229: >/= 107.5 | I229: =IF(F147=0,"",IF(H147=0,"",AVERAGE(I227:I228))) ->  | K229: =IF(F147=0,"",IF(H147=0,"",IF(I229=0,"",IF(I229>=108,"Ja","Nein")))) ->  | M229: =IF(K229="",0,IF(K229="Nein","0","1")) -> 0
M231: =SUM(M223+M224+M225+M226+M229) -> 0
B232: =IF(F147=0,"",IF(H147=0,"",IF(M231>=3,"Mindestens 3 Kriterien sind erfüllt. Damit liegt bei Ihnen wahrscheinlich ein Metabolisches Syndrom vor","Die Kriterien für ein Metabolisches Syndrom sind nicht erfüllt"))) -> 
G236: Kriterien für das Vorliegen einer Insulinresistenz - HOMA Index
E238: Merkmal | G238: Einheit | I238: Persönlicher Wert | K238: HOMA Index
E240: Nüchternglucose | G240: mmol/l | I240: =IF(E207=0,"",E207) -> 
E241: C-Peptid | G241: nmol/l | I241: =IF(E206=0,"",E206) ->  | K241: =IF(E206=0,"",IF(E207=0,"",(I240*I241)/2.6)) -> 
E244: HOMA Index | G244: Kriterien
E245: ≤1 | G245: normal
E246: ≥2 | G246: Hinweis auf eine Insulinresistenz
E247: ≥2.5 | G247: Insulinresistenz sehr wahrscheinlich
E248: ≥5 | G248: Durchschnittswert bei Typ 2-Diabetikern
C249: =AND(K241<=1,K241>0) -> FALSE | E249: =AND(K241>1,K241<2) -> FALSE | G249: =AND(K241>=2,K241<2.5) -> FALSE | I249: =AND(K241>=2.5,K241<5) -> FALSE | K249: =K241>=5 -> TRUE
E250: =IF(K241="","",IF(C249,"Kein Hinweis auf eine Insulinresistenz",IF(E249,"Verdacht auf beginnende Insulinresistenz",IF(G249,"Hinweis auf eine Insulinresistenz",IF(I249,"Isulinresistenz sehr wahrscheinlich",IF(K249,"Insulinresistenz sehr hoch wie bei Typ2 Diabetiker","")))))) -> 
E253: Kriterien für das Vorliegen eines Arterioskleroserisikos - Quotient Cholesterin/HDL
C255: Merkmal | E255: Meine Werte | G255: Quotient Chol/HDL | I255: Kriterien | K255: Arterioskleroserisiko
B257: Gesamt-Cholesterin (mmol/l) | E257: =IF(E208=0,"",E208) ->  | G257: =IF(E208=0,"",IF(E210=0,"",E208/E210)) ->  | I257: Quotient unter 5: | K257: gering
B258: HDL-Cholesterin (mmol/l) | E258: =IF(E210=0,"",E210) ->  | I258: Quotient über 5: | K258: erhöht
B261: =IF(E208=0,"",IF(E210=0,"",IF(G257=5,"Ihr Arterioskleroserisiko ist grenzwertig",IF(G257<5,"Ihr Arterioskleroserisiko ist nicht erhöht", IF(G257>5,"Ihr Arterioskleroserisiko ist erhöht"))))) -> 
B263: Man darf sich grundsätzlich nicht allein auf einen günstigen "Gesamtcholesterin zu HDL"-Quotienten verlassen. Hohe HDL-Werte kommen
B264: manchmal dadurch zustande, dass der HDL-vermittelte physiologische Rücktransport oxidierten LDLs aus den Gefässwänden in die Leber
B265: blockiert ist. Das Serum-HDL akkumuliert und kreist in grosser Menge im Blut, ohne seine arteriosklerosepräventive Funktion erfüllen
B266: zu können.
G270: Kriterien für das Vorliegen eines Gefässrisikos
K271: T=Treffer
B272: Merkmal | E272: Meine Werte | G272: Kriterien | H272: T | I272: Kriterien | J272: T | K272: Kriterien | L272: T
B274: Rauchen (Zigaretten/Tag) | E274: =IF(K206="","",IF(K206=0,"0",K206)) ->  | G274: 0 | H274: =IF(K206="","",IF(K206=0,1,)) ->  | I274: 1 bis 6 | J274: =IF(K206="","",IF(E274=0,0,IF(E274>=1,IF(E274<=6,1,0)))) ->  | K274: ab 7 | L274: =IF(K206="","",IF(K206=0,0,IF(K206<7,0,IF(K206>=7,1)))) -> 
B275: Bewegung (Std./Woche) | E275: =IF(K207=0,"",K207) ->  | G275: ab 3 | H275: =IF(K207="","",IF(K207<3,0,IF(K207>=3,1))) ->  | I275: 1 bis 2 | J275: =IF(K207="","",IF(K207=0,0,IF(K207>=1,IF(K207<=2,1,0)))) ->  | K275: 0 | L275: =IF(K207="","",IF(K207=0,1,0)) -> 
B276: =IF(E36="Frau","BMI Frau","") -> BMI Frau | C276: =IF(A36="Mann","Mann bis 24","Frau bis 22") -> Frau bis 22 | E276: =IF(E36="Frau",K24,"") ->  | G276: =IF(B276="","",IF(E36="Frau","Frau bis 22")) -> Frau bis 22 | H276: =IF(E276="","",IF(E276<=22,1,0)) ->  | I276: =IF(B276="","",IF(E36="Frau","Frau 22 bis 28")) -> Frau 22 bis 28 | J276: =IF(E276="","",IF(E276<=22,0,IF(E276>=28,0,IF(E276>22,IF(E276<28,1))))) ->  | K276: =IF(B276="","",IF(E36="Mann","Mann u. Frau ab 28","Mann u. Frau ab 28")) -> Mann u. Frau ab 28 | L276: =IF(E276="","",IF(E276>=28,1,0)) -> 
B277: =IF(E36="Mann","BMI Mann","") ->  | C277: =IF(A37="Mann","Mann bis 24","Frau bis 22") -> Frau bis 22 | E277: =IF(E36="Mann",K24,"") ->  | G277: =IF(B277="","",IF(E36="Mann","Mann bis 24")) ->  | H277: =IF(E277="","",IF(E277<=24,1,0)) ->  | I277: =IF(B277="","",IF(E36="Mann","Mann 24 bis 28")) ->  | J277: =IF(E277="","",IF(E277<=24,0,IF(E277>=28,0,IF(E277>=24,IF(E277<28,1,0))))) ->  | K277: =IF(B277="","",IF(E36="Mann","Mann u. Frau ab 28","Mann u. Frau ab 28")) ->  | L277: =IF(E277="","",IF(E277>=28,1,0)) -> 
B278: Blutdruck (RR) systolisch | E278: =K40 ->  | G278: bis 140 | H278: =IF(K40="","",IF(E278<=140,1,IF(E278>=141,0,))) ->  | I278: 141 - 179 | J278: =IF(K40="","",IF(E278<=140,0,IF(E278>=141,IF(E278<=179,1,0)))) ->  | K278: ab 180 | L278: =IF(K40="","",IF(E278>=180,1,0)) -> 
B279: Blutdruck (RR) diastolisch | E279: =K41 ->  | G279: bis 90 | H279: =IF(K41="","",IF(E279<=90,1,IF(E279>=91,0,))) ->  | I279: 91 - 109 | J279: =IF(K41="","",IF(E279<=90,0,IF(E279>=91,IF(E279<=109,1,0)))) ->  | K279: ab 110 | L279: =IF(K41="","",IF(E279>=110,1,0)) -> 
B280: Blutzucker (Glukose) (mmol/l) | E280: =IF(E207=0,"",E207) ->  | G280: bis 5.5 | H280: =IF(E207="","",IF(E280<=5.5,1,IF(E280>=5.6,0))) ->  | I280: 5.6 - 6.8 | J280: =IF(E207="","",IF(E280<=5.5,0,IF(E280>=5.6,IF(E280<=6.8,1,0)))) ->  | K280: ab 6.9 | L280: =IF(E207="","",IF(E280>=6.9,1,0)) -> 
B281: Gesamt-Cholesterin (mmol/l) | G281: bis 5.18 | H281: =IF(E208="","",IF(E281<=5.18,1,IF(E281>=5.19,0))) ->  | I281: 5.19 - 6.19 | J281: =IF(E208="","",IF(E281<=5.18,0,IF(E281>=5.19,IF(E281<=6.19,1,0)))) ->  | K281: ab 6.20 | L281: =IF(E208="","",IF(E281>=6.2,1,0)) -> 
B282: LDL-Cholesterin (mmol/l) | G282: bis 3.38 | H282: =IF(E209=0,"",IF(E282<=3.38,1,IF(E282>=3.39,0))) ->  | I282: 3.39 - 4.12 | J282: =IF(E209=0,"",IF(E282<=3.38,0,IF(E282>=3.39,IF(E282<=4.12,1,0)))) ->  | K282: ab 4.13 | L282: =IF(E209=0,"",IF(E282>=4.13,1,0)) -> 
B283: HDL-Cholesterin (mmol/l) | G283: ab 1.04 | H283: =IF(E210=0,"",IF(E283>=1.04,1,IF(E283<1.04,0))) ->  | I283: 0.79 - 1.03 | J283: =IF(E210=0,"",IF(E283<0.79,0,IF(E283>=1.04,0,IF(E283>=0.79,IF(E283<=1.03,1,0))))) ->  | K283: bis 0.78 | L283: =IF(E210=0,"",IF(E283<=0.78,1,0)) -> 
B284: Triglyzeride (mmol/l) | G284: bis 1.71 | H284: =IF(E211=0,"",IF(E284<=1.71,1,IF(E284>=1.72,0))) ->  | I284: 1.72 - 2.95 | J284: =IF(E211=0,"",IF(E284<=1.71,0,IF(E284>=1.72,IF(E284<=2.95,1,0)))) ->  | K284: ab 2.96 | L284: =IF(E211=0,"",IF(E284>=2.96,1,0)) -> 
B285: CRP sensitiv (mg/l) | G285: 0 bis 3 | H285: =IF(E212="","",IF(E212=0,1,IF(E212>=0,IF(E212<=3,1,0)))) ->  | I285: 4 bis 9 | J285: =IF(E212="","",IF(E212=0,0,IF(E285<=3,0,IF(E285>=4,IF(E285<=9,1,0))))) ->  | K285: ab 10 | L285: =IF(E212="","",IF(E212=0,0,IF(E285>=10,1,0))) -> 
G287: Treffer gelb | H287: =SUM(H274:H285) -> 0 | I287: Treffer x 1= | K287: =H287*1 -> 0
G288: Treffer blau | H288: =SUM(J274:J285) -> 0 | I288: Treffer x 2= | K288: =H288*2 -> 0
G289: Treffer rot | H289: =SUM(L274:L285) -> 0 | I289: Treffer x 3= | K289: =H289*3 -> 0
G291: Gesamtpunkte | I291: = | K291: =SUM(K287:K289) -> 0
C294: Risiko | E294: Gesamtpunkte | G294: Ihr persönliches Risikoprofil
C296: sehr gering | E296: 11 | G296: =IF(K291=E296,"Kein Risiko für Gefässerkrankung","") -> 
E297: 12 | G297: =IF(K291=E297,"Ihr Resultat: Risiko für Gefässerkrankung sehr gering","") -> 
E298: 13 | G298: =IF(K291=E298,"Risiko für Gefässerkrankung sehr gering","") -> 
E299: 14 | G299: =IF(K291=E299,"Risiko für Gefässerkrankung sehr gering","") -> 
E300: 15 | G300: =IF(K291=E300,"Risiko für Gefässerkrankung gering","") -> 
E301: 16 | G301: =IF(K291=E301,"Risiko für Gefässerkrankung gering","") -> 
E302: 17 | G302: =IF(K291=E302,"Risiko für Gefässerkrankung gering","") -> 
E303: 18 | G303: =IF(K291=E303,"Risiko mittel","") -> 
E304: 19 | G304: =IF(K291=E304,"Risiko für Gefässerkrankung mittel","") -> 
E305: 20 | G305: =IF(K291=E305,"Risiko für eine Gefässerkrankung mittel","") -> 
C306: mittel | E306: 21 | G306: =IF(K291=E306,"Risiko für Gefässerkrankung mittel","") -> 
E307: 22 | G307: =IF(K291=E307,"Risiko für Gefässerkrankung mittel","") -> 
E308: 23 | G308: =IF(K291=E308,"Risiko für Gefässerkrankung mittel","") -> 
E309: 24 | G309: =IF(K291=E309,"Risiko für Gefässerkrankung mittel","") -> 
E310: 25 | G310: =IF(K291=E310,"Ihr Resultat: Risiko für Gefässerkrankung hoch","") -> 
E311: 26 | G311: =IF(K291=E311,"Risiko für Gefässerkrankung hoch","") -> 
E312: 27 | G312: =IF(K291=E312,"Risiko für Gefässerkrankung hoch","") -> 
E313: 28 | G313: =IF(K291=E313,"Risiko für Gefässerkrankung hoch","") -> 
E314: 29 | G314: =IF(K291=E314,"Risiko für Gefässerkrankung hoch","") -> 
E315: 30 | G315: =IF(K291=E315,"Risiko für Gefässerkrankung sehr hoch","") -> 
E316: 31 | G316: =IF(K291=E316,"Risiko für Gefässerkrankung sehr hoch","") -> 
E317: 32 | G317: =IF(K291=E317,"Risiko für Gefässerkrankung sehr hoch","") -> 
C318: hoch | E318: 33 | G318: =IF(K291=E318,"Risiko für Gefässerkrankung extrem hoch","") -> 

Sheet August
B2: Monat: August
I3: Grüne Felder: Eingabe erforderlich
C4: Jahresziel: | E4: =IF(Jahr!J4=0,"",Jahr!J4) -> 82 | G4: Monatsziel: | N4: Das moderne Gewichtscoaching:
E6: Kommentar | I6: Veränderung | K6: Ergebnis | N6: XLS - von XL bis S
B8: =IF(D88=0,"",IF(K21=0,"",IF(K22=0,"",IF(K22=K21,"Gewicht gleichbleibend",IF(K22<K21,"Sie haben abgenommen! Bravo!",IF(K22>K21,"")))))) ->  | G8: Abgenommen: | K8: =IF(D88=0,"",IF(K22=0,"",IF(K22-K21=0,"0kg",IF(K22>K21,"",K21-K22)))) ->  | N8: Ernährung und Bewegung
B9: =IF(D88=0,"",IF(K21=0,"",IF(K22=0,"",IF(K22=K21,"Gewicht gleichbleibend",IF(K22>K21,"Sie haben zugenommen. Arbeiten Sie an sich!",IF(K22<K21,"")))))) ->  | G9: Zugenommen: | K9: =IF(D88=0,"",IF(K22=0,"",IF(K22-K21=0,"0kg",IF(K22<K21,"",K22-K21)))) -> 
B11: =IF(D88=0,"",IF(K21=0,"",IF(K22=0,"",IF(K22>I4,"Monatsziel noch nicht erreicht!",IF(K22=I4,"Monatsziel erreicht. Bravo!",IF(K22<I4,"Monatsziel sogar unterschritten!")))))) ->  | G11: Vom Monatsziel entfernt um + / -: | K11: =IF(D88=0,"",IF(K22=0,"",IF(K22=I4,"0",K22-I4))) ->  | N11: Psyche und Schlaf
B12: =IF(D88=0,"",IF(K21=0,"",IF(K22=0,"",IF(K22=E4,"Jahresziel erreicht! Gratuliere!",IF(K22>E4,"Jahresziel noch nicht erreicht! Bleiben Sie dran!",IF(K22<E4,"Jahrsziel sogar unterschritten!")))))) ->  | G12: Vom Jahresziel entfernt um + / -: | K12: =IF(D88=0,"",IF(K22=0,"",IF(K22=E4,"0",K22-E4))) -> 
G14: Gewicht - Monatsdurchschnitt: | K14: =IF(SUM(C82:C112)=0,"",AVERAGEA(C82:C112)) ->  | N14: Motivation: XLS Software
I19: Erste - Letzte Messung im Monat | K19: Monatsprofil | N19: Unterstützung
B21: Ihr Gewicht bei BMI-Ideal 22: | E21: =IF('GU-GEB'!C10=0,"",22*(('GU-GEB'!C10/100)^2)) ->  | G21: Gewicht - Erste Messung im Monat: | K21: =IF(D88=0,"",INDEX(C82:C112,D88,1)) ->  | N21: Granuvital "Fit&Schlank" SevisanaLine
B22: Ihr Gewicht bei BMI-Ideal 25: | E22: =IF('GU-GEB'!C10=0,"",25*(('GU-GEB'!C10/100)^2)) ->  | G22: Gewicht - Letzte Messung im Monat: | K22: =IF(D99=0,"",INDEX(C82:C112,D99,1)) -> 
B24: Vom BMI Ideal 22 entfernt: | E24: =IF(L88=0,"",IF(K24=0,"",IF(K24-22=0,"0",K24-22))) ->  | G24: BMI - Erste Messung im Monat: | K24: =IF(L88=0,"",INDEX(K82:K112,L88,1)) ->  | N24: X-Form und X-Form Plus SevisanaLine
B25: Vom BMI Ideal 22 entfernt: | E25: =IF(L99=0,"",IF(K25=0,"",IF(K25-22=0,"0",K25-22))) ->  | G25: BMI - Letzte Messung im Monat: | K25: =IF(L99=0,"",INDEX(K82:K112,L99,1)) -> 
B27: Vom Idealwert entfernt: | E27: =IF(F88=0,"",IF(K27=0,"",IF(K28=0,"",IF(K27-J27=0,"0cm",K27-J27)))) ->  | G27: Bauchumfang - Erste Messung im Monat: | J27: =IF('GU-GEB'!C8="Mann",94,80) -> 80 | K27: =IF(F88=0,"",INDEX(E82:E112,F88,1)) ->  | N27: Reine Flohsamenschalen SevisanaLine
B28: Vom Idealwert entfernt: | E28: =IF(F99=0,"",IF(K27=0,"",IF(K28=0,"",IF(K28-J27=0,"0cm",K28-J27)))) ->  | G28: Bauchumfang - Letzte Messung im Monat: | J28: =IF('GU-GEB'!C8="Mann",102,88) -> 88 | K28: =IF(F99=0,"",INDEX(E82:E112,F99,1)) -> 
G30: Hüftumfang - Erste Messung im Monat: | K30: =IF(H88=0,"",INDEX(G82:G112,H88,1)) ->  | N30: Basenpulver nach Dr. Eichhorn
G31: Hüftumfang - Letzte Messung im Monat: | K31: =IF(H99=0,"",INDEX(G82:G112,H99,1)) -> 
B33: Vom B/H Idealwert entfernt: | E33: =IF(J88=0,"",IF(K33=0,"",IF(K33-G36=0,"0",K33-G36))) ->  | G33: B/H - Erste Messung im Monat: | K33: =IF(J88=0,"",INDEX(I82:I112,J88,1)) ->  | N33: Produkteinformation | P33: www.sevisana.ch
B34: Vom B/H Idealwert entfernt: | E34: =IF(J99=0,"",IF(K34=0,"",IF(K34-G36=0,"0",K34-G36))) ->  | G34: B/H - Letzte Messung im Monat: | K34: =IF(J99=0,"",INDEX(I82:I112,J99,1)) -> 
B36: B/H Ziel gleich/kleiner als: | E36: ='GU-GEB'!C8 -> Frau | G36: =IF(E36="Frau",0.85,1) -> 0.85
G40: Blutdruck systolisch - Erste Messung | K40: =IF(F147=0,"",INDEX(E141:E171,F147,1)) ->  | N40: Bestellung | P40: www.sevisana.ch
G41: Blutdruck diastolisch - Erste Messung | K41: =IF(H147=0,"",INDEX(G141:G171,H147,1)) -> 
G43: Blutdruck systolisch - Letzte Messung | K43: =IF(F158=0,"",INDEX(E141:IE171,F158,1)) -> 
G44: Blutdruck diastolisch - Letzte Messung | K44: =IF(H158=0,"",INDEX(G141:IG171,H158,1)) ->  | N44: Direktbestellung | P44: http://shop.sevisana.ch
G47: Puls - Erste Messung | K47: =IF(D147=0,"",INDEX(C141:C171,D147,1)) -> 
G48: Puls - Letzte Messung | K48: =IF(D158=0,"",INDEX(C141:C171,D158,1)) ->  | N48: Medizinwissen | P48: www.ever.ch
C53: Tendenzen | G53: Verlauf in diesem Monat
B55: Tendenzen Ende Monat: | E55: Gewicht: | G55: =IF(D88=0,"",IF(K21=0,"",IF(K22=0,"",IF(K22<K21,"Gewicht fällt. Bravo!",IF(K22=K21,"Gewicht gleichbleibend",IF(K22>K21,"Achtung! Gewicht steigt. Risiko!")))))) -> 
E56: BMI: | G56: =IF(D88=0,"",IF(K24=0,"",IF(K25=0,"",IF(K25<K24,"BMI fällt. Bravo!",IF(K25=K24,"BMI gleichbleibend",IF(K25>K24,"BMI steigt. Ihre Gesundheit ist gefährdet!")))))) -> 
E57: Bauchumfang: | G57: =IF(F88=0,"",IF(K27=0,"",IF(K28=0,"",IF(K28<K27,"Bauchumfang wird kleiner. Bravo!",IF(K28=K27,"Bauchumfang gleichbleibend",IF(K28>K27,"Achtung! Bauchumfang nimmt zu",IF(K28<=J27,"Normalwert"))))))) -> 
E58: B/H: | G58: =IF(J88=0,"",IF(K33=0,"",IF(K34=0,"",IF(K34<K33,"B/H Verältnis wird kleiner. Bravo!",IF(K34=K33,"B/H Verältnis gleichbleibend",IF(K34>K33,"Achtung! B/H Verhältnis nimmt zu")))))) -> 
C60: Risiko Anfang Monat: | E60: BMI: | G60: =IF(D88=0,"",IF(K24=0,"",IF(K24>=40,"Grad III: Schwere Adipositas",IF(K24>=30,"Grad II: Adipositas",IF(K24>=25,"Grad I: Übergewichtt",IF(K24>=20,"Normalgewicht",IF(K24<20,"Untergewicht",))))))) -> 
E61: Bauchumfang: | G61: =IF(F88=0,"",IF(K27=0,"",IF(K27>=J28,"Gesundheitsrisiko hoch",IF(K27>=J27,"Gesundheitsrisiko erhöht",IF(K27<J27,"Kein Gesundheitsrisiko"))))) -> 
E62: B/H: | G62: =IF(J88=0,"",IF(K33=0,"",IF(K33>G36,"Gesundheitsrisiko erhöht",IF(K33=G36,"Grenzwert zu Gesundheitsrisiko erhöht",IF(K33<G36,"Kein Gesundheitsrisiko"))))) -> 
C64: Risiko Ende Monat: | E64: BMI: | G64: =IF(D88=0,"",IF(K25=0,"",IF(K25>=40,"Grad III: Schwere Adipositas",IF(K25>=30,"Grad II: Adipositas",IF(K25>=25,"Grad I: Übergewicht",IF(K25>=20,"Normalgewicht",IF(K25<20,"Untergewicht",))))))) -> 
E65: Bauchumfang: | G65: =IF(F88=0,"",IF(K28=0,"",IF(K28>=J28,"Gesundheitsrisiko hoch",IF(K28>=J27,"Gesundheitsrisiko erhöht",IF(K28<J27,"Kein Gesundheitsrisiko"))))) -> 
E66: B/H: | G66: =IF(J88=0,"",IF(K34=0,"",IF(K34>G36,"Gesundheitsrisiko erhöht",IF(K34=G36,"Grenzwert zu Gesundheitsrisiko erhöht",IF(K34<G36,"Kein Gesundheitsrisiko"))))) -> 
B71: Risiko | E71: Ihr persönliches Risikoprofil
B73: Metabolisches Syndrom | E73: =IF(F147=0,"",B232) -> 
B74: Insulinresistenz | E74: =IF(E206=0,"",IF(E207=0,"",E250)) -> 
B75: Arterioskleroserisiko | E75: =IF(E208=0,"",IF(E210=0,"",B261)) -> 
B76: Gefässrisiko | E76: =IF(K291<11,"",IF(K291=0,"",IF(K291>=11,IF(K291<=17,"Gefässrisiko im unteren Bereich",IF(K291>=18,IF(K291<=24,"Gefässrisiko im mittleren Bereich",IF(K291>=25,"Gefässrisiko im hohen Bereich"))))))) -> 
B81: Tag | C81: Gewicht | E81: Bauchumfang | G81: Hüftumfang | I81: B/H Verhältnis | K81: BMI
B82: 1 | D82: =IF(C82="",IF(C83="",IF(C84="",IF(C85="",IF(C86="",IF(C87="",IF(C88="",0,7),6),5),4),3),2),1) -> 0 | F82: =IF(E82="",IF(E83="",IF(E84="",IF(E85="",IF(E86="",IF(E87="",IF(E88="",0,7),6),5),4),3),2),1) -> 0 | H82: =IF(G82="",IF(G83="",IF(G84="",IF(G85="",IF(G86="",IF(G87="",IF(G88="",0,7),6),5),4),3),2),1) -> 0 | I82: =IF(E82=0,"",IF(G82=0,"",E82/G82)) ->  | J82: =IF(I82="",IF(I83="",IF(I84="",IF(I85="",IF(I86="",IF(I87="",IF(I88="",0,7),6),5),4),3),2),1) -> 0 | K82: =IF(C82=0,"",C82/(('GU-GEB'!C10/100)^2)) ->  | L82: =IF(K82="",IF(K83="",IF(K84="",IF(K85="",IF(K86="",IF(K87="",IF(K88="",0,7),6),5),4),3),2),1) -> 0
B83: 2 | D83: =IF(C89="",IF(C90="",IF(C91="",IF(C92="",IF(C93="",IF(C94="",IF(C95="",0,14),13),12),11),10),9),8) -> 0 | F83: =IF(E89="",IF(E90="",IF(E91="",IF(E92="",IF(E93="",IF(E94="",IF(E95="",0,14),13),12),11),10),9),8) -> 0 | H83: =IF(G89="",IF(G90="",IF(G91="",IF(G92="",IF(G93="",IF(G94="",IF(G95="",0,14),13),12),11),10),9),8) -> 0 | J83: =IF(I89="",IF(I90="",IF(I91="",IF(I92="",IF(I93="",IF(I94="",IF(I95="",0,14),13),12),11),10),9),8) -> 0 | K83: =IF(C83=0,"",C83/(('GU-GEB'!C10/100)^2)) ->  | L83: =IF(K89="",IF(K90="",IF(K91="",IF(K92="",IF(K93="",IF(K94="",IF(K95="",0,14),13),12),11),10),9),8) -> 0
B84: 3 | D84: =IF(C96="",IF(C97="",IF(C98="",IF(C99="",IF(C100="",IF(C101="",IF(C102="",0,21),20),19),18),17),16),15) -> 0 | F84: =IF(E96="",IF(E97="",IF(E98="",IF(E99="",IF(E100="",IF(E101="",IF(E102="",0,21),20),19),18),17),16),15) -> 0 | H84: =IF(G96="",IF(G97="",IF(G98="",IF(G99="",IF(G100="",IF(G101="",IF(G102="",0,21),20),19),18),17),16),15) -> 0 | J84: =IF(I96="",IF(I97="",IF(I98="",IF(I99="",IF(I100="",IF(I101="",IF(I102="",0,21),20),19),18),17),16),15) -> 0 | K84: =IF(C84=0,"",C84/(('GU-GEB'!C10/100)^2)) ->  | L84: =IF(K96="",IF(K97="",IF(K98="",IF(K99="",IF(K100="",IF(K101="",IF(K102="",0,21),20),19),18),17),16),15) -> 0
B85: 4 | D85: =IF(C103="",IF(C104="",IF(C105="",IF(C106="",IF(C107="",IF(C108="",IF(C109="",0,28),27),26),25),24),23),22) -> 0 | F85: =IF(E103="",IF(E104="",IF(E105="",IF(E106="",IF(E107="",IF(E108="",IF(E109="",0,28),27),26),25),24),23),22) -> 0 | H85: =IF(G103="",IF(G104="",IF(G105="",IF(G106="",IF(G107="",IF(G108="",IF(G109="",0,28),27),26),25),24),23),22) -> 0 | J85: =IF(I103="",IF(I104="",IF(I105="",IF(I106="",IF(I107="",IF(I108="",IF(I109="",0,28),27),26),25),24),23),22) -> 0 | K85: =IF(C85=0,"",C85/(('GU-GEB'!C10/100)^2)) ->  | L85: =IF(K103="",IF(K104="",IF(K105="",IF(K106="",IF(K107="",IF(K108="",IF(K109="",0,28),27),26),25),24),23),22) -> 0
B86: 5 | D86: =IF(C110="",IF(C111="",IF(C112="",0,31),30),29) -> 0 | F86: =IF(E110="",IF(E111="",IF(E112="",0,31),30),29) -> 0 | H86: =IF(G110="",IF(G111="",IF(G112="",0,31),30),29) -> 0 | J86: =IF(I110="",IF(I111="",IF(I112="",0,31),30),29) -> 0 | K86: =IF(C86=0,"",C86/(('GU-GEB'!C10/100)^2)) ->  | L86: =IF(K110="",IF(K111="",IF(K112="",0,31),30),29) -> 0
B87: 6 | K87: =IF(C87=0,"",C87/(('GU-GEB'!C10/100)^2)) -> 
B88: 7 | D88: =IF(D82=0,IF(D83=0,IF(D84=0,IF(D85=0,IF(D86=0,0,D86),D85),D84),D83),D82) -> 0 | F88: =IF(F82=0,IF(F83=0,IF(F84=0,IF(F85=0,IF(F86=0,0,F86),F85),F84),F83),F82) -> 0 | H88: =IF(H82=0,IF(H83=0,IF(H84=0,IF(H85=0,IF(H86=0,0,H86),H85),H84),H83),H82) -> 0 | J88: =IF(J82=0,IF(J83=0,IF(J84=0,IF(J85=0,IF(J86=0,0,J86),J85),J84),J83),J82) -> 0 | K88: =IF(C88=0,"",C88/(('GU-GEB'!C10/100)^2)) ->  | L88: =IF(L82=0,IF(L83=0,IF(L84=0,IF(L85=0,IF(L86=0,0,L86),L85),L84),L83),L82) -> 0
B89: 8 | K89: =IF(C89=0,"",C89/(('GU-GEB'!C10/100)^2)) -> 
B90: 9 | K90: =IF(C90=0,"",C90/(('GU-GEB'!C10/100)^2)) -> 
B91: 10 | K91: =IF(C91=0,"",C91/(('GU-GEB'!C10/100)^2)) -> 
B92: 11 | K92: =IF(C92=0,"",C92/(('GU-GEB'!C10/100)^2)) -> 
B93: 12 | D93: =IF(C112="",IF(C111="",IF(C110="",IF(C109="",IF(C108="",IF(C107="",IF(C106="",0,25),26),27),28),29),30),31) -> 0 | F93: =IF(E112="",IF(E111="",IF(E110="",IF(E109="",IF(E108="",IF(E107="",IF(E106="",0,25),26),27),28),29),30),31) -> 0 | H93: =IF(G112="",IF(G111="",IF(G110="",IF(G109="",IF(G108="",IF(G107="",IF(G106="",0,25),26),27),28),29),30),31) -> 0 | J93: =IF(I112="",IF(I111="",IF(I110="",IF(I109="",IF(I108="",IF(I107="",IF(I106="",0,25),26),27),28),29),30),31) -> 0 | K93: =IF(C93=0,"",C93/(('GU-GEB'!C10/100)^2)) ->  | L93: =IF(K112="",IF(K111="",IF(K110="",IF(K109="",IF(K108="",IF(K107="",IF(K106="",0,25),26),27),28),29),30),31) -> 0
B94: 13 | D94: =IF(C105="",IF(C104="",IF(C103="",IF(C102="",IF(C101="",IF(C100="",IF(C99="",0,18),19),20),21),22),23),24) -> 0 | F94: =IF(E105="",IF(E104="",IF(E103="",IF(E102="",IF(E101="",IF(E100="",IF(E99="",0,18),19),20),21),22),23),24) -> 0 | H94: =IF(G105="",IF(G104="",IF(G103="",IF(G102="",IF(G101="",IF(G100="",IF(G99="",0,18),19),20),21),22),23),24) -> 0 | J94: =IF(I105="",IF(I104="",IF(I103="",IF(I102="",IF(I101="",IF(I100="",IF(I99="",0,18),19),20),21),22),23),24) -> 0 | K94: =IF(C94=0,"",C94/(('GU-GEB'!C10/100)^2)) ->  | L94: =IF(K105="",IF(K104="",IF(K103="",IF(K102="",IF(K101="",IF(K100="",IF(K99="",0,18),19),20),21),22),23),24) -> 0
B95: 14 | D95: =IF(C98="",IF(C97="",IF(C96="",IF(C95="",IF(C94="",IF(C93="",IF(C92="",0,11),12),13),14),15),16),17) -> 0 | F95: =IF(E98="",IF(E97="",IF(E96="",IF(E95="",IF(E94="",IF(E93="",IF(E92="",0,11),12),13),14),15),16),17) -> 0 | H95: =IF(G98="",IF(G97="",IF(G96="",IF(G95="",IF(G94="",IF(G93="",IF(G92="",0,11),12),13),14),15),16),17) -> 0 | J95: =IF(I98="",IF(I97="",IF(I96="",IF(I95="",IF(I94="",IF(I93="",IF(I92="",0,11),12),13),14),15),16),17) -> 0 | K95: =IF(C95=0,"",C95/(('GU-GEB'!C10/100)^2)) ->  | L95: =IF(K98="",IF(K97="",IF(K96="",IF(K95="",IF(K94="",IF(K93="",IF(K92="",0,11),12),13),14),15),16),17) -> 0
B96: 15 | D96: =IF(C91="",IF(C90="",IF(C89="",IF(C88="",IF(C87="",IF(C86="",IF(C85="",0,4),5),6),7),8),9),10) -> 0 | F96: =IF(E91="",IF(E90="",IF(E89="",IF(E88="",IF(E87="",IF(E86="",IF(E85="",0,4),5),6),7),8),9),10) -> 0 | H96: =IF(G91="",IF(G90="",IF(G89="",IF(G88="",IF(G87="",IF(G86="",IF(G85="",0,4),5),6),7),8),9),10) -> 0 | J96: =IF(I91="",IF(I90="",IF(I89="",IF(I88="",IF(I87="",IF(I86="",IF(I85="",0,4),5),6),7),8),9),10) -> 0 | K96: =IF(C96=0,"",C96/(('GU-GEB'!C10/100)^2)) ->  | L96: =IF(K91="",IF(K90="",IF(K89="",IF(K88="",IF(K87="",IF(K86="",IF(K85="",0,4),5),6),7),8),9),10) -> 0
B97: 16 | D97: =IF(C84="",IF(C83="",IF(C82="",0,1),2),3) -> 0 | F97: =IF(E84="",IF(E83="",IF(E82="",0,1),2),3) -> 0 | H97: =IF(G84="",IF(G83="",IF(G82="",0,1),2),3) -> 0 | J97: =IF(I84="",IF(I83="",IF(I82="",0,1),2),3) -> 0 | K97: =IF(C97=0,"",C97/(('GU-GEB'!C10/100)^2)) ->  | L97: =IF(K84="",IF(K83="",IF(K82="",0,1),2),3) -> 0
B98: 17 | K98: =IF(C98=0,"",C98/(('GU-GEB'!C10/100)^2)) -> 
B99: 18 | D99: =IF(D93=0,IF(D94=0,IF(D95=0,IF(D96=0,IF(D97=0,0,D97),D96),D95),D94),D93) -> 0 | F99: =IF(F93=0,IF(F94=0,IF(F95=0,IF(F96=0,IF(F97=0,0,F97),F96),F95),F94),F93) -> 0 | H99: =IF(H93=0,IF(H94=0,IF(H95=0,IF(H96=0,IF(H97=0,0,H97),H96),H95),H94),H93) -> 0 | J99: =IF(J93=0,IF(J94=0,IF(J95=0,IF(J96=0,IF(J97=0,0,J97),J96),J95),J94),J93) -> 0 | K99: =IF(C99=0,"",C99/(('GU-GEB'!C10/100)^2)) ->  | L99: =IF(L93=0,IF(L94=0,IF(L95=0,IF(L96=0,IF(L97=0,0,L97),L96),L95),L94),L93) -> 0
B100: 19 | K100: =IF(C100=0,"",C100/(('GU-GEB'!C10/100)^2)) -> 
B101: 20 | K101: =IF(C101=0,"",C101/(('GU-GEB'!C10/100)^2)) -> 
B102: 21 | K102: =IF(C102=0,"",C102/(('GU-GEB'!C10/100)^2)) -> 
B103: 22 | K103: =IF(C103=0,"",C103/(('GU-GEB'!C10/100)^2)) -> 
B104: 23 | K104: =IF(C104=0,"",C104/(('GU-GEB'!C10/100)^2)) -> 
B105: 24 | K105: =IF(C105=0,"",C105/(('GU-GEB'!C10/100)^2)) -> 
B106: 25 | K106: =IF(C106=0,"",C106/(('GU-GEB'!C10/100)^2)) -> 
B107: 26 | K107: =IF(C107=0,"",C107/(('GU-GEB'!C10/100)^2)) -> 
B108: 27 | K108: =IF(C108=0,"",C108/(('GU-GEB'!C10/100)^2)) -> 
B109: 28 | K109: =IF(C109=0,"",C109/(('GU-GEB'!C10/100)^2)) -> 
B110: 29 | K110: =IF(C110=0,"",C110/(('GU-GEB'!C10/100)^2)) -> 
B111: 30 | K111: =IF(C111=0,"",C111/(('GU-GEB'!C10/100)^2)) -> 
B112: 31 | K112: =IF(C112=0,"",C112/(('GU-GEB'!C10/100)^2)) -> 
B140: Tag | C140: Puls | E140: BD systolisch | G140: BD diastolisch | I140: BD Mittelwert
B141: 1 | D141: =IF(C141="",IF(C142="",IF(C143="",IF(C144="",IF(C145="",IF(C146="",IF(C147="",0,7),6),5),4),3),2),1) -> 0 | F141: =IF(E141="",IF(E142="",IF(E143="",IF(E144="",IF(E145="",IF(E146="",IF(E147="",0,7),6),5),4),3),2),1) -> 0 | H141: =IF(G141="",IF(G142="",IF(G143="",IF(G144="",IF(G145="",IF(G146="",IF(G147="",0,7),6),5),4),3),2),1) -> 0 | I141: =IF(E141=0,"",IF(G141=0,"",AVERAGEA(E141,G141))) -> 
B142: 2 | D142: =IF(C148="",IF(C149="",IF(C150="",IF(C151="",IF(C152="",IF(C153="",IF(C154="",0,14),13),12),11),10),9),8) -> 0 | F142: =IF(E148="",IF(E149="",IF(E150="",IF(E151="",IF(E152="",IF(E153="",IF(E154="",0,14),13),12),11),10),9),8) -> 0 | H142: =IF(G148="",IF(G149="",IF(G150="",IF(G151="",IF(G152="",IF(G153="",IF(G154="",0,14),13),12),11),10),9),8) -> 0
B143: 3 | D143: =IF(C155="",IF(C156="",IF(C157="",IF(C158="",IF(C159="",IF(C160="",IF(C161="",0,21),20),19),18),17),16),15) -> 0 | F143: =IF(E155="",IF(E156="",IF(E157="",IF(E158="",IF(E159="",IF(E160="",IF(E161="",0,21),20),19),18),17),16),15) -> 0 | H143: =IF(G155="",IF(G156="",IF(G157="",IF(G158="",IF(G159="",IF(G160="",IF(G161="",0,21),20),19),18),17),16),15) -> 0
